Workbook

Sheet Millwall
C1: 1 | D1: Competition | E1: Date | G1: Us & Them | H1: Opponents | L1: Score | M1: HT | X1: Att | Z1: Pts | AA1: Pos | AB1: Goal Scorers
BE3: Check with Complete History 2010 | BP3: All | BT3: Division Two | BY3: FA Cup | CB3: League Cup | EQ3: Millwall Progress Season 1970/71
C4: Game | D4: Competition | E4: Date | G4: Us & Them | H4: Opponents | L4: Score | M4: HT | X4: Att | Y4: Away | Z4: Pts | AA4: Pos | AB4: Goal Scorers | AG4: Game | AH4: Competition | AI4: Date | AK4: Opponents | AO4: Score | AP4: 1 | AQ4: 2 | AR4: 3 | AS4: 4 | AT4: 5 | AU4: 6 | AV4: 7 | AW4: 8 | AX4: 9 | AY4: 10 | AZ4: 11 | BA4: 12 | BQ4: =BP51 -> Max (46) | BU4: =BT51 -> Max (42) | BY4: =BX51 -> Max (1) | CC4: =CB51 -> Max (3) | CT4: 1 | CU4: 2 | CV4: 3 | CW4: 4 | CX4: 5 | CY4: 6 | CZ4: 7 | DA4: 8 | DB4: 9 | DC4: 10 | DD4: 11 | DF4: 11 | DG4: 12 | DH4: 13 | DI4: 14 | DJ4: 15 | DK4: 16 | DL4: 17 | DM4: 18 | EJ4: Opposition | EK4: Pts | EL4: Pos
A5: 1 | C5: 1 | D5: Division 2 | E5: 1970-08-15 | G5: - - | H5: Oxford | I5: (H) | L5: L 1-2 | M5: 1-1 | X5: 9895 | Z5: 0 | AA5: 18 | AB5: Bolland | AE5: 1 | AG5: 1 | AH5: =D5 -> Division 2 | AI5: =E5 -> 1970-08-15 | AK5: =H5 -> Oxford | AL5: =I5 -> (H) | AO5: =L5 -> L 1-2 | AP5: King | AQ5: B Brown | AR5: Cripps | AS5: Dorney | AT5: Kitchener | AU5: Burnett | AV5: Possee | AW5: Jacks | AX5: Bolland | AY5: Dunphy | AZ5: Allder | BN5: Player | BP5: Apps | BQ5: Sub | BR5: Nps | BS5: Goals | BT5: Apps | BU5: Sub | BV5: Nps | BW5: Goals | BX5: Apps | BY5: Sub | BZ5: Nps | CA5: Goals | CB5: Apps | CC5: Sub | CD5: Nps | CE5: Goals | CT5: King | CU5: B Brown | CV5: Cripps | CW5: Dorney | CX5: Kitchener | CY5: Burnett | CZ5: S Brown | DA5: Dunphy | DB5: Bolland | DC5: Possee | DD5: Allder | EJ5: Oxford (H) L 1-2 | EK5: 0 | EL5: 18
A6: =IF(A5=0,1,IF(A5=2,1,2)) -> 2 | C6: 2 | D6: Division 2 | E6: 1970-08-22 | G6: 18th v 2nd | H6: Cardiff | I6: (A) | L6: D 2-2 | M6: 0-1 | X6: 25299 | Z6: 1 | AA6: 16 | AB6: Possee, Cripps | AE6: =IF(AE5=0,1,IF(AE5=2,1,2)) -> 2 | AG6: 2 | AH6: =D6 -> Division 2 | AI6: =E6 -> 1970-08-22 | AK6: =H6 -> Cardiff | AL6: =I6 -> (A) | AO6: =L6 -> D 2-2 | AP6: King | AQ6: B Brown | AR6: Cripps | AS6: Dorney | AT6: Kitchener | AU6: Burnett | AV6: Possee | AW6: Jacks () | AX6: Bolland | AY6: Dunphy | AZ6: Allder | BA6: S Brown () | BE6: Apps | BF6: Sub | BG6: Apps | BH6: Sub | BI6: Apps | BJ6: Sub | EJ6: Cardiff (A) D 2-2 | EK6: 1 | EL6: 16
A7: 1 | C7: 3 | D7: Division 2 | E7: 1970-08-29 | G7: 16th v 4th | H7: Portsmouth | I7: (H) | L7: D 0-0 | M7: 0-0 | X7: 8908 | Z7: 2 | AA7: 14 | AE7: =IF(AE6=0,1,IF(AE6=2,1,2)) -> 1 | AG7: 3 | AH7: Division 2 | AI7: 1970-08-29 | AK7: Portsmouth | AL7: (H) | AO7: D 0-0 | AP7: King | AQ7: B Brown | AR7: Cripps | AS7: Dorney | AT7: Kitchener | AU7: Burnett | AV7: Possee | AW7: Jacks | AX7: Bolland () | AY7: Dunphy | AZ7: Allder | BA7: S Brown () | BD7: =IF(BE7=BT7,IF(BF7=BU7,IF(BG7=BX7,IF(BH7=BY7,IF(BI7=CB7,IF(BJ7=CC7,"OK","Error"),"Error"),"Error"),"Error"),"Error"),"Error") -> OK | BE7: 38 | BF7: 0 | BG7: 1 | BH7: 0 | BI7: 3 | BJ7: 0 | BL7: 1 | BN7: =CM7&" "&CN7 -> Doug Allder | BP7: =BT7+BX7+CB7+CF7 -> 42 | BQ7: =BU7+BY7+CC7+CG7 -> 0 | BR7: =BV7+BZ7+CD7+CH7 -> 0 | BS7: =BW7+CA7+CE7+CI7 -> 3 | BT7: =BQ72 -> 38 | BU7: =BR72 -> 0 | BV7: =BS72 -> 0 | BW7: =BT72 -> 3 | BX7: =BY72 -> 1 | BY7: =BZ72 -> 0 | BZ7: =CA72 -> 0 | CA7: =CB72 -> 0 | CB7: =BU72 -> 3 | CC7: =BV72 -> 0 | CD7: =BW72 -> 0 | CE7: =BX72 -> 0 | CL7: =CL72 -> 72 | CM7: Doug | CN7: Allder | CO7: 1 | CP7: 7 | CR7: Allder | CT7: King | CU7: B Brown | CV7: Cripps | CW7: Dorney | CX7: Kitchener | CY7: Burnett | CZ7: S Brown | DA7: Dunphy | DB7: Bolland | DC7: Possee | DD7: Allder | EJ7: Portsmouth (H) D 0-0 | EK7: 2 | EL7: 14
A8: 2 | C8: 4 | D8: Division 2 | E8: 1970-09-02 | G8: 17th v 9th | H8: Norwich | I8: (A) | L8: L 0-1 | M8: 0-1 | X8: 15360 | Z8: 2 | AA8: 20 | AE8: 2 | AG8: 4 | AH8: Division 2 | AI8: 1970-09-02 | AK8: Norwich | AL8: (A) | AO8: L 0-1 | AP8: King | AQ8: B Brown | AR8: Cripps | AS8: Dorney | AT8: Kitchener | AU8: Burnett | AV8: Possee | AW8: Jacks () | AX8: Bolland | AY8: Dunphy | AZ8: Allder | BA8: S Brown () | BD8: =IF(BE8=BT8,IF(BF8=BU8,IF(BG8=BX8,IF(BH8=BY8,IF(BI8=CB8,IF(BJ8=CC8,"OK","Error"),"Error"),"Error"),"Error"),"Error"),"Error") -> OK | BE8: 42 | BF8: 0 | BG8: 1 | BH8: 0 | BI8: 3 | BJ8: 0 | BL8: =IF(BL7=0,1,IF(BL7=2,1,2)) -> 2 | BN8: Gordon Bolland | BP8: 46 | BQ8: 0 | BR8: 0 | BS8: 5 | BT8: =BQ73 -> 42 | BU8: 0 | BV8: 0 | BW8: 4 | BX8: =BY73 -> 1 | BY8: 0 | BZ8: 0 | CA8: 0 | CB8: =BU73 -> 3 | CC8: 0 | CD8: 0 | CE8: 1 | CL8: 73 | CM8: Gordon | CN8: Bolland | CO8: 2 | CP8: 8 | CR8: Bolland | EJ8: Norwich (A) L 0-1 | EK8: 2 | EL8: 20
A9: 1 | C9: 5 | D9: Division 2 | E9: 1970-09-05 | G9: 20th v 22nd | H9: Charlton | I9: (A) | L9: W 3-1 | M9: 1-0 | X9: 15867 | Z9: 4 | AA9: 16 | AB9: Possee (3) | AE9: 1 | AG9: 5 | AH9: Division 2 | AI9: 1970-09-05 | AK9: Charlton | AL9: (A) | AO9: W 3-1 | AP9: King | AQ9: B Brown | AR9: Cripps | AS9: Jacks | AT9: Kitchener | AU9: Burnett | AV9: Possee | AW9: Neil | AX9: Bolland | AY9: Dunphy | AZ9: Allder | BD9: OK | BE9: 35 | BF9: 0 | BG9: 1 | BH9: 0 | BI9: 0 | BJ9: 0 | BL9: 1 | BN9: Barry Bridges | BP9: 36 | BQ9: 0 | BR9: 0 | BS9: 15 | BT9: =BQ74 -> 35 | BU9: 0 | BV9: 0 | BW9: 15 | BX9: =BY74 -> 1 | BY9: 0 | BZ9: 0 | CA9: 0 | CB9: =BU74 -> 0 | CC9: 0 | CD9: 0 | CE9: 0 | CL9: 74 | CM9: Barry | CN9: Bridges | CO9: 3 | CP9: 9 | CR9: Bridges | EJ9: Charlton (A) W 3-1 | EK9: 4 | EL9: 16
A10: 2 | C10: 6 | D10: League Cup 2 | E10: 1970-09-09 | G10: - - | H10: Stoke City | I10: (A) | L10: D 0-0 | M10: 0-0 | X10: 10230 | Z10: - | AA10: - | AE10: 2 | AG10: 6 | AH10: League Cup 2 | AI10: 1970-09-09 | AK10: Stoke City | AL10: (A) | AO10: D 0-0 | AP10: King | AQ10: B Brown | AR10: Cripps | AS10: Dorney | AT10: Kitchener | AU10: Burnett | AV10: S Brown | AW10: Jacks | AX10: Bolland | AY10: Dunphy | AZ10: Allder | BD10: OK | BE10: 42 | BF10: 0 | BG10: 1 | BH10: 0 | BI10: 3 | BJ10: 0 | BL10: 2 | BN10: Brian Brown | BP10: 46 | BQ10: 0 | BR10: 0 | BS10: 2 | BT10: =BQ75 -> 42 | BU10: 0 | BV10: 0 | BW10: 2 | BX10: =BY75 -> 1 | BY10: 0 | BZ10: 0 | CA10: 0 | CB10: =BU75 -> 3 | CC10: 0 | CD10: 0 | CE10: 0 | CL10: 75 | CM10: Brian | CN10: Brown | CO10: 4 | CP10: 10 | CR10: B Brown | EJ10: Sheff Utd (H) L 1-2 | EK10: 4 | EL10: 20
A11: 1 | C11: 7 | D11: Division 2 | E11: 1970-09-14 | G11: 19th v 21st | H11: Sheff Utd | I11: (H) | L11: L 1-2 | M11: 0-2 | X11: 5363 | Z11: 4 | AA11: 20 | AB11: Possee | AE11: 1 | AG11: 7 | AH11: Division 2 | AI11: 1970-09-14 | AK11: Sheff Utd | AL11: (H) | AO11: L 1-2 | AP11: King | AQ11: B Brown | AR11: Cripps | AS11: Dorney | AT11: Kitchener | AU11: Burnett | AV11: Possee | AW11: Jacks () | AX11: Bolland | AY11: Dunphy | AZ11: Allder | BA11: S Brown () | BD11: OK | BE11: 1 | BF11: 13 | BG11: 0 | BH11: 0 | BI11: 3 | BJ11: 0 | BL11: 1 | BN11: Steve Brown | BP11: 4 | BQ11: 13 | BR11: 0 | BS11: 1 | BT11: =BQ76 -> 1 | BU11: 13 | BV11: 0 | BW11: 1 | BX11: =BY76 -> 0 | BY11: 0 | BZ11: 0 | CA11: 0 | CB11: =BU76 -> 3 | CC11: 0 | CD11: 0 | CE11: 0 | CL11: 76 | CM11: Steve | CN11: Brown | CO11: 5 | CP11: 11 | CR11: S Brown | EJ11: Hull (A) L 0-2 | EK11: 4 | EL11: 21
A12: 2 | C12: 8 | D12: Division 2 | E12: 1970-09-19 | G12: 20th v 3rd | H12: Hull | I12: (A) | L12: L 0-2 | M12: 0-0 | X12: 15593 | Z12: 4 | AA12: 21 | AE12: 2 | AG12: 8 | AH12: Division 2 | AI12: 1970-09-19 | AK12: Hull | AL12: (A) | AO12: L 0-2 | AP12: King | AQ12: B Brown | AR12: Cripps | AS12: Dorney | AT12: Kitchener | AU12: Burnett | AV12: Possee | AW12: Jacks | AX12: Bolland | AY12: Dunphy () | AZ12: Allder | BA12: S Brown () | BD12: OK | BE12: 40 | BF12: 0 | BG12: 1 | BH12: 0 | BI12: 3 | BJ12: 0 | BL12: 2 | BN12: Dennis Burnett | BP12: 44 | BQ12: 0 | BR12: 0 | BS12: 1 | BT12: =BQ77 -> 40 | BU12: 0 | BV12: 0 | BW12: 1 | BX12: =BY77 -> 1 | BY12: 0 | BZ12: 0 | CA12: 0 | CB12: =BU77 -> 3 | CC12: 0 | CD12: 0 | CE12: 0 | CL12: 77 | CM12: Dennis | CN12: Burnett | CO12: 6 | CP12: 12 | CR12: Burnett | EJ12: Sunderland (H) D 0-0 | EK12: 5 | EL12: 21
A13: 1 | C13: 9 | D13: League Cup 2 R | E13: 1970-09-21 | G13: - - | H13: Stoke City | I13: (H) | L13: W 2-1 | M13: 0-0 | X13: 12789 | Z13: - | AA13: - | AB13: Possee, Allder | AE13: 1 | AG13: 9 | AH13: League Cup 2 R | AI13: 1970-09-21 | AK13: Stoke City | AL13: (H) | AO13: W 2-1 | AP13: King | AQ13: B Brown | AR13: Cripps | AS13: Dorney | AT13: Kitchener | AU13: Burnett | AV13: S Brown | AW13: Dunphy | AX13: Bolland | AY13: Possee | AZ13: Allder | BD13: OK | BE13: 2 | BF13: 1 | BG13: 0 | BH13: 0 | BI13: 0 | BJ13: 0 | BL13: 1 | BN13: David Coxhill | BP13: 2 | BQ13: 1 | BR13: 0 | BS13: 0 | BT13: =BQ78 -> 2 | BU13: 1 | BV13: 0 | BW13: 0 | BX13: =BY78 -> 0 | BY13: 0 | BZ13: 0 | CA13: 0 | CB13: =BU78 -> 0 | CC13: 0 | CD13: 0 | CE13: 0 | CL13: 78 | CM13: David | CN13: Coxhill | CO13: 7 | CP13: 13 | CR13: Coxhill | EJ13: Swindon (A) L 0-3 | EK13: 5 | EL13: 21
A14: 2 | C14: 10 | D14: Division 2 | E14: 1970-09-26 | G14: 21st v 10th | H14: Sunderland | I14: (H) | L14: D 0-0 | M14: 0-0 | X14: 12196 | Z14: 5 | AA14: 21 | AE14: 2 | AG14: 10 | AH14: Division 2 | AI14: 1970-09-26 | AK14: Sunderland | AL14: (H) | AO14: D 0-0 | AP14: King | AQ14: B Brown | AR14: Cripps | AS14: Dorney | AT14: Kitchener | AU14: Burnett | AV14: Bridges | AW14: Dunphy | AX14: Bolland | AY14: Possee | AZ14: Allder | BD14: OK | BE14: 42 | BF14: 0 | BG14: 1 | BH14: 0 | BI14: 3 | BJ14: 0 | BL14: 2 | BN14: Harry Cripps | BP14: 46 | BQ14: 0 | BR14: 0 | BS14: 10 | BT14: =BQ79 -> 42 | BU14: 0 | BV14: 0 | BW14: 10 | BX14: =BY79 -> 1 | BY14: 0 | BZ14: 0 | CA14: 0 | CB14: =BU79 -> 3 | CC14: 0 | CD14: 0 | CE14: 0 | CL14: 79 | CM14: Harry | CN14: Cripps | CO14: 8 | CP14: 14 | CR14: Cripps | EJ14: Carlisle (A) L 0-3 | EK14: 5 | EL14: 21
A15: 1 | C15: 11 | D15: Division 2 | E15: 1970-09-29 | G15: 21st v 17th | H15: Swindon | I15: (A) | L15: L 0-3 | M15: 0-1 | X15: 14389 | Z15: 5 | AA15: 21 | AE15: 1 | AG15: 11 | AH15: Division 2 | AI15: 1970-09-29 | AK15: Swindon | AL15: (A) | AO15: L 0-3 | AP15: King | AQ15: B Brown | AR15: Cripps | AS15: Dorney | AT15: Kitchener | AU15: Burnett | AV15: Bridges | AW15: Dunphy | AX15: Bolland | AY15: Possee | AZ15: Allder () | BA15: S Brown () | BD15: OK | BE15: 39 | BF15: 0 | BG15: 1 | BH15: 0 | BI15: 3 | BJ15: 0 | BL15: 1 | BN15: Alan Dorney | BP15: 43 | BQ15: 0 | BR15: 0 | BS15: 0 | BT15: =BQ80 -> 39 | BU15: 0 | BV15: 0 | BW15: 0 | BX15: =BY80 -> 1 | BY15: 0 | BZ15: 0 | CA15: 0 | CB15: =BU80 -> 3 | CC15: 0 | CD15: 0 | CE15: 0 | CL15: 80 | CM15: Alan | CN15: Dorney | CO15: 9 | CP15: 15 | CR15: Dorney | EJ15: Blackburn (H) W 2-0 | EK15: 7 | EL15: 21
A16: 2 | C16: 12 | D16: Division 2 | E16: 1970-10-02 | G16: 21st v 14th | H16: Carlisle | I16: (A) | L16: L 0-3 | M16: 0-2 | X16: 8424 | Z16: 5 | AA16: 21 | AE16: 2 | AG16: 12 | AH16: Division 2 | AI16: 1970-10-02 | AK16: Carlisle | AL16: (A) | AO16: L 0-3 | AP16: King | AQ16: B Brown | AR16: Cripps | AS16: Dorney | AT16: Kitchener | AU16: Burnett | AV16: Bridges | AW16: Dunphy | AX16: Bolland () | AY16: Possee | AZ16: Allder | BA16: S Brown () | BD16: OK | BE16: 39 | BF16: 1 | BG16: 1 | BH16: 0 | BI16: 3 | BJ16: 0 | BL16: 2 | BN16: Eamon Dunphy | BP16: 43 | BQ16: 1 | BR16: 0 | BS16: 3 | BT16: =BQ81 -> 39 | BU16: 1 | BV16: 0 | BW16: 3 | BX16: =BY81 -> 1 | BY16: 0 | BZ16: 0 | CA16: 0 | CB16: =BU81 -> 3 | CC16: 0 | CD16: 0 | CE16: 0 | CL16: 81 | CM16: Eamon | CN16: Dunphy | CO16: 10 | CP16: 16 | CR16: Dunphy | EJ16: Oxford (A) W 3-2 | EK16: 9 | EL16: 20
A17: 1 | C17: 13 | D17: League Cup 3 | E17: 1970-10-07 | G17: - - | H17: Derby Co | I17: (A) | L17: L 2-4 | M17: 2-2 | X17: 25537 | Z17: - | AA17: - | AB17: Possee, Bolland | AE17: 1 | AG17: 13 | AH17: League Cup 3 | AI17: 1970-10-07 | AK17: Derby Co | AL17: (A) | AO17: L 2-4 | AP17: King | AQ17: B Brown | AR17: Cripps | AS17: Dorney | AT17: Kitchener | AU17: Burnett | AV17: S Brown | AW17: Dunphy | AX17: Bolland | AY17: Possee | AZ17: Allder | BD17: OK | BE17: 2 | BF17: 0 | BG17: 0 | BH17: 0 | BI17: 0 | BJ17: 0 | BL17: 1 | BN17: Alan Garner | BP17: =BT17+BX17+CB17+CF17 -> 2 | BQ17: 0 | BR17: 0 | BS17: 0 | BT17: =BQ82 -> 2 | BU17: 0 | BV17: 0 | BW17: 0 | BX17: =BY82 -> 0 | BY17: 0 | BZ17: 0 | CA17: 0 | CB17: =BU82 -> 0 | CC17: 0 | CD17: 0 | CE17: 0 | CL17: 89 | CM17: Alan | CN17: Garner | CO17: 11 | CP17: 17 | CR17: Garner | EJ17: Watford (H) W 3-0 | EK17: 11 | EL17: 14
A18: 2 | C18: 14 | D18: Division 2 | E18: 1970-10-10 | G18: 22nd v 19th | H18: Blackburn | I18: (H) | L18: W 2-0 | M18: 1-0 | X18: 8280 | Z18: 7 | AA18: 21 | AB18: Own Goal, Bridges | AE18: 2 | AG18: 14 | AH18: Division 2 | AI18: 1970-10-10 | AK18: Blackburn | AL18: (H) | AO18: W 2-0 | AP18: King | AQ18: B Brown | AR18: Cripps | AS18: Garner | AT18: Kitchener | AU18: Burnett | AV18: Bridges | AW18: Dunphy | AX18: Bolland | AY18: Possee | AZ18: Allder | BD18: OK | BE18: 0 | BF18: 1 | BG18: 0 | BH18: 0 | BI18: 0 | BJ18: 0 | BL18: 2 | BN18: Billy Holmes | BP18: 0 | BQ18: 1 | BR18: 0 | BS18: 0 | BT18: =BQ83 -> 0 | BU18: 1 | BV18: 0 | BW18: 0 | BX18: =BY83 -> 0 | BY18: 0 | BZ18: 0 | CA18: 0 | CB18: =BU83 -> 0 | CC18: 0 | CD18: 0 | CE18: 0 | CL18: 90 | CM18: Billy | CN18: Holmes | CO18: 12 | CP18: 18 | CR18: Holmes | EJ18: Leyton Orient (A) D 0-0 | EK18: 12 | EL18: 15
A19: 1 | C19: 15 | D19: Division 2 | E19: 1970-10-17 | G19: 21st v 3rd | H19: Oxford | I19: (A) | L19: W 3-2 | M19: 1-1 | X19: 13715 | Z19: 9 | AA19: 20 | AB19: Possee, Cripps (pen) Bridges | AE19: 1 | AG19: 15 | AH19: Division 2 | AI19: 1970-10-17 | AK19: Oxford | AL19: (A) | AO19: W 3-2 | AP19: King | AQ19: B Brown | AR19: Cripps | AS19: Dorney | AT19: Kitchener | AU19: Burnett | AV19: Bridges | AW19: Dunphy | AX19: Bolland | AY19: Possee | AZ19: Allder | BD19: OK | BE19: 10 | BF19: 0 | BG19: 0 | BH19: 0 | BI19: 1 | BJ19: 0 | BL19: 1 | BN19: George Jacks | BP19: 11 | BQ19: 0 | BR19: 0 | BS19: 0 | BT19: =BQ84 -> 10 | BU19: 0 | BV19: 0 | BW19: 0 | BX19: =BY84 -> 0 | BY19: 0 | BZ19: 0 | CA19: 0 | CB19: =BU84 -> 1 | CC19: 0 | CD19: 0 | CE19: 0 | CL19: 88 | CM19: George | CN19: Jacks | CO19: 13 | CP19: 19 | CR19: Jacks | EJ19: QPR (H) W 3-0 | EK19: 14 | EL19: 12
A20: 2 | C20: 16 | D20: Division 2 | E20: 1970-10-19 | G20: 20th v 13th | H20: Watford | I20: (H) | L20: W 3-0 | M20: 1-0 | X20: 11988 | Z20: 11 | AA20: 14 | AB20: Dunphy, Possee, Bridges | AE20: 2 | AG20: 16 | AH20: Division 2 | AI20: 1970-10-19 | AK20: Watford | AL20: (H) | AO20: W 3-0 | AP20: King | AQ20: B Brown | AR20: Cripps | AS20: Dorney | AT20: Kitchener | AU20: Burnett | AV20: Bridges | AW20: Dunphy | AX20: Bolland | AY20: Possee | AZ20: Allder | BD20: OK | BE20: 42 | BF20: 0 | BG20: 1 | BH20: 0 | BI20: 3 | BJ20: 0 | BL20: 2 | BN20: Bryan King | BP20: 46 | BQ20: 0 | BR20: 0 | BS20: 0 | BT20: =BQ85 -> 42 | BU20: 0 | BV20: 0 | BW20: 0 | BX20: =BY85 -> 1 | BY20: 0 | BZ20: 0 | CA20: 0 | CB20: =BU85 -> 3 | CC20: 0 | CD20: 0 | CE20: 0 | CL20: 82 | CM20: Bryan | CN20: King | CO20: 14 | CP20: 20 | CR20: King | EJ20: Sheff Wed (A) L 0-1 | EK20: 14 | EL20: 15
A21: 1 | C21: 17 | D21: Division 2 | E21: 1970-10-24 | G21: 15th v 18th | H21: Leyton Orient | I21: (A) | L21: D 0-0 | M21: 0-0 | X21: 14282 | Z21: 12 | AA21: 15 | AE21: 1 | AG21: 17 | AH21: Division 2 | AI21: 1970-10-24 | AK21: Leyton Orient | AL21: (A) | AO21: D 0-0 | AP21: King | AQ21: B Brown | AR21: Cripps | AS21: Dorney | AT21: Kitchener | AU21: Burnett | AV21: Bridges | AW21: Dunphy | AX21: Bolland | AY21: Possee | AZ21: Allder | BD21: OK | BE21: 42 | BF21: 0 | BG21: 1 | BH21: 0 | BI21: 3 | BJ21: 0 | BL21: 1 | BN21: Barry Kitchener | BP21: 46 | BQ21: 0 | BR21: 0 | BS21: 3 | BT21: =BQ86 -> 42 | BU21: 0 | BV21: 0 | BW21: 3 | BX21: =BY86 -> 1 | BY21: 0 | BZ21: 0 | CA21: 0 | CB21: =BU86 -> 3 | CC21: 0 | CD21: 0 | CE21: 0 | CL21: 83 | CM21: Barry | CN21: Kitchener | CO21: 15 | CP21: 21 | CR21: Kitchener | EJ21: Bolton (H) W 2-0 | EK21: 16 | EL21: 13
A22: 2 | C22: 18 | D22: Division 2 | E22: 1970-10-31 | G22: 15th v 9th | H22: QPR | I22: (H) | L22: W 3-0 | M22: 2-0 | X22: 16012 | Z22: 14 | AA22: 12 | AB22: Cripps, Bridges, S Brown | AE22: 2 | AG22: 18 | AH22: Division 2 | AI22: 1970-10-31 | AK22: QPR | AL22: (H) | AO22: W 3-0 | AP22: King | AQ22: B Brown | AR22: Cripps | AS22: Dorney | AT22: Kitchener | AU22: Burnett | AV22: Bridges | AW22: Dunphy | AX22: Bolland | AY22: Possee () | AZ22: Allder | BA22: S Brown () | BD22: OK | BE22: 5 | BF22: 1 | BG22: 0 | BH22: 0 | BI22: 0 | BJ22: 0 | BL22: 2 | BN22: Billy Neil | BP22: 5 | BQ22: 1 | BR22: 0 | BS22: 1 | BT22: =BQ87 -> 5 | BU22: 1 | BV22: 0 | BW22: 1 | BX22: =BY87 -> 0 | BY22: 0 | BZ22: 0 | CA22: 0 | CB22: =BU87 -> 0 | CC22: 0 | CD22: 0 | CE22: 0 | CL22: 84 | CM22: Billy | CN22: Neil | CO22: 16 | CP22: 22 | CR22: Neil | EJ22: Bristol C (H) W 2-0 | EK22: 18 | EL22: 11
A23: 1 | C23: 19 | D23: Division 2 | E23: 1970-11-07 | G23: 12th v 14th | H23: Sheff Wed | I23: (A) | L23: L 0-1 | M23: 0-1 | X23: 12668 | Z23: 14 | AA23: 15 | AE23: 1 | AG23: 19 | AH23: Division 2 | AI23: 1970-11-07 | AK23: Sheff Wed | AL23: (A) | AO23: L 0-1 | AP23: King | AQ23: B Brown | AR23: Cripps | AS23: Dorney | AT23: Kitchener | AU23: Burnett | AV23: Bridges | AW23: Dunphy | AX23: Bolland () | AY23: Possee | AZ23: Allder | BA23: S Brown () | BD23: OK | BE23: 41 | BF23: 0 | BG23: 1 | BH23: 0 | BI23: 2 | BJ23: 0 | BL23: 1 | BN23: Derek Possee | BP23: 44 | BQ23: 0 | BR23: 0 | BS23: 17 | BT23: =BQ88 -> 41 | BU23: 0 | BV23: 0 | BW23: 14 | BX23: =BY88 -> 1 | BY23: 0 | BZ23: 0 | CA23: 1 | CB23: =BU88 -> 2 | CC23: 0 | CD23: 0 | CE23: 2 | CL23: 85 | CM23: Derek | CN23: Possee | CO23: 17 | CP23: 23 | CR23: Possee | EJ23: Middlesbro (A) L 0-1 | EK23: 18 | EL23: 13
A24: 2 | C24: 20 | D24: Division 2 | E24: 1970-11-14 | G24: 15th v 17th | H24: Bolton | I24: (H) | L24: W 2-0 | M24: 1-0 | X24: 6410 | Z24: 16 | AA24: 13 | AB24: Bolland, Bridges | AE24: 2 | AG24: 20 | AH24: Division 2 | AI24: 1970-11-14 | AK24: Bolton | AL24: (H) | AO24: W 2-0 | AP24: King | AQ24: B Brown | AR24: Cripps | AS24: Dorney | AT24: Kitchener | AU24: Burnett | AV24: Bridges | AW24: Dunphy | AX24: Bolland | AY24: Possee | AZ24: Allder | BL24: 2 | CL24: 86 | CO24: 18 | CP24: 24 | EJ24: Birmingham (H) W 2-1 | EK24: 20 | EL24: 13
A25: 1 | C25: 21 | D25: Division 2 | E25: 1970-11-21 | G25: 13th v 20th | H25: Bristol C | I25: (H) | L25: W 2-0 | M25: 2-0 | X25: 9173 | Z25: 18 | AA25: 11 | AB25: Cripps, Allder | AE25: 1 | AG25: 21 | AH25: Division 2 | AI25: 1970-11-21 | AK25: Bristol C | AL25: (H) | AO25: W 2-0 | AP25: King | AQ25: B Brown | AR25: Cripps | AS25: Dorney | AT25: Kitchener | AU25: Burnett | AV25: Bridges | AW25: Dunphy | AX25: Bolland | AY25: Possee | AZ25: Allder | BL25: 1 | BN25: Own Goals | BS25: =BW25+CA25+CE25+CI25 -> 2 | BW25: =BT92 -> 2 | CA25: =BX92 -> 0 | CE25: =CB92 -> 0 | CL25: 87 | CO25: 19 | CP25: 25 | EJ25: Leicester (A) L 1-2 | EK25: 20 | EL25: 13
A26: 2 | C26: 22 | D26: Division 2 | E26: 1970-11-28 | G26: 11th v 12th | H26: Middlesbro | I26: (A) | L26: L 0-1 | M26: 0-0 | X26: 13036 | Z26: 18 | AA26: 13 | AE26: 2 | AG26: 22 | AH26: Division 2 | AI26: 1970-11-28 | AK26: Middlesbro | AL26: (A) | AO26: L 0-1 | AP26: King | AQ26: B Brown | AR26: Cripps | AS26: Dorney | AT26: Kitchener | AU26: Burnett | AV26: Bridges | AW26: Dunphy | AX26: Bolland | AY26: Possee | AZ26: Allder | BL26: 2 | CL26: 92 | CO26: 20 | CP26: 26 | EJ26: Cardiff (H) W 2-1 | EK26: 22 | EL26: 12
A27: 1 | C27: 23 | D27: Division 2 | E27: 1970-12-05 | G27: 13th v 18th | H27: Birmingham | I27: (H) | L27: W 2-1 | M27: 2-0 | X27: 8560 | Z27: 20 | AA27: 13 | AB27: Cripps, Bridges | AE27: 1 | AG27: 23 | AH27: Division 2 | AI27: 1970-12-05 | AK27: Birmingham | AL27: (H) | AO27: W 2-1 | AP27: King | AQ27: B Brown | AR27: Cripps | AS27: Jacks | AT27: Kitchener | AU27: Burnett | AV27: Bridges | AW27: Dunphy | AX27: Bolland | AY27: Possee | AZ27: Allder | BL27: 1 | BN27: Goals | BS27: =SUM(BS7:BS25) -> 63 | BW27: =SUM(BW7:BW25) -> 59 | CA27: =SUM(CA7:CA25) -> 1 | CE27: =SUM(CE7:CE25) -> 3 | CL27: =CL91 -> 0 | CO27: 21 | CP27: 27 | EJ27: Swindon (H) D 2-2 | EK27: 23 | EL27: 12
A28: 2 | C28: 24 | D28: Division 2 | E28: 1970-12-12 | G28: 13th v 1st | H28: Leicester | I28: (A) | L28: L 1-2 | M28: 1-2 | X28: 22060 | Z28: 20 | AA28: 13 | AB28: Cripps | AE28: 2 | AG28: 24 | AH28: Division 2 | AI28: 1970-12-12 | AK28: Leicester | AL28: (A) | AO28: L 1-2 | AP28: King | AQ28: B Brown | AR28: Cripps | AS28: Dorney | AT28: Kitchener | AU28: Burnett | AV28: Possee | AW28: Bolland | AX28: Bridges | AY28: Dunphy | AZ28: Allder () | BA28: S Brown () | BL28: 2 | CL28: =CL91 -> 0 | CO28: 22 | CP28: 28 | EJ28: Watford (A) W 4-0 | EK28: 25 | EL28: 12
A29: 1 | C29: 25 | D29: Division 2 | E29: 1970-12-19 | G29: 13th v 4th | H29: Cardiff | I29: (H) | L29: W 2-1 | M29: 1-0 | X29: 8591 | Z29: 22 | AA29: 12 | AB29: Bridges (2) | AE29: 1 | AG29: 25 | AH29: Division 2 | AI29: 1970-12-19 | AK29: Cardiff | AL29: (H) | AO29: W 2-1 | AP29: King | AQ29: B Brown | AR29: Cripps | AS29: Dorney | AT29: Kitchener | AU29: Burnett | AV29: Possee () | AW29: Bolland | AX29: Bridges | AY29: Dunphy | AZ29: Allder | BA29: S Brown () | BN29: =CM29&" "&CN29 ->  | CO29: 23 | CP29: 29 | EJ29: Norwich (H) D 2-2 | EK29: 26 | EL29: 10
A30: 2 | C30: 26 | D30: FA Cup 3 | E30: 1971-01-02 | G30: - - | H30: Stoke City | I30: (A) | L30: L 1-2 | M30: 1-1 | X30: 21400 | Z30: - | AA30: - | AB30: Possee | AE30: 2 | AG30: 26 | AH30: FA Cup 3 | AI30: 1971-01-02 | AK30: Stoke City | AL30: (A) | AO30: L 1-2 | AP30: King | AQ30: B Brown | AR30: Cripps | AS30: Dorney | AT30: Kitchener | AU30: Burnett | AV30: Bridges | AW30: Dunphy | AX30: Bolland | AY30: Possee | AZ30: Allder | BQ30: Check | BT30: =SUM(BT7:BT23) -> 462 | BX30: =SUM(BX7:BX23) -> 11 | CB30: =SUM(CB7:CB23) -> 33 | CO30: 24 | CP30: 30 | EJ30: Middlesbro (H) W 1-0 | EK30: 28 | EL30: 10
A31: 1 | C31: 27 | D31: Division 2 | E31: 1971-01-09 | G31: 13th v 19th | H31: Swindon | I31: (H) | L31: D 2-2 | M31: 0-0 | X31: 10120 | Z31: 23 | AA31: 12 | AB31: Bridges, Possee | AE31: 1 | AG31: 27 | AH31: Division 2 | AI31: 1971-01-09 | AK31: Swindon | AL31: (H) | AO31: D 2-2 | AP31: King | AQ31: B Brown () | AR31: Cripps | AS31: Dorney | AT31: Kitchener | AU31: Burnett | AV31: Possee | AW31: Bolland | AX31: Bridges | AY31: Dunphy | AZ31: Allder | BA31: S Brown () | BN31: =44/17 -> 2.588235294 | CO31: 25 | CP31: 31 | EJ31: Birmingham (A) L 1-3 | EK31: 28 | EL31: 10
A32: 2 | C32: 28 | D32: Division 2 | E32: 1971-01-16 | G32: 12th v 19th | H32: Watford | I32: (A) | L32: W 4-0 | M32: 2-0 | X32: 14072 | Z32: 25 | AA32: 12 | AB32: Bridges, Cripps, Burnett, Dunphy | AE32: 2 | AG32: 28 | AH32: Division 2 | AI32: 1971-01-16 | AK32: Watford | AL32: (A) | AO32: W 4-0 | AP32: King | AQ32: B Brown | AR32: Cripps | AS32: Dorney | AT32: Kitchener | AU32: Burnett | AV32: Possee | AW32: Bolland | AX32: Bridges | AY32: Dunphy | AZ32: Allder | CO32: 26 | CP32: 32 | EJ32: Bristol C (A) L 2-3 | EK32: 28 | EL32: 11
A33: 1 | C33: 29 | D33: Division 2 | E33: 1971-01-23 | G33: 12th v 8th | H33: Norwich | I33: (H) | L33: D 2-2 | M33: 1-1 | X33: 9842 | Z33: 26 | AA33: 10 | AB33: Possee, Cripps | AE33: 1 | AG33: 29 | AH33: Division 2 | AI33: 1971-01-23 | AK33: Norwich | AL33: (H) | AO33: D 2-2 | AP33: King | AQ33: B Brown | AR33: Cripps | AS33: Dorney | AT33: Kitchener | AU33: Burnett | AV33: Possee | AW33: Dunphy | AX33: Bridges | AY33: Bolland | AZ33: Allder | BT33: =BT30/11 -> 42 | BX33: =BX30/11 -> 1 | CB33: =CB30/11 -> 3 | CO33: 28 | CP33: 33 | EJ33: QPR (A) L 0-2 | EK33: 28 | EL33: 13
A34: 2 | C34: 30 | D34: Division 2 | E34: 1971-01-30 | G34: 10th v 6th | H34: Middlesbro | I34: (H) | L34: W 1-0 | M34: 0-0 | X34: 10180 | Z34: 28 | AA34: 10 | AB34: Kitchener | AE34: 2 | AG34: 30 | AH34: Division 2 | AI34: 1971-01-30 | AK34: Middlesbro | AL34: (H) | AO34: W 1-0 | AP34: King | AQ34: B Brown | AR34: Cripps | AS34: Dorney | AT34: Kitchener | AU34: Burnett | AV34: Possee | AW34: Bolland | AX34: Bridges | AY34: Dunphy | AZ34: Neil () | BA34: S Brown () | CO34: 29 | CP34: 34 | EJ34: Leicester (H) D 0-0 | EK34: 29 | EL34: 11
A35: 1 | C35: 31 | D35: Division 2 | E35: 1971-02-06 | G35: 10th v 14th | H35: Birmingham | I35: (A) | L35: L 1-3 | M35: 1-2 | X35: 21893 | Z35: 28 | AA35: 10 | AB35: Neil | AE35: 1 | AG35: 31 | AH35: Division 2 | AI35: 1971-02-06 | AK35: Birmingham | AL35: (A) | AO35: L 1-3 | AP35: King | AQ35: B Brown | AR35: Cripps | AS35: Dorney | AT35: Kitchener | AU35: Burnett | AV35: Possee | AW35: Bolland | AX35: Bridges | AY35: Dunphy | AZ35: Neil () | BA35: Holmes () | CO35: 30 | CP35: 35 | EJ35: Leyton Orient (H) L 0-1 | EK35: 29 | EL35: 12
A36: 2 | C36: 32 | D36: Division 2 | E36: 1971-02-20 | G36: 10th v 21st | H36: Bristol C | I36: (A) | L36: L 2-3 | M36: 0-2 | X36: 10259 | Z36: 28 | AA36: 11 | AB36: Cripps, Bridges | AE36: 2 | AG36: 32 | AH36: Division 2 | AI36: 1971-02-20 | AK36: Bristol C | AL36: (A) | AO36: L 2-3 | AP36: King | AQ36: B Brown | AR36: Cripps | AS36: Dorney | AT36: Kitchener | AU36: Garner | AV36: S Brown () | AW36: Bolland | AX36: Bridges | AY36: Dunphy | AZ36: Allder | BA36: Neil () | BT36: =42*11 -> 462 | CO36: 31 | CP36: 36 | EJ36: Bolton (A) D 1-1 | EK36: 30 | EL36: 13
A37: 1 | C37: 33 | D37: Division 2 | E37: 1971-02-27 | G37: 11th v 16th | H37: QPR | I37: (A) | L37: L 0-2 | M37: 0-0 | X37: 15698 | Z37: 28 | AA37: 13 | AE37: 1 | AG37: 33 | AH37: Division 2 | AI37: 1971-02-27 | AK37: QPR | AL37: (A) | AO37: L 0-2 | AP37: King | AQ37: B Brown | AR37: Cripps | AS37: Dorney | AT37: Kitchener | AU37: Bolland | AV37: Possee | AW37: Jacks | AX37: Bridges | AY37: Neil | AZ37: Allder | EJ37: Sheff Wed (H) W 1-0 | EK37: 32 | EL37: 11
A38: 2 | C38: 34 | D38: Division 2 | E38: 1971-03-01 | G38: 13th v 6th | H38: Leicester | I38: (H) | L38: D 0-0 | M38: 0-0 | X38: 10738 | Z38: 29 | AA38: 11 | AE38: 2 | AG38: 34 | AH38: Division 2 | AI38: 1971-03-01 | AK38: Leicester | AL38: (H) | AO38: D 0-0 | AP38: King | AQ38: B Brown | AR38: Cripps | AS38: Dorney | AT38: Kitchener | AU38: Burnett | AV38: Possee | AW38: Jacks | AX38: Bridges | AY38: Bolland | AZ38: Allder | EJ38: Charlton (H) W 2-0 | EK38: 34 | EL38: 11
A39: 1 | C39: 35 | D39: Division 2 | E39: 1971-03-06 | G39: 11th v 17th | H39: Leyton Orient | I39: (H) | L39: L 0-1 | M39: 0-1 | X39: 7168 | Z39: 29 | AA39: 12 | AE39: 1 | AG39: 35 | AH39: Division 2 | AI39: 1971-03-06 | AK39: Leyton Orient | AL39: (H) | AO39: L 0-1 | AP39: King | AQ39: B Brown | AR39: Cripps | AS39: Dorney | AT39: Kitchener | AU39: Burnett | AV39: Possee | AW39: Neil () | AX39: Bridges | AY39: Bolland | AZ39: Allder | BA39: Dunphy () | EJ39: Luton (A) D 1-1 | EK39: 35 | EL39: 10
A40: 2 | C40: 36 | D40: Division 2 | E40: 1971-03-13 | G40: 12th v 21st | H40: Bolton | I40: (A) | L40: D 1-1 | M40: 1-1 | X40: 6021 | Z40: 30 | AA40: 13 | AB40: Possee | AE40: 2 | AG40: 36 | AH40: Division 2 | AI40: 1971-03-13 | AK40: Bolton | AL40: (A) | AO40: D 1-1 | AP40: King | AQ40: B Brown | AR40: Cripps | AS40: Dorney | AT40: Kitchener | AU40: Burnett | AV40: Possee | AW40: Bolland | AX40: Bridges | AY40: Dunphy | AZ40: Allder | EJ40: Portsmouth (A) W 2-0 | EK40: 37 | EL40: 10
A41: 1 | C41: 37 | D41: Division 2 | E41: 1971-03-20 | G41: 13th v 12th | H41: Sheff Wed | I41: (H) | L41: W 1-0 | M41: 0-0 | X41: 7284 | Z41: 32 | AA41: 11 | AB41: Allder (pen) | AE41: 1 | AG41: 37 | AH41: Division 2 | AI41: 1971-03-20 | AK41: Sheff Wed | AL41: (H) | AO41: W 1-0 | AP41: King | AQ41: B Brown | AR41: Cripps | AS41: Dorney | AT41: Kitchener | AU41: Burnett | AV41: Possee | AW41: Bolland | AX41: Bridges | AY41: Dunphy | AZ41: Allder | EJ41: Carlisle (H) W 2-1 | EK41: 39 | EL41: 10
A42: 2 | C42: 38 | D42: Division 2 | E42: 1971-03-27 | G42: 11th v 22nd | H42: Charlton | I42: (H) | L42: W 2-0 | M42: 1-0 | X42: 13399 | Z42: 34 | AA42: 11 | AB42: Possee, Kitchener | AE42: 2 | AG42: 38 | AH42: Division 2 | AI42: 1971-03-27 | AK42: Charlton | AL42: (H) | AO42: W 2-0 | AP42: King | AQ42: B Brown | AR42: Cripps | AS42: Dorney | AT42: Kitchener | AU42: Burnett | AV42: Possee | AW42: Bolland | AX42: Bridges | AY42: Dunphy | AZ42: Allder | BN42: =CM42&" "&CN42 ->  | EJ42: Luton (H) W 4-0 | EK42: 41 | EL42: 10
A43: 1 | C43: 39 | D43: Division 2 | E43: 1971-03-30 | G43: 11th v 6th | H43: Luton | I43: (A) | L43: D 1-1 | M43: 0-1 | X43: 17578 | Z43: 35 | AA43: 10 | AB43: B Brown | AE43: 1 | AG43: 39 | AH43: Division 2 | AI43: 1971-03-30 | AK43: Luton | AL43: (A) | AO43: D 1-1 | AP43: King | AQ43: B Brown | AR43: Cripps | AS43: Dorney | AT43: Kitchener | AU43: Burnett | AV43: Possee | AW43: Bolland | AX43: Bridges | AY43: Dunphy | AZ43: Allder | EJ43: Sheff Utd (A) L 0-2 | EK43: 41 | EL43: 10
A44: 2 | C44: 40 | D44: Division 2 | E44: 1971-04-03 | G44: 10th v 16th | H44: Portsmouth | I44: (A) | L44: W 2-0 | M44: 0-0 | X44: 9668 | Z44: 37 | AA44: 10 | AB44: Bridges, Bolland | AE44: 2 | AG44: 40 | AH44: Division 2 | AI44: 1971-04-03 | AK44: Portsmouth | AL44: (A) | AO44: W 2-0 | AP44: King | AQ44: B Brown | AR44: Cripps | AS44: Dorney | AT44: Kitchener | AU44: Burnett | AV44: Possee | AW44: Bolland | AX44: Bridges | AY44: Dunphy | AZ44: Coxhill | EJ44: Blackburn (A) W 2-0 | EK44: 43 | EL44: 9
A45: 1 | C45: 41 | D45: Division 2 | E45: 1971-04-05 | G45: 10th v 6th | H45: Carlisle | I45: (H) | L45: W 2-1 | M45: 0-1 | X45: 8201 | Z45: 39 | AA45: 10 | AB45: Bridges, Bolland | AE45: 1 | AG45: 41 | AH45: Division 2 | AI45: 1971-04-05 | AK45: Carlisle | AL45: (H) | AO45: W 2-1 | AP45: King | AQ45: B Brown | AR45: Cripps | AS45: Dorney | AT45: Kitchener | AU45: Burnett | AV45: Possee | AW45: Bolland | AX45: Bridges | AY45: Dunphy | AZ45: Allder | EJ45: Hull (H) W 4-0 | EK45: 45 | EL45: 8
A46: 2 | C46: 42 | D46: Division 2 | E46: 1971-04-10 | G46: 10th v 4th | H46: Luton | I46: (H) | L46: W 4-0 | M46: 3-0 | X46: 13842 | Z46: 41 | AA46: 10 | AB46: Possee (2), Bridges, B Brown | AE46: 2 | AG46: 42 | AH46: Division 2 | AI46: 1971-04-10 | AK46: Luton | AL46: (H) | AO46: W 4-0 | AP46: King | AQ46: B Brown | AR46: Cripps | AS46: Dorney | AT46: Kitchener | AU46: Burnett | AV46: Possee | AW46: Bolland | AX46: Bridges | AY46: Dunphy | AZ46: Allder | EJ46: Sunderland (A) W 1-0 | EK46: 47 | EL46: 7
A47: 1 | C47: 43 | D47: Division 2 | E47: 1971-04-13 | G47: 10th v 3rd | H47: Sheff Utd | I47: (A) | L47: L 0-2 | M47: 0-0 | X47: 24711 | Z47: 41 | AA47: 10 | AE47: 1 | AG47: 43 | AH47: Division 2 | AI47: 1971-04-13 | AK47: Sheff Utd | AL47: (A) | AO47: L 0-2 | AP47: King | AQ47: B Brown | AR47: Cripps | AS47: Dorney | AT47: Kitchener | AU47: Burnett | AV47: Possee | AW47: Bolland | AX47: Bridges | AY47: Dunphy | AZ47: Allder () | BA47: Coxhill ()
A48: 2 | C48: 44 | D48: Division 2 | E48: 1971-04-17 | G48: 10th v 21st | H48: Blackburn | I48: (A) | L48: W 2-0 | M48: 0-0 | X48: 7939 | Z48: 43 | AA48: 9 | AB48: Allder, Dunphy | AE48: 2 | AG48: 44 | AH48: Division 2 | AI48: 1971-04-17 | AK48: Blackburn | AL48: (A) | AO48: W 2-0 | AP48: King | AQ48: B Brown | AR48: Cripps | AS48: Dorney | AT48: Kitchener | AU48: Burnett | AV48: Possee | AW48: Bolland | AX48: Bridges | AY48: Dunphy | AZ48: Allder
A49: 1 | C49: 45 | D49: Division 2 | E49: 1971-04-24 | G49: 9th v 4th | H49: Hull | I49: (H) | L49: W 4-0 | M49: 2-0 | X49: 10376 | Z49: 45 | AA49: 8 | AB49: Possee, Cripps (pen), Bridges, Kitchener | AE49: 1 | AG49: 45 | AH49: Division 2 | AI49: 1971-04-24 | AK49: Hull | AL49: (H) | AO49: W 4-0 | AP49: King | AQ49: B Brown | AR49: Cripps | AS49: Dorney | AT49: Kitchener | AU49: Burnett | AV49: Possee | AW49: Bolland | AX49: Bridges | AY49: Dunphy | AZ49: Allder
A50: 2 | C50: 46 | D50: Division 2 | E50: 1971-05-01 | G50: 8th v 12th | H50: Sunderland | I50: (A) | L50: W 1-0 | M50: 1-0 | X50: 11960 | Z50: 47 | AA50: 7 | AB50: Own Goal | AE50: 2 | AG50: 46 | AH50: Division 2 | AI50: 1971-05-01 | AK50: Sunderland | AL50: (A) | AO50: W 1-0 | AP50: King | AQ50: B Brown | AR50: Cripps | AS50: Dorney | AT50: Kitchener | AU50: Burnett | AV50: Possee | AW50: Bolland | AX50: Bridges | AY50: Dunphy | AZ50: Coxhill
A51: 1 | AE51: 1 | BP51: ="Max ("&BN63&")" -> Max (46) | BT51: ="Max ("&BN59&")" -> Max (42) | BX51: ="Max ("&BN60&")" -> Max (1) | CB51: ="Max ("&BN61&")" -> Max (3) | CG51: ="Max ("&BN133&")" -> Max ()
A52: 2 | AE52: 2 | BL52: =IF(BL51=0,1,IF(BL51=2,1,2)) -> 1
A53: 1 | X53: Final Positon | AA53: 8th | AE53: 1 | BL53: =IF(BL52=0,1,IF(BL52=2,1,2)) -> 2
A54: 2 | BL54: =IF(BL53=0,1,IF(BL53=2,1,2)) -> 1
A55: 1
A56: 2
A57: 1 | AE57: =IF(AE56=0,1,IF(AE56=2,1,2)) -> 1
A58: 2
A59: 1 | BN59: =SUMIF(AH75:AH146,BP59,BC75:BC146) -> 42 | BP59: Division 2*
A60: 2 | BN60: =SUMIF(AH75:AH146,BP60,BC75:BC146) -> 1 | BP60: FA Cup*
A61: 1 | BN61: 3 | BP61: League Cup* | BW61: =42*11 -> 462
BN63: =SUM(BN59:BN62) -> 46
BW64: =SUM(BW7:BW25) -> 59 | CA64: =SUM(CA7:CA25) -> 1 | CE64: =SUM(CE7:CE25) -> 3 | CI64: =SUM(CI7:CI25) -> 0
H65: 1970-08-15 | X65: 9895 | Z65: w
H66: 1970-08-29 | X66: 8908 | Z66: w | AB66: Av Attendance League Games Only
H67: 1970-09-14 | X67: 5363 | Z67: m | AB67: =COUNTIFS($I$5:$I$58,$AC$67,$D$5:$D$58,$D$5,$X$5:$X$58,">0") -> 21 | AC67: (H)
H68: 1970-09-26 | X68: 12196 | Z68: w | AB68: =SUMIFS($X$5:$X$58,$I$5:$I$58,$AC$68,$D$5:$D$58,$D$5) -> 206526 | AC68: (H)
H69: 1970-10-10 | X69: 8280 | Z69: w | AB69: =AB68/AB67 -> 9834.571429
H70: 1970-10-19 | X70: 11988 | Z70: m | BN70: =SUM(BQ72:BQ116) -> 1386 | BQ70: League | BU70: League Cup | BY70: FA Cup
H71: 1970-10-31 | X71: 16012 | Z71: w | BQ71: P | BR71: Sub | BS71: NPS | BT71: Gls | BU71: P | BV71: Sub | BW71: NPS | BX71: Gls | BY71: P | BZ71: Sub | CA71: NPS | CB71: Gls
H72: 1970-11-14 | X72: 6410 | Z72: w | AB72: Av AttendanceAway League Games | BJ72: 1 | BK72: 1 | BL72: =BO72&" (**" -> Allder (** | BN72: =BO72&"**" -> Allder** | BO72: Allder | BQ72: =COUNTIF(LeagueStarts,$BN72) -> 38 | BR72: =COUNTIF(LeagueSubs,$BL72) -> 0 | BS72: =COUNTIF(LeagueSubs,$BO72) -> 0 | BT72: =COUNTIF($CY$76:$DH$125,BO72) -> 3 | BU72: =COUNTIF($AP$121:$AZ$131,$BN72) -> 3 | BV72: =COUNTIF($BA$121:$BA$131,$BL72) -> 0 | BW72: =COUNTIF($BA$128:$BH$131,$BO72) -> 0 | BX72: =COUNTIF($CY$145:$DH$155,BO72) -> 0 | BY72: =COUNTIF($AP$134:$AZ$137,$BN72) -> 1 | BZ72: =COUNTIF($BA$134:$BA$137,$BL72) -> 0 | CA72: =COUNTIF($BA$133:$BH$137,$BO72) -> 0 | CB72: =COUNTIF($CY$134:$DH$140,BO72) -> 0 | CL72: =ROW(CK72) -> 72 | CN72: Doug | CO72: Allder | CP72: =BK72 -> 1 | CQ72: =CN72&" "&CO72 -> Doug Allder
H73: 1970-11-21 | X73: 9173 | Z73: w | AB73: =COUNTIFS($I$5:$I$58,$AC$73,$D$5:$D$58,$D$5,$X$5:$X$58,">0") -> 21 | AC73: (A) | BJ73: 1 | BK73: 2 | BL73: Bolland (** | BN73: Bolland** | BO73: Bolland | BQ73: 42 | BR73: 0 | BS73: 0 | BT73: 4 | BU73: 3 | BV73: 0 | BW73: 0 | BX73: 1 | BY73: 1 | BZ73: =COUNTIF($BA$133:$BC$137,$BL73) -> 0 | CA73: 0 | CB73: 0 | CL73: 73 | CN73: Gordon | CO73: Bolland | CP73: 2 | CQ73: Gordon Bolland
H74: 1970-12-05 | X74: 8560 | Z74: w | AB74: =SUMIFS($X$5:$X$58,$I$5:$I$58,$AC$74,$D$5:$D$58,$D$5) -> 310492 | AC74: (A) | AG74: Game | AH74: Competition | AI74: Date | AK74: Opponents | AO74: Score | AP74: 1 | AQ74: 2 | AR74: 3 | AS74: 4 | AT74: 5 | AU74: 6 | AV74: 7 | AW74: 8 | AX74: 9 | AY74: 10 | AZ74: 11 | BA74: 12 | BJ74: 1 | BK74: 3 | BL74: Bridges (** | BN74: Bridges** | BO74: Bridges | BQ74: 35 | BR74: 0 | BS74: 0 | BT74: 15 | BU74: 0 | BV74: 0 | BW74: 0 | BX74: 0 | BY74: 1 | BZ74: 0 | CA74: 0 | CB74: 0 | CL74: 74 | CN74: Barry | CO74: Bridges | CP74: 3 | CQ74: Barry Bridges | CY74: Goals League
H75: 1970-12-19 | X75: 8591 | Z75: w | AB75: =AB74/AB73 -> 14785.33333 | AE75: 1 | BJ75: 1 | BK75: 4 | BL75: B Brown (** | BN75: B Brown** | BO75: B Brown | BQ75: 42 | BR75: 0 | BS75: 0 | BT75: 2 | BU75: 3 | BV75: 0 | BW75: 0 | BX75: 0 | BY75: 1 | BZ75: 0 | CA75: 0 | CB75: 0 | CL75: 75 | CN75: Brian | CO75: Brown | CP75: 4 | CQ75: Brian Brown | CY75: 1 | CZ75: 2 | DA75: 3 | DB75: 4 | DC75: 5 | DD75: 6 | DE75: 7 | DF75: 8 | DG75: 7 | DH75: 8 | DI75: 9
H76: 1971-01-09 | X76: 10120 | Z76: w | AE76: =IF(AE75=0,1,IF(AE75=2,1,2)) -> 2 | BJ76: 1 | BK76: 5 | BL76: S Brown (** | BN76: S Brown** | BO76: S Brown | BQ76: 1 | BR76: 13 | BS76: 0 | BT76: 1 | BU76: 3 | BV76: 0 | BW76: 0 | BX76: 0 | BY76: 0 | BZ76: 0 | CA76: 0 | CB76: 0 | CL76: 76 | CN76: Steve | CO76: Brown | CP76: 5 | CQ76: Steve Brown | CV76: Oxford | CW76: (H) | CX76: L 1-2 | CY76: Bolland
H77: 1971-01-23 | X77: 9842 | Z77: w | AE77: 1 | BJ77: 1 | BK77: 6 | BL77: Burnett (** | BN77: Burnett** | BO77: Burnett | BQ77: 40 | BR77: 0 | BS77: 0 | BT77: 1 | BU77: 3 | BV77: 0 | BW77: 0 | BX77: 0 | BY77: 1 | BZ77: 0 | CA77: 0 | CB77: 0 | CL77: 77 | CN77: Dennis | CO77: Burnett | CP77: 6 | CQ77: Dennis Burnett | CV77: Cardiff | CW77: (A) | CX77: D 2-2 | CY77: Possee | CZ77: Cripps
H78: 1971-01-30 | X78: 10180 | Z78: w | AE78: 2 | AG78: 1 | AH78: Division 2 | AI78: 1970-08-15 | AK78: Oxford | AL78: (H) | AO78: L 1-2 | AP78: King | AQ78: B Brown | AR78: Cripps | AS78: Dorney | AT78: Kitchener | AU78: Burnett | AV78: Possee | AW78: Jacks | AX78: Bolland | AY78: Dunphy | AZ78: Allder | BC78: 1 | BJ78: 1 | BK78: 7 | BL78: Coxhill (** | BN78: Coxhill** | BO78: Coxhill | BQ78: 2 | BR78: 1 | BS78: 0 | BT78: 0 | BU78: 0 | BV78: 0 | BW78: 0 | BX78: 0 | BY78: 0 | BZ78: 0 | CA78: 0 | CB78: 0 | CL78: 78 | CN78: David | CO78: Coxhill | CP78: 7 | CQ78: David Coxhill | CV78: Portsmouth | CW78: (H) | CX78: D 0-0
H79: 1971-03-01 | X79: 10738 | Z79: m | AE79: 3 | AG79: 2 | AH79: Division 2 | AI79: 1970-08-22 | AK79: Cardiff | AL79: (A) | AO79: D 2-2 | AP79: King | AQ79: B Brown | AR79: Cripps | AS79: Dorney | AT79: Kitchener | AU79: Burnett | AV79: Possee | AW79: Jacks () | AX79: Bolland | AY79: Dunphy | AZ79: Allder | BA79: S Brown () | BC79: 1 | BJ79: 1 | BK79: 8 | BL79: Cripps (** | BN79: Cripps** | BO79: Cripps | BQ79: 42 | BR79: 0 | BS79: 0 | BT79: 10 | BU79: 3 | BV79: 0 | BW79: 0 | BX79: 0 | BY79: 1 | BZ79: 0 | CA79: 0 | CB79: 0 | CL79: 79 | CN79: Harry | CO79: Cripps | CP79: 8 | CQ79: Harry Cripps | CV79: Norwich | CW79: (A) | CX79: L 0-1
H80: 1971-03-06 | X80: 7168 | Z80: w | AE80: 2 | AG80: 3 | AH80: Division 2 | AI80: 1970-08-29 | AK80: Portsmouth | AL80: (H) | AO80: D 0-0 | AP80: King | AQ80: B Brown | AR80: Cripps | AS80: Dorney | AT80: Kitchener | AU80: Burnett | AV80: Possee | AW80: Jacks | AX80: Bolland () | AY80: Dunphy | AZ80: Allder | BA80: S Brown () | BC80: 1 | BJ80: 1 | BK80: 9 | BL80: Dorney (** | BN80: Dorney** | BO80: Dorney | BQ80: 39 | BR80: 0 | BS80: 0 | BT80: 0 | BU80: 3 | BV80: 0 | BW80: 0 | BX80: 0 | BY80: 1 | BZ80: 0 | CA80: 0 | CB80: 0 | CL80: 80 | CN80: Alan | CO80: Dorney | CP80: 9 | CQ80: Alan Dorney | CV80: Charlton | CW80: (A) | CX80: W 3-1 | CY80: Possee | CZ80: Possee | DA80: Possee
H81: 1971-03-20 | X81: 7284 | Z81: w | AE81: 4 | AG81: 4 | AH81: Division 2 | AI81: 1970-09-02 | AK81: Norwich | AL81: (A) | AO81: L 0-1 | AP81: King | AQ81: B Brown | AR81: Cripps | AS81: Dorney | AT81: Kitchener | AU81: Burnett | AV81: Possee | AW81: Jacks () | AX81: Bolland | AY81: Dunphy | AZ81: Allder | BA81: S Brown () | BC81: 1 | BJ81: 1 | BK81: 10 | BL81: Dunphy (** | BN81: Dunphy** | BO81: Dunphy | BQ81: 39 | BR81: 1 | BS81: 0 | BT81: 3 | BU81: 3 | BV81: 0 | BW81: 0 | BX81: 0 | BY81: 1 | BZ81: 0 | CA81: 0 | CB81: 0 | CL81: 81 | CN81: Eamon | CO81: Dunphy | CP81: 10 | CQ81: Eamon Dunphy | CV81: Sheff Utd | CW81: (H) | CX81: L 1-2 | CY81: Possee
H82: 1971-03-27 | X82: 13399 | Z82: w | AE82: 2 | AG82: 5 | AH82: Division 2 | AI82: 1970-09-05 | AK82: Charlton | AL82: (A) | AO82: W 3-1 | AP82: King | AQ82: B Brown | AR82: Cripps | AS82: Jacks | AT82: Kitchener | AU82: Burnett | AV82: Possee | AW82: Neil | AX82: Bolland | AY82: Dunphy | AZ82: Allder | BC82: 1 | BJ82: 1 | BK82: 11 | BL82: Garner (** | BN82: Garner** | BO82: Garner | BQ82: 2 | BR82: 0 | BS82: 0 | BT82: 0 | BU82: 0 | BV82: 0 | BW82: 0 | BX82: 0 | BY82: 0 | BZ82: 0 | CA82: 0 | CB82: 0 | CL82: 89 | CN82: Alan | CO82: Garner | CP82: 18 | CQ82: Alan Garner | CV82: Hull | CW82: (A) | CX82: L 0-2
H83: 1971-04-05 | X83: 8201 | Z83: m | AE83: 5 | AG83: 6 | AH83: Division 2 | AI83: 1970-09-14 | AK83: Sheff Utd | AL83: (H) | AO83: L 1-2 | AP83: King | AQ83: B Brown | AR83: Cripps | AS83: Dorney | AT83: Kitchener | AU83: Burnett | AV83: Possee | AW83: Jacks () | AX83: Bolland | AY83: Dunphy | AZ83: Allder | BA83: S Brown () | BC83: 1 | BJ83: 1 | BK83: 12 | BL83: Holmes (** | BN83: Holmes** | BO83: Holmes | BQ83: 0 | BR83: 1 | BS83: 0 | BT83: 0 | BU83: 0 | BV83: 0 | BW83: 0 | BX83: 0 | BY83: 0 | BZ83: 0 | CA83: 0 | CB83: 0 | CL83: =ROW(CK83) -> 83 | CN83: Billy | CO83: Holmes | CP83: =BK83 -> 12 | CQ83: Billy Holmes | CV83: Sunderland | CW83: (H) | CX83: D 0-0
H84: 1971-04-10 | X84: 13842 | Z84: w | AE84: 2 | AG84: 7 | AH84: Division 2 | AI84: 1970-09-19 | AK84: Hull | AL84: (A) | AO84: L 0-2 | AP84: King | AQ84: B Brown | AR84: Cripps | AS84: Dorney | AT84: Kitchener | AU84: Burnett | AV84: Possee | AW84: Jacks | AX84: Bolland | AY84: Dunphy () | AZ84: Allder | BA84: S Brown () | BC84: 1 | BJ84: 1 | BK84: 13 | BL84: Jacks (** | BN84: Jacks** | BO84: Jacks | BQ84: 10 | BR84: 0 | BS84: 0 | BT84: 0 | BU84: 1 | BV84: 0 | BW84: 0 | BX84: 0 | BY84: 0 | BZ84: 0 | CA84: 0 | CB84: 0 | CL84: 90 | CN84: George | CO84: Jacks | CP84: 13 | CQ84: George Jacks | CV84: Swindon | CW84: (A) | CX84: L 0-3
H85: 1971-04-24 | X85: 10376 | Z85: w | AE85: 6 | AG85: 8 | AH85: Division 2 | AI85: 1970-09-26 | AK85: Sunderland | AL85: (H) | AO85: D 0-0 | AP85: King | AQ85: B Brown | AR85: Cripps | AS85: Dorney | AT85: Kitchener | AU85: Burnett | AV85: Bridges | AW85: Dunphy | AX85: Bolland | AY85: Possee | AZ85: Allder | BC85: 1 | BJ85: 1 | BK85: 14 | BL85: King (** | BN85: King** | BO85: King | BQ85: 42 | BR85: 0 | BS85: 0 | BT85: 0 | BU85: 3 | BV85: 0 | BW85: 0 | BX85: 0 | BY85: 1 | BZ85: 0 | CA85: 0 | CB85: 0 | CL85: =ROW(CK85) -> 85 | CN85: Bryan | CO85: King | CP85: 14 | CQ85: Bryan King | CV85: Carlisle | CW85: (A) | CX85: L 0-3
AE86: 2 | AG86: 9 | AH86: Division 2 | AI86: 1970-09-29 | AK86: Swindon | AL86: (A) | AO86: L 0-3 | AP86: King | AQ86: B Brown | AR86: Cripps | AS86: Dorney | AT86: Kitchener | AU86: Burnett | AV86: Bridges | AW86: Dunphy | AX86: Bolland | AY86: Possee | AZ86: Allder () | BA86: S Brown () | BC86: 1 | BJ86: 1 | BK86: 15 | BL86: Kitchener (** | BN86: Kitchener** | BO86: Kitchener | BQ86: 42 | BR86: 0 | BS86: 0 | BT86: 3 | BU86: 3 | BV86: 0 | BW86: 0 | BX86: 0 | BY86: 1 | BZ86: 0 | CA86: 0 | CB86: 0 | CL86: 88 | CN86: Barry | CO86: Kitchener | CP86: 15 | CQ86: Barry Kitchener | CV86: Blackburn | CW86: (H) | CX86: W 2-0 | CY86: Own Goal | CZ86: Bridges
AE87: 7 | AG87: 10 | AH87: Division 2 | AI87: 1970-10-02 | AK87: Carlisle | AL87: (A) | AO87: L 0-3 | AP87: King | AQ87: B Brown | AR87: Cripps | AS87: Dorney | AT87: Kitchener | AU87: Burnett | AV87: Bridges | AW87: Dunphy | AX87: Bolland () | AY87: Possee | AZ87: Allder | BA87: S Brown () | BC87: 1 | BJ87: 1 | BK87: 16 | BL87: Neil (** | BN87: Neil** | BO87: Neil | BQ87: 5 | BR87: 1 | BS87: 0 | BT87: 1 | BU87: 0 | BV87: 0 | BW87: 0 | BX87: 0 | BY87: 0 | BZ87: 0 | CA87: 0 | CB87: 0 | CL87: =ROW(CK87) -> 87 | CN87: Billy | CO87: Neil | CP87: 16 | CQ87: Billy Neil | CV87: Oxford | CW87: (A) | CX87: W 3-2 | CY87: Possee | CZ87: Cripps | DA87: Bridges
AE88: 2 | AG88: 11 | AH88: Division 2 | AI88: 1970-10-10 | AK88: Blackburn | AL88: (H) | AO88: W 2-0 | AP88: King | AQ88: B Brown | AR88: Cripps | AS88: Garner | AT88: Kitchener | AU88: Burnett | AV88: Bridges | AW88: Dunphy | AX88: Bolland | AY88: Possee | AZ88: Allder | BC88: 1 | BJ88: 1 | BK88: 17 | BL88: Possee (** | BN88: Possee** | BO88: Possee | BQ88: 41 | BR88: 0 | BS88: 0 | BT88: 14 | BU88: 2 | BV88: 0 | BW88: 0 | BX88: 2 | BY88: 1 | BZ88: 0 | CA88: 0 | CB88: 1 | CL88: =ROW(CK88) -> 88 | CN88: Derek | CO88: Possee | CP88: 17 | CQ88: Derek Possee | CV88: Watford | CW88: (H) | CX88: W 3-0 | CY88: Dunphy | CZ88: Possee | DA88: Bridges
AE89: 8 | AG89: 12 | AH89: Division 2 | AI89: 1970-10-17 | AK89: Oxford | AL89: (A) | AO89: W 3-2 | AP89: King | AQ89: B Brown | AR89: Cripps | AS89: Dorney | AT89: Kitchener | AU89: Burnett | AV89: Bridges | AW89: Dunphy | AX89: Bolland | AY89: Possee | AZ89: Allder | BC89: 1 | BJ89: 1 | BK89: 18 | CV89: Leyton Orient | CW89: (A) | CX89: D 0-0
AE90: 2 | AG90: 13 | AH90: Division 2 | AI90: 1970-10-19 | AK90: Watford | AL90: (H) | AO90: W 3-0 | AP90: King | AQ90: B Brown | AR90: Cripps | AS90: Dorney | AT90: Kitchener | AU90: Burnett | AV90: Bridges | AW90: Dunphy | AX90: Bolland | AY90: Possee | AZ90: Allder | BC90: 1 | BJ90: 1 | BK90: 19 | CV90: QPR | CW90: (H) | CX90: W 3-0 | CY90: Cripps | CZ90: Bridges | DA90: S Brown
L91: Agg | W91: =SUBTOTAL(9,W65:W87) -> 0 | X91: =SUBTOTAL(9,X65:X85) -> 206526 | AE91: 9 | AG91: 14 | AH91: Division 2 | AI91: 1970-10-24 | AK91: Leyton Orient | AL91: (A) | AO91: D 0-0 | AP91: King | AQ91: B Brown | AR91: Cripps | AS91: Dorney | AT91: Kitchener | AU91: Burnett | AV91: Bridges | AW91: Dunphy | AX91: Bolland | AY91: Possee | AZ91: Allder | BC91: 1 | BJ91: 1 | BK91: 20 | CV91: Sheff Wed | CW91: (A) | CX91: L 0-1
L92: Max | W92: =MAX(W65:W87) -> 0 | X92: =MAX(X65:X87) -> 16012 | AE92: 2 | AG92: 15 | AH92: Division 2 | AI92: 1970-10-31 | AK92: QPR | AL92: (H) | AO92: W 3-0 | AP92: King | AQ92: B Brown | AR92: Cripps | AS92: Dorney | AT92: Kitchener | AU92: Burnett | AV92: Bridges | AW92: Dunphy | AX92: Bolland | AY92: Possee () | AZ92: Allder | BA92: S Brown () | BC92: 1 | BJ92: 1 | BK92: 21 | BO92: Own Goal | BT92: =COUNTIF($CY$76:$DH$125,BO92) -> 2 | BX92: =COUNTIF($CY$76:$DH$125,BS92) -> 0 | CB92: =COUNTIF($CY$76:$DH$125,BW92) -> 0 | CV92: Bolton | CW92: (H) | CX92: W 2-0 | CY92: Bolland | CZ92: Bridges
L93: Min | W93: =MIN(W65:W87) -> 0 | X93: =MIN(X65:X87) -> 5363 | AE93: 10 | AG93: 16 | AH93: Division 2 | AI93: 1970-11-07 | AK93: Sheff Wed | AL93: (A) | AO93: L 0-1 | AP93: King | AQ93: B Brown | AR93: Cripps | AS93: Dorney | AT93: Kitchener | AU93: Burnett | AV93: Bridges | AW93: Dunphy | AX93: Bolland () | AY93: Possee | AZ93: Allder | BA93: S Brown () | BC93: 1 | BJ93: 1 | BK93: 22 | CV93: Bristol C | CW93: (H) | CX93: W 2-0 | CY93: Cripps | CZ93: Allder
AE94: 2 | AG94: 17 | AH94: Division 2 | AI94: 1970-11-14 | AK94: Bolton | AL94: (H) | AO94: W 2-0 | AP94: King | AQ94: B Brown | AR94: Cripps | AS94: Dorney | AT94: Kitchener | AU94: Burnett | AV94: Bridges | AW94: Dunphy | AX94: Bolland | AY94: Possee | AZ94: Allder | BC94: 1 | BJ94: 1 | BK94: 23 | CV94: Middlesbro | CW94: (A) | CX94: L 0-1
L95: Av | W95: =AVERAGE(W65:W87) ->  | X95: =AVERAGE(X65:X87) -> 9834.571429 | AE95: 11 | AG95: 18 | AH95: Division 2 | AI95: 1970-11-21 | AK95: Bristol C | AL95: (H) | AO95: W 2-0 | AP95: King | AQ95: B Brown | AR95: Cripps | AS95: Dorney | AT95: Kitchener | AU95: Burnett | AV95: Bridges | AW95: Dunphy | AX95: Bolland | AY95: Possee | AZ95: Allder | BC95: 1 | BJ95: 1 | BK95: 24 | CV95: Birmingham | CW95: (H) | CX95: W 2-1 | CY95: Cripps | CZ95: Bridges
AE96: 2 | AG96: 19 | AH96: Division 2 | AI96: 1970-11-28 | AK96: Middlesbro | AL96: (A) | AO96: L 0-1 | AP96: King | AQ96: B Brown | AR96: Cripps | AS96: Dorney | AT96: Kitchener | AU96: Burnett | AV96: Bridges | AW96: Dunphy | AX96: Bolland | AY96: Possee | AZ96: Allder | BC96: 1 | BJ96: 1 | BK96: 25 | CV96: Leicester | CW96: (A) | CX96: L 1-2 | CY96: Cripps
L97: Weekend | W97: =SUMIF(Y65:Y88,"w",W65:W88) -> 0 | X97: =SUMIF(Z65:Z88,"w",X65:X88) -> 170236 | Z97: =COUNTIF(Z65:Z90,"w") -> 17 | AE97: 12 | AG97: 20 | AH97: Division 2 | AI97: 1970-12-05 | AK97: Birmingham | AL97: (H) | AO97: W 2-1 | AP97: King | AQ97: B Brown | AR97: Cripps | AS97: Jacks | AT97: Kitchener | AU97: Burnett | AV97: Bridges | AW97: Dunphy | AX97: Bolland | AY97: Possee | AZ97: Allder | BC97: 1 | BJ97: 1 | BK97: 26 | CV97: Cardiff | CW97: (H) | CX97: W 2-1 | CY97: Bridges | CZ97: Bridges
L98: Midweek | W98: =SUMIF(Y65:Y88,"m",W65:W88) -> 0 | X98: =SUMIF(Z65:Z88,"m",X65:X88) -> 36290 | Z98: =COUNTIF(Z65:Z90,"m") -> 4 | AE98: 2 | AG98: 21 | AH98: Division 2 | AI98: 1970-12-12 | AK98: Leicester | AL98: (A) | AO98: L 1-2 | AP98: King | AQ98: B Brown | AR98: Cripps | AS98: Dorney | AT98: Kitchener | AU98: Burnett | AV98: Possee | AW98: Bolland | AX98: Bridges | AY98: Dunphy | AZ98: Allder () | BA98: S Brown () | BC98: 1 | BJ98: 1 | BK98: 28 | CV98: Swindon | CW98: (H) | CX98: D 2-2 | CY98: Bridges | CZ98: Possee
AE99: 13 | AG99: 22 | AH99: Division 2 | AI99: 1970-12-19 | AK99: Cardiff | AL99: (H) | AO99: W 2-1 | AP99: King | AQ99: B Brown | AR99: Cripps | AS99: Dorney | AT99: Kitchener | AU99: Burnett | AV99: Possee () | AW99: Bolland | AX99: Bridges | AY99: Dunphy | AZ99: Allder | BA99: S Brown () | BC99: 1 | BJ99: 1 | BK99: 29 | CV99: Watford | CW99: (A) | CX99: W 4-0 | CY99: Bridges | CZ99: Cripps | DA99: Burnett | DB99: Dunphy
L100: Weekend | W100: =W97/Y97 ->  | X100: =X97/Z97 -> 10013.88235 | AE100: 2 | AG100: 23 | AH100: Division 2 | AI100: 1971-01-09 | AK100: Swindon | AL100: (H) | AO100: D 2-2 | AP100: King | AQ100: B Brown () | AR100: Cripps | AS100: Dorney | AT100: Kitchener | AU100: Burnett | AV100: Possee | AW100: Bolland | AX100: Bridges | AY100: Dunphy | AZ100: Allder | BA100: S Brown () | BC100: 1 | BJ100: 1 | BK100: 30 | CV100: Norwich | CW100: (H) | CX100: D 2-2 | CY100: Possee | CZ100: Cripps
L101: Midweek | W101: =W98/Y98 ->  | X101: =X98/Z98 -> 9072.5 | AE101: 14 | AG101: 24 | AH101: Division 2 | AI101: 1971-01-16 | AK101: Watford | AL101: (A) | AO101: W 4-0 | AP101: King | AQ101: B Brown | AR101: Cripps | AS101: Dorney | AT101: Kitchener | AU101: Burnett | AV101: Possee | AW101: Bolland | AX101: Bridges | AY101: Dunphy | AZ101: Allder | BC101: 1 | BJ101: 1 | BK101: 31 | CV101: Middlesbro | CW101: (H) | CX101: W 1-0 | CY101: Kitchener
AE102: 2 | AG102: 25 | AH102: Division 2 | AI102: 1971-01-23 | AK102: Norwich | AL102: (H) | AO102: D 2-2 | AP102: King | AQ102: B Brown | AR102: Cripps | AS102: Dorney | AT102: Kitchener | AU102: Burnett | AV102: Possee | AW102: Dunphy | AX102: Bridges | AY102: Bolland | AZ102: Allder | BC102: 1 | BJ102: 1 | CV102: Birmingham | CW102: (A) | CX102: L 1-3 | CY102: Neil
AE103: 15 | AG103: 26 | AH103: Division 2 | AI103: 1971-01-30 | AK103: Middlesbro | AL103: (H) | AO103: W 1-0 | AP103: King | AQ103: B Brown | AR103: Cripps | AS103: Dorney | AT103: Kitchener | AU103: Burnett | AV103: Possee | AW103: Bolland | AX103: Bridges | AY103: Dunphy | AZ103: Neil () | BA103: S Brown () | BC103: 1 | BJ103: 1 | CV103: Bristol C | CW103: (A) | CX103: L 2-3 | CY103: Cripps | CZ103: Bridges
AE104: 2 | AG104: 27 | AH104: Division 2 | AI104: 1971-02-06 | AK104: Birmingham | AL104: (A) | AO104: L 1-3 | AP104: King | AQ104: B Brown | AR104: Cripps | AS104: Dorney | AT104: Kitchener | AU104: Burnett | AV104: Possee | AW104: Bolland | AX104: Bridges | AY104: Dunphy | AZ104: Neil () | BA104: Holmes () | BC104: 1 | BJ104: 1 | CV104: QPR | CW104: (A) | CX104: L 0-2
AE105: 16 | AG105: 28 | AH105: Division 2 | AI105: 1971-02-20 | AK105: Bristol C | AL105: (A) | AO105: L 2-3 | AP105: King | AQ105: B Brown | AR105: Cripps | AS105: Dorney | AT105: Kitchener | AU105: Garner | AV105: S Brown () | AW105: Bolland | AX105: Bridges | AY105: Dunphy | AZ105: Allder | BA105: Neil () | BC105: 1 | BJ105: 1 | CV105: Leicester | CW105: (H) | CX105: D 0-0
AE106: 2 | AG106: 29 | AH106: Division 2 | AI106: 1971-02-27 | AK106: QPR | AL106: (A) | AO106: L 0-2 | AP106: King | AQ106: B Brown | AR106: Cripps | AS106: Dorney | AT106: Kitchener | AU106: Bolland | AV106: Possee | AW106: Jacks | AX106: Bridges | AY106: Neil | AZ106: Allder | BC106: 1 | BJ106: 1 | BO106: Check | BQ106: =SUM(BQ72:BQ88) -> 462 | CV106: Leyton Orient | CW106: (H) | CX106: L 0-1
AE107: 17 | AG107: 30 | AH107: Division 2 | AI107: 1971-03-01 | AK107: Leicester | AL107: (H) | AO107: D 0-0 | AP107: King | AQ107: B Brown | AR107: Cripps | AS107: Dorney | AT107: Kitchener | AU107: Burnett | AV107: Possee | AW107: Jacks | AX107: Bridges | AY107: Bolland | AZ107: Allder | BC107: 1 | BJ107: 1 | CV107: Bolton | CW107: (A) | CX107: D 1-1 | CY107: Possee
AE108: 2 | AG108: 31 | AH108: Division 2 | AI108: 1971-03-06 | AK108: Leyton Orient | AL108: (H) | AO108: L 0-1 | AP108: King | AQ108: B Brown | AR108: Cripps | AS108: Dorney | AT108: Kitchener | AU108: Burnett | AV108: Possee | AW108: Neil () | AX108: Bridges | AY108: Bolland | AZ108: Allder | BA108: Dunphy () | BC108: 1 | BJ108: 1 | BQ108: =42*11 -> 462 | CV108: Sheff Wed | CW108: (H) | CX108: W 1-0 | CY108: Allder
AE109: 18 | AG109: 32 | AH109: Division 2 | AI109: 1971-03-13 | AK109: Bolton | AL109: (A) | AO109: D 1-1 | AP109: King | AQ109: B Brown | AR109: Cripps | AS109: Dorney | AT109: Kitchener | AU109: Burnett | AV109: Possee | AW109: Bolland | AX109: Bridges | AY109: Dunphy | AZ109: Allder | BC109: 1 | BJ109: 1 | CV109: Charlton | CW109: (H) | CX109: W 2-0 | CY109: Possee | CZ109: Kitchener
AE110: 2 | AG110: 33 | AH110: Division 2 | AI110: 1971-03-20 | AK110: Sheff Wed | AL110: (H) | AO110: W 1-0 | AP110: King | AQ110: B Brown | AR110: Cripps | AS110: Dorney | AT110: Kitchener | AU110: Burnett | AV110: Possee | AW110: Bolland | AX110: Bridges | AY110: Dunphy | AZ110: Allder | BC110: 1 | BJ110: 1 | CV110: Luton | CW110: (A) | CX110: D 1-1 | CY110: B Brown
AE111: 19 | AG111: 34 | AH111: Division 2 | AI111: 1971-03-27 | AK111: Charlton | AL111: (H) | AO111: W 2-0 | AP111: King | AQ111: B Brown | AR111: Cripps | AS111: Dorney | AT111: Kitchener | AU111: Burnett | AV111: Possee | AW111: Bolland | AX111: Bridges | AY111: Dunphy | AZ111: Allder | BC111: 1 | BJ111: 1 | CV111: Portsmouth | CW111: (A) | CX111: W 2-0 | CY111: Bridges | CZ111: Bolland
AE112: 2 | AG112: 35 | AH112: Division 2 | AI112: 1971-03-30 | AK112: Luton | AL112: (A) | AO112: D 1-1 | AP112: King | AQ112: B Brown | AR112: Cripps | AS112: Dorney | AT112: Kitchener | AU112: Burnett | AV112: Possee | AW112: Bolland | AX112: Bridges | AY112: Dunphy | AZ112: Allder | BC112: 1 | BJ112: 1 | CV112: Carlisle | CW112: (H) | CX112: W 2-1 | CY112: Bridges | CZ112: Bolland
AE113: 20 | AG113: 36 | AH113: Division 2 | AI113: 1971-04-03 | AK113: Portsmouth | AL113: (A) | AO113: W 2-0 | AP113: King | AQ113: B Brown | AR113: Cripps | AS113: Dorney | AT113: Kitchener | AU113: Burnett | AV113: Possee | AW113: Bolland | AX113: Bridges | AY113: Dunphy | AZ113: Coxhill | BC113: 1 | BJ113: 1 | CV113: Luton | CW113: (H) | CX113: W 4-0 | CY113: Possee | CZ113: Possee | DA113: Bridges | DB113: B Brown
AE114: 2 | AG114: 37 | AH114: Division 2 | AI114: 1971-04-05 | AK114: Carlisle | AL114: (H) | AO114: W 2-1 | AP114: King | AQ114: B Brown | AR114: Cripps | AS114: Dorney | AT114: Kitchener | AU114: Burnett | AV114: Possee | AW114: Bolland | AX114: Bridges | AY114: Dunphy | AZ114: Allder | BC114: 1 | BJ114: 1 | CV114: Sheff Utd | CW114: (A) | CX114: L 0-2
AE115: 21 | AG115: 38 | AH115: Division 2 | AI115: 1971-04-10 | AK115: Luton | AL115: (H) | AO115: W 4-0 | AP115: King | AQ115: B Brown | AR115: Cripps | AS115: Dorney | AT115: Kitchener | AU115: Burnett | AV115: Possee | AW115: Bolland | AX115: Bridges | AY115: Dunphy | AZ115: Allder | BC115: 1 | BJ115: 1 | CV115: Blackburn | CW115: (A) | CX115: W 2-0 | CY115: Allder | CZ115: Dunphy
AE116: 2 | AG116: 39 | AH116: Division 2 | AI116: 1971-04-13 | AK116: Sheff Utd | AL116: (A) | AO116: L 0-2 | AP116: King | AQ116: B Brown | AR116: Cripps | AS116: Dorney | AT116: Kitchener | AU116: Burnett | AV116: Possee | AW116: Bolland | AX116: Bridges | AY116: Dunphy | AZ116: Allder () | BA116: Coxhill () | BC116: 1 | BJ116: 1 | CV116: Hull | CW116: (H) | CX116: W 4-0 | CY116: Possee | CZ116: Cripps | DA116: Bridges | DB116: Kitchener
AE117: 22 | AG117: 40 | AH117: Division 2 | AI117: 1971-04-17 | AK117: Blackburn | AL117: (A) | AO117: W 2-0 | AP117: King | AQ117: B Brown | AR117: Cripps | AS117: Dorney | AT117: Kitchener | AU117: Burnett | AV117: Possee | AW117: Bolland | AX117: Bridges | AY117: Dunphy | AZ117: Allder | BC117: 1 | BJ117: 1 | CV117: Sunderland | CW117: (A) | CX117: W 1-0 | CY117: Own Goal
AE118: 2 | AG118: 41 | AH118: Division 2 | AI118: 1971-04-24 | AK118: Hull | AL118: (H) | AO118: W 4-0 | AP118: King | AQ118: B Brown | AR118: Cripps | AS118: Dorney | AT118: Kitchener | AU118: Burnett | AV118: Possee | AW118: Bolland | AX118: Bridges | AY118: Dunphy | AZ118: Allder | BC118: 1
AE119: 23 | AG119: 42 | AH119: Division 2 | AI119: 1971-05-01 | AK119: Sunderland | AL119: (A) | AO119: W 1-0 | AP119: King | AQ119: B Brown | AR119: Cripps | AS119: Dorney | AT119: Kitchener | AU119: Burnett | AV119: Possee | AW119: Bolland | AX119: Bridges | AY119: Dunphy | AZ119: Coxhill | BC119: 1
AE120: 2
AE121: 24
AE122: 2
AE123: 1
AE124: 2
AE125: 1
AE126: 2 | AG126: 30 | AH126: League Cup 2 | AI126: 1970-09-09 | AK126: Stoke City | AL126: (A) | AO126: D 0-0 | AP126: King | AQ126: B Brown | AR126: Cripps | AS126: Dorney | AT126: Kitchener | AU126: Burnett | AV126: S Brown | AW126: Jacks | AX126: Bolland | AY126: Dunphy | AZ126: Allder | BC126: 1
AE127: 1 | AG127: 31 | AH127: League Cup 2 R | AI127: 1970-09-21 | AK127: Stoke City | AL127: (H) | AO127: W 2-1 | AP127: King | AQ127: B Brown | AR127: Cripps | AS127: Dorney | AT127: Kitchener | AU127: Burnett | AV127: S Brown | AW127: Dunphy | AX127: Bolland | AY127: Possee | AZ127: Allder | BC127: 1
AE128: 2 | AG128: 6 | AH128: League Cup 3 | AI128: 1970-10-07 | AK128: Derby Co | AL128: (A) | AO128: L 2-4 | AP128: King | AQ128: B Brown | AR128: Cripps | AS128: Dorney | AT128: Kitchener | AU128: Burnett | AV128: S Brown | AW128: Dunphy | AX128: Bolland | AY128: Possee | AZ128: Allder | BC128: 1
AE129: 1 | CQ129: =CO130&" "&BO126 -> 
AE130: 2
AE131: 1 | CY131: Goals FA Cup
AE132: 2 | CY132: 1 | CZ132: 2 | DA132: 3 | DB132: 4 | DC132: 5 | DD132: 6 | DE132: 7 | DF132: 8 | DG132: 7 | DH132: 8 | DI132: 9
AE133: 1
AE134: 2 | CV134: Stoke | CW134: (A) | CX134: L 1-2 | CY134: Possee | DM134: Bolland | DN134: Smethurst | DO134: Possee
AE135: 1 | DM135: Smethurst | DN135: Possee
AE136: 2 | AG136: 27 | AH136: FA Cup 3 | AI136: 1971-01-02 | AK136: Stoke City | AL136: (A) | AO136: L 1-2 | AP136: King | AQ136: B Brown | AR136: Cripps | AS136: Dorney | AT136: Kitchener | AU136: Burnett | AV136: Bridges | AW136: Dunphy | AX136: Bolland | AY136: Possee | AZ136: Allder | BC136: 1 | DM136: Burnett
AE137: 1
AE138: 2
AE139: 1
AE140: =IF(AE139=0,1,IF(AE139=2,1,2)) -> 2
AE141: 1
AE142: 2 | CY142: League Cup Goals
AE143: 1 | CY143: 1 | CZ143: 2 | DA143: 3 | DB143: 4 | DC143: 5 | DD143: 6 | DE143: 7 | DF143: 8 | DG143: 7 | DH143: 8 | DI143: 9
AE144: =IF(AE143=0,1,IF(AE143=2,1,2)) -> 2
AE145: 1 | CV145: Stoke | CW145: (A) | CX145: D 0-0
CV146: Stoke | CW146: (A) | CX146: W 2-1 | CY146: Possee
CV147: Derby | CW147: (A) | CX147: L 2-4 | CY147: Possee | CZ147: Bolland

Sheet Comparisons
K2: =IF(K3=0,0,1) -> 1 | L2: =IF(L3=0,0,1) -> 1 | M2: 1 | N2: 1 | O2: 1 | P2: 1 | Q2: 1 | R2: 1 | S2: 1 | T2: 1 | U2: 1 | V2: 1 | W2: 1 | X2: 1 | Y2: 1 | Z2: 1 | AA2: 1 | AB2: 0 | AC2: 0 | AD2: 0 | AE2: 1 | AF2: 0 | AG2: 0 | AH2: 0 | AI2: 0 | AJ2: 0 | AK2: 0 | AL2: 0 | AM2: 0 | AN2: 0 | AO2: 0 | AP2: 0 | AQ2: 0 | AR2: 0 | BT2: =IF(BT3=0,0,1) -> 1 | BU2: 0 | BV2: 0 | BW2: 0 | BX2: 0 | BY2: 0 | BZ2: 0 | CA2: 0 | CB2: 0 | CC2: 0 | CD2: 0 | CE2: 0
A3: Formulas | F3: Date | H3: Opponents | I3: Venue / Result | K3: =Millwall!$BO$72 -> Allder | L3: =Millwall!$BO$73 -> Bolland | M3: =Millwall!$BO$74 -> Bridges | N3: =Millwall!$BO$75 -> B Brown | O3: =Millwall!$BO$76 -> S Brown | P3: =Millwall!$BO$77 -> Burnett | Q3: =Millwall!$BO$78 -> Coxhill | R3: =Millwall!$BO$79 -> Cripps | S3: =Millwall!$BO$80 -> Dorney | T3: =Millwall!$BO$81 -> Dunphy | U3: =Millwall!$BO$82 -> Garner | V3: =Millwall!$BO$83 -> Holmes | W3: =Millwall!$BO$84 -> Jacks | X3: =Millwall!$BO$85 -> King | Y3: =Millwall!$BO$86 -> Kitchener | Z3: =Millwall!$BO$87 -> Neil | AA3: =Millwall!$BO$88 -> Possee | AB3: =Millwall!$BO$89 -> 0 | AC3: =Millwall!$BO$90 -> 0 | AD3: =Millwall!$BO$91 -> 0 | AE3: =Millwall!$BO$92 -> Own Goal | AF3: =Millwall!$BO$93 -> 0 | AG3: =Millwall!$BO$94 -> 0 | AH3: =Millwall!$BO$95 -> 0 | AI3: =Millwall!$BO$96 -> 0 | AJ3: =Millwall!$BO$97 -> 0 | AK3: =Millwall!$BO$98 -> 0 | AL3: =Millwall!$BO$99 -> 0 | AM3: =Millwall!$BO$100 -> 0 | AN3: =Millwall!$BO$101 -> 0 | AO3: =Millwall!$BO$102 -> 0 | AP3: =Millwall!$BO$103 -> 0 | AQ3: =Millwall!$BO$104 -> 0 | AR3: =Millwall!$BO$105 -> 0 | AX3: =Millwall!$BN72&" (**" -> Allder** (** | AY3: =Millwall!$BN73&" (**" -> Bolland** (** | AZ3: =Millwall!$BN74&" (**" -> Bridges** (** | BA3: =Millwall!$BN75&" (**" -> B Brown** (** | BB3: =Millwall!$BN76&" (**" -> S Brown** (** | BC3: =Millwall!$BN77&" (**" -> Burnett** (** | BD3: =Millwall!$BN78&" (**" -> Coxhill** (** | BE3: =Millwall!$BN79&" (**" -> Cripps** (** | BF3: =Millwall!$BN80&" (**" -> Dorney** (** | BG3: =Millwall!$BN81&" (**" -> Dunphy** (** | BH3: =Millwall!$BN82&" (**" -> Garner** (** | BI3: =Millwall!$BN83&" (**" -> Holmes** (** | BJ3: =Millwall!$BN84&" (**" -> Jacks** (** | BK3: =Millwall!$BN85&" (**" -> King** (** | BL3: =Millwall!$BN86&" (**" -> Kitchener** (** | BM3: =Millwall!$BN87&" (**" -> Neil** (** | BN3: =Millwall!$BN88&" (**" -> Possee** (** | BO3: =Millwall!$BN89&" (**" -> (** | BP3: =Millwall!$BN90&" (**" -> (** | BQ3: =Millwall!$BN91&" (**" -> (** | BR3: =Millwall!$BN92&" (**" -> (** | BS3: =Millwall!$BN93&" (**" -> (** | BT3: =Millwall!$BN94&" (**" -> (**
C4: 1 | K4: Allder** | L4: Bolland** | M4: Bridges** | N4: B Brown** | O4: S Brown** | P4: Burnett** | Q4: Coxhill** | R4: Cripps** | S4: Dorney** | T4: Dunphy** | U4: Garner** | V4: Holmes** | W4: Jacks** | X4: King** | Y4: Kitchener** | Z4: Neil** | AA4: Possee**
C5: =IF(J5=0,1,0) -> 0 | D5: 1 | F5: =Millwall!AI78 -> 1970-08-15 | H5: =Millwall!AK78 -> Oxford | I5: =Millwall!AL78 -> (H) | J5: =Millwall!AO78 -> L 1-2 | K5: =MATCH(K$4,Millwall!$AP78:$BA78,0) -> 11 | L5: =MATCH(L$4,Millwall!$AP78:$BA78,0) -> 9 | M5: =MATCH(M$4,Millwall!$AP78:$BA78,0) ->  | N5: =MATCH(N$4,Millwall!$AP78:$BA78,0) -> 2 | O5: =MATCH(O$4,Millwall!$AP78:$BA78,0) ->  | P5: =MATCH(P$4,Millwall!$AP78:$BA78,0) -> 6 | Q5: =MATCH(Q$4,Millwall!$AP78:$BA78,0) ->  | R5: =MATCH(R$4,Millwall!$AP78:$BA78,0) -> 3 | S5: =MATCH(S$4,Millwall!$AP78:$BA78,0) -> 4 | T5: =MATCH(T$4,Millwall!$AP78:$BA78,0) -> 10 | U5: =MATCH(U$4,Millwall!$AP78:$BA78,0) ->  | V5: =MATCH(V$4,Millwall!$AP78:$BA78,0) ->  | W5: =MATCH(W$4,Millwall!$AP78:$BA78,0) -> 8 | X5: =MATCH(X$4,Millwall!$AP78:$BA78,0) -> 1 | Y5: =MATCH(Y$4,Millwall!$AP78:$BA78,0) -> 5 | Z5: =MATCH(Z$4,Millwall!$AP78:$BA78,0) ->  | AA5: =MATCH(AA$4,Millwall!$AP78:$BA78,0) -> 7 | AB5: =MATCH(AB$4,Millwall!$AP78:$BA78,0) ->  | AC5: =MATCH(AC$4,Millwall!$AP78:$BA78,0) ->  | AD5: =MATCH(AD$4,Millwall!$AP78:$BA78,0) ->  | AE5: =MATCH(AE$4,Millwall!$AP78:$BA78,0) ->  | AF5: =MATCH(AF$4,Millwall!$AP78:$BA78,0) ->  | AG5: =MATCH(AG$4,Millwall!$AP78:$BA78,0) ->  | AH5: =MATCH(AH$3,Millwall!$AP78:$BA78,0) ->  | AI5: =MATCH(AI$3,Millwall!$AP78:$BA78,0) ->  | AJ5: =MATCH(AJ$3,Millwall!$AP78:$BA78,0) ->  | AK5: =MATCH(AK$3,Millwall!$AP78:$BA78,0) ->  | AL5: =MATCH(AL$3,Millwall!$AP78:$BA78,0) ->  | AM5: =MATCH(AM$3,Millwall!$AP78:$BA78,0) ->  | AN5: =MATCH(AN$3,Millwall!$AP78:$BA78,0) ->  | AO5: =MATCH(AO$3,Millwall!$AP78:$BA78,0) ->  | AP5: =MATCH(AP$3,Millwall!$AP78:$BA78,0) ->  | AQ5: =MATCH(AQ$3,Millwall!$AP78:$BA78,0) ->  | AR5: =MATCH(AR$3,Millwall!$AP78:$BA78,0) ->  | AX5: =MATCH(AX$3,Millwall!$AP78:$BA78,0) ->  | AY5: =MATCH(AY$3,Millwall!$AP78:$BA78,0) ->  | AZ5: =MATCH(AZ$3,Millwall!$AP78:$BA78,0) ->  | BA5: =MATCH(BA$3,Millwall!$AP78:$BA78,0) ->  | BB5: =MATCH(BB$3,Millwall!$AP78:$BA78,0) ->  | BC5: =MATCH(BC$3,Millwall!$AP78:$BA78,0) ->  | BD5: =MATCH(BD$3,Millwall!$AP78:$BA78,0) ->  | BE5: =MATCH(BE$3,Millwall!$AP78:$BA78,0) ->  | BF5: =MATCH(BF$3,Millwall!$AP78:$BA78,0) ->  | BG5: =MATCH(BG$3,Millwall!$AP78:$BA78,0) ->  | BH5: =MATCH(BH$3,Millwall!$AP78:$BA78,0) ->  | BI5: =MATCH(BI$3,Millwall!$AP78:$BA78,0) ->  | BJ5: =MATCH(BJ$3,Millwall!$AP78:$BA78,0) ->  | BK5: =MATCH(BK$3,Millwall!$AP78:$BA78,0) ->  | BL5: =MATCH(BL$3,Millwall!$AP78:$BA78,0) ->  | BM5: =MATCH(BM$3,Millwall!$AP78:$BA78,0) ->  | BN5: =MATCH(BN$3,Millwall!$AP78:$BA78,0) ->  | BO5: =MATCH(BO$3,Millwall!$AP78:$BA78,0) ->  | BP5: =MATCH(BP$3,Millwall!$AP78:$BA78,0) ->  | BQ5: =MATCH(BQ$3,Millwall!$AP78:$BA78,0) ->  | BR5: =MATCH(BR$3,Millwall!$AP78:$BA78,0) ->  | BS5: =MATCH(BS$3,Millwall!$AP78:$BA78,0) ->  | BT5: =MATCH(BT$3,Millwall!$AP78:$BA78,0) ->  | BU5: =MATCH(BU$3,Millwall!$AP78:$BA78,0) ->  | BV5: =MATCH(BV$3,Millwall!$AP78:$BA78,0) ->  | BW5: =MATCH(BW$3,Millwall!$AP78:$BA78,0) ->  | BX5: =MATCH(BX$3,Millwall!$AP78:$BA78,0) ->  | BY5: =MATCH(BY$3,Millwall!$AP78:$BA78,0) ->  | BZ5: =MATCH(BZ$3,Millwall!$AP78:$BA78,0) ->  | CA5: =MATCH(CA$3,Millwall!$AP78:$BA78,0) ->  | CB5: =MATCH(CB$3,Millwall!$AP78:$BA78,0) ->  | CC5: =MATCH(CC$3,Millwall!$AP78:$BA78,0) ->  | CD5: =MATCH(CD$3,Millwall!$AP78:$BA78,0) ->  | CE5: =MATCH(CE$3,Millwall!$AP78:$BA78,0) ->  | CM5: =Millwall!$BO72 -> Allder | CN5: =Millwall!$BN72&" (**" -> Allder** (** | CO5: =Millwall!$BN72&"**" -> Allder****
C6: 0 | D6: 2 | F6: =Millwall!AI79 -> 1970-08-22 | H6: =Millwall!AK79 -> Cardiff | I6: =Millwall!AL79 -> (A) | J6: =Millwall!AO79 -> D 2-2 | K6: =MATCH(K$4,Millwall!$AP79:$BA79,0) -> 11 | L6: =MATCH(L$4,Millwall!$AP79:$BA79,0) -> 9 | M6: =MATCH(M$4,Millwall!$AP79:$BA79,0) ->  | N6: =MATCH(N$4,Millwall!$AP79:$BA79,0) -> 2 | O6: =MATCH(O$4,Millwall!$AP79:$BA79,0) -> 12 | P6: =MATCH(P$4,Millwall!$AP79:$BA79,0) -> 6 | Q6: =MATCH(Q$4,Millwall!$AP79:$BA79,0) ->  | R6: =MATCH(R$4,Millwall!$AP79:$BA79,0) -> 3 | S6: =MATCH(S$4,Millwall!$AP79:$BA79,0) -> 4 | T6: =MATCH(T$4,Millwall!$AP79:$BA79,0) -> 10 | U6: =MATCH(U$4,Millwall!$AP79:$BA79,0) ->  | V6: =MATCH(V$4,Millwall!$AP79:$BA79,0) ->  | W6: =MATCH(W$4,Millwall!$AP79:$BA79,0) -> 8 | X6: =MATCH(X$4,Millwall!$AP79:$BA79,0) -> 1 | Y6: =MATCH(Y$4,Millwall!$AP79:$BA79,0) -> 5 | Z6: =MATCH(Z$4,Millwall!$AP79:$BA79,0) ->  | AA6: =MATCH(AA$4,Millwall!$AP79:$BA79,0) -> 7 | AB6: =MATCH(AB$4,Millwall!$AP79:$BA79,0) ->  | AC6: =MATCH(AC$4,Millwall!$AP79:$BA79,0) ->  | AD6: =MATCH(AD$4,Millwall!$AP79:$BA79,0) ->  | AE6: =MATCH(AE$4,Millwall!$AP79:$BA79,0) ->  | AF6: =MATCH(AF$4,Millwall!$AP79:$BA79,0) ->  | AG6: =MATCH(AG$4,Millwall!$AP79:$BA79,0) ->  | AH6: =MATCH(AH$3,Millwall!$AP79:$BA79,0) ->  | AI6: =MATCH(AI$3,Millwall!$AP79:$BA79,0) ->  | AJ6: =MATCH(AJ$3,Millwall!$AP79:$BA79,0) ->  | AK6: =MATCH(AK$3,Millwall!$AP79:$BA79,0) ->  | AL6: =MATCH(AL$3,Millwall!$AP79:$BA79,0) ->  | AM6: =MATCH(AM$3,Millwall!$AP79:$BA79,0) ->  | AN6: =MATCH(AN$3,Millwall!$AP79:$BA79,0) ->  | AO6: =MATCH(AO$3,Millwall!$AP79:$BA79,0) ->  | AP6: =MATCH(AP$3,Millwall!$AP79:$BA79,0) ->  | AQ6: =MATCH(AQ$3,Millwall!$AP79:$BA79,0) ->  | AR6: =MATCH(AR$3,Millwall!$AP79:$BA79,0) ->  | AX6: =MATCH(AX$3,Millwall!$AP79:$BA79,0) ->  | AY6: =MATCH(AY$3,Millwall!$AP79:$BA79,0) ->  | AZ6: =MATCH(AZ$3,Millwall!$AP79:$BA79,0) ->  | BA6: =MATCH(BA$3,Millwall!$AP79:$BA79,0) ->  | BB6: =MATCH(BB$3,Millwall!$AP79:$BA79,0) -> 12 | BC6: =MATCH(BC$3,Millwall!$AP79:$BA79,0) ->  | BD6: =MATCH(BD$3,Millwall!$AP79:$BA79,0) ->  | BE6: =MATCH(BE$3,Millwall!$AP79:$BA79,0) ->  | BF6: =MATCH(BF$3,Millwall!$AP79:$BA79,0) ->  | BG6: =MATCH(BG$3,Millwall!$AP79:$BA79,0) ->  | BH6: =MATCH(BH$3,Millwall!$AP79:$BA79,0) ->  | BI6: =MATCH(BI$3,Millwall!$AP79:$BA79,0) ->  | BJ6: =MATCH(BJ$3,Millwall!$AP79:$BA79,0) -> 8 | BK6: =MATCH(BK$3,Millwall!$AP79:$BA79,0) ->  | BL6: =MATCH(BL$3,Millwall!$AP79:$BA79,0) ->  | BM6: =MATCH(BM$3,Millwall!$AP79:$BA79,0) ->  | BN6: =MATCH(BN$3,Millwall!$AP79:$BA79,0) ->  | BO6: =MATCH(BO$3,Millwall!$AP79:$BA79,0) ->  | BP6: =MATCH(BP$3,Millwall!$AP79:$BA79,0) ->  | BQ6: =MATCH(BQ$3,Millwall!$AP79:$BA79,0) ->  | BR6: =MATCH(BR$3,Millwall!$AP79:$BA79,0) ->  | BS6: =MATCH(BS$3,Millwall!$AP79:$BA79,0) ->  | BT6: =MATCH(BT$3,Millwall!$AP79:$BA79,0) ->  | BU6: =MATCH(BU$3,Millwall!$AP79:$BA79,0) ->  | BV6: =MATCH(BV$3,Millwall!$AP79:$BA79,0) ->  | BW6: =MATCH(BW$3,Millwall!$AP79:$BA79,0) ->  | BX6: =MATCH(BX$3,Millwall!$AP79:$BA79,0) ->  | BY6: =MATCH(BY$3,Millwall!$AP79:$BA79,0) ->  | BZ6: =MATCH(BZ$3,Millwall!$AP79:$BA79,0) ->  | CA6: =MATCH(CA$3,Millwall!$AP79:$BA79,0) ->  | CB6: =MATCH(CB$3,Millwall!$AP79:$BA79,0) ->  | CC6: =MATCH(CC$3,Millwall!$AP79:$BA79,0) ->  | CD6: =MATCH(CD$3,Millwall!$AP79:$BA79,0) ->  | CE6: =MATCH(CE$3,Millwall!$AP79:$BA79,0) ->  | CM6: =Millwall!$BO73 -> Bolland | CN6: =Millwall!$BN73&" (**" -> Bolland** (** | CO6: =Millwall!$BN73&"**" -> Bolland****
C7: 0 | D7: 3 | F7: =Millwall!AI80 -> 1970-08-29 | H7: =Millwall!AK80 -> Portsmouth | I7: =Millwall!AL80 -> (H) | J7: =Millwall!AO80 -> D 0-0 | K7: =MATCH(K$4,Millwall!$AP80:$BA80,0) -> 11 | L7: =MATCH(L$4,Millwall!$AP80:$BA80,0) -> 9 | M7: =MATCH(M$4,Millwall!$AP80:$BA80,0) ->  | N7: =MATCH(N$4,Millwall!$AP80:$BA80,0) -> 2 | O7: =MATCH(O$4,Millwall!$AP80:$BA80,0) -> 12 | P7: =MATCH(P$4,Millwall!$AP80:$BA80,0) -> 6 | Q7: =MATCH(Q$4,Millwall!$AP80:$BA80,0) ->  | R7: =MATCH(R$4,Millwall!$AP80:$BA80,0) -> 3 | S7: =MATCH(S$4,Millwall!$AP80:$BA80,0) -> 4 | T7: =MATCH(T$4,Millwall!$AP80:$BA80,0) -> 10 | U7: =MATCH(U$4,Millwall!$AP80:$BA80,0) ->  | V7: =MATCH(V$4,Millwall!$AP80:$BA80,0) ->  | W7: =MATCH(W$4,Millwall!$AP80:$BA80,0) -> 8 | X7: =MATCH(X$4,Millwall!$AP80:$BA80,0) -> 1 | Y7: =MATCH(Y$4,Millwall!$AP80:$BA80,0) -> 5 | Z7: =MATCH(Z$4,Millwall!$AP80:$BA80,0) ->  | AA7: =MATCH(AA$4,Millwall!$AP80:$BA80,0) -> 7 | AB7: =MATCH(AB$4,Millwall!$AP80:$BA80,0) ->  | AC7: =MATCH(AC$4,Millwall!$AP80:$BA80,0) ->  | AD7: =MATCH(AD$4,Millwall!$AP80:$BA80,0) ->  | AE7: =MATCH(AE$4,Millwall!$AP80:$BA80,0) ->  | AF7: =MATCH(AF$4,Millwall!$AP80:$BA80,0) ->  | AG7: =MATCH(AG$4,Millwall!$AP80:$BA80,0) ->  | AH7: =MATCH(AH$3,Millwall!$AP80:$BA80,0) ->  | AI7: =MATCH(AI$3,Millwall!$AP80:$BA80,0) ->  | AJ7: =MATCH(AJ$3,Millwall!$AP80:$BA80,0) ->  | AK7: =MATCH(AK$3,Millwall!$AP80:$BA80,0) ->  | AL7: =MATCH(AL$3,Millwall!$AP80:$BA80,0) ->  | AM7: =MATCH(AM$3,Millwall!$AP80:$BA80,0) ->  | AN7: =MATCH(AN$3,Millwall!$AP80:$BA80,0) ->  | AO7: =MATCH(AO$3,Millwall!$AP80:$BA80,0) ->  | AP7: =MATCH(AP$3,Millwall!$AP80:$BA80,0) ->  | AQ7: =MATCH(AQ$3,Millwall!$AP80:$BA80,0) ->  | AR7: =MATCH(AR$3,Millwall!$AP80:$BA80,0) ->  | AX7: =MATCH(AX$3,Millwall!$AP80:$BA80,0) ->  | AY7: =MATCH(AY$3,Millwall!$AP80:$BA80,0) -> 9 | AZ7: =MATCH(AZ$3,Millwall!$AP80:$BA80,0) ->  | BA7: =MATCH(BA$3,Millwall!$AP80:$BA80,0) ->  | BB7: =MATCH(BB$3,Millwall!$AP80:$BA80,0) -> 12 | BC7: =MATCH(BC$3,Millwall!$AP80:$BA80,0) ->  | BD7: =MATCH(BD$3,Millwall!$AP80:$BA80,0) ->  | BE7: =MATCH(BE$3,Millwall!$AP80:$BA80,0) ->  | BF7: =MATCH(BF$3,Millwall!$AP80:$BA80,0) ->  | BG7: =MATCH(BG$3,Millwall!$AP80:$BA80,0) ->  | BH7: =MATCH(BH$3,Millwall!$AP80:$BA80,0) ->  | BI7: =MATCH(BI$3,Millwall!$AP80:$BA80,0) ->  | BJ7: =MATCH(BJ$3,Millwall!$AP80:$BA80,0) ->  | BK7: =MATCH(BK$3,Millwall!$AP80:$BA80,0) ->  | BL7: =MATCH(BL$3,Millwall!$AP80:$BA80,0) ->  | BM7: =MATCH(BM$3,Millwall!$AP80:$BA80,0) ->  | BN7: =MATCH(BN$3,Millwall!$AP80:$BA80,0) ->  | BO7: =MATCH(BO$3,Millwall!$AP80:$BA80,0) ->  | BP7: =MATCH(BP$3,Millwall!$AP80:$BA80,0) ->  | BQ7: =MATCH(BQ$3,Millwall!$AP80:$BA80,0) ->  | BR7: =MATCH(BR$3,Millwall!$AP80:$BA80,0) ->  | BS7: =MATCH(BS$3,Millwall!$AP80:$BA80,0) ->  | BT7: =MATCH(BT$3,Millwall!$AP80:$BA80,0) ->  | BU7: =MATCH(BU$3,Millwall!$AP80:$BA80,0) ->  | BV7: =MATCH(BV$3,Millwall!$AP80:$BA80,0) ->  | BW7: =MATCH(BW$3,Millwall!$AP80:$BA80,0) ->  | BX7: =MATCH(BX$3,Millwall!$AP80:$BA80,0) ->  | BY7: =MATCH(BY$3,Millwall!$AP80:$BA80,0) ->  | BZ7: =MATCH(BZ$3,Millwall!$AP80:$BA80,0) ->  | CA7: =MATCH(CA$3,Millwall!$AP80:$BA80,0) ->  | CB7: =MATCH(CB$3,Millwall!$AP80:$BA80,0) ->  | CC7: =MATCH(CC$3,Millwall!$AP80:$BA80,0) ->  | CD7: =MATCH(CD$3,Millwall!$AP80:$BA80,0) ->  | CE7: =MATCH(CE$3,Millwall!$AP80:$BA80,0) ->  | CM7: =Millwall!$BO74 -> Bridges | CN7: =Millwall!$BN74&" (**" -> Bridges** (** | CO7: =Millwall!$BN74&"**" -> Bridges****
C8: 0 | D8: 4 | F8: =Millwall!AI81 -> 1970-09-02 | H8: =Millwall!AK81 -> Norwich | I8: =Millwall!AL81 -> (A) | J8: =Millwall!AO81 -> L 0-1 | K8: =MATCH(K$4,Millwall!$AP81:$BA81,0) -> 11 | L8: =MATCH(L$4,Millwall!$AP81:$BA81,0) -> 9 | M8: =MATCH(M$4,Millwall!$AP81:$BA81,0) ->  | N8: =MATCH(N$4,Millwall!$AP81:$BA81,0) -> 2 | O8: =MATCH(O$4,Millwall!$AP81:$BA81,0) -> 12 | P8: =MATCH(P$4,Millwall!$AP81:$BA81,0) -> 6 | Q8: =MATCH(Q$4,Millwall!$AP81:$BA81,0) ->  | R8: =MATCH(R$4,Millwall!$AP81:$BA81,0) -> 3 | S8: =MATCH(S$4,Millwall!$AP81:$BA81,0) -> 4 | T8: =MATCH(T$4,Millwall!$AP81:$BA81,0) -> 10 | U8: =MATCH(U$4,Millwall!$AP81:$BA81,0) ->  | V8: =MATCH(V$4,Millwall!$AP81:$BA81,0) ->  | W8: =MATCH(W$4,Millwall!$AP81:$BA81,0) -> 8 | X8: =MATCH(X$4,Millwall!$AP81:$BA81,0) -> 1 | Y8: =MATCH(Y$4,Millwall!$AP81:$BA81,0) -> 5 | Z8: =MATCH(Z$4,Millwall!$AP81:$BA81,0) ->  | AA8: =MATCH(AA$4,Millwall!$AP81:$BA81,0) -> 7 | AB8: =MATCH(AB$4,Millwall!$AP81:$BA81,0) ->  | AC8: =MATCH(AC$4,Millwall!$AP81:$BA81,0) ->  | AD8: =MATCH(AD$4,Millwall!$AP81:$BA81,0) ->  | AE8: =MATCH(AE$4,Millwall!$AP81:$BA81,0) ->  | AF8: =MATCH(AF$4,Millwall!$AP81:$BA81,0) ->  | AG8: =MATCH(AG$4,Millwall!$AP81:$BA81,0) ->  | AH8: =MATCH(AH$3,Millwall!$AP81:$BA81,0) ->  | AI8: =MATCH(AI$3,Millwall!$AP81:$BA81,0) ->  | AJ8: =MATCH(AJ$3,Millwall!$AP81:$BA81,0) ->  | AK8: =MATCH(AK$3,Millwall!$AP81:$BA81,0) ->  | AL8: =MATCH(AL$3,Millwall!$AP81:$BA81,0) ->  | AM8: =MATCH(AM$3,Millwall!$AP81:$BA81,0) ->  | AN8: =MATCH(AN$3,Millwall!$AP81:$BA81,0) ->  | AO8: =MATCH(AO$3,Millwall!$AP81:$BA81,0) ->  | AP8: =MATCH(AP$3,Millwall!$AP81:$BA81,0) ->  | AQ8: =MATCH(AQ$3,Millwall!$AP81:$BA81,0) ->  | AR8: =MATCH(AR$3,Millwall!$AP81:$BA81,0) ->  | AX8: =MATCH(AX$3,Millwall!$AP81:$BA81,0) ->  | AY8: =MATCH(AY$3,Millwall!$AP81:$BA81,0) ->  | AZ8: =MATCH(AZ$3,Millwall!$AP81:$BA81,0) ->  | BA8: =MATCH(BA$3,Millwall!$AP81:$BA81,0) ->  | BB8: =MATCH(BB$3,Millwall!$AP81:$BA81,0) -> 12 | BC8: =MATCH(BC$3,Millwall!$AP81:$BA81,0) ->  | BD8: =MATCH(BD$3,Millwall!$AP81:$BA81,0) ->  | BE8: =MATCH(BE$3,Millwall!$AP81:$BA81,0) ->  | BF8: =MATCH(BF$3,Millwall!$AP81:$BA81,0) ->  | BG8: =MATCH(BG$3,Millwall!$AP81:$BA81,0) ->  | BH8: =MATCH(BH$3,Millwall!$AP81:$BA81,0) ->  | BI8: =MATCH(BI$3,Millwall!$AP81:$BA81,0) ->  | BJ8: =MATCH(BJ$3,Millwall!$AP81:$BA81,0) -> 8 | BK8: =MATCH(BK$3,Millwall!$AP81:$BA81,0) ->  | BL8: =MATCH(BL$3,Millwall!$AP81:$BA81,0) ->  | BM8: =MATCH(BM$3,Millwall!$AP81:$BA81,0) ->  | BN8: =MATCH(BN$3,Millwall!$AP81:$BA81,0) ->  | BO8: =MATCH(BO$3,Millwall!$AP81:$BA81,0) ->  | BP8: =MATCH(BP$3,Millwall!$AP81:$BA81,0) ->  | BQ8: =MATCH(BQ$3,Millwall!$AP81:$BA81,0) ->  | BR8: =MATCH(BR$3,Millwall!$AP81:$BA81,0) ->  | BS8: =MATCH(BS$3,Millwall!$AP81:$BA81,0) ->  | BT8: =MATCH(BT$3,Millwall!$AP81:$BA81,0) ->  | BU8: =MATCH(BU$3,Millwall!$AP81:$BA81,0) ->  | BV8: =MATCH(BV$3,Millwall!$AP81:$BA81,0) ->  | BW8: =MATCH(BW$3,Millwall!$AP81:$BA81,0) ->  | BX8: =MATCH(BX$3,Millwall!$AP81:$BA81,0) ->  | BY8: =MATCH(BY$3,Millwall!$AP81:$BA81,0) ->  | BZ8: =MATCH(BZ$3,Millwall!$AP81:$BA81,0) ->  | CA8: =MATCH(CA$3,Millwall!$AP81:$BA81,0) ->  | CB8: =MATCH(CB$3,Millwall!$AP81:$BA81,0) ->  | CC8: =MATCH(CC$3,Millwall!$AP81:$BA81,0) ->  | CD8: =MATCH(CD$3,Millwall!$AP81:$BA81,0) ->  | CE8: =MATCH(CE$3,Millwall!$AP81:$BA81,0) ->  | CM8: =Millwall!$BO75 -> B Brown | CN8: =Millwall!$BN75&" (**" -> B Brown** (** | CO8: =Millwall!$BN75&"**" -> B Brown****
C9: 0 | D9: 5 | F9: =Millwall!AI82 -> 1970-09-05 | H9: =Millwall!AK82 -> Charlton | I9: =Millwall!AL82 -> (A) | J9: =Millwall!AO82 -> W 3-1 | K9: =MATCH(K$4,Millwall!$AP82:$BA82,0) -> 11 | L9: =MATCH(L$4,Millwall!$AP82:$BA82,0) -> 9 | M9: =MATCH(M$4,Millwall!$AP82:$BA82,0) ->  | N9: =MATCH(N$4,Millwall!$AP82:$BA82,0) -> 2 | O9: =MATCH(O$4,Millwall!$AP82:$BA82,0) ->  | P9: =MATCH(P$4,Millwall!$AP82:$BA82,0) -> 6 | Q9: =MATCH(Q$4,Millwall!$AP82:$BA82,0) ->  | R9: =MATCH(R$4,Millwall!$AP82:$BA82,0) -> 3 | S9: =MATCH(S$4,Millwall!$AP82:$BA82,0) ->  | T9: =MATCH(T$4,Millwall!$AP82:$BA82,0) -> 10 | U9: =MATCH(U$4,Millwall!$AP82:$BA82,0) ->  | V9: =MATCH(V$4,Millwall!$AP82:$BA82,0) ->  | W9: =MATCH(W$4,Millwall!$AP82:$BA82,0) -> 4 | X9: =MATCH(X$4,Millwall!$AP82:$BA82,0) -> 1 | Y9: =MATCH(Y$4,Millwall!$AP82:$BA82,0) -> 5 | Z9: =MATCH(Z$4,Millwall!$AP82:$BA82,0) -> 8 | AA9: =MATCH(AA$4,Millwall!$AP82:$BA82,0) -> 7 | AB9: =MATCH(AB$4,Millwall!$AP82:$BA82,0) ->  | AC9: =MATCH(AC$4,Millwall!$AP82:$BA82,0) ->  | AD9: =MATCH(AD$4,Millwall!$AP82:$BA82,0) ->  | AE9: =MATCH(AE$4,Millwall!$AP82:$BA82,0) ->  | AF9: =MATCH(AF$4,Millwall!$AP82:$BA82,0) ->  | AG9: =MATCH(AG$4,Millwall!$AP82:$BA82,0) ->  | AH9: =MATCH(AH$3,Millwall!$AP82:$BA82,0) ->  | AI9: =MATCH(AI$3,Millwall!$AP82:$BA82,0) ->  | AJ9: =MATCH(AJ$3,Millwall!$AP82:$BA82,0) ->  | AK9: =MATCH(AK$3,Millwall!$AP82:$BA82,0) ->  | AL9: =MATCH(AL$3,Millwall!$AP82:$BA82,0) ->  | AM9: =MATCH(AM$3,Millwall!$AP82:$BA82,0) ->  | AN9: =MATCH(AN$3,Millwall!$AP82:$BA82,0) ->  | AO9: =MATCH(AO$3,Millwall!$AP82:$BA82,0) ->  | AP9: =MATCH(AP$3,Millwall!$AP82:$BA82,0) ->  | AQ9: =MATCH(AQ$3,Millwall!$AP82:$BA82,0) ->  | AR9: =MATCH(AR$3,Millwall!$AP82:$BA82,0) ->  | AX9: =MATCH(AX$3,Millwall!$AP82:$BA82,0) ->  | AY9: =MATCH(AY$3,Millwall!$AP82:$BA82,0) ->  | AZ9: =MATCH(AZ$3,Millwall!$AP82:$BA82,0) ->  | BA9: =MATCH(BA$3,Millwall!$AP82:$BA82,0) ->  | BB9: =MATCH(BB$3,Millwall!$AP82:$BA82,0) ->  | BC9: =MATCH(BC$3,Millwall!$AP82:$BA82,0) ->  | BD9: =MATCH(BD$3,Millwall!$AP82:$BA82,0) ->  | BE9: =MATCH(BE$3,Millwall!$AP82:$BA82,0) ->  | BF9: =MATCH(BF$3,Millwall!$AP82:$BA82,0) ->  | BG9: =MATCH(BG$3,Millwall!$AP82:$BA82,0) ->  | BH9: =MATCH(BH$3,Millwall!$AP82:$BA82,0) ->  | BI9: =MATCH(BI$3,Millwall!$AP82:$BA82,0) ->  | BJ9: =MATCH(BJ$3,Millwall!$AP82:$BA82,0) ->  | BK9: =MATCH(BK$3,Millwall!$AP82:$BA82,0) ->  | BL9: =MATCH(BL$3,Millwall!$AP82:$BA82,0) ->  | BM9: =MATCH(BM$3,Millwall!$AP82:$BA82,0) ->  | BN9: =MATCH(BN$3,Millwall!$AP82:$BA82,0) ->  | BO9: =MATCH(BO$3,Millwall!$AP82:$BA82,0) ->  | BP9: =MATCH(BP$3,Millwall!$AP82:$BA82,0) ->  | BQ9: =MATCH(BQ$3,Millwall!$AP82:$BA82,0) ->  | BR9: =MATCH(BR$3,Millwall!$AP82:$BA82,0) ->  | BS9: =MATCH(BS$3,Millwall!$AP82:$BA82,0) ->  | BT9: =MATCH(BT$3,Millwall!$AP82:$BA82,0) ->  | BU9: =MATCH(BU$3,Millwall!$AP82:$BA82,0) ->  | BV9: =MATCH(BV$3,Millwall!$AP82:$BA82,0) ->  | BW9: =MATCH(BW$3,Millwall!$AP82:$BA82,0) ->  | BX9: =MATCH(BX$3,Millwall!$AP82:$BA82,0) ->  | BY9: =MATCH(BY$3,Millwall!$AP82:$BA82,0) ->  | BZ9: =MATCH(BZ$3,Millwall!$AP82:$BA82,0) ->  | CA9: =MATCH(CA$3,Millwall!$AP82:$BA82,0) ->  | CB9: =MATCH(CB$3,Millwall!$AP82:$BA82,0) ->  | CC9: =MATCH(CC$3,Millwall!$AP82:$BA82,0) ->  | CD9: =MATCH(CD$3,Millwall!$AP82:$BA82,0) ->  | CE9: =MATCH(CE$3,Millwall!$AP82:$BA82,0) ->  | CM9: =Millwall!$BO76 -> S Brown | CN9: =Millwall!$BN76&" (**" -> S Brown** (** | CO9: =Millwall!$BN76&"**" -> S Brown****
C10: 0 | D10: 6 | F10: =Millwall!AI83 -> 1970-09-14 | H10: =Millwall!AK83 -> Sheff Utd | I10: =Millwall!AL83 -> (H) | J10: =Millwall!AO83 -> L 1-2 | K10: =MATCH(K$4,Millwall!$AP83:$BA83,0) -> 11 | L10: =MATCH(L$4,Millwall!$AP83:$BA83,0) -> 9 | M10: =MATCH(M$4,Millwall!$AP83:$BA83,0) ->  | N10: =MATCH(N$4,Millwall!$AP83:$BA83,0) -> 2 | O10: =MATCH(O$4,Millwall!$AP83:$BA83,0) -> 12 | P10: =MATCH(P$4,Millwall!$AP83:$BA83,0) -> 6 | Q10: =MATCH(Q$4,Millwall!$AP83:$BA83,0) ->  | R10: =MATCH(R$4,Millwall!$AP83:$BA83,0) -> 3 | S10: =MATCH(S$4,Millwall!$AP83:$BA83,0) -> 4 | T10: =MATCH(T$4,Millwall!$AP83:$BA83,0) -> 10 | U10: =MATCH(U$4,Millwall!$AP83:$BA83,0) ->  | V10: =MATCH(V$4,Millwall!$AP83:$BA83,0) ->  | W10: =MATCH(W$4,Millwall!$AP83:$BA83,0) -> 8 | X10: =MATCH(X$4,Millwall!$AP83:$BA83,0) -> 1 | Y10: =MATCH(Y$4,Millwall!$AP83:$BA83,0) -> 5 | Z10: =MATCH(Z$4,Millwall!$AP83:$BA83,0) ->  | AA10: =MATCH(AA$4,Millwall!$AP83:$BA83,0) -> 7 | AB10: =MATCH(AB$4,Millwall!$AP83:$BA83,0) ->  | AC10: =MATCH(AC$4,Millwall!$AP83:$BA83,0) ->  | AD10: =MATCH(AD$4,Millwall!$AP83:$BA83,0) ->  | AE10: =MATCH(AE$4,Millwall!$AP83:$BA83,0) ->  | AF10: =MATCH(AF$4,Millwall!$AP83:$BA83,0) ->  | AG10: =MATCH(AG$4,Millwall!$AP83:$BA83,0) ->  | AH10: =MATCH(AH$3,Millwall!$AP83:$BA83,0) ->  | AI10: =MATCH(AI$3,Millwall!$AP83:$BA83,0) ->  | AJ10: =MATCH(AJ$3,Millwall!$AP83:$BA83,0) ->  | AK10: =MATCH(AK$3,Millwall!$AP83:$BA83,0) ->  | AL10: =MATCH(AL$3,Millwall!$AP83:$BA83,0) ->  | AM10: =MATCH(AM$3,Millwall!$AP83:$BA83,0) ->  | AN10: =MATCH(AN$3,Millwall!$AP83:$BA83,0) ->  | AO10: =MATCH(AO$3,Millwall!$AP83:$BA83,0) ->  | AP10: =MATCH(AP$3,Millwall!$AP83:$BA83,0) ->  | AQ10: =MATCH(AQ$3,Millwall!$AP83:$BA83,0) ->  | AR10: =MATCH(AR$3,Millwall!$AP83:$BA83,0) ->  | AX10: =MATCH(AX$3,Millwall!$AP83:$BA83,0) ->  | AY10: =MATCH(AY$3,Millwall!$AP83:$BA83,0) ->  | AZ10: =MATCH(AZ$3,Millwall!$AP83:$BA83,0) ->  | BA10: =MATCH(BA$3,Millwall!$AP83:$BA83,0) ->  | BB10: =MATCH(BB$3,Millwall!$AP83:$BA83,0) -> 12 | BC10: =MATCH(BC$3,Millwall!$AP83:$BA83,0) ->  | BD10: =MATCH(BD$3,Millwall!$AP83:$BA83,0) ->  | BE10: =MATCH(BE$3,Millwall!$AP83:$BA83,0) ->  | BF10: =MATCH(BF$3,Millwall!$AP83:$BA83,0) ->  | BG10: =MATCH(BG$3,Millwall!$AP83:$BA83,0) ->  | BH10: =MATCH(BH$3,Millwall!$AP83:$BA83,0) ->  | BI10: =MATCH(BI$3,Millwall!$AP83:$BA83,0) ->  | BJ10: =MATCH(BJ$3,Millwall!$AP83:$BA83,0) -> 8 | BK10: =MATCH(BK$3,Millwall!$AP83:$BA83,0) ->  | BL10: =MATCH(BL$3,Millwall!$AP83:$BA83,0) ->  | BM10: =MATCH(BM$3,Millwall!$AP83:$BA83,0) ->  | BN10: =MATCH(BN$3,Millwall!$AP83:$BA83,0) ->  | BO10: =MATCH(BO$3,Millwall!$AP83:$BA83,0) ->  | BP10: =MATCH(BP$3,Millwall!$AP83:$BA83,0) ->  | BQ10: =MATCH(BQ$3,Millwall!$AP83:$BA83,0) ->  | BR10: =MATCH(BR$3,Millwall!$AP83:$BA83,0) ->  | BS10: =MATCH(BS$3,Millwall!$AP83:$BA83,0) ->  | BT10: =MATCH(BT$3,Millwall!$AP83:$BA83,0) ->  | BU10: =MATCH(BU$3,Millwall!$AP83:$BA83,0) ->  | BV10: =MATCH(BV$3,Millwall!$AP83:$BA83,0) ->  | BW10: =MATCH(BW$3,Millwall!$AP83:$BA83,0) ->  | BX10: =MATCH(BX$3,Millwall!$AP83:$BA83,0) ->  | BY10: =MATCH(BY$3,Millwall!$AP83:$BA83,0) ->  | BZ10: =MATCH(BZ$3,Millwall!$AP83:$BA83,0) ->  | CA10: =MATCH(CA$3,Millwall!$AP83:$BA83,0) ->  | CB10: =MATCH(CB$3,Millwall!$AP83:$BA83,0) ->  | CC10: =MATCH(CC$3,Millwall!$AP83:$BA83,0) ->  | CD10: =MATCH(CD$3,Millwall!$AP83:$BA83,0) ->  | CE10: =MATCH(CE$3,Millwall!$AP83:$BA83,0) ->  | CM10: =Millwall!$BO77 -> Burnett | CN10: =Millwall!$BN77&" (**" -> Burnett** (** | CO10: =Millwall!$BN77&"**" -> Burnett****
C11: 0 | D11: 7 | F11: =Millwall!AI84 -> 1970-09-19 | H11: =Millwall!AK84 -> Hull | I11: =Millwall!AL84 -> (A) | J11: =Millwall!AO84 -> L 0-2 | K11: =MATCH(K$4,Millwall!$AP84:$BA84,0) -> 11 | L11: =MATCH(L$4,Millwall!$AP84:$BA84,0) -> 9 | M11: =MATCH(M$4,Millwall!$AP84:$BA84,0) ->  | N11: =MATCH(N$4,Millwall!$AP84:$BA84,0) -> 2 | O11: =MATCH(O$4,Millwall!$AP84:$BA84,0) -> 12 | P11: =MATCH(P$4,Millwall!$AP84:$BA84,0) -> 6 | Q11: =MATCH(Q$4,Millwall!$AP84:$BA84,0) ->  | R11: =MATCH(R$4,Millwall!$AP84:$BA84,0) -> 3 | S11: =MATCH(S$4,Millwall!$AP84:$BA84,0) -> 4 | T11: =MATCH(T$4,Millwall!$AP84:$BA84,0) -> 10 | U11: =MATCH(U$4,Millwall!$AP84:$BA84,0) ->  | V11: =MATCH(V$4,Millwall!$AP84:$BA84,0) ->  | W11: =MATCH(W$4,Millwall!$AP84:$BA84,0) -> 8 | X11: =MATCH(X$4,Millwall!$AP84:$BA84,0) -> 1 | Y11: =MATCH(Y$4,Millwall!$AP84:$BA84,0) -> 5 | Z11: =MATCH(Z$4,Millwall!$AP84:$BA84,0) ->  | AA11: =MATCH(AA$4,Millwall!$AP84:$BA84,0) -> 7 | AB11: =MATCH(AB$4,Millwall!$AP84:$BA84,0) ->  | AC11: =MATCH(AC$4,Millwall!$AP84:$BA84,0) ->  | AD11: =MATCH(AD$4,Millwall!$AP84:$BA84,0) ->  | AE11: =MATCH(AE$4,Millwall!$AP84:$BA84,0) ->  | AF11: =MATCH(AF$4,Millwall!$AP84:$BA84,0) ->  | AG11: =MATCH(AG$4,Millwall!$AP84:$BA84,0) ->  | AH11: =MATCH(AH$3,Millwall!$AP84:$BA84,0) ->  | AI11: =MATCH(AI$3,Millwall!$AP84:$BA84,0) ->  | AJ11: =MATCH(AJ$3,Millwall!$AP84:$BA84,0) ->  | AK11: =MATCH(AK$3,Millwall!$AP84:$BA84,0) ->  | AL11: =MATCH(AL$3,Millwall!$AP84:$BA84,0) ->  | AM11: =MATCH(AM$3,Millwall!$AP84:$BA84,0) ->  | AN11: =MATCH(AN$3,Millwall!$AP84:$BA84,0) ->  | AO11: =MATCH(AO$3,Millwall!$AP84:$BA84,0) ->  | AP11: =MATCH(AP$3,Millwall!$AP84:$BA84,0) ->  | AQ11: =MATCH(AQ$3,Millwall!$AP84:$BA84,0) ->  | AR11: =MATCH(AR$3,Millwall!$AP84:$BA84,0) ->  | AX11: =MATCH(AX$3,Millwall!$AP84:$BA84,0) ->  | AY11: =MATCH(AY$3,Millwall!$AP84:$BA84,0) ->  | AZ11: =MATCH(AZ$3,Millwall!$AP84:$BA84,0) ->  | BA11: =MATCH(BA$3,Millwall!$AP84:$BA84,0) ->  | BB11: =MATCH(BB$3,Millwall!$AP84:$BA84,0) -> 12 | BC11: =MATCH(BC$3,Millwall!$AP84:$BA84,0) ->  | BD11: =MATCH(BD$3,Millwall!$AP84:$BA84,0) ->  | BE11: =MATCH(BE$3,Millwall!$AP84:$BA84,0) ->  | BF11: =MATCH(BF$3,Millwall!$AP84:$BA84,0) ->  | BG11: =MATCH(BG$3,Millwall!$AP84:$BA84,0) -> 10 | BH11: =MATCH(BH$3,Millwall!$AP84:$BA84,0) ->  | BI11: =MATCH(BI$3,Millwall!$AP84:$BA84,0) ->  | BJ11: =MATCH(BJ$3,Millwall!$AP84:$BA84,0) ->  | BK11: =MATCH(BK$3,Millwall!$AP84:$BA84,0) ->  | BL11: =MATCH(BL$3,Millwall!$AP84:$BA84,0) ->  | BM11: =MATCH(BM$3,Millwall!$AP84:$BA84,0) ->  | BN11: =MATCH(BN$3,Millwall!$AP84:$BA84,0) ->  | BO11: =MATCH(BO$3,Millwall!$AP84:$BA84,0) ->  | BP11: =MATCH(BP$3,Millwall!$AP84:$BA84,0) ->  | BQ11: =MATCH(BQ$3,Millwall!$AP84:$BA84,0) ->  | BR11: =MATCH(BR$3,Millwall!$AP84:$BA84,0) ->  | BS11: =MATCH(BS$3,Millwall!$AP84:$BA84,0) ->  | BT11: =MATCH(BT$3,Millwall!$AP84:$BA84,0) ->  | BU11: =MATCH(BU$3,Millwall!$AP84:$BA84,0) ->  | BV11: =MATCH(BV$3,Millwall!$AP84:$BA84,0) ->  | BW11: =MATCH(BW$3,Millwall!$AP84:$BA84,0) ->  | BX11: =MATCH(BX$3,Millwall!$AP84:$BA84,0) ->  | BY11: =MATCH(BY$3,Millwall!$AP84:$BA84,0) ->  | BZ11: =MATCH(BZ$3,Millwall!$AP84:$BA84,0) ->  | CA11: =MATCH(CA$3,Millwall!$AP84:$BA84,0) ->  | CB11: =MATCH(CB$3,Millwall!$AP84:$BA84,0) ->  | CC11: =MATCH(CC$3,Millwall!$AP84:$BA84,0) ->  | CD11: =MATCH(CD$3,Millwall!$AP84:$BA84,0) ->  | CE11: =MATCH(CE$3,Millwall!$AP84:$BA84,0) ->  | CM11: =Millwall!$BO78 -> Coxhill | CN11: =Millwall!$BN78&" (**" -> Coxhill** (** | CO11: =Millwall!$BN78&"**" -> Coxhill****
C12: 0 | D12: 8 | F12: =Millwall!AI85 -> 1970-09-26 | H12: =Millwall!AK85 -> Sunderland | I12: =Millwall!AL85 -> (H) | J12: =Millwall!AO85 -> D 0-0 | K12: =MATCH(K$4,Millwall!$AP85:$BA85,0) -> 11 | L12: =MATCH(L$4,Millwall!$AP85:$BA85,0) -> 9 | M12: =MATCH(M$4,Millwall!$AP85:$BA85,0) -> 7 | N12: =MATCH(N$4,Millwall!$AP85:$BA85,0) -> 2 | O12: =MATCH(O$4,Millwall!$AP85:$BA85,0) ->  | P12: =MATCH(P$4,Millwall!$AP85:$BA85,0) -> 6 | Q12: =MATCH(Q$4,Millwall!$AP85:$BA85,0) ->  | R12: =MATCH(R$4,Millwall!$AP85:$BA85,0) -> 3 | S12: =MATCH(S$4,Millwall!$AP85:$BA85,0) -> 4 | T12: =MATCH(T$4,Millwall!$AP85:$BA85,0) -> 8 | U12: =MATCH(U$4,Millwall!$AP85:$BA85,0) ->  | V12: =MATCH(V$4,Millwall!$AP85:$BA85,0) ->  | W12: =MATCH(W$4,Millwall!$AP85:$BA85,0) ->  | X12: =MATCH(X$4,Millwall!$AP85:$BA85,0) -> 1 | Y12: =MATCH(Y$4,Millwall!$AP85:$BA85,0) -> 5 | Z12: =MATCH(Z$4,Millwall!$AP85:$BA85,0) ->  | AA12: =MATCH(AA$4,Millwall!$AP85:$BA85,0) -> 10 | AB12: =MATCH(AB$4,Millwall!$AP85:$BA85,0) ->  | AC12: =MATCH(AC$4,Millwall!$AP85:$BA85,0) ->  | AD12: =MATCH(AD$4,Millwall!$AP85:$BA85,0) ->  | AE12: =MATCH(AE$4,Millwall!$AP85:$BA85,0) ->  | AF12: =MATCH(AF$4,Millwall!$AP85:$BA85,0) ->  | AG12: =MATCH(AG$4,Millwall!$AP85:$BA85,0) ->  | AH12: =MATCH(AH$3,Millwall!$AP85:$BA85,0) ->  | AI12: =MATCH(AI$3,Millwall!$AP85:$BA85,0) ->  | AJ12: =MATCH(AJ$3,Millwall!$AP85:$BA85,0) ->  | AK12: =MATCH(AK$3,Millwall!$AP85:$BA85,0) ->  | AL12: =MATCH(AL$3,Millwall!$AP85:$BA85,0) ->  | AM12: =MATCH(AM$3,Millwall!$AP85:$BA85,0) ->  | AN12: =MATCH(AN$3,Millwall!$AP85:$BA85,0) ->  | AO12: =MATCH(AO$3,Millwall!$AP85:$BA85,0) ->  | AP12: =MATCH(AP$3,Millwall!$AP85:$BA85,0) ->  | AQ12: =MATCH(AQ$3,Millwall!$AP85:$BA85,0) ->  | AR12: =MATCH(AR$3,Millwall!$AP85:$BA85,0) ->  | AX12: =MATCH(AX$3,Millwall!$AP85:$BA85,0) ->  | AY12: =MATCH(AY$3,Millwall!$AP85:$BA85,0) ->  | AZ12: =MATCH(AZ$3,Millwall!$AP85:$BA85,0) ->  | BA12: =MATCH(BA$3,Millwall!$AP85:$BA85,0) ->  | BB12: =MATCH(BB$3,Millwall!$AP85:$BA85,0) ->  | BC12: =MATCH(BC$3,Millwall!$AP85:$BA85,0) ->  | BD12: =MATCH(BD$3,Millwall!$AP85:$BA85,0) ->  | BE12: =MATCH(BE$3,Millwall!$AP85:$BA85,0) ->  | BF12: =MATCH(BF$3,Millwall!$AP85:$BA85,0) ->  | BG12: =MATCH(BG$3,Millwall!$AP85:$BA85,0) ->  | BH12: =MATCH(BH$3,Millwall!$AP85:$BA85,0) ->  | BI12: =MATCH(BI$3,Millwall!$AP85:$BA85,0) ->  | BJ12: =MATCH(BJ$3,Millwall!$AP85:$BA85,0) ->  | BK12: =MATCH(BK$3,Millwall!$AP85:$BA85,0) ->  | BL12: =MATCH(BL$3,Millwall!$AP85:$BA85,0) ->  | BM12: =MATCH(BM$3,Millwall!$AP85:$BA85,0) ->  | BN12: =MATCH(BN$3,Millwall!$AP85:$BA85,0) ->  | BO12: =MATCH(BO$3,Millwall!$AP85:$BA85,0) ->  | BP12: =MATCH(BP$3,Millwall!$AP85:$BA85,0) ->  | BQ12: =MATCH(BQ$3,Millwall!$AP85:$BA85,0) ->  | BR12: =MATCH(BR$3,Millwall!$AP85:$BA85,0) ->  | BS12: =MATCH(BS$3,Millwall!$AP85:$BA85,0) ->  | BT12: =MATCH(BT$3,Millwall!$AP85:$BA85,0) ->  | BU12: =MATCH(BU$3,Millwall!$AP85:$BA85,0) ->  | BV12: =MATCH(BV$3,Millwall!$AP85:$BA85,0) ->  | BW12: =MATCH(BW$3,Millwall!$AP85:$BA85,0) ->  | BX12: =MATCH(BX$3,Millwall!$AP85:$BA85,0) ->  | BY12: =MATCH(BY$3,Millwall!$AP85:$BA85,0) ->  | BZ12: =MATCH(BZ$3,Millwall!$AP85:$BA85,0) ->  | CA12: =MATCH(CA$3,Millwall!$AP85:$BA85,0) ->  | CB12: =MATCH(CB$3,Millwall!$AP85:$BA85,0) ->  | CC12: =MATCH(CC$3,Millwall!$AP85:$BA85,0) ->  | CD12: =MATCH(CD$3,Millwall!$AP85:$BA85,0) ->  | CE12: =MATCH(CE$3,Millwall!$AP85:$BA85,0) ->  | CM12: =Millwall!$BO79 -> Cripps | CN12: =Millwall!$BN79&" (**" -> Cripps** (** | CO12: =Millwall!$BN79&"**" -> Cripps****
C13: 0 | D13: 9 | F13: =Millwall!AI86 -> 1970-09-29 | H13: =Millwall!AK86 -> Swindon | I13: =Millwall!AL86 -> (A) | J13: =Millwall!AO86 -> L 0-3 | K13: =MATCH(K$4,Millwall!$AP86:$BA86,0) -> 11 | L13: =MATCH(L$4,Millwall!$AP86:$BA86,0) -> 9 | M13: =MATCH(M$4,Millwall!$AP86:$BA86,0) -> 7 | N13: =MATCH(N$4,Millwall!$AP86:$BA86,0) -> 2 | O13: =MATCH(O$4,Millwall!$AP86:$BA86,0) -> 12 | P13: =MATCH(P$4,Millwall!$AP86:$BA86,0) -> 6 | Q13: =MATCH(Q$4,Millwall!$AP86:$BA86,0) ->  | R13: =MATCH(R$4,Millwall!$AP86:$BA86,0) -> 3 | S13: =MATCH(S$4,Millwall!$AP86:$BA86,0) -> 4 | T13: =MATCH(T$4,Millwall!$AP86:$BA86,0) -> 8 | U13: =MATCH(U$4,Millwall!$AP86:$BA86,0) ->  | V13: =MATCH(V$4,Millwall!$AP86:$BA86,0) ->  | W13: =MATCH(W$4,Millwall!$AP86:$BA86,0) ->  | X13: =MATCH(X$4,Millwall!$AP86:$BA86,0) -> 1 | Y13: =MATCH(Y$4,Millwall!$AP86:$BA86,0) -> 5 | Z13: =MATCH(Z$4,Millwall!$AP86:$BA86,0) ->  | AA13: =MATCH(AA$4,Millwall!$AP86:$BA86,0) -> 10 | AB13: =MATCH(AB$4,Millwall!$AP86:$BA86,0) ->  | AC13: =MATCH(AC$4,Millwall!$AP86:$BA86,0) ->  | AD13: =MATCH(AD$4,Millwall!$AP86:$BA86,0) ->  | AE13: =MATCH(AE$4,Millwall!$AP86:$BA86,0) ->  | AF13: =MATCH(AF$4,Millwall!$AP86:$BA86,0) ->  | AG13: =MATCH(AG$4,Millwall!$AP86:$BA86,0) ->  | AH13: =MATCH(AH$3,Millwall!$AP86:$BA86,0) ->  | AI13: =MATCH(AI$3,Millwall!$AP86:$BA86,0) ->  | AJ13: =MATCH(AJ$3,Millwall!$AP86:$BA86,0) ->  | AK13: =MATCH(AK$3,Millwall!$AP86:$BA86,0) ->  | AL13: =MATCH(AL$3,Millwall!$AP86:$BA86,0) ->  | AM13: =MATCH(AM$3,Millwall!$AP86:$BA86,0) ->  | AN13: =MATCH(AN$3,Millwall!$AP86:$BA86,0) ->  | AO13: =MATCH(AO$3,Millwall!$AP86:$BA86,0) ->  | AP13: =MATCH(AP$3,Millwall!$AP86:$BA86,0) ->  | AQ13: =MATCH(AQ$3,Millwall!$AP86:$BA86,0) ->  | AR13: =MATCH(AR$3,Millwall!$AP86:$BA86,0) ->  | AX13: =MATCH(AX$3,Millwall!$AP86:$BA86,0) -> 11 | AY13: =MATCH(AY$3,Millwall!$AP86:$BA86,0) ->  | AZ13: =MATCH(AZ$3,Millwall!$AP86:$BA86,0) ->  | BA13: =MATCH(BA$3,Millwall!$AP86:$BA86,0) ->  | BB13: =MATCH(BB$3,Millwall!$AP86:$BA86,0) -> 12 | BC13: =MATCH(BC$3,Millwall!$AP86:$BA86,0) ->  | BD13: =MATCH(BD$3,Millwall!$AP86:$BA86,0) ->  | BE13: =MATCH(BE$3,Millwall!$AP86:$BA86,0) ->  | BF13: =MATCH(BF$3,Millwall!$AP86:$BA86,0) ->  | BG13: =MATCH(BG$3,Millwall!$AP86:$BA86,0) ->  | BH13: =MATCH(BH$3,Millwall!$AP86:$BA86,0) ->  | BI13: =MATCH(BI$3,Millwall!$AP86:$BA86,0) ->  | BJ13: =MATCH(BJ$3,Millwall!$AP86:$BA86,0) ->  | BK13: =MATCH(BK$3,Millwall!$AP86:$BA86,0) ->  | BL13: =MATCH(BL$3,Millwall!$AP86:$BA86,0) ->  | BM13: =MATCH(BM$3,Millwall!$AP86:$BA86,0) ->  | BN13: =MATCH(BN$3,Millwall!$AP86:$BA86,0) ->  | BO13: =MATCH(BO$3,Millwall!$AP86:$BA86,0) ->  | BP13: =MATCH(BP$3,Millwall!$AP86:$BA86,0) ->  | BQ13: =MATCH(BQ$3,Millwall!$AP86:$BA86,0) ->  | BR13: =MATCH(BR$3,Millwall!$AP86:$BA86,0) ->  | BS13: =MATCH(BS$3,Millwall!$AP86:$BA86,0) ->  | BT13: =MATCH(BT$3,Millwall!$AP86:$BA86,0) ->  | BU13: =MATCH(BU$3,Millwall!$AP86:$BA86,0) ->  | BV13: =MATCH(BV$3,Millwall!$AP86:$BA86,0) ->  | BW13: =MATCH(BW$3,Millwall!$AP86:$BA86,0) ->  | BX13: =MATCH(BX$3,Millwall!$AP86:$BA86,0) ->  | BY13: =MATCH(BY$3,Millwall!$AP86:$BA86,0) ->  | BZ13: =MATCH(BZ$3,Millwall!$AP86:$BA86,0) ->  | CA13: =MATCH(CA$3,Millwall!$AP86:$BA86,0) ->  | CB13: =MATCH(CB$3,Millwall!$AP86:$BA86,0) ->  | CC13: =MATCH(CC$3,Millwall!$AP86:$BA86,0) ->  | CD13: =MATCH(CD$3,Millwall!$AP86:$BA86,0) ->  | CE13: =MATCH(CE$3,Millwall!$AP86:$BA86,0) ->  | CM13: =Millwall!$BO80 -> Dorney | CN13: =Millwall!$BN80&" (**" -> Dorney** (** | CO13: =Millwall!$BN80&"**" -> Dorney****
C14: 0 | D14: 10 | F14: =Millwall!AI87 -> 1970-10-02 | H14: =Millwall!AK87 -> Carlisle | I14: =Millwall!AL87 -> (A) | J14: =Millwall!AO87 -> L 0-3 | K14: =MATCH(K$4,Millwall!$AP87:$BA87,0) -> 11 | L14: =MATCH(L$4,Millwall!$AP87:$BA87,0) -> 9 | M14: =MATCH(M$4,Millwall!$AP87:$BA87,0) -> 7 | N14: =MATCH(N$4,Millwall!$AP87:$BA87,0) -> 2 | O14: =MATCH(O$4,Millwall!$AP87:$BA87,0) -> 12 | P14: =MATCH(P$4,Millwall!$AP87:$BA87,0) -> 6 | Q14: =MATCH(Q$4,Millwall!$AP87:$BA87,0) ->  | R14: =MATCH(R$4,Millwall!$AP87:$BA87,0) -> 3 | S14: =MATCH(S$4,Millwall!$AP87:$BA87,0) -> 4 | T14: =MATCH(T$4,Millwall!$AP87:$BA87,0) -> 8 | U14: =MATCH(U$4,Millwall!$AP87:$BA87,0) ->  | V14: =MATCH(V$4,Millwall!$AP87:$BA87,0) ->  | W14: =MATCH(W$4,Millwall!$AP87:$BA87,0) ->  | X14: =MATCH(X$4,Millwall!$AP87:$BA87,0) -> 1 | Y14: =MATCH(Y$4,Millwall!$AP87:$BA87,0) -> 5 | Z14: =MATCH(Z$4,Millwall!$AP87:$BA87,0) ->  | AA14: =MATCH(AA$4,Millwall!$AP87:$BA87,0) -> 10 | AB14: =MATCH(AB$4,Millwall!$AP87:$BA87,0) ->  | AC14: =MATCH(AC$4,Millwall!$AP87:$BA87,0) ->  | AD14: =MATCH(AD$4,Millwall!$AP87:$BA87,0) ->  | AE14: =MATCH(AE$4,Millwall!$AP87:$BA87,0) ->  | AF14: =MATCH(AF$4,Millwall!$AP87:$BA87,0) ->  | AG14: =MATCH(AG$4,Millwall!$AP87:$BA87,0) ->  | AH14: =MATCH(AH$3,Millwall!$AP87:$BA87,0) ->  | AI14: =MATCH(AI$3,Millwall!$AP87:$BA87,0) ->  | AJ14: =MATCH(AJ$3,Millwall!$AP87:$BA87,0) ->  | AK14: =MATCH(AK$3,Millwall!$AP87:$BA87,0) ->  | AL14: =MATCH(AL$3,Millwall!$AP87:$BA87,0) ->  | AM14: =MATCH(AM$3,Millwall!$AP87:$BA87,0) ->  | AN14: =MATCH(AN$3,Millwall!$AP87:$BA87,0) ->  | AO14: =MATCH(AO$3,Millwall!$AP87:$BA87,0) ->  | AP14: =MATCH(AP$3,Millwall!$AP87:$BA87,0) ->  | AQ14: =MATCH(AQ$3,Millwall!$AP87:$BA87,0) ->  | AR14: =MATCH(AR$3,Millwall!$AP87:$BA87,0) ->  | AX14: =MATCH(AX$3,Millwall!$AP87:$BA87,0) ->  | AY14: =MATCH(AY$3,Millwall!$AP87:$BA87,0) -> 9 | AZ14: =MATCH(AZ$3,Millwall!$AP87:$BA87,0) ->  | BA14: =MATCH(BA$3,Millwall!$AP87:$BA87,0) ->  | BB14: =MATCH(BB$3,Millwall!$AP87:$BA87,0) -> 12 | BC14: =MATCH(BC$3,Millwall!$AP87:$BA87,0) ->  | BD14: =MATCH(BD$3,Millwall!$AP87:$BA87,0) ->  | BE14: =MATCH(BE$3,Millwall!$AP87:$BA87,0) ->  | BF14: =MATCH(BF$3,Millwall!$AP87:$BA87,0) ->  | BG14: =MATCH(BG$3,Millwall!$AP87:$BA87,0) ->  | BH14: =MATCH(BH$3,Millwall!$AP87:$BA87,0) ->  | BI14: =MATCH(BI$3,Millwall!$AP87:$BA87,0) ->  | BJ14: =MATCH(BJ$3,Millwall!$AP87:$BA87,0) ->  | BK14: =MATCH(BK$3,Millwall!$AP87:$BA87,0) ->  | BL14: =MATCH(BL$3,Millwall!$AP87:$BA87,0) ->  | BM14: =MATCH(BM$3,Millwall!$AP87:$BA87,0) ->  | BN14: =MATCH(BN$3,Millwall!$AP87:$BA87,0) ->  | BO14: =MATCH(BO$3,Millwall!$AP87:$BA87,0) ->  | BP14: =MATCH(BP$3,Millwall!$AP87:$BA87,0) ->  | BQ14: =MATCH(BQ$3,Millwall!$AP87:$BA87,0) ->  | BR14: =MATCH(BR$3,Millwall!$AP87:$BA87,0) ->  | BS14: =MATCH(BS$3,Millwall!$AP87:$BA87,0) ->  | BT14: =MATCH(BT$3,Millwall!$AP87:$BA87,0) ->  | BU14: =MATCH(BU$3,Millwall!$AP87:$BA87,0) ->  | BV14: =MATCH(BV$3,Millwall!$AP87:$BA87,0) ->  | BW14: =MATCH(BW$3,Millwall!$AP87:$BA87,0) ->  | BX14: =MATCH(BX$3,Millwall!$AP87:$BA87,0) ->  | BY14: =MATCH(BY$3,Millwall!$AP87:$BA87,0) ->  | BZ14: =MATCH(BZ$3,Millwall!$AP87:$BA87,0) ->  | CA14: =MATCH(CA$3,Millwall!$AP87:$BA87,0) ->  | CB14: =MATCH(CB$3,Millwall!$AP87:$BA87,0) ->  | CC14: =MATCH(CC$3,Millwall!$AP87:$BA87,0) ->  | CD14: =MATCH(CD$3,Millwall!$AP87:$BA87,0) ->  | CE14: =MATCH(CE$3,Millwall!$AP87:$BA87,0) ->  | CM14: =Millwall!$BO81 -> Dunphy | CN14: =Millwall!$BN81&" (**" -> Dunphy** (** | CO14: =Millwall!$BN81&"**" -> Dunphy****
C15: 0 | D15: 11 | F15: =Millwall!AI88 -> 1970-10-10 | H15: =Millwall!AK88 -> Blackburn | I15: =Millwall!AL88 -> (H) | J15: =Millwall!AO88 -> W 2-0 | K15: =MATCH(K$4,Millwall!$AP88:$BA88,0) -> 11 | L15: =MATCH(L$4,Millwall!$AP88:$BA88,0) -> 9 | M15: =MATCH(M$4,Millwall!$AP88:$BA88,0) -> 7 | N15: =MATCH(N$4,Millwall!$AP88:$BA88,0) -> 2 | O15: =MATCH(O$4,Millwall!$AP88:$BA88,0) ->  | P15: =MATCH(P$4,Millwall!$AP88:$BA88,0) -> 6 | Q15: =MATCH(Q$4,Millwall!$AP88:$BA88,0) ->  | R15: =MATCH(R$4,Millwall!$AP88:$BA88,0) -> 3 | S15: =MATCH(S$4,Millwall!$AP88:$BA88,0) ->  | T15: =MATCH(T$4,Millwall!$AP88:$BA88,0) -> 8 | U15: =MATCH(U$4,Millwall!$AP88:$BA88,0) -> 4 | V15: =MATCH(V$4,Millwall!$AP88:$BA88,0) ->  | W15: =MATCH(W$4,Millwall!$AP88:$BA88,0) ->  | X15: =MATCH(X$4,Millwall!$AP88:$BA88,0) -> 1 | Y15: =MATCH(Y$4,Millwall!$AP88:$BA88,0) -> 5 | Z15: =MATCH(Z$4,Millwall!$AP88:$BA88,0) ->  | AA15: =MATCH(AA$4,Millwall!$AP88:$BA88,0) -> 10 | AB15: =MATCH(AB$4,Millwall!$AP88:$BA88,0) ->  | AC15: =MATCH(AC$4,Millwall!$AP88:$BA88,0) ->  | AD15: =MATCH(AD$4,Millwall!$AP88:$BA88,0) ->  | AE15: =MATCH(AE$4,Millwall!$AP88:$BA88,0) ->  | AF15: =MATCH(AF$4,Millwall!$AP88:$BA88,0) ->  | AG15: =MATCH(AG$4,Millwall!$AP88:$BA88,0) ->  | AH15: =MATCH(AH$3,Millwall!$AP88:$BA88,0) ->  | AI15: =MATCH(AI$3,Millwall!$AP88:$BA88,0) ->  | AJ15: =MATCH(AJ$3,Millwall!$AP88:$BA88,0) ->  | AK15: =MATCH(AK$3,Millwall!$AP88:$BA88,0) ->  | AL15: =MATCH(AL$3,Millwall!$AP88:$BA88,0) ->  | AM15: =MATCH(AM$3,Millwall!$AP88:$BA88,0) ->  | AN15: =MATCH(AN$3,Millwall!$AP88:$BA88,0) ->  | AO15: =MATCH(AO$3,Millwall!$AP88:$BA88,0) ->  | AP15: =MATCH(AP$3,Millwall!$AP88:$BA88,0) ->  | AQ15: =MATCH(AQ$3,Millwall!$AP88:$BA88,0) ->  | AR15: =MATCH(AR$3,Millwall!$AP88:$BA88,0) ->  | AX15: =MATCH(AX$3,Millwall!$AP88:$BA88,0) ->  | AY15: =MATCH(AY$3,Millwall!$AP88:$BA88,0) ->  | AZ15: =MATCH(AZ$3,Millwall!$AP88:$BA88,0) ->  | BA15: =MATCH(BA$3,Millwall!$AP88:$BA88,0) ->  | BB15: =MATCH(BB$3,Millwall!$AP88:$BA88,0) ->  | BC15: =MATCH(BC$3,Millwall!$AP88:$BA88,0) ->  | BD15: =MATCH(BD$3,Millwall!$AP88:$BA88,0) ->  | BE15: =MATCH(BE$3,Millwall!$AP88:$BA88,0) ->  | BF15: =MATCH(BF$3,Millwall!$AP88:$BA88,0) ->  | BG15: =MATCH(BG$3,Millwall!$AP88:$BA88,0) ->  | BH15: =MATCH(BH$3,Millwall!$AP88:$BA88,0) ->  | BI15: =MATCH(BI$3,Millwall!$AP88:$BA88,0) ->  | BJ15: =MATCH(BJ$3,Millwall!$AP88:$BA88,0) ->  | BK15: =MATCH(BK$3,Millwall!$AP88:$BA88,0) ->  | BL15: =MATCH(BL$3,Millwall!$AP88:$BA88,0) ->  | BM15: =MATCH(BM$3,Millwall!$AP88:$BA88,0) ->  | BN15: =MATCH(BN$3,Millwall!$AP88:$BA88,0) ->  | BO15: =MATCH(BO$3,Millwall!$AP88:$BA88,0) ->  | BP15: =MATCH(BP$3,Millwall!$AP88:$BA88,0) ->  | BQ15: =MATCH(BQ$3,Millwall!$AP88:$BA88,0) ->  | BR15: =MATCH(BR$3,Millwall!$AP88:$BA88,0) ->  | BS15: =MATCH(BS$3,Millwall!$AP88:$BA88,0) ->  | BT15: =MATCH(BT$3,Millwall!$AP88:$BA88,0) ->  | BU15: =MATCH(BU$3,Millwall!$AP88:$BA88,0) ->  | BV15: =MATCH(BV$3,Millwall!$AP88:$BA88,0) ->  | BW15: =MATCH(BW$3,Millwall!$AP88:$BA88,0) ->  | BX15: =MATCH(BX$3,Millwall!$AP88:$BA88,0) ->  | BY15: =MATCH(BY$3,Millwall!$AP88:$BA88,0) ->  | BZ15: =MATCH(BZ$3,Millwall!$AP88:$BA88,0) ->  | CA15: =MATCH(CA$3,Millwall!$AP88:$BA88,0) ->  | CB15: =MATCH(CB$3,Millwall!$AP88:$BA88,0) ->  | CC15: =MATCH(CC$3,Millwall!$AP88:$BA88,0) ->  | CD15: =MATCH(CD$3,Millwall!$AP88:$BA88,0) ->  | CE15: =MATCH(CE$3,Millwall!$AP88:$BA88,0) ->  | CM15: =Millwall!$BO82 -> Garner | CN15: =Millwall!$BN82&" (**" -> Garner** (** | CO15: =Millwall!$BN82&"**" -> Garner****
C16: 0 | D16: 12 | F16: =Millwall!AI89 -> 1970-10-17 | H16: =Millwall!AK89 -> Oxford | I16: =Millwall!AL89 -> (A) | J16: =Millwall!AO89 -> W 3-2 | K16: =MATCH(K$4,Millwall!$AP89:$BA89,0) -> 11 | L16: =MATCH(L$4,Millwall!$AP89:$BA89,0) -> 9 | M16: =MATCH(M$4,Millwall!$AP89:$BA89,0) -> 7 | N16: =MATCH(N$4,Millwall!$AP89:$BA89,0) -> 2 | O16: =MATCH(O$4,Millwall!$AP89:$BA89,0) ->  | P16: =MATCH(P$4,Millwall!$AP89:$BA89,0) -> 6 | Q16: =MATCH(Q$4,Millwall!$AP89:$BA89,0) ->  | R16: =MATCH(R$4,Millwall!$AP89:$BA89,0) -> 3 | S16: =MATCH(S$4,Millwall!$AP89:$BA89,0) -> 4 | T16: =MATCH(T$4,Millwall!$AP89:$BA89,0) -> 8 | U16: =MATCH(U$4,Millwall!$AP89:$BA89,0) ->  | V16: =MATCH(V$4,Millwall!$AP89:$BA89,0) ->  | W16: =MATCH(W$4,Millwall!$AP89:$BA89,0) ->  | X16: =MATCH(X$4,Millwall!$AP89:$BA89,0) -> 1 | Y16: =MATCH(Y$4,Millwall!$AP89:$BA89,0) -> 5 | Z16: =MATCH(Z$4,Millwall!$AP89:$BA89,0) ->  | AA16: =MATCH(AA$4,Millwall!$AP89:$BA89,0) -> 10 | AB16: =MATCH(AB$4,Millwall!$AP89:$BA89,0) ->  | AC16: =MATCH(AC$4,Millwall!$AP89:$BA89,0) ->  | AD16: =MATCH(AD$4,Millwall!$AP89:$BA89,0) ->  | AE16: =MATCH(AE$4,Millwall!$AP89:$BA89,0) ->  | AF16: =MATCH(AF$4,Millwall!$AP89:$BA89,0) ->  | AG16: =MATCH(AG$4,Millwall!$AP89:$BA89,0) ->  | AH16: =MATCH(AH$3,Millwall!$AP89:$BA89,0) ->  | AI16: =MATCH(AI$3,Millwall!$AP89:$BA89,0) ->  | AJ16: =MATCH(AJ$3,Millwall!$AP89:$BA89,0) ->  | AK16: =MATCH(AK$3,Millwall!$AP89:$BA89,0) ->  | AL16: =MATCH(AL$3,Millwall!$AP89:$BA89,0) ->  | AM16: =MATCH(AM$3,Millwall!$AP89:$BA89,0) ->  | AN16: =MATCH(AN$3,Millwall!$AP89:$BA89,0) ->  | AO16: =MATCH(AO$3,Millwall!$AP89:$BA89,0) ->  | AP16: =MATCH(AP$3,Millwall!$AP89:$BA89,0) ->  | AQ16: =MATCH(AQ$3,Millwall!$AP89:$BA89,0) ->  | AR16: =MATCH(AR$3,Millwall!$AP89:$BA89,0) ->  | AX16: =MATCH(AX$3,Millwall!$AP89:$BA89,0) ->  | AY16: =MATCH(AY$3,Millwall!$AP89:$BA89,0) ->  | AZ16: =MATCH(AZ$3,Millwall!$AP89:$BA89,0) ->  | BA16: =MATCH(BA$3,Millwall!$AP89:$BA89,0) ->  | BB16: =MATCH(BB$3,Millwall!$AP89:$BA89,0) ->  | BC16: =MATCH(BC$3,Millwall!$AP89:$BA89,0) ->  | BD16: =MATCH(BD$3,Millwall!$AP89:$BA89,0) ->  | BE16: =MATCH(BE$3,Millwall!$AP89:$BA89,0) ->  | BF16: =MATCH(BF$3,Millwall!$AP89:$BA89,0) ->  | BG16: =MATCH(BG$3,Millwall!$AP89:$BA89,0) ->  | BH16: =MATCH(BH$3,Millwall!$AP89:$BA89,0) ->  | BI16: =MATCH(BI$3,Millwall!$AP89:$BA89,0) ->  | BJ16: =MATCH(BJ$3,Millwall!$AP89:$BA89,0) ->  | BK16: =MATCH(BK$3,Millwall!$AP89:$BA89,0) ->  | BL16: =MATCH(BL$3,Millwall!$AP89:$BA89,0) ->  | BM16: =MATCH(BM$3,Millwall!$AP89:$BA89,0) ->  | BN16: =MATCH(BN$3,Millwall!$AP89:$BA89,0) ->  | BO16: =MATCH(BO$3,Millwall!$AP89:$BA89,0) ->  | BP16: =MATCH(BP$3,Millwall!$AP89:$BA89,0) ->  | BQ16: =MATCH(BQ$3,Millwall!$AP89:$BA89,0) ->  | BR16: =MATCH(BR$3,Millwall!$AP89:$BA89,0) ->  | BS16: =MATCH(BS$3,Millwall!$AP89:$BA89,0) ->  | BT16: =MATCH(BT$3,Millwall!$AP89:$BA89,0) ->  | BU16: =MATCH(BU$3,Millwall!$AP89:$BA89,0) ->  | BV16: =MATCH(BV$3,Millwall!$AP89:$BA89,0) ->  | BW16: =MATCH(BW$3,Millwall!$AP89:$BA89,0) ->  | BX16: =MATCH(BX$3,Millwall!$AP89:$BA89,0) ->  | BY16: =MATCH(BY$3,Millwall!$AP89:$BA89,0) ->  | BZ16: =MATCH(BZ$3,Millwall!$AP89:$BA89,0) ->  | CA16: =MATCH(CA$3,Millwall!$AP89:$BA89,0) ->  | CB16: =MATCH(CB$3,Millwall!$AP89:$BA89,0) ->  | CC16: =MATCH(CC$3,Millwall!$AP89:$BA89,0) ->  | CD16: =MATCH(CD$3,Millwall!$AP89:$BA89,0) ->  | CE16: =MATCH(CE$3,Millwall!$AP89:$BA89,0) ->  | CM16: =Millwall!$BO83 -> Holmes | CN16: =Millwall!$BN83&" (**" -> Holmes** (** | CO16: =Millwall!$BN83&"**" -> Holmes****
C17: 0 | D17: 13 | F17: =Millwall!AI90 -> 1970-10-19 | H17: =Millwall!AK90 -> Watford | I17: =Millwall!AL90 -> (H) | J17: =Millwall!AO90 -> W 3-0 | K17: =MATCH(K$4,Millwall!$AP90:$BA90,0) -> 11 | L17: =MATCH(L$4,Millwall!$AP90:$BA90,0) -> 9 | M17: =MATCH(M$4,Millwall!$AP90:$BA90,0) -> 7 | N17: =MATCH(N$4,Millwall!$AP90:$BA90,0) -> 2 | O17: =MATCH(O$4,Millwall!$AP90:$BA90,0) ->  | P17: =MATCH(P$4,Millwall!$AP90:$BA90,0) -> 6 | Q17: =MATCH(Q$4,Millwall!$AP90:$BA90,0) ->  | R17: =MATCH(R$4,Millwall!$AP90:$BA90,0) -> 3 | S17: =MATCH(S$4,Millwall!$AP90:$BA90,0) -> 4 | T17: =MATCH(T$4,Millwall!$AP90:$BA90,0) -> 8 | U17: =MATCH(U$4,Millwall!$AP90:$BA90,0) ->  | V17: =MATCH(V$4,Millwall!$AP90:$BA90,0) ->  | W17: =MATCH(W$4,Millwall!$AP90:$BA90,0) ->  | X17: =MATCH(X$4,Millwall!$AP90:$BA90,0) -> 1 | Y17: =MATCH(Y$4,Millwall!$AP90:$BA90,0) -> 5 | Z17: =MATCH(Z$4,Millwall!$AP90:$BA90,0) ->  | AA17: =MATCH(AA$4,Millwall!$AP90:$BA90,0) -> 10 | AB17: =MATCH(AB$4,Millwall!$AP90:$BA90,0) ->  | AC17: =MATCH(AC$4,Millwall!$AP90:$BA90,0) ->  | AD17: =MATCH(AD$4,Millwall!$AP90:$BA90,0) ->  | AE17: =MATCH(AE$4,Millwall!$AP90:$BA90,0) ->  | AF17: =MATCH(AF$4,Millwall!$AP90:$BA90,0) ->  | AG17: =MATCH(AG$4,Millwall!$AP90:$BA90,0) ->  | AH17: =MATCH(AH$3,Millwall!$AP90:$BA90,0) ->  | AI17: =MATCH(AI$3,Millwall!$AP90:$BA90,0) ->  | AJ17: =MATCH(AJ$3,Millwall!$AP90:$BA90,0) ->  | AK17: =MATCH(AK$3,Millwall!$AP90:$BA90,0) ->  | AL17: =MATCH(AL$3,Millwall!$AP90:$BA90,0) ->  | AM17: =MATCH(AM$3,Millwall!$AP90:$BA90,0) ->  | AN17: =MATCH(AN$3,Millwall!$AP90:$BA90,0) ->  | AO17: =MATCH(AO$3,Millwall!$AP90:$BA90,0) ->  | AP17: =MATCH(AP$3,Millwall!$AP90:$BA90,0) ->  | AQ17: =MATCH(AQ$3,Millwall!$AP90:$BA90,0) ->  | AR17: =MATCH(AR$3,Millwall!$AP90:$BA90,0) ->  | AX17: =MATCH(AX$3,Millwall!$AP90:$BA90,0) ->  | AY17: =MATCH(AY$3,Millwall!$AP90:$BA90,0) ->  | AZ17: =MATCH(AZ$3,Millwall!$AP90:$BA90,0) ->  | BA17: =MATCH(BA$3,Millwall!$AP90:$BA90,0) ->  | BB17: =MATCH(BB$3,Millwall!$AP90:$BA90,0) ->  | BC17: =MATCH(BC$3,Millwall!$AP90:$BA90,0) ->  | BD17: =MATCH(BD$3,Millwall!$AP90:$BA90,0) ->  | BE17: =MATCH(BE$3,Millwall!$AP90:$BA90,0) ->  | BF17: =MATCH(BF$3,Millwall!$AP90:$BA90,0) ->  | BG17: =MATCH(BG$3,Millwall!$AP90:$BA90,0) ->  | BH17: =MATCH(BH$3,Millwall!$AP90:$BA90,0) ->  | BI17: =MATCH(BI$3,Millwall!$AP90:$BA90,0) ->  | BJ17: =MATCH(BJ$3,Millwall!$AP90:$BA90,0) ->  | BK17: =MATCH(BK$3,Millwall!$AP90:$BA90,0) ->  | BL17: =MATCH(BL$3,Millwall!$AP90:$BA90,0) ->  | BM17: =MATCH(BM$3,Millwall!$AP90:$BA90,0) ->  | BN17: =MATCH(BN$3,Millwall!$AP90:$BA90,0) ->  | BO17: =MATCH(BO$3,Millwall!$AP90:$BA90,0) ->  | BP17: =MATCH(BP$3,Millwall!$AP90:$BA90,0) ->  | BQ17: =MATCH(BQ$3,Millwall!$AP90:$BA90,0) ->  | BR17: =MATCH(BR$3,Millwall!$AP90:$BA90,0) ->  | BS17: =MATCH(BS$3,Millwall!$AP90:$BA90,0) ->  | BT17: =MATCH(BT$3,Millwall!$AP90:$BA90,0) ->  | BU17: =MATCH(BU$3,Millwall!$AP90:$BA90,0) ->  | BV17: =MATCH(BV$3,Millwall!$AP90:$BA90,0) ->  | BW17: =MATCH(BW$3,Millwall!$AP90:$BA90,0) ->  | BX17: =MATCH(BX$3,Millwall!$AP90:$BA90,0) ->  | BY17: =MATCH(BY$3,Millwall!$AP90:$BA90,0) ->  | BZ17: =MATCH(BZ$3,Millwall!$AP90:$BA90,0) ->  | CA17: =MATCH(CA$3,Millwall!$AP90:$BA90,0) ->  | CB17: =MATCH(CB$3,Millwall!$AP90:$BA90,0) ->  | CC17: =MATCH(CC$3,Millwall!$AP90:$BA90,0) ->  | CD17: =MATCH(CD$3,Millwall!$AP90:$BA90,0) ->  | CE17: =MATCH(CE$3,Millwall!$AP90:$BA90,0) ->  | CM17: =Millwall!$BO84 -> Jacks | CN17: =Millwall!$BN84&" (**" -> Jacks** (** | CO17: =Millwall!$BN84&"**" -> Jacks****
C18: 0 | D18: 14 | F18: =Millwall!AI91 -> 1970-10-24 | H18: =Millwall!AK91 -> Leyton Orient | I18: =Millwall!AL91 -> (A) | J18: =Millwall!AO91 -> D 0-0 | K18: =MATCH(K$4,Millwall!$AP91:$BA91,0) -> 11 | L18: =MATCH(L$4,Millwall!$AP91:$BA91,0) -> 9 | M18: =MATCH(M$4,Millwall!$AP91:$BA91,0) -> 7 | N18: =MATCH(N$4,Millwall!$AP91:$BA91,0) -> 2 | O18: =MATCH(O$4,Millwall!$AP91:$BA91,0) ->  | P18: =MATCH(P$4,Millwall!$AP91:$BA91,0) -> 6 | Q18: =MATCH(Q$4,Millwall!$AP91:$BA91,0) ->  | R18: =MATCH(R$4,Millwall!$AP91:$BA91,0) -> 3 | S18: =MATCH(S$4,Millwall!$AP91:$BA91,0) -> 4 | T18: =MATCH(T$4,Millwall!$AP91:$BA91,0) -> 8 | U18: =MATCH(U$4,Millwall!$AP91:$BA91,0) ->  | V18: =MATCH(V$4,Millwall!$AP91:$BA91,0) ->  | W18: =MATCH(W$4,Millwall!$AP91:$BA91,0) ->  | X18: =MATCH(X$4,Millwall!$AP91:$BA91,0) -> 1 | Y18: =MATCH(Y$4,Millwall!$AP91:$BA91,0) -> 5 | Z18: =MATCH(Z$4,Millwall!$AP91:$BA91,0) ->  | AA18: =MATCH(AA$4,Millwall!$AP91:$BA91,0) -> 10 | AB18: =MATCH(AB$4,Millwall!$AP91:$BA91,0) ->  | AC18: =MATCH(AC$4,Millwall!$AP91:$BA91,0) ->  | AD18: =MATCH(AD$4,Millwall!$AP91:$BA91,0) ->  | AE18: =MATCH(AE$4,Millwall!$AP91:$BA91,0) ->  | AF18: =MATCH(AF$4,Millwall!$AP91:$BA91,0) ->  | AG18: =MATCH(AG$4,Millwall!$AP91:$BA91,0) ->  | AH18: =MATCH(AH$3,Millwall!$AP91:$BA91,0) ->  | AI18: =MATCH(AI$3,Millwall!$AP91:$BA91,0) ->  | AJ18: =MATCH(AJ$3,Millwall!$AP91:$BA91,0) ->  | AK18: =MATCH(AK$3,Millwall!$AP91:$BA91,0) ->  | AL18: =MATCH(AL$3,Millwall!$AP91:$BA91,0) ->  | AM18: =MATCH(AM$3,Millwall!$AP91:$BA91,0) ->  | AN18: =MATCH(AN$3,Millwall!$AP91:$BA91,0) ->  | AO18: =MATCH(AO$3,Millwall!$AP91:$BA91,0) ->  | AP18: =MATCH(AP$3,Millwall!$AP91:$BA91,0) ->  | AQ18: =MATCH(AQ$3,Millwall!$AP91:$BA91,0) ->  | AR18: =MATCH(AR$3,Millwall!$AP91:$BA91,0) ->  | AX18: =MATCH(AX$3,Millwall!$AP91:$BA91,0) ->  | AY18: =MATCH(AY$3,Millwall!$AP91:$BA91,0) ->  | AZ18: =MATCH(AZ$3,Millwall!$AP91:$BA91,0) ->  | BA18: =MATCH(BA$3,Millwall!$AP91:$BA91,0) ->  | BB18: =MATCH(BB$3,Millwall!$AP91:$BA91,0) ->  | BC18: =MATCH(BC$3,Millwall!$AP91:$BA91,0) ->  | BD18: =MATCH(BD$3,Millwall!$AP91:$BA91,0) ->  | BE18: =MATCH(BE$3,Millwall!$AP91:$BA91,0) ->  | BF18: =MATCH(BF$3,Millwall!$AP91:$BA91,0) ->  | BG18: =MATCH(BG$3,Millwall!$AP91:$BA91,0) ->  | BH18: =MATCH(BH$3,Millwall!$AP91:$BA91,0) ->  | BI18: =MATCH(BI$3,Millwall!$AP91:$BA91,0) ->  | BJ18: =MATCH(BJ$3,Millwall!$AP91:$BA91,0) ->  | BK18: =MATCH(BK$3,Millwall!$AP91:$BA91,0) ->  | BL18: =MATCH(BL$3,Millwall!$AP91:$BA91,0) ->  | BM18: =MATCH(BM$3,Millwall!$AP91:$BA91,0) ->  | BN18: =MATCH(BN$3,Millwall!$AP91:$BA91,0) ->  | BO18: =MATCH(BO$3,Millwall!$AP91:$BA91,0) ->  | BP18: =MATCH(BP$3,Millwall!$AP91:$BA91,0) ->  | BQ18: =MATCH(BQ$3,Millwall!$AP91:$BA91,0) ->  | BR18: =MATCH(BR$3,Millwall!$AP91:$BA91,0) ->  | BS18: =MATCH(BS$3,Millwall!$AP91:$BA91,0) ->  | BT18: =MATCH(BT$3,Millwall!$AP91:$BA91,0) ->  | BU18: =MATCH(BU$3,Millwall!$AP91:$BA91,0) ->  | BV18: =MATCH(BV$3,Millwall!$AP91:$BA91,0) ->  | BW18: =MATCH(BW$3,Millwall!$AP91:$BA91,0) ->  | BX18: =MATCH(BX$3,Millwall!$AP91:$BA91,0) ->  | BY18: =MATCH(BY$3,Millwall!$AP91:$BA91,0) ->  | BZ18: =MATCH(BZ$3,Millwall!$AP91:$BA91,0) ->  | CA18: =MATCH(CA$3,Millwall!$AP91:$BA91,0) ->  | CB18: =MATCH(CB$3,Millwall!$AP91:$BA91,0) ->  | CC18: =MATCH(CC$3,Millwall!$AP91:$BA91,0) ->  | CD18: =MATCH(CD$3,Millwall!$AP91:$BA91,0) ->  | CE18: =MATCH(CE$3,Millwall!$AP91:$BA91,0) ->  | CM18: =Millwall!$BO85 -> King | CN18: =Millwall!$BN85&" (**" -> King** (** | CO18: =Millwall!$BN85&"**" -> King****
C19: 0 | D19: 15 | F19: =Millwall!AI92 -> 1970-10-31 | H19: =Millwall!AK92 -> QPR | I19: =Millwall!AL92 -> (H) | J19: =Millwall!AO92 -> W 3-0 | K19: =MATCH(K$4,Millwall!$AP92:$BA92,0) -> 11 | L19: =MATCH(L$4,Millwall!$AP92:$BA92,0) -> 9 | M19: =MATCH(M$4,Millwall!$AP92:$BA92,0) -> 7 | N19: =MATCH(N$4,Millwall!$AP92:$BA92,0) -> 2 | O19: =MATCH(O$4,Millwall!$AP92:$BA92,0) -> 12 | P19: =MATCH(P$4,Millwall!$AP92:$BA92,0) -> 6 | Q19: =MATCH(Q$4,Millwall!$AP92:$BA92,0) ->  | R19: =MATCH(R$4,Millwall!$AP92:$BA92,0) -> 3 | S19: =MATCH(S$4,Millwall!$AP92:$BA92,0) -> 4 | T19: =MATCH(T$4,Millwall!$AP92:$BA92,0) -> 8 | U19: =MATCH(U$4,Millwall!$AP92:$BA92,0) ->  | V19: =MATCH(V$4,Millwall!$AP92:$BA92,0) ->  | W19: =MATCH(W$4,Millwall!$AP92:$BA92,0) ->  | X19: =MATCH(X$4,Millwall!$AP92:$BA92,0) -> 1 | Y19: =MATCH(Y$4,Millwall!$AP92:$BA92,0) -> 5 | Z19: =MATCH(Z$4,Millwall!$AP92:$BA92,0) ->  | AA19: =MATCH(AA$4,Millwall!$AP92:$BA92,0) -> 10 | AB19: =MATCH(AB$4,Millwall!$AP92:$BA92,0) ->  | AC19: =MATCH(AC$4,Millwall!$AP92:$BA92,0) ->  | AD19: =MATCH(AD$4,Millwall!$AP92:$BA92,0) ->  | AE19: =MATCH(AE$4,Millwall!$AP92:$BA92,0) ->  | AF19: =MATCH(AF$4,Millwall!$AP92:$BA92,0) ->  | AG19: =MATCH(AG$4,Millwall!$AP92:$BA92,0) ->  | AH19: =MATCH(AH$3,Millwall!$AP92:$BA92,0) ->  | AI19: =MATCH(AI$3,Millwall!$AP92:$BA92,0) ->  | AJ19: =MATCH(AJ$3,Millwall!$AP92:$BA92,0) ->  | AK19: =MATCH(AK$3,Millwall!$AP92:$BA92,0) ->  | AL19: =MATCH(AL$3,Millwall!$AP92:$BA92,0) ->  | AM19: =MATCH(AM$3,Millwall!$AP92:$BA92,0) ->  | AN19: =MATCH(AN$3,Millwall!$AP92:$BA92,0) ->  | AO19: =MATCH(AO$3,Millwall!$AP92:$BA92,0) ->  | AP19: =MATCH(AP$3,Millwall!$AP92:$BA92,0) ->  | AQ19: =MATCH(AQ$3,Millwall!$AP92:$BA92,0) ->  | AR19: =MATCH(AR$3,Millwall!$AP92:$BA92,0) ->  | AX19: =MATCH(AX$3,Millwall!$AP92:$BA92,0) ->  | AY19: =MATCH(AY$3,Millwall!$AP92:$BA92,0) ->  | AZ19: =MATCH(AZ$3,Millwall!$AP92:$BA92,0) ->  | BA19: =MATCH(BA$3,Millwall!$AP92:$BA92,0) ->  | BB19: =MATCH(BB$3,Millwall!$AP92:$BA92,0) -> 12 | BC19: =MATCH(BC$3,Millwall!$AP92:$BA92,0) ->  | BD19: =MATCH(BD$3,Millwall!$AP92:$BA92,0) ->  | BE19: =MATCH(BE$3,Millwall!$AP92:$BA92,0) ->  | BF19: =MATCH(BF$3,Millwall!$AP92:$BA92,0) ->  | BG19: =MATCH(BG$3,Millwall!$AP92:$BA92,0) ->  | BH19: =MATCH(BH$3,Millwall!$AP92:$BA92,0) ->  | BI19: =MATCH(BI$3,Millwall!$AP92:$BA92,0) ->  | BJ19: =MATCH(BJ$3,Millwall!$AP92:$BA92,0) ->  | BK19: =MATCH(BK$3,Millwall!$AP92:$BA92,0) ->  | BL19: =MATCH(BL$3,Millwall!$AP92:$BA92,0) ->  | BM19: =MATCH(BM$3,Millwall!$AP92:$BA92,0) ->  | BN19: =MATCH(BN$3,Millwall!$AP92:$BA92,0) -> 10 | BO19: =MATCH(BO$3,Millwall!$AP92:$BA92,0) ->  | BP19: =MATCH(BP$3,Millwall!$AP92:$BA92,0) ->  | BQ19: =MATCH(BQ$3,Millwall!$AP92:$BA92,0) ->  | BR19: =MATCH(BR$3,Millwall!$AP92:$BA92,0) ->  | BS19: =MATCH(BS$3,Millwall!$AP92:$BA92,0) ->  | BT19: =MATCH(BT$3,Millwall!$AP92:$BA92,0) ->  | BU19: =MATCH(BU$3,Millwall!$AP92:$BA92,0) ->  | BV19: =MATCH(BV$3,Millwall!$AP92:$BA92,0) ->  | BW19: =MATCH(BW$3,Millwall!$AP92:$BA92,0) ->  | BX19: =MATCH(BX$3,Millwall!$AP92:$BA92,0) ->  | BY19: =MATCH(BY$3,Millwall!$AP92:$BA92,0) ->  | BZ19: =MATCH(BZ$3,Millwall!$AP92:$BA92,0) ->  | CA19: =MATCH(CA$3,Millwall!$AP92:$BA92,0) ->  | CB19: =MATCH(CB$3,Millwall!$AP92:$BA92,0) ->  | CC19: =MATCH(CC$3,Millwall!$AP92:$BA92,0) ->  | CD19: =MATCH(CD$3,Millwall!$AP92:$BA92,0) ->  | CE19: =MATCH(CE$3,Millwall!$AP92:$BA92,0) ->  | CM19: =Millwall!$BO86 -> Kitchener | CN19: =Millwall!$BN86&" (**" -> Kitchener** (** | CO19: =Millwall!$BN86&"**" -> Kitchener****
C20: 0 | D20: 16 | F20: =Millwall!AI93 -> 1970-11-07 | H20: =Millwall!AK93 -> Sheff Wed | I20: =Millwall!AL93 -> (A) | J20: =Millwall!AO93 -> L 0-1 | K20: =MATCH(K$4,Millwall!$AP93:$BA93,0) -> 11 | L20: =MATCH(L$4,Millwall!$AP93:$BA93,0) -> 9 | M20: =MATCH(M$4,Millwall!$AP93:$BA93,0) -> 7 | N20: =MATCH(N$4,Millwall!$AP93:$BA93,0) -> 2 | O20: =MATCH(O$4,Millwall!$AP93:$BA93,0) -> 12 | P20: =MATCH(P$4,Millwall!$AP93:$BA93,0) -> 6 | Q20: =MATCH(Q$4,Millwall!$AP93:$BA93,0) ->  | R20: =MATCH(R$4,Millwall!$AP93:$BA93,0) -> 3 | S20: =MATCH(S$4,Millwall!$AP93:$BA93,0) -> 4 | T20: =MATCH(T$4,Millwall!$AP93:$BA93,0) -> 8 | U20: =MATCH(U$4,Millwall!$AP93:$BA93,0) ->  | V20: =MATCH(V$4,Millwall!$AP93:$BA93,0) ->  | W20: =MATCH(W$4,Millwall!$AP93:$BA93,0) ->  | X20: =MATCH(X$4,Millwall!$AP93:$BA93,0) -> 1 | Y20: =MATCH(Y$4,Millwall!$AP93:$BA93,0) -> 5 | Z20: =MATCH(Z$4,Millwall!$AP93:$BA93,0) ->  | AA20: =MATCH(AA$4,Millwall!$AP93:$BA93,0) -> 10 | AB20: =MATCH(AB$4,Millwall!$AP93:$BA93,0) ->  | AC20: =MATCH(AC$4,Millwall!$AP93:$BA93,0) ->  | AD20: =MATCH(AD$4,Millwall!$AP93:$BA93,0) ->  | AE20: =MATCH(AE$4,Millwall!$AP93:$BA93,0) ->  | AF20: =MATCH(AF$4,Millwall!$AP93:$BA93,0) ->  | AG20: =MATCH(AG$4,Millwall!$AP93:$BA93,0) ->  | AH20: =MATCH(AH$3,Millwall!$AP93:$BA93,0) ->  | AI20: =MATCH(AI$3,Millwall!$AP93:$BA93,0) ->  | AJ20: =MATCH(AJ$3,Millwall!$AP93:$BA93,0) ->  | AK20: =MATCH(AK$3,Millwall!$AP93:$BA93,0) ->  | AL20: =MATCH(AL$3,Millwall!$AP93:$BA93,0) ->  | AM20: =MATCH(AM$3,Millwall!$AP93:$BA93,0) ->  | AN20: =MATCH(AN$3,Millwall!$AP93:$BA93,0) ->  | AO20: =MATCH(AO$3,Millwall!$AP93:$BA93,0) ->  | AP20: =MATCH(AP$3,Millwall!$AP93:$BA93,0) ->  | AQ20: =MATCH(AQ$3,Millwall!$AP93:$BA93,0) ->  | AR20: =MATCH(AR$3,Millwall!$AP93:$BA93,0) ->  | AX20: =MATCH(AX$3,Millwall!$AP93:$BA93,0) ->  | AY20: =MATCH(AY$3,Millwall!$AP93:$BA93,0) -> 9 | AZ20: =MATCH(AZ$3,Millwall!$AP93:$BA93,0) ->  | BA20: =MATCH(BA$3,Millwall!$AP93:$BA93,0) ->  | BB20: =MATCH(BB$3,Millwall!$AP93:$BA93,0) -> 12 | BC20: =MATCH(BC$3,Millwall!$AP93:$BA93,0) ->  | BD20: =MATCH(BD$3,Millwall!$AP93:$BA93,0) ->  | BE20: =MATCH(BE$3,Millwall!$AP93:$BA93,0) ->  | BF20: =MATCH(BF$3,Millwall!$AP93:$BA93,0) ->  | BG20: =MATCH(BG$3,Millwall!$AP93:$BA93,0) ->  | BH20: =MATCH(BH$3,Millwall!$AP93:$BA93,0) ->  | BI20: =MATCH(BI$3,Millwall!$AP93:$BA93,0) ->  | BJ20: =MATCH(BJ$3,Millwall!$AP93:$BA93,0) ->  | BK20: =MATCH(BK$3,Millwall!$AP93:$BA93,0) ->  | BL20: =MATCH(BL$3,Millwall!$AP93:$BA93,0) ->  | BM20: =MATCH(BM$3,Millwall!$AP93:$BA93,0) ->  | BN20: =MATCH(BN$3,Millwall!$AP93:$BA93,0) ->  | BO20: =MATCH(BO$3,Millwall!$AP93:$BA93,0) ->  | BP20: =MATCH(BP$3,Millwall!$AP93:$BA93,0) ->  | BQ20: =MATCH(BQ$3,Millwall!$AP93:$BA93,0) ->  | BR20: =MATCH(BR$3,Millwall!$AP93:$BA93,0) ->  | BS20: =MATCH(BS$3,Millwall!$AP93:$BA93,0) ->  | BT20: =MATCH(BT$3,Millwall!$AP93:$BA93,0) ->  | BU20: =MATCH(BU$3,Millwall!$AP93:$BA93,0) ->  | BV20: =MATCH(BV$3,Millwall!$AP93:$BA93,0) ->  | BW20: =MATCH(BW$3,Millwall!$AP93:$BA93,0) ->  | BX20: =MATCH(BX$3,Millwall!$AP93:$BA93,0) ->  | BY20: =MATCH(BY$3,Millwall!$AP93:$BA93,0) ->  | BZ20: =MATCH(BZ$3,Millwall!$AP93:$BA93,0) ->  | CA20: =MATCH(CA$3,Millwall!$AP93:$BA93,0) ->  | CB20: =MATCH(CB$3,Millwall!$AP93:$BA93,0) ->  | CC20: =MATCH(CC$3,Millwall!$AP93:$BA93,0) ->  | CD20: =MATCH(CD$3,Millwall!$AP93:$BA93,0) ->  | CE20: =MATCH(CE$3,Millwall!$AP93:$BA93,0) ->  | CM20: =Millwall!$BO87 -> Neil | CN20: =Millwall!$BN87&" (**" -> Neil** (** | CO20: =Millwall!$BN87&"**" -> Neil****
C21: 0 | D21: 17 | F21: =Millwall!AI94 -> 1970-11-14 | H21: =Millwall!AK94 -> Bolton | I21: =Millwall!AL94 -> (H) | J21: =Millwall!AO94 -> W 2-0 | K21: =MATCH(K$4,Millwall!$AP94:$BA94,0) -> 11 | L21: =MATCH(L$4,Millwall!$AP94:$BA94,0) -> 9 | M21: =MATCH(M$4,Millwall!$AP94:$BA94,0) -> 7 | N21: =MATCH(N$4,Millwall!$AP94:$BA94,0) -> 2 | O21: =MATCH(O$4,Millwall!$AP94:$BA94,0) ->  | P21: =MATCH(P$4,Millwall!$AP94:$BA94,0) -> 6 | Q21: =MATCH(Q$4,Millwall!$AP94:$BA94,0) ->  | R21: =MATCH(R$4,Millwall!$AP94:$BA94,0) -> 3 | S21: =MATCH(S$4,Millwall!$AP94:$BA94,0) -> 4 | T21: =MATCH(T$4,Millwall!$AP94:$BA94,0) -> 8 | U21: =MATCH(U$4,Millwall!$AP94:$BA94,0) ->  | V21: =MATCH(V$4,Millwall!$AP94:$BA94,0) ->  | W21: =MATCH(W$4,Millwall!$AP94:$BA94,0) ->  | X21: =MATCH(X$4,Millwall!$AP94:$BA94,0) -> 1 | Y21: =MATCH(Y$4,Millwall!$AP94:$BA94,0) -> 5 | Z21: =MATCH(Z$4,Millwall!$AP94:$BA94,0) ->  | AA21: =MATCH(AA$4,Millwall!$AP94:$BA94,0) -> 10 | AB21: =MATCH(AB$4,Millwall!$AP94:$BA94,0) ->  | AC21: =MATCH(AC$4,Millwall!$AP94:$BA94,0) ->  | AD21: =MATCH(AD$4,Millwall!$AP94:$BA94,0) ->  | AE21: =MATCH(AE$4,Millwall!$AP94:$BA94,0) ->  | AF21: =MATCH(AF$4,Millwall!$AP94:$BA94,0) ->  | AG21: =MATCH(AG$4,Millwall!$AP94:$BA94,0) ->  | AH21: =MATCH(AH$3,Millwall!$AP94:$BA94,0) ->  | AI21: =MATCH(AI$3,Millwall!$AP94:$BA94,0) ->  | AJ21: =MATCH(AJ$3,Millwall!$AP94:$BA94,0) ->  | AK21: =MATCH(AK$3,Millwall!$AP94:$BA94,0) ->  | AL21: =MATCH(AL$3,Millwall!$AP94:$BA94,0) ->  | AM21: =MATCH(AM$3,Millwall!$AP94:$BA94,0) ->  | AN21: =MATCH(AN$3,Millwall!$AP94:$BA94,0) ->  | AO21: =MATCH(AO$3,Millwall!$AP94:$BA94,0) ->  | AP21: =MATCH(AP$3,Millwall!$AP94:$BA94,0) ->  | AQ21: =MATCH(AQ$3,Millwall!$AP94:$BA94,0) ->  | AR21: =MATCH(AR$3,Millwall!$AP94:$BA94,0) ->  | AX21: =MATCH(AX$3,Millwall!$AP94:$BA94,0) ->  | AY21: =MATCH(AY$3,Millwall!$AP94:$BA94,0) ->  | AZ21: =MATCH(AZ$3,Millwall!$AP94:$BA94,0) ->  | BA21: =MATCH(BA$3,Millwall!$AP94:$BA94,0) ->  | BB21: =MATCH(BB$3,Millwall!$AP94:$BA94,0) ->  | BC21: =MATCH(BC$3,Millwall!$AP94:$BA94,0) ->  | BD21: =MATCH(BD$3,Millwall!$AP94:$BA94,0) ->  | BE21: =MATCH(BE$3,Millwall!$AP94:$BA94,0) ->  | BF21: =MATCH(BF$3,Millwall!$AP94:$BA94,0) ->  | BG21: =MATCH(BG$3,Millwall!$AP94:$BA94,0) ->  | BH21: =MATCH(BH$3,Millwall!$AP94:$BA94,0) ->  | BI21: =MATCH(BI$3,Millwall!$AP94:$BA94,0) ->  | BJ21: =MATCH(BJ$3,Millwall!$AP94:$BA94,0) ->  | BK21: =MATCH(BK$3,Millwall!$AP94:$BA94,0) ->  | BL21: =MATCH(BL$3,Millwall!$AP94:$BA94,0) ->  | BM21: =MATCH(BM$3,Millwall!$AP94:$BA94,0) ->  | BN21: =MATCH(BN$3,Millwall!$AP94:$BA94,0) ->  | BO21: =MATCH(BO$3,Millwall!$AP94:$BA94,0) ->  | BP21: =MATCH(BP$3,Millwall!$AP94:$BA94,0) ->  | BQ21: =MATCH(BQ$3,Millwall!$AP94:$BA94,0) ->  | BR21: =MATCH(BR$3,Millwall!$AP94:$BA94,0) ->  | BS21: =MATCH(BS$3,Millwall!$AP94:$BA94,0) ->  | BT21: =MATCH(BT$3,Millwall!$AP94:$BA94,0) ->  | BU21: =MATCH(BU$3,Millwall!$AP94:$BA94,0) ->  | BV21: =MATCH(BV$3,Millwall!$AP94:$BA94,0) ->  | BW21: =MATCH(BW$3,Millwall!$AP94:$BA94,0) ->  | BX21: =MATCH(BX$3,Millwall!$AP94:$BA94,0) ->  | BY21: =MATCH(BY$3,Millwall!$AP94:$BA94,0) ->  | BZ21: =MATCH(BZ$3,Millwall!$AP94:$BA94,0) ->  | CA21: =MATCH(CA$3,Millwall!$AP94:$BA94,0) ->  | CB21: =MATCH(CB$3,Millwall!$AP94:$BA94,0) ->  | CC21: =MATCH(CC$3,Millwall!$AP94:$BA94,0) ->  | CD21: =MATCH(CD$3,Millwall!$AP94:$BA94,0) ->  | CE21: =MATCH(CE$3,Millwall!$AP94:$BA94,0) ->  | CM21: =Millwall!$BO88 -> Possee | CN21: =Millwall!$BN88&" (**" -> Possee** (** | CO21: =Millwall!$BN88&"**" -> Possee****
C22: 0 | D22: 18 | F22: =Millwall!AI95 -> 1970-11-21 | H22: =Millwall!AK95 -> Bristol C | I22: =Millwall!AL95 -> (H) | J22: =Millwall!AO95 -> W 2-0 | K22: =MATCH(K$4,Millwall!$AP95:$BA95,0) -> 11 | L22: =MATCH(L$4,Millwall!$AP95:$BA95,0) -> 9 | M22: =MATCH(M$4,Millwall!$AP95:$BA95,0) -> 7 | N22: =MATCH(N$4,Millwall!$AP95:$BA95,0) -> 2 | O22: =MATCH(O$4,Millwall!$AP95:$BA95,0) ->  | P22: =MATCH(P$4,Millwall!$AP95:$BA95,0) -> 6 | Q22: =MATCH(Q$4,Millwall!$AP95:$BA95,0) ->  | R22: =MATCH(R$4,Millwall!$AP95:$BA95,0) -> 3 | S22: =MATCH(S$4,Millwall!$AP95:$BA95,0) -> 4 | T22: =MATCH(T$4,Millwall!$AP95:$BA95,0) -> 8 | U22: =MATCH(U$4,Millwall!$AP95:$BA95,0) ->  | V22: =MATCH(V$4,Millwall!$AP95:$BA95,0) ->  | W22: =MATCH(W$4,Millwall!$AP95:$BA95,0) ->  | X22: =MATCH(X$4,Millwall!$AP95:$BA95,0) -> 1 | Y22: =MATCH(Y$4,Millwall!$AP95:$BA95,0) -> 5 | Z22: =MATCH(Z$4,Millwall!$AP95:$BA95,0) ->  | AA22: =MATCH(AA$4,Millwall!$AP95:$BA95,0) -> 10 | AB22: =MATCH(AB$4,Millwall!$AP95:$BA95,0) ->  | AC22: =MATCH(AC$4,Millwall!$AP95:$BA95,0) ->  | AD22: =MATCH(AD$4,Millwall!$AP95:$BA95,0) ->  | AE22: =MATCH(AE$4,Millwall!$AP95:$BA95,0) ->  | AF22: =MATCH(AF$4,Millwall!$AP95:$BA95,0) ->  | AG22: =MATCH(AG$4,Millwall!$AP95:$BA95,0) ->  | AH22: =MATCH(AH$3,Millwall!$AP95:$BA95,0) ->  | AI22: =MATCH(AI$3,Millwall!$AP95:$BA95,0) ->  | AJ22: =MATCH(AJ$3,Millwall!$AP95:$BA95,0) ->  | AK22: =MATCH(AK$3,Millwall!$AP95:$BA95,0) ->  | AL22: =MATCH(AL$3,Millwall!$AP95:$BA95,0) ->  | AM22: =MATCH(AM$3,Millwall!$AP95:$BA95,0) ->  | AN22: =MATCH(AN$3,Millwall!$AP95:$BA95,0) ->  | AO22: =MATCH(AO$3,Millwall!$AP95:$BA95,0) ->  | AP22: =MATCH(AP$3,Millwall!$AP95:$BA95,0) ->  | AQ22: =MATCH(AQ$3,Millwall!$AP95:$BA95,0) ->  | AR22: =MATCH(AR$3,Millwall!$AP95:$BA95,0) ->  | AX22: =MATCH(AX$3,Millwall!$AP95:$BA95,0) ->  | AY22: =MATCH(AY$3,Millwall!$AP95:$BA95,0) ->  | AZ22: =MATCH(AZ$3,Millwall!$AP95:$BA95,0) ->  | BA22: =MATCH(BA$3,Millwall!$AP95:$BA95,0) ->  | BB22: =MATCH(BB$3,Millwall!$AP95:$BA95,0) ->  | BC22: =MATCH(BC$3,Millwall!$AP95:$BA95,0) ->  | BD22: =MATCH(BD$3,Millwall!$AP95:$BA95,0) ->  | BE22: =MATCH(BE$3,Millwall!$AP95:$BA95,0) ->  | BF22: =MATCH(BF$3,Millwall!$AP95:$BA95,0) ->  | BG22: =MATCH(BG$3,Millwall!$AP95:$BA95,0) ->  | BH22: =MATCH(BH$3,Millwall!$AP95:$BA95,0) ->  | BI22: =MATCH(BI$3,Millwall!$AP95:$BA95,0) ->  | BJ22: =MATCH(BJ$3,Millwall!$AP95:$BA95,0) ->  | BK22: =MATCH(BK$3,Millwall!$AP95:$BA95,0) ->  | BL22: =MATCH(BL$3,Millwall!$AP95:$BA95,0) ->  | BM22: =MATCH(BM$3,Millwall!$AP95:$BA95,0) ->  | BN22: =MATCH(BN$3,Millwall!$AP95:$BA95,0) ->  | BO22: =MATCH(BO$3,Millwall!$AP95:$BA95,0) ->  | BP22: =MATCH(BP$3,Millwall!$AP95:$BA95,0) ->  | BQ22: =MATCH(BQ$3,Millwall!$AP95:$BA95,0) ->  | BR22: =MATCH(BR$3,Millwall!$AP95:$BA95,0) ->  | BS22: =MATCH(BS$3,Millwall!$AP95:$BA95,0) ->  | BT22: =MATCH(BT$3,Millwall!$AP95:$BA95,0) ->  | BU22: =MATCH(BU$3,Millwall!$AP95:$BA95,0) ->  | BV22: =MATCH(BV$3,Millwall!$AP95:$BA95,0) ->  | BW22: =MATCH(BW$3,Millwall!$AP95:$BA95,0) ->  | BX22: =MATCH(BX$3,Millwall!$AP95:$BA95,0) ->  | BY22: =MATCH(BY$3,Millwall!$AP95:$BA95,0) ->  | BZ22: =MATCH(BZ$3,Millwall!$AP95:$BA95,0) ->  | CA22: =MATCH(CA$3,Millwall!$AP95:$BA95,0) ->  | CB22: =MATCH(CB$3,Millwall!$AP95:$BA95,0) ->  | CC22: =MATCH(CC$3,Millwall!$AP95:$BA95,0) ->  | CD22: =MATCH(CD$3,Millwall!$AP95:$BA95,0) ->  | CE22: =MATCH(CE$3,Millwall!$AP95:$BA95,0) ->  | CM22: =Millwall!$BO89 -> 0 | CN22: =Millwall!$BN89&" (**" -> (** | CO22: =Millwall!$BN89&"**" -> **
C23: 0 | D23: 19 | F23: =Millwall!AI96 -> 1970-11-28 | H23: =Millwall!AK96 -> Middlesbro | I23: =Millwall!AL96 -> (A) | J23: =Millwall!AO96 -> L 0-1 | K23: =MATCH(K$4,Millwall!$AP96:$BA96,0) -> 11 | L23: =MATCH(L$4,Millwall!$AP96:$BA96,0) -> 9 | M23: =MATCH(M$4,Millwall!$AP96:$BA96,0) -> 7 | N23: =MATCH(N$4,Millwall!$AP96:$BA96,0) -> 2 | O23: =MATCH(O$4,Millwall!$AP96:$BA96,0) ->  | P23: =MATCH(P$4,Millwall!$AP96:$BA96,0) -> 6 | Q23: =MATCH(Q$4,Millwall!$AP96:$BA96,0) ->  | R23: =MATCH(R$4,Millwall!$AP96:$BA96,0) -> 3 | S23: =MATCH(S$4,Millwall!$AP96:$BA96,0) -> 4 | T23: =MATCH(T$4,Millwall!$AP96:$BA96,0) -> 8 | U23: =MATCH(U$4,Millwall!$AP96:$BA96,0) ->  | V23: =MATCH(V$4,Millwall!$AP96:$BA96,0) ->  | W23: =MATCH(W$4,Millwall!$AP96:$BA96,0) ->  | X23: =MATCH(X$4,Millwall!$AP96:$BA96,0) -> 1 | Y23: =MATCH(Y$4,Millwall!$AP96:$BA96,0) -> 5 | Z23: =MATCH(Z$4,Millwall!$AP96:$BA96,0) ->  | AA23: =MATCH(AA$4,Millwall!$AP96:$BA96,0) -> 10 | AB23: =MATCH(AB$4,Millwall!$AP96:$BA96,0) ->  | AC23: =MATCH(AC$4,Millwall!$AP96:$BA96,0) ->  | AD23: =MATCH(AD$4,Millwall!$AP96:$BA96,0) ->  | AE23: =MATCH(AE$4,Millwall!$AP96:$BA96,0) ->  | AF23: =MATCH(AF$4,Millwall!$AP96:$BA96,0) ->  | AG23: =MATCH(AG$4,Millwall!$AP96:$BA96,0) ->  | AH23: =MATCH(AH$3,Millwall!$AP96:$BA96,0) ->  | AI23: =MATCH(AI$3,Millwall!$AP96:$BA96,0) ->  | AJ23: =MATCH(AJ$3,Millwall!$AP96:$BA96,0) ->  | AK23: =MATCH(AK$3,Millwall!$AP96:$BA96,0) ->  | AL23: =MATCH(AL$3,Millwall!$AP96:$BA96,0) ->  | AM23: =MATCH(AM$3,Millwall!$AP96:$BA96,0) ->  | AN23: =MATCH(AN$3,Millwall!$AP96:$BA96,0) ->  | AO23: =MATCH(AO$3,Millwall!$AP96:$BA96,0) ->  | AP23: =MATCH(AP$3,Millwall!$AP96:$BA96,0) ->  | AQ23: =MATCH(AQ$3,Millwall!$AP96:$BA96,0) ->  | AR23: =MATCH(AR$3,Millwall!$AP96:$BA96,0) ->  | AX23: =MATCH(AX$3,Millwall!$AP96:$BA96,0) ->  | AY23: =MATCH(AY$3,Millwall!$AP96:$BA96,0) ->  | AZ23: =MATCH(AZ$3,Millwall!$AP96:$BA96,0) ->  | BA23: =MATCH(BA$3,Millwall!$AP96:$BA96,0) ->  | BB23: =MATCH(BB$3,Millwall!$AP96:$BA96,0) ->  | BC23: =MATCH(BC$3,Millwall!$AP96:$BA96,0) ->  | BD23: =MATCH(BD$3,Millwall!$AP96:$BA96,0) ->  | BE23: =MATCH(BE$3,Millwall!$AP96:$BA96,0) ->  | BF23: =MATCH(BF$3,Millwall!$AP96:$BA96,0) ->  | BG23: =MATCH(BG$3,Millwall!$AP96:$BA96,0) ->  | BH23: =MATCH(BH$3,Millwall!$AP96:$BA96,0) ->  | BI23: =MATCH(BI$3,Millwall!$AP96:$BA96,0) ->  | BJ23: =MATCH(BJ$3,Millwall!$AP96:$BA96,0) ->  | BK23: =MATCH(BK$3,Millwall!$AP96:$BA96,0) ->  | BL23: =MATCH(BL$3,Millwall!$AP96:$BA96,0) ->  | BM23: =MATCH(BM$3,Millwall!$AP96:$BA96,0) ->  | BN23: =MATCH(BN$3,Millwall!$AP96:$BA96,0) ->  | BO23: =MATCH(BO$3,Millwall!$AP96:$BA96,0) ->  | BP23: =MATCH(BP$3,Millwall!$AP96:$BA96,0) ->  | BQ23: =MATCH(BQ$3,Millwall!$AP96:$BA96,0) ->  | BR23: =MATCH(BR$3,Millwall!$AP96:$BA96,0) ->  | BS23: =MATCH(BS$3,Millwall!$AP96:$BA96,0) ->  | BT23: =MATCH(BT$3,Millwall!$AP96:$BA96,0) ->  | BU23: =MATCH(BU$3,Millwall!$AP96:$BA96,0) ->  | BV23: =MATCH(BV$3,Millwall!$AP96:$BA96,0) ->  | BW23: =MATCH(BW$3,Millwall!$AP96:$BA96,0) ->  | BX23: =MATCH(BX$3,Millwall!$AP96:$BA96,0) ->  | BY23: =MATCH(BY$3,Millwall!$AP96:$BA96,0) ->  | BZ23: =MATCH(BZ$3,Millwall!$AP96:$BA96,0) ->  | CA23: =MATCH(CA$3,Millwall!$AP96:$BA96,0) ->  | CB23: =MATCH(CB$3,Millwall!$AP96:$BA96,0) ->  | CC23: =MATCH(CC$3,Millwall!$AP96:$BA96,0) ->  | CD23: =MATCH(CD$3,Millwall!$AP96:$BA96,0) ->  | CE23: =MATCH(CE$3,Millwall!$AP96:$BA96,0) ->  | CM23: =Millwall!$BO90 -> 0 | CN23: =Millwall!$BN90&" (**" -> (** | CO23: =Millwall!$BN90&"**" -> **
C24: 0 | D24: 20 | F24: =Millwall!AI97 -> 1970-12-05 | H24: =Millwall!AK97 -> Birmingham | I24: =Millwall!AL97 -> (H) | J24: =Millwall!AO97 -> W 2-1 | K24: =MATCH(K$4,Millwall!$AP97:$BA97,0) -> 11 | L24: =MATCH(L$4,Millwall!$AP97:$BA97,0) -> 9 | M24: =MATCH(M$4,Millwall!$AP97:$BA97,0) -> 7 | N24: =MATCH(N$4,Millwall!$AP97:$BA97,0) -> 2 | O24: =MATCH(O$4,Millwall!$AP97:$BA97,0) ->  | P24: =MATCH(P$4,Millwall!$AP97:$BA97,0) -> 6 | Q24: =MATCH(Q$4,Millwall!$AP97:$BA97,0) ->  | R24: =MATCH(R$4,Millwall!$AP97:$BA97,0) -> 3 | S24: =MATCH(S$4,Millwall!$AP97:$BA97,0) ->  | T24: =MATCH(T$4,Millwall!$AP97:$BA97,0) -> 8 | U24: =MATCH(U$4,Millwall!$AP97:$BA97,0) ->  | V24: =MATCH(V$4,Millwall!$AP97:$BA97,0) ->  | W24: =MATCH(W$4,Millwall!$AP97:$BA97,0) -> 4 | X24: =MATCH(X$4,Millwall!$AP97:$BA97,0) -> 1 | Y24: =MATCH(Y$4,Millwall!$AP97:$BA97,0) -> 5 | Z24: =MATCH(Z$4,Millwall!$AP97:$BA97,0) ->  | AA24: =MATCH(AA$4,Millwall!$AP97:$BA97,0) -> 10 | AB24: =MATCH(AB$4,Millwall!$AP97:$BA97,0) ->  | AC24: =MATCH(AC$4,Millwall!$AP97:$BA97,0) ->  | AD24: =MATCH(AD$4,Millwall!$AP97:$BA97,0) ->  | AE24: =MATCH(AE$4,Millwall!$AP97:$BA97,0) ->  | AF24: =MATCH(AF$4,Millwall!$AP97:$BA97,0) ->  | AG24: =MATCH(AG$4,Millwall!$AP97:$BA97,0) ->  | AH24: =MATCH(AH$3,Millwall!$AP97:$BA97,0) ->  | AI24: =MATCH(AI$3,Millwall!$AP97:$BA97,0) ->  | AJ24: =MATCH(AJ$3,Millwall!$AP97:$BA97,0) ->  | AK24: =MATCH(AK$3,Millwall!$AP97:$BA97,0) ->  | AL24: =MATCH(AL$3,Millwall!$AP97:$BA97,0) ->  | AM24: =MATCH(AM$3,Millwall!$AP97:$BA97,0) ->  | AN24: =MATCH(AN$3,Millwall!$AP97:$BA97,0) ->  | AO24: =MATCH(AO$3,Millwall!$AP97:$BA97,0) ->  | AP24: =MATCH(AP$3,Millwall!$AP97:$BA97,0) ->  | AQ24: =MATCH(AQ$3,Millwall!$AP97:$BA97,0) ->  | AR24: =MATCH(AR$3,Millwall!$AP97:$BA97,0) ->  | AX24: =MATCH(AX$3,Millwall!$AP97:$BA97,0) ->  | AY24: =MATCH(AY$3,Millwall!$AP97:$BA97,0) ->  | AZ24: =MATCH(AZ$3,Millwall!$AP97:$BA97,0) ->  | BA24: =MATCH(BA$3,Millwall!$AP97:$BA97,0) ->  | BB24: =MATCH(BB$3,Millwall!$AP97:$BA97,0) ->  | BC24: =MATCH(BC$3,Millwall!$AP97:$BA97,0) ->  | BD24: =MATCH(BD$3,Millwall!$AP97:$BA97,0) ->  | BE24: =MATCH(BE$3,Millwall!$AP97:$BA97,0) ->  | BF24: =MATCH(BF$3,Millwall!$AP97:$BA97,0) ->  | BG24: =MATCH(BG$3,Millwall!$AP97:$BA97,0) ->  | BH24: =MATCH(BH$3,Millwall!$AP97:$BA97,0) ->  | BI24: =MATCH(BI$3,Millwall!$AP97:$BA97,0) ->  | BJ24: =MATCH(BJ$3,Millwall!$AP97:$BA97,0) ->  | BK24: =MATCH(BK$3,Millwall!$AP97:$BA97,0) ->  | BL24: =MATCH(BL$3,Millwall!$AP97:$BA97,0) ->  | BM24: =MATCH(BM$3,Millwall!$AP97:$BA97,0) ->  | BN24: =MATCH(BN$3,Millwall!$AP97:$BA97,0) ->  | BO24: =MATCH(BO$3,Millwall!$AP97:$BA97,0) ->  | BP24: =MATCH(BP$3,Millwall!$AP97:$BA97,0) ->  | BQ24: =MATCH(BQ$3,Millwall!$AP97:$BA97,0) ->  | BR24: =MATCH(BR$3,Millwall!$AP97:$BA97,0) ->  | BS24: =MATCH(BS$3,Millwall!$AP97:$BA97,0) ->  | BT24: =MATCH(BT$3,Millwall!$AP97:$BA97,0) ->  | BU24: =MATCH(BU$3,Millwall!$AP97:$BA97,0) ->  | BV24: =MATCH(BV$3,Millwall!$AP97:$BA97,0) ->  | BW24: =MATCH(BW$3,Millwall!$AP97:$BA97,0) ->  | BX24: =MATCH(BX$3,Millwall!$AP97:$BA97,0) ->  | BY24: =MATCH(BY$3,Millwall!$AP97:$BA97,0) ->  | BZ24: =MATCH(BZ$3,Millwall!$AP97:$BA97,0) ->  | CA24: =MATCH(CA$3,Millwall!$AP97:$BA97,0) ->  | CB24: =MATCH(CB$3,Millwall!$AP97:$BA97,0) ->  | CC24: =MATCH(CC$3,Millwall!$AP97:$BA97,0) ->  | CD24: =MATCH(CD$3,Millwall!$AP97:$BA97,0) ->  | CE24: =MATCH(CE$3,Millwall!$AP97:$BA97,0) ->  | CM24: =Millwall!$BO91 -> 0 | CN24: =Millwall!$BN91&" (**" -> (** | CO24: =Millwall!$BN91&"**" -> **
C25: 0 | D25: 21 | F25: =Millwall!AI98 -> 1970-12-12 | H25: =Millwall!AK98 -> Leicester | I25: =Millwall!AL98 -> (A) | J25: =Millwall!AO98 -> L 1-2 | K25: =MATCH(K$4,Millwall!$AP98:$BA98,0) -> 11 | L25: =MATCH(L$4,Millwall!$AP98:$BA98,0) -> 8 | M25: =MATCH(M$4,Millwall!$AP98:$BA98,0) -> 9 | N25: =MATCH(N$4,Millwall!$AP98:$BA98,0) -> 2 | O25: =MATCH(O$4,Millwall!$AP98:$BA98,0) -> 12 | P25: =MATCH(P$4,Millwall!$AP98:$BA98,0) -> 6 | Q25: =MATCH(Q$4,Millwall!$AP98:$BA98,0) ->  | R25: =MATCH(R$4,Millwall!$AP98:$BA98,0) -> 3 | S25: =MATCH(S$4,Millwall!$AP98:$BA98,0) -> 4 | T25: =MATCH(T$4,Millwall!$AP98:$BA98,0) -> 10 | U25: =MATCH(U$4,Millwall!$AP98:$BA98,0) ->  | V25: =MATCH(V$4,Millwall!$AP98:$BA98,0) ->  | W25: =MATCH(W$4,Millwall!$AP98:$BA98,0) ->  | X25: =MATCH(X$4,Millwall!$AP98:$BA98,0) -> 1 | Y25: =MATCH(Y$4,Millwall!$AP98:$BA98,0) -> 5 | Z25: =MATCH(Z$4,Millwall!$AP98:$BA98,0) ->  | AA25: =MATCH(AA$4,Millwall!$AP98:$BA98,0) -> 7 | AB25: =MATCH(AB$4,Millwall!$AP98:$BA98,0) ->  | AC25: =MATCH(AC$4,Millwall!$AP98:$BA98,0) ->  | AD25: =MATCH(AD$4,Millwall!$AP98:$BA98,0) ->  | AE25: =MATCH(AE$4,Millwall!$AP98:$BA98,0) ->  | AF25: =MATCH(AF$4,Millwall!$AP98:$BA98,0) ->  | AG25: =MATCH(AG$4,Millwall!$AP98:$BA98,0) ->  | AH25: =MATCH(AH$3,Millwall!$AP98:$BA98,0) ->  | AI25: =MATCH(AI$3,Millwall!$AP98:$BA98,0) ->  | AJ25: =MATCH(AJ$3,Millwall!$AP98:$BA98,0) ->  | AK25: =MATCH(AK$3,Millwall!$AP98:$BA98,0) ->  | AL25: =MATCH(AL$3,Millwall!$AP98:$BA98,0) ->  | AM25: =MATCH(AM$3,Millwall!$AP98:$BA98,0) ->  | AN25: =MATCH(AN$3,Millwall!$AP98:$BA98,0) ->  | AO25: =MATCH(AO$3,Millwall!$AP98:$BA98,0) ->  | AP25: =MATCH(AP$3,Millwall!$AP98:$BA98,0) ->  | AQ25: =MATCH(AQ$3,Millwall!$AP98:$BA98,0) ->  | AR25: =MATCH(AR$3,Millwall!$AP98:$BA98,0) ->  | AX25: =MATCH(AX$3,Millwall!$AP98:$BA98,0) -> 11 | AY25: =MATCH(AY$3,Millwall!$AP98:$BA98,0) ->  | AZ25: =MATCH(AZ$3,Millwall!$AP98:$BA98,0) ->  | BA25: =MATCH(BA$3,Millwall!$AP98:$BA98,0) ->  | BB25: =MATCH(BB$3,Millwall!$AP98:$BA98,0) -> 12 | BC25: =MATCH(BC$3,Millwall!$AP98:$BA98,0) ->  | BD25: =MATCH(BD$3,Millwall!$AP98:$BA98,0) ->  | BE25: =MATCH(BE$3,Millwall!$AP98:$BA98,0) ->  | BF25: =MATCH(BF$3,Millwall!$AP98:$BA98,0) ->  | BG25: =MATCH(BG$3,Millwall!$AP98:$BA98,0) ->  | BH25: =MATCH(BH$3,Millwall!$AP98:$BA98,0) ->  | BI25: =MATCH(BI$3,Millwall!$AP98:$BA98,0) ->  | BJ25: =MATCH(BJ$3,Millwall!$AP98:$BA98,0) ->  | BK25: =MATCH(BK$3,Millwall!$AP98:$BA98,0) ->  | BL25: =MATCH(BL$3,Millwall!$AP98:$BA98,0) ->  | BM25: =MATCH(BM$3,Millwall!$AP98:$BA98,0) ->  | BN25: =MATCH(BN$3,Millwall!$AP98:$BA98,0) ->  | BO25: =MATCH(BO$3,Millwall!$AP98:$BA98,0) ->  | BP25: =MATCH(BP$3,Millwall!$AP98:$BA98,0) ->  | BQ25: =MATCH(BQ$3,Millwall!$AP98:$BA98,0) ->  | BR25: =MATCH(BR$3,Millwall!$AP98:$BA98,0) ->  | BS25: =MATCH(BS$3,Millwall!$AP98:$BA98,0) ->  | BT25: =MATCH(BT$3,Millwall!$AP98:$BA98,0) ->  | BU25: =MATCH(BU$3,Millwall!$AP98:$BA98,0) ->  | BV25: =MATCH(BV$3,Millwall!$AP98:$BA98,0) ->  | BW25: =MATCH(BW$3,Millwall!$AP98:$BA98,0) ->  | BX25: =MATCH(BX$3,Millwall!$AP98:$BA98,0) ->  | BY25: =MATCH(BY$3,Millwall!$AP98:$BA98,0) ->  | BZ25: =MATCH(BZ$3,Millwall!$AP98:$BA98,0) ->  | CA25: =MATCH(CA$3,Millwall!$AP98:$BA98,0) ->  | CB25: =MATCH(CB$3,Millwall!$AP98:$BA98,0) ->  | CC25: =MATCH(CC$3,Millwall!$AP98:$BA98,0) ->  | CD25: =MATCH(CD$3,Millwall!$AP98:$BA98,0) ->  | CE25: =MATCH(CE$3,Millwall!$AP98:$BA98,0) ->  | CM25: =Millwall!$BO92 -> Own Goal | CN25: =Millwall!$BN92&" (**" -> (** | CO25: =Millwall!$BN92&"**" -> **
C26: 0 | D26: 22 | F26: =Millwall!AI99 -> 1970-12-19 | H26: =Millwall!AK99 -> Cardiff | I26: =Millwall!AL99 -> (H) | J26: =Millwall!AO99 -> W 2-1 | K26: =MATCH(K$4,Millwall!$AP99:$BA99,0) -> 11 | L26: =MATCH(L$4,Millwall!$AP99:$BA99,0) -> 8 | M26: =MATCH(M$4,Millwall!$AP99:$BA99,0) -> 9 | N26: =MATCH(N$4,Millwall!$AP99:$BA99,0) -> 2 | O26: =MATCH(O$4,Millwall!$AP99:$BA99,0) -> 12 | P26: =MATCH(P$4,Millwall!$AP99:$BA99,0) -> 6 | Q26: =MATCH(Q$4,Millwall!$AP99:$BA99,0) ->  | R26: =MATCH(R$4,Millwall!$AP99:$BA99,0) -> 3 | S26: =MATCH(S$4,Millwall!$AP99:$BA99,0) -> 4 | T26: =MATCH(T$4,Millwall!$AP99:$BA99,0) -> 10 | U26: =MATCH(U$4,Millwall!$AP99:$BA99,0) ->  | V26: =MATCH(V$4,Millwall!$AP99:$BA99,0) ->  | W26: =MATCH(W$4,Millwall!$AP99:$BA99,0) ->  | X26: =MATCH(X$4,Millwall!$AP99:$BA99,0) -> 1 | Y26: =MATCH(Y$4,Millwall!$AP99:$BA99,0) -> 5 | Z26: =MATCH(Z$4,Millwall!$AP99:$BA99,0) ->  | AA26: =MATCH(AA$4,Millwall!$AP99:$BA99,0) -> 7 | AB26: =MATCH(AB$4,Millwall!$AP99:$BA99,0) ->  | AC26: =MATCH(AC$4,Millwall!$AP99:$BA99,0) ->  | AD26: =MATCH(AD$4,Millwall!$AP99:$BA99,0) ->  | AE26: =MATCH(AE$4,Millwall!$AP99:$BA99,0) ->  | AF26: =MATCH(AF$4,Millwall!$AP99:$BA99,0) ->  | AG26: =MATCH(AG$4,Millwall!$AP99:$BA99,0) ->  | AH26: =MATCH(AH$3,Millwall!$AP99:$BA99,0) ->  | AI26: =MATCH(AI$3,Millwall!$AP99:$BA99,0) ->  | AJ26: =MATCH(AJ$3,Millwall!$AP99:$BA99,0) ->  | AK26: =MATCH(AK$3,Millwall!$AP99:$BA99,0) ->  | AL26: =MATCH(AL$3,Millwall!$AP99:$BA99,0) ->  | AM26: =MATCH(AM$3,Millwall!$AP99:$BA99,0) ->  | AN26: =MATCH(AN$3,Millwall!$AP99:$BA99,0) ->  | AO26: =MATCH(AO$3,Millwall!$AP99:$BA99,0) ->  | AP26: =MATCH(AP$3,Millwall!$AP99:$BA99,0) ->  | AQ26: =MATCH(AQ$3,Millwall!$AP99:$BA99,0) ->  | AR26: =MATCH(AR$3,Millwall!$AP99:$BA99,0) ->  | AX26: =MATCH(AX$3,Millwall!$AP99:$BA99,0) ->  | AY26: =MATCH(AY$3,Millwall!$AP99:$BA99,0) ->  | AZ26: =MATCH(AZ$3,Millwall!$AP99:$BA99,0) ->  | BA26: =MATCH(BA$3,Millwall!$AP99:$BA99,0) ->  | BB26: =MATCH(BB$3,Millwall!$AP99:$BA99,0) -> 12 | BC26: =MATCH(BC$3,Millwall!$AP99:$BA99,0) ->  | BD26: =MATCH(BD$3,Millwall!$AP99:$BA99,0) ->  | BE26: =MATCH(BE$3,Millwall!$AP99:$BA99,0) ->  | BF26: =MATCH(BF$3,Millwall!$AP99:$BA99,0) ->  | BG26: =MATCH(BG$3,Millwall!$AP99:$BA99,0) ->  | BH26: =MATCH(BH$3,Millwall!$AP99:$BA99,0) ->  | BI26: =MATCH(BI$3,Millwall!$AP99:$BA99,0) ->  | BJ26: =MATCH(BJ$3,Millwall!$AP99:$BA99,0) ->  | BK26: =MATCH(BK$3,Millwall!$AP99:$BA99,0) ->  | BL26: =MATCH(BL$3,Millwall!$AP99:$BA99,0) ->  | BM26: =MATCH(BM$3,Millwall!$AP99:$BA99,0) ->  | BN26: =MATCH(BN$3,Millwall!$AP99:$BA99,0) -> 7 | BO26: =MATCH(BO$3,Millwall!$AP99:$BA99,0) ->  | BP26: =MATCH(BP$3,Millwall!$AP99:$BA99,0) ->  | BQ26: =MATCH(BQ$3,Millwall!$AP99:$BA99,0) ->  | BR26: =MATCH(BR$3,Millwall!$AP99:$BA99,0) ->  | BS26: =MATCH(BS$3,Millwall!$AP99:$BA99,0) ->  | BT26: =MATCH(BT$3,Millwall!$AP99:$BA99,0) ->  | BU26: =MATCH(BU$3,Millwall!$AP99:$BA99,0) ->  | BV26: =MATCH(BV$3,Millwall!$AP99:$BA99,0) ->  | BW26: =MATCH(BW$3,Millwall!$AP99:$BA99,0) ->  | BX26: =MATCH(BX$3,Millwall!$AP99:$BA99,0) ->  | BY26: =MATCH(BY$3,Millwall!$AP99:$BA99,0) ->  | BZ26: =MATCH(BZ$3,Millwall!$AP99:$BA99,0) ->  | CA26: =MATCH(CA$3,Millwall!$AP99:$BA99,0) ->  | CB26: =MATCH(CB$3,Millwall!$AP99:$BA99,0) ->  | CC26: =MATCH(CC$3,Millwall!$AP99:$BA99,0) ->  | CD26: =MATCH(CD$3,Millwall!$AP99:$BA99,0) ->  | CE26: =MATCH(CE$3,Millwall!$AP99:$BA99,0) ->  | CM26: =Millwall!$BO93 -> 0 | CN26: =Millwall!$BN93&" (**" -> (** | CO26: =Millwall!$BN93&"**" -> **
C27: 0 | D27: 23 | F27: =Millwall!AI100 -> 1971-01-09 | H27: =Millwall!AK100 -> Swindon | I27: =Millwall!AL100 -> (H) | J27: =Millwall!AO100 -> D 2-2 | K27: =MATCH(K$4,Millwall!$AP100:$BA100,0) -> 11 | L27: =MATCH(L$4,Millwall!$AP100:$BA100,0) -> 8 | M27: =MATCH(M$4,Millwall!$AP100:$BA100,0) -> 9 | N27: =MATCH(N$4,Millwall!$AP100:$BA100,0) -> 2 | O27: =MATCH(O$4,Millwall!$AP100:$BA100,0) -> 12 | P27: =MATCH(P$4,Millwall!$AP100:$BA100,0) -> 6 | Q27: =MATCH(Q$4,Millwall!$AP100:$BA100,0) ->  | R27: =MATCH(R$4,Millwall!$AP100:$BA100,0) -> 3 | S27: =MATCH(S$4,Millwall!$AP100:$BA100,0) -> 4 | T27: =MATCH(T$4,Millwall!$AP100:$BA100,0) -> 10 | U27: =MATCH(U$4,Millwall!$AP100:$BA100,0) ->  | V27: =MATCH(V$4,Millwall!$AP100:$BA100,0) ->  | W27: =MATCH(W$4,Millwall!$AP100:$BA100,0) ->  | X27: =MATCH(X$4,Millwall!$AP100:$BA100,0) -> 1 | Y27: =MATCH(Y$4,Millwall!$AP100:$BA100,0) -> 5 | Z27: =MATCH(Z$4,Millwall!$AP100:$BA100,0) ->  | AA27: =MATCH(AA$4,Millwall!$AP100:$BA100,0) -> 7 | AB27: =MATCH(AB$4,Millwall!$AP100:$BA100,0) ->  | AC27: =MATCH(AC$4,Millwall!$AP100:$BA100,0) ->  | AD27: =MATCH(AD$4,Millwall!$AP100:$BA100,0) ->  | AE27: =MATCH(AE$4,Millwall!$AP100:$BA100,0) ->  | AF27: =MATCH(AF$4,Millwall!$AP100:$BA100,0) ->  | AG27: =MATCH(AG$4,Millwall!$AP100:$BA100,0) ->  | AH27: =MATCH(AH$3,Millwall!$AP100:$BA100,0) ->  | AI27: =MATCH(AI$3,Millwall!$AP100:$BA100,0) ->  | AJ27: =MATCH(AJ$3,Millwall!$AP100:$BA100,0) ->  | AK27: =MATCH(AK$3,Millwall!$AP100:$BA100,0) ->  | AL27: =MATCH(AL$3,Millwall!$AP100:$BA100,0) ->  | AM27: =MATCH(AM$3,Millwall!$AP100:$BA100,0) ->  | AN27: =MATCH(AN$3,Millwall!$AP100:$BA100,0) ->  | AO27: =MATCH(AO$3,Millwall!$AP100:$BA100,0) ->  | AP27: =MATCH(AP$3,Millwall!$AP100:$BA100,0) ->  | AQ27: =MATCH(AQ$3,Millwall!$AP100:$BA100,0) ->  | AR27: =MATCH(AR$3,Millwall!$AP100:$BA100,0) ->  | AX27: =MATCH(AX$3,Millwall!$AP100:$BA100,0) ->  | AY27: =MATCH(AY$3,Millwall!$AP100:$BA100,0) ->  | AZ27: =MATCH(AZ$3,Millwall!$AP100:$BA100,0) ->  | BA27: =MATCH(BA$3,Millwall!$AP100:$BA100,0) -> 2 | BB27: =MATCH(BB$3,Millwall!$AP100:$BA100,0) -> 12 | BC27: =MATCH(BC$3,Millwall!$AP100:$BA100,0) ->  | BD27: =MATCH(BD$3,Millwall!$AP100:$BA100,0) ->  | BE27: =MATCH(BE$3,Millwall!$AP100:$BA100,0) ->  | BF27: =MATCH(BF$3,Millwall!$AP100:$BA100,0) ->  | BG27: =MATCH(BG$3,Millwall!$AP100:$BA100,0) ->  | BH27: =MATCH(BH$3,Millwall!$AP100:$BA100,0) ->  | BI27: =MATCH(BI$3,Millwall!$AP100:$BA100,0) ->  | BJ27: =MATCH(BJ$3,Millwall!$AP100:$BA100,0) ->  | BK27: =MATCH(BK$3,Millwall!$AP100:$BA100,0) ->  | BL27: =MATCH(BL$3,Millwall!$AP100:$BA100,0) ->  | BM27: =MATCH(BM$3,Millwall!$AP100:$BA100,0) ->  | BN27: =MATCH(BN$3,Millwall!$AP100:$BA100,0) ->  | BO27: =MATCH(BO$3,Millwall!$AP100:$BA100,0) ->  | BP27: =MATCH(BP$3,Millwall!$AP100:$BA100,0) ->  | BQ27: =MATCH(BQ$3,Millwall!$AP100:$BA100,0) ->  | BR27: =MATCH(BR$3,Millwall!$AP100:$BA100,0) ->  | BS27: =MATCH(BS$3,Millwall!$AP100:$BA100,0) ->  | BT27: =MATCH(BT$3,Millwall!$AP100:$BA100,0) ->  | BU27: =MATCH(BU$3,Millwall!$AP100:$BA100,0) ->  | BV27: =MATCH(BV$3,Millwall!$AP100:$BA100,0) ->  | BW27: =MATCH(BW$3,Millwall!$AP100:$BA100,0) ->  | BX27: =MATCH(BX$3,Millwall!$AP100:$BA100,0) ->  | BY27: =MATCH(BY$3,Millwall!$AP100:$BA100,0) ->  | BZ27: =MATCH(BZ$3,Millwall!$AP100:$BA100,0) ->  | CA27: =MATCH(CA$3,Millwall!$AP100:$BA100,0) ->  | CB27: =MATCH(CB$3,Millwall!$AP100:$BA100,0) ->  | CC27: =MATCH(CC$3,Millwall!$AP100:$BA100,0) ->  | CD27: =MATCH(CD$3,Millwall!$AP100:$BA100,0) ->  | CE27: =MATCH(CE$3,Millwall!$AP100:$BA100,0) ->  | CM27: =Millwall!$BO94 -> 0 | CN27: =Millwall!$BN94&" (**" -> (** | CO27: =Millwall!$BN94&"**" -> **
C28: 0 | D28: 24 | F28: =Millwall!AI101 -> 1971-01-16 | H28: =Millwall!AK101 -> Watford | I28: =Millwall!AL101 -> (A) | J28: =Millwall!AO101 -> W 4-0 | K28: =MATCH(K$4,Millwall!$AP101:$BA101,0) -> 11 | L28: =MATCH(L$4,Millwall!$AP101:$BA101,0) -> 8 | M28: =MATCH(M$4,Millwall!$AP101:$BA101,0) -> 9 | N28: =MATCH(N$4,Millwall!$AP101:$BA101,0) -> 2 | O28: =MATCH(O$4,Millwall!$AP101:$BA101,0) ->  | P28: =MATCH(P$4,Millwall!$AP101:$BA101,0) -> 6 | Q28: =MATCH(Q$4,Millwall!$AP101:$BA101,0) ->  | R28: =MATCH(R$4,Millwall!$AP101:$BA101,0) -> 3 | S28: =MATCH(S$4,Millwall!$AP101:$BA101,0) -> 4 | T28: =MATCH(T$4,Millwall!$AP101:$BA101,0) -> 10 | U28: =MATCH(U$4,Millwall!$AP101:$BA101,0) ->  | V28: =MATCH(V$4,Millwall!$AP101:$BA101,0) ->  | W28: =MATCH(W$4,Millwall!$AP101:$BA101,0) ->  | X28: =MATCH(X$4,Millwall!$AP101:$BA101,0) -> 1 | Y28: =MATCH(Y$4,Millwall!$AP101:$BA101,0) -> 5 | Z28: =MATCH(Z$4,Millwall!$AP101:$BA101,0) ->  | AA28: =MATCH(AA$4,Millwall!$AP101:$BA101,0) -> 7 | AB28: =MATCH(AB$4,Millwall!$AP101:$BA101,0) ->  | AC28: =MATCH(AC$4,Millwall!$AP101:$BA101,0) ->  | AD28: =MATCH(AD$4,Millwall!$AP101:$BA101,0) ->  | AE28: =MATCH(AE$4,Millwall!$AP101:$BA101,0) ->  | AF28: =MATCH(AF$4,Millwall!$AP101:$BA101,0) ->  | AG28: =MATCH(AG$4,Millwall!$AP101:$BA101,0) ->  | AH28: =MATCH(AH$3,Millwall!$AP101:$BA101,0) ->  | AI28: =MATCH(AI$3,Millwall!$AP101:$BA101,0) ->  | AJ28: =MATCH(AJ$3,Millwall!$AP101:$BA101,0) ->  | AK28: =MATCH(AK$3,Millwall!$AP101:$BA101,0) ->  | AL28: =MATCH(AL$3,Millwall!$AP101:$BA101,0) ->  | AM28: =MATCH(AM$3,Millwall!$AP101:$BA101,0) ->  | AN28: =MATCH(AN$3,Millwall!$AP101:$BA101,0) ->  | AO28: =MATCH(AO$3,Millwall!$AP101:$BA101,0) ->  | AP28: =MATCH(AP$3,Millwall!$AP101:$BA101,0) ->  | AQ28: =MATCH(AQ$3,Millwall!$AP101:$BA101,0) ->  | AR28: =MATCH(AR$3,Millwall!$AP101:$BA101,0) ->  | AX28: =MATCH(AX$3,Millwall!$AP101:$BA101,0) ->  | AY28: =MATCH(AY$3,Millwall!$AP101:$BA101,0) ->  | AZ28: =MATCH(AZ$3,Millwall!$AP101:$BA101,0) ->  | BA28: =MATCH(BA$3,Millwall!$AP101:$BA101,0) ->  | BB28: =MATCH(BB$3,Millwall!$AP101:$BA101,0) ->  | BC28: =MATCH(BC$3,Millwall!$AP101:$BA101,0) ->  | BD28: =MATCH(BD$3,Millwall!$AP101:$BA101,0) ->  | BE28: =MATCH(BE$3,Millwall!$AP101:$BA101,0) ->  | BF28: =MATCH(BF$3,Millwall!$AP101:$BA101,0) ->  | BG28: =MATCH(BG$3,Millwall!$AP101:$BA101,0) ->  | BH28: =MATCH(BH$3,Millwall!$AP101:$BA101,0) ->  | BI28: =MATCH(BI$3,Millwall!$AP101:$BA101,0) ->  | BJ28: =MATCH(BJ$3,Millwall!$AP101:$BA101,0) ->  | BK28: =MATCH(BK$3,Millwall!$AP101:$BA101,0) ->  | BL28: =MATCH(BL$3,Millwall!$AP101:$BA101,0) ->  | BM28: =MATCH(BM$3,Millwall!$AP101:$BA101,0) ->  | BN28: =MATCH(BN$3,Millwall!$AP101:$BA101,0) ->  | BO28: =MATCH(BO$3,Millwall!$AP101:$BA101,0) ->  | BP28: =MATCH(BP$3,Millwall!$AP101:$BA101,0) ->  | BQ28: =MATCH(BQ$3,Millwall!$AP101:$BA101,0) ->  | BR28: =MATCH(BR$3,Millwall!$AP101:$BA101,0) ->  | BS28: =MATCH(BS$3,Millwall!$AP101:$BA101,0) ->  | BT28: =MATCH(BT$3,Millwall!$AP101:$BA101,0) ->  | BU28: =MATCH(BU$3,Millwall!$AP101:$BA101,0) ->  | BV28: =MATCH(BV$3,Millwall!$AP101:$BA101,0) ->  | BW28: =MATCH(BW$3,Millwall!$AP101:$BA101,0) ->  | BX28: =MATCH(BX$3,Millwall!$AP101:$BA101,0) ->  | BY28: =MATCH(BY$3,Millwall!$AP101:$BA101,0) ->  | BZ28: =MATCH(BZ$3,Millwall!$AP101:$BA101,0) ->  | CA28: =MATCH(CA$3,Millwall!$AP101:$BA101,0) ->  | CB28: =MATCH(CB$3,Millwall!$AP101:$BA101,0) ->  | CC28: =MATCH(CC$3,Millwall!$AP101:$BA101,0) ->  | CD28: =MATCH(CD$3,Millwall!$AP101:$BA101,0) ->  | CE28: =MATCH(CE$3,Millwall!$AP101:$BA101,0) ->  | CM28: =Millwall!$BO95 -> 0 | CN28: =Millwall!$BN95&" (**" -> (** | CO28: =Millwall!$BN95&"**" -> **
C29: 0 | D29: 25 | F29: =Millwall!AI102 -> 1971-01-23 | H29: =Millwall!AK102 -> Norwich | I29: =Millwall!AL102 -> (H) | J29: =Millwall!AO102 -> D 2-2 | K29: =MATCH(K$4,Millwall!$AP102:$BA102,0) -> 11 | L29: =MATCH(L$4,Millwall!$AP102:$BA102,0) -> 10 | M29: =MATCH(M$4,Millwall!$AP102:$BA102,0) -> 9 | N29: =MATCH(N$4,Millwall!$AP102:$BA102,0) -> 2 | O29: =MATCH(O$4,Millwall!$AP102:$BA102,0) ->  | P29: =MATCH(P$4,Millwall!$AP102:$BA102,0) -> 6 | Q29: =MATCH(Q$4,Millwall!$AP102:$BA102,0) ->  | R29: =MATCH(R$4,Millwall!$AP102:$BA102,0) -> 3 | S29: =MATCH(S$4,Millwall!$AP102:$BA102,0) -> 4 | T29: =MATCH(T$4,Millwall!$AP102:$BA102,0) -> 8 | U29: =MATCH(U$4,Millwall!$AP102:$BA102,0) ->  | V29: =MATCH(V$4,Millwall!$AP102:$BA102,0) ->  | W29: =MATCH(W$4,Millwall!$AP102:$BA102,0) ->  | X29: =MATCH(X$4,Millwall!$AP102:$BA102,0) -> 1 | Y29: =MATCH(Y$4,Millwall!$AP102:$BA102,0) -> 5 | Z29: =MATCH(Z$4,Millwall!$AP102:$BA102,0) ->  | AA29: =MATCH(AA$4,Millwall!$AP102:$BA102,0) -> 7 | AB29: =MATCH(AB$4,Millwall!$AP102:$BA102,0) ->  | AC29: =MATCH(AC$4,Millwall!$AP102:$BA102,0) ->  | AD29: =MATCH(AD$4,Millwall!$AP102:$BA102,0) ->  | AE29: =MATCH(AE$4,Millwall!$AP102:$BA102,0) ->  | AF29: =MATCH(AF$4,Millwall!$AP102:$BA102,0) ->  | AG29: =MATCH(AG$4,Millwall!$AP102:$BA102,0) ->  | AH29: =MATCH(AH$3,Millwall!$AP102:$BA102,0) ->  | AI29: =MATCH(AI$3,Millwall!$AP102:$BA102,0) ->  | AJ29: =MATCH(AJ$3,Millwall!$AP102:$BA102,0) ->  | AK29: =MATCH(AK$3,Millwall!$AP102:$BA102,0) ->  | AL29: =MATCH(AL$3,Millwall!$AP102:$BA102,0) ->  | AM29: =MATCH(AM$3,Millwall!$AP102:$BA102,0) ->  | AN29: =MATCH(AN$3,Millwall!$AP102:$BA102,0) ->  | AO29: =MATCH(AO$3,Millwall!$AP102:$BA102,0) ->  | AP29: =MATCH(AP$3,Millwall!$AP102:$BA102,0) ->  | AQ29: =MATCH(AQ$3,Millwall!$AP102:$BA102,0) ->  | AR29: =MATCH(AR$3,Millwall!$AP102:$BA102,0) ->  | AX29: =MATCH(AX$3,Millwall!$AP102:$BA102,0) ->  | AY29: =MATCH(AY$3,Millwall!$AP102:$BA102,0) ->  | AZ29: =MATCH(AZ$3,Millwall!$AP102:$BA102,0) ->  | BA29: =MATCH(BA$3,Millwall!$AP102:$BA102,0) ->  | BB29: =MATCH(BB$3,Millwall!$AP102:$BA102,0) ->  | BC29: =MATCH(BC$3,Millwall!$AP102:$BA102,0) ->  | BD29: =MATCH(BD$3,Millwall!$AP102:$BA102,0) ->  | BE29: =MATCH(BE$3,Millwall!$AP102:$BA102,0) ->  | BF29: =MATCH(BF$3,Millwall!$AP102:$BA102,0) ->  | BG29: =MATCH(BG$3,Millwall!$AP102:$BA102,0) ->  | BH29: =MATCH(BH$3,Millwall!$AP102:$BA102,0) ->  | BI29: =MATCH(BI$3,Millwall!$AP102:$BA102,0) ->  | BJ29: =MATCH(BJ$3,Millwall!$AP102:$BA102,0) ->  | BK29: =MATCH(BK$3,Millwall!$AP102:$BA102,0) ->  | BL29: =MATCH(BL$3,Millwall!$AP102:$BA102,0) ->  | BM29: =MATCH(BM$3,Millwall!$AP102:$BA102,0) ->  | BN29: =MATCH(BN$3,Millwall!$AP102:$BA102,0) ->  | BO29: =MATCH(BO$3,Millwall!$AP102:$BA102,0) ->  | BP29: =MATCH(BP$3,Millwall!$AP102:$BA102,0) ->  | BQ29: =MATCH(BQ$3,Millwall!$AP102:$BA102,0) ->  | BR29: =MATCH(BR$3,Millwall!$AP102:$BA102,0) ->  | BS29: =MATCH(BS$3,Millwall!$AP102:$BA102,0) ->  | BT29: =MATCH(BT$3,Millwall!$AP102:$BA102,0) ->  | BU29: =MATCH(BU$3,Millwall!$AP102:$BA102,0) ->  | BV29: =MATCH(BV$3,Millwall!$AP102:$BA102,0) ->  | BW29: =MATCH(BW$3,Millwall!$AP102:$BA102,0) ->  | BX29: =MATCH(BX$3,Millwall!$AP102:$BA102,0) ->  | BY29: =MATCH(BY$3,Millwall!$AP102:$BA102,0) ->  | BZ29: =MATCH(BZ$3,Millwall!$AP102:$BA102,0) ->  | CA29: =MATCH(CA$3,Millwall!$AP102:$BA102,0) ->  | CB29: =MATCH(CB$3,Millwall!$AP102:$BA102,0) ->  | CC29: =MATCH(CC$3,Millwall!$AP102:$BA102,0) ->  | CD29: =MATCH(CD$3,Millwall!$AP102:$BA102,0) ->  | CE29: =MATCH(CE$3,Millwall!$AP102:$BA102,0) ->  | CM29: =Millwall!$BO96 -> 0 | CN29: =Millwall!$BN96&" (**" -> (** | CO29: =Millwall!$BN96&"**" -> **
C30: 0 | D30: 26 | F30: =Millwall!AI103 -> 1971-01-30 | H30: =Millwall!AK103 -> Middlesbro | I30: =Millwall!AL103 -> (H) | J30: =Millwall!AO103 -> W 1-0 | K30: =MATCH(K$4,Millwall!$AP103:$BA103,0) ->  | L30: =MATCH(L$4,Millwall!$AP103:$BA103,0) -> 8 | M30: =MATCH(M$4,Millwall!$AP103:$BA103,0) -> 9 | N30: =MATCH(N$4,Millwall!$AP103:$BA103,0) -> 2 | O30: =MATCH(O$4,Millwall!$AP103:$BA103,0) -> 12 | P30: =MATCH(P$4,Millwall!$AP103:$BA103,0) -> 6 | Q30: =MATCH(Q$4,Millwall!$AP103:$BA103,0) ->  | R30: =MATCH(R$4,Millwall!$AP103:$BA103,0) -> 3 | S30: =MATCH(S$4,Millwall!$AP103:$BA103,0) -> 4 | T30: =MATCH(T$4,Millwall!$AP103:$BA103,0) -> 10 | U30: =MATCH(U$4,Millwall!$AP103:$BA103,0) ->  | V30: =MATCH(V$4,Millwall!$AP103:$BA103,0) ->  | W30: =MATCH(W$4,Millwall!$AP103:$BA103,0) ->  | X30: =MATCH(X$4,Millwall!$AP103:$BA103,0) -> 1 | Y30: =MATCH(Y$4,Millwall!$AP103:$BA103,0) -> 5 | Z30: =MATCH(Z$4,Millwall!$AP103:$BA103,0) -> 11 | AA30: =MATCH(AA$4,Millwall!$AP103:$BA103,0) -> 7 | AB30: =MATCH(AB$4,Millwall!$AP103:$BA103,0) ->  | AC30: =MATCH(AC$4,Millwall!$AP103:$BA103,0) ->  | AD30: =MATCH(AD$4,Millwall!$AP103:$BA103,0) ->  | AE30: =MATCH(AE$4,Millwall!$AP103:$BA103,0) ->  | AF30: =MATCH(AF$4,Millwall!$AP103:$BA103,0) ->  | AG30: =MATCH(AG$4,Millwall!$AP103:$BA103,0) ->  | AH30: =MATCH(AH$3,Millwall!$AP103:$BA103,0) ->  | AI30: =MATCH(AI$3,Millwall!$AP103:$BA103,0) ->  | AJ30: =MATCH(AJ$3,Millwall!$AP103:$BA103,0) ->  | AK30: =MATCH(AK$3,Millwall!$AP103:$BA103,0) ->  | AL30: =MATCH(AL$3,Millwall!$AP103:$BA103,0) ->  | AM30: =MATCH(AM$3,Millwall!$AP103:$BA103,0) ->  | AN30: =MATCH(AN$3,Millwall!$AP103:$BA103,0) ->  | AO30: =MATCH(AO$3,Millwall!$AP103:$BA103,0) ->  | AP30: =MATCH(AP$3,Millwall!$AP103:$BA103,0) ->  | AQ30: =MATCH(AQ$3,Millwall!$AP103:$BA103,0) ->  | AR30: =MATCH(AR$3,Millwall!$AP103:$BA103,0) ->  | AX30: =MATCH(AX$3,Millwall!$AP103:$BA103,0) ->  | AY30: =MATCH(AY$3,Millwall!$AP103:$BA103,0) ->  | AZ30: =MATCH(AZ$3,Millwall!$AP103:$BA103,0) ->  | BA30: =MATCH(BA$3,Millwall!$AP103:$BA103,0) ->  | BB30: =MATCH(BB$3,Millwall!$AP103:$BA103,0) -> 12 | BC30: =MATCH(BC$3,Millwall!$AP103:$BA103,0) ->  | BD30: =MATCH(BD$3,Millwall!$AP103:$BA103,0) ->  | BE30: =MATCH(BE$3,Millwall!$AP103:$BA103,0) ->  | BF30: =MATCH(BF$3,Millwall!$AP103:$BA103,0) ->  | BG30: =MATCH(BG$3,Millwall!$AP103:$BA103,0) ->  | BH30: =MATCH(BH$3,Millwall!$AP103:$BA103,0) ->  | BI30: =MATCH(BI$3,Millwall!$AP103:$BA103,0) ->  | BJ30: =MATCH(BJ$3,Millwall!$AP103:$BA103,0) ->  | BK30: =MATCH(BK$3,Millwall!$AP103:$BA103,0) ->  | BL30: =MATCH(BL$3,Millwall!$AP103:$BA103,0) ->  | BM30: =MATCH(BM$3,Millwall!$AP103:$BA103,0) -> 11 | BN30: =MATCH(BN$3,Millwall!$AP103:$BA103,0) ->  | BO30: =MATCH(BO$3,Millwall!$AP103:$BA103,0) ->  | BP30: =MATCH(BP$3,Millwall!$AP103:$BA103,0) ->  | BQ30: =MATCH(BQ$3,Millwall!$AP103:$BA103,0) ->  | BR30: =MATCH(BR$3,Millwall!$AP103:$BA103,0) ->  | BS30: =MATCH(BS$3,Millwall!$AP103:$BA103,0) ->  | BT30: =MATCH(BT$3,Millwall!$AP103:$BA103,0) ->  | BU30: =MATCH(BU$3,Millwall!$AP103:$BA103,0) ->  | BV30: =MATCH(BV$3,Millwall!$AP103:$BA103,0) ->  | BW30: =MATCH(BW$3,Millwall!$AP103:$BA103,0) ->  | BX30: =MATCH(BX$3,Millwall!$AP103:$BA103,0) ->  | BY30: =MATCH(BY$3,Millwall!$AP103:$BA103,0) ->  | BZ30: =MATCH(BZ$3,Millwall!$AP103:$BA103,0) ->  | CA30: =MATCH(CA$3,Millwall!$AP103:$BA103,0) ->  | CB30: =MATCH(CB$3,Millwall!$AP103:$BA103,0) ->  | CC30: =MATCH(CC$3,Millwall!$AP103:$BA103,0) ->  | CD30: =MATCH(CD$3,Millwall!$AP103:$BA103,0) ->  | CE30: =MATCH(CE$3,Millwall!$AP103:$BA103,0) ->  | CM30: =Millwall!$BO97 -> 0 | CN30: =Millwall!$BN97&" (**" -> (** | CO30: =Millwall!$BN97&"**" -> **
C31: 0 | D31: 27 | F31: =Millwall!AI104 -> 1971-02-06 | H31: =Millwall!AK104 -> Birmingham | I31: =Millwall!AL104 -> (A) | J31: =Millwall!AO104 -> L 1-3 | K31: =MATCH(K$4,Millwall!$AP104:$BA104,0) ->  | L31: =MATCH(L$4,Millwall!$AP104:$BA104,0) -> 8 | M31: =MATCH(M$4,Millwall!$AP104:$BA104,0) -> 9 | N31: =MATCH(N$4,Millwall!$AP104:$BA104,0) -> 2 | O31: =MATCH(O$4,Millwall!$AP104:$BA104,0) ->  | P31: =MATCH(P$4,Millwall!$AP104:$BA104,0) -> 6 | Q31: =MATCH(Q$4,Millwall!$AP104:$BA104,0) ->  | R31: =MATCH(R$4,Millwall!$AP104:$BA104,0) -> 3 | S31: =MATCH(S$4,Millwall!$AP104:$BA104,0) -> 4 | T31: =MATCH(T$4,Millwall!$AP104:$BA104,0) -> 10 | U31: =MATCH(U$4,Millwall!$AP104:$BA104,0) ->  | V31: =MATCH(V$4,Millwall!$AP104:$BA104,0) -> 12 | W31: =MATCH(W$4,Millwall!$AP104:$BA104,0) ->  | X31: =MATCH(X$4,Millwall!$AP104:$BA104,0) -> 1 | Y31: =MATCH(Y$4,Millwall!$AP104:$BA104,0) -> 5 | Z31: =MATCH(Z$4,Millwall!$AP104:$BA104,0) -> 11 | AA31: =MATCH(AA$4,Millwall!$AP104:$BA104,0) -> 7 | AB31: =MATCH(AB$4,Millwall!$AP104:$BA104,0) ->  | AC31: =MATCH(AC$4,Millwall!$AP104:$BA104,0) ->  | AD31: =MATCH(AD$4,Millwall!$AP104:$BA104,0) ->  | AE31: =MATCH(AE$4,Millwall!$AP104:$BA104,0) ->  | AF31: =MATCH(AF$4,Millwall!$AP104:$BA104,0) ->  | AG31: =MATCH(AG$4,Millwall!$AP104:$BA104,0) ->  | AH31: =MATCH(AH$3,Millwall!$AP104:$BA104,0) ->  | AI31: =MATCH(AI$3,Millwall!$AP104:$BA104,0) ->  | AJ31: =MATCH(AJ$3,Millwall!$AP104:$BA104,0) ->  | AK31: =MATCH(AK$3,Millwall!$AP104:$BA104,0) ->  | AL31: =MATCH(AL$3,Millwall!$AP104:$BA104,0) ->  | AM31: =MATCH(AM$3,Millwall!$AP104:$BA104,0) ->  | AN31: =MATCH(AN$3,Millwall!$AP104:$BA104,0) ->  | AO31: =MATCH(AO$3,Millwall!$AP104:$BA104,0) ->  | AP31: =MATCH(AP$3,Millwall!$AP104:$BA104,0) ->  | AQ31: =MATCH(AQ$3,Millwall!$AP104:$BA104,0) ->  | AR31: =MATCH(AR$3,Millwall!$AP104:$BA104,0) ->  | AX31: =MATCH(AX$3,Millwall!$AP104:$BA104,0) ->  | AY31: =MATCH(AY$3,Millwall!$AP104:$BA104,0) ->  | AZ31: =MATCH(AZ$3,Millwall!$AP104:$BA104,0) ->  | BA31: =MATCH(BA$3,Millwall!$AP104:$BA104,0) ->  | BB31: =MATCH(BB$3,Millwall!$AP104:$BA104,0) ->  | BC31: =MATCH(BC$3,Millwall!$AP104:$BA104,0) ->  | BD31: =MATCH(BD$3,Millwall!$AP104:$BA104,0) ->  | BE31: =MATCH(BE$3,Millwall!$AP104:$BA104,0) ->  | BF31: =MATCH(BF$3,Millwall!$AP104:$BA104,0) ->  | BG31: =MATCH(BG$3,Millwall!$AP104:$BA104,0) ->  | BH31: =MATCH(BH$3,Millwall!$AP104:$BA104,0) ->  | BI31: =MATCH(BI$3,Millwall!$AP104:$BA104,0) -> 12 | BJ31: =MATCH(BJ$3,Millwall!$AP104:$BA104,0) ->  | BK31: =MATCH(BK$3,Millwall!$AP104:$BA104,0) ->  | BL31: =MATCH(BL$3,Millwall!$AP104:$BA104,0) ->  | BM31: =MATCH(BM$3,Millwall!$AP104:$BA104,0) -> 11 | BN31: =MATCH(BN$3,Millwall!$AP104:$BA104,0) ->  | BO31: =MATCH(BO$3,Millwall!$AP104:$BA104,0) ->  | BP31: =MATCH(BP$3,Millwall!$AP104:$BA104,0) ->  | BQ31: =MATCH(BQ$3,Millwall!$AP104:$BA104,0) ->  | BR31: =MATCH(BR$3,Millwall!$AP104:$BA104,0) ->  | BS31: =MATCH(BS$3,Millwall!$AP104:$BA104,0) ->  | BT31: =MATCH(BT$3,Millwall!$AP104:$BA104,0) ->  | BU31: =MATCH(BU$3,Millwall!$AP104:$BA104,0) ->  | BV31: =MATCH(BV$3,Millwall!$AP104:$BA104,0) ->  | BW31: =MATCH(BW$3,Millwall!$AP104:$BA104,0) ->  | BX31: =MATCH(BX$3,Millwall!$AP104:$BA104,0) ->  | BY31: =MATCH(BY$3,Millwall!$AP104:$BA104,0) ->  | BZ31: =MATCH(BZ$3,Millwall!$AP104:$BA104,0) ->  | CA31: =MATCH(CA$3,Millwall!$AP104:$BA104,0) ->  | CB31: =MATCH(CB$3,Millwall!$AP104:$BA104,0) ->  | CC31: =MATCH(CC$3,Millwall!$AP104:$BA104,0) ->  | CD31: =MATCH(CD$3,Millwall!$AP104:$BA104,0) ->  | CE31: =MATCH(CE$3,Millwall!$AP104:$BA104,0) ->  | CM31: =Millwall!$BO98 -> 0 | CN31: =Millwall!$BN98&" (**" -> (** | CO31: =Millwall!$BN98&"**" -> **
C32: 0 | D32: 28 | F32: =Millwall!AI105 -> 1971-02-20 | H32: =Millwall!AK105 -> Bristol C | I32: =Millwall!AL105 -> (A) | J32: =Millwall!AO105 -> L 2-3 | K32: =MATCH(K$4,Millwall!$AP105:$BA105,0) -> 11 | L32: =MATCH(L$4,Millwall!$AP105:$BA105,0) -> 8 | M32: =MATCH(M$4,Millwall!$AP105:$BA105,0) -> 9 | N32: =MATCH(N$4,Millwall!$AP105:$BA105,0) -> 2 | O32: =MATCH(O$4,Millwall!$AP105:$BA105,0) -> 7 | P32: =MATCH(P$4,Millwall!$AP105:$BA105,0) ->  | Q32: =MATCH(Q$4,Millwall!$AP105:$BA105,0) ->  | R32: =MATCH(R$4,Millwall!$AP105:$BA105,0) -> 3 | S32: =MATCH(S$4,Millwall!$AP105:$BA105,0) -> 4 | T32: =MATCH(T$4,Millwall!$AP105:$BA105,0) -> 10 | U32: =MATCH(U$4,Millwall!$AP105:$BA105,0) -> 6 | V32: =MATCH(V$4,Millwall!$AP105:$BA105,0) ->  | W32: =MATCH(W$4,Millwall!$AP105:$BA105,0) ->  | X32: =MATCH(X$4,Millwall!$AP105:$BA105,0) -> 1 | Y32: =MATCH(Y$4,Millwall!$AP105:$BA105,0) -> 5 | Z32: =MATCH(Z$4,Millwall!$AP105:$BA105,0) -> 12 | AA32: =MATCH(AA$4,Millwall!$AP105:$BA105,0) ->  | AB32: =MATCH(AB$4,Millwall!$AP105:$BA105,0) ->  | AC32: =MATCH(AC$4,Millwall!$AP105:$BA105,0) ->  | AD32: =MATCH(AD$4,Millwall!$AP105:$BA105,0) ->  | AE32: =MATCH(AE$4,Millwall!$AP105:$BA105,0) ->  | AF32: =MATCH(AF$4,Millwall!$AP105:$BA105,0) ->  | AG32: =MATCH(AG$4,Millwall!$AP105:$BA105,0) ->  | AH32: =MATCH(AH$3,Millwall!$AP105:$BA105,0) ->  | AI32: =MATCH(AI$3,Millwall!$AP105:$BA105,0) ->  | AJ32: =MATCH(AJ$3,Millwall!$AP105:$BA105,0) ->  | AK32: =MATCH(AK$3,Millwall!$AP105:$BA105,0) ->  | AL32: =MATCH(AL$3,Millwall!$AP105:$BA105,0) ->  | AM32: =MATCH(AM$3,Millwall!$AP105:$BA105,0) ->  | AN32: =MATCH(AN$3,Millwall!$AP105:$BA105,0) ->  | AO32: =MATCH(AO$3,Millwall!$AP105:$BA105,0) ->  | AP32: =MATCH(AP$3,Millwall!$AP105:$BA105,0) ->  | AQ32: =MATCH(AQ$3,Millwall!$AP105:$BA105,0) ->  | AR32: =MATCH(AR$3,Millwall!$AP105:$BA105,0) ->  | AX32: =MATCH(AX$3,Millwall!$AP105:$BA105,0) ->  | AY32: =MATCH(AY$3,Millwall!$AP105:$BA105,0) ->  | AZ32: =MATCH(AZ$3,Millwall!$AP105:$BA105,0) ->  | BA32: =MATCH(BA$3,Millwall!$AP105:$BA105,0) ->  | BB32: =MATCH(BB$3,Millwall!$AP105:$BA105,0) -> 7 | BC32: =MATCH(BC$3,Millwall!$AP105:$BA105,0) ->  | BD32: =MATCH(BD$3,Millwall!$AP105:$BA105,0) ->  | BE32: =MATCH(BE$3,Millwall!$AP105:$BA105,0) ->  | BF32: =MATCH(BF$3,Millwall!$AP105:$BA105,0) ->  | BG32: =MATCH(BG$3,Millwall!$AP105:$BA105,0) ->  | BH32: =MATCH(BH$3,Millwall!$AP105:$BA105,0) ->  | BI32: =MATCH(BI$3,Millwall!$AP105:$BA105,0) ->  | BJ32: =MATCH(BJ$3,Millwall!$AP105:$BA105,0) ->  | BK32: =MATCH(BK$3,Millwall!$AP105:$BA105,0) ->  | BL32: =MATCH(BL$3,Millwall!$AP105:$BA105,0) ->  | BM32: =MATCH(BM$3,Millwall!$AP105:$BA105,0) -> 12 | BN32: =MATCH(BN$3,Millwall!$AP105:$BA105,0) ->  | BO32: =MATCH(BO$3,Millwall!$AP105:$BA105,0) ->  | BP32: =MATCH(BP$3,Millwall!$AP105:$BA105,0) ->  | BQ32: =MATCH(BQ$3,Millwall!$AP105:$BA105,0) ->  | BR32: =MATCH(BR$3,Millwall!$AP105:$BA105,0) ->  | BS32: =MATCH(BS$3,Millwall!$AP105:$BA105,0) ->  | BT32: =MATCH(BT$3,Millwall!$AP105:$BA105,0) ->  | BU32: =MATCH(BU$3,Millwall!$AP105:$BA105,0) ->  | BV32: =MATCH(BV$3,Millwall!$AP105:$BA105,0) ->  | BW32: =MATCH(BW$3,Millwall!$AP105:$BA105,0) ->  | BX32: =MATCH(BX$3,Millwall!$AP105:$BA105,0) ->  | BY32: =MATCH(BY$3,Millwall!$AP105:$BA105,0) ->  | BZ32: =MATCH(BZ$3,Millwall!$AP105:$BA105,0) ->  | CA32: =MATCH(CA$3,Millwall!$AP105:$BA105,0) ->  | CB32: =MATCH(CB$3,Millwall!$AP105:$BA105,0) ->  | CC32: =MATCH(CC$3,Millwall!$AP105:$BA105,0) ->  | CD32: =MATCH(CD$3,Millwall!$AP105:$BA105,0) ->  | CE32: =MATCH(CE$3,Millwall!$AP105:$BA105,0) ->  | CM32: =Millwall!$BO99 -> 0 | CN32: =Millwall!$BN99&" (**" -> (** | CO32: =Millwall!$BN99&"**" -> **
C33: 0 | D33: 29 | F33: =Millwall!AI106 -> 1971-02-27 | H33: =Millwall!AK106 -> QPR | I33: =Millwall!AL106 -> (A) | J33: =Millwall!AO106 -> L 0-2 | K33: =MATCH(K$4,Millwall!$AP106:$BA106,0) -> 11 | L33: =MATCH(L$4,Millwall!$AP106:$BA106,0) -> 6 | M33: =MATCH(M$4,Millwall!$AP106:$BA106,0) -> 9 | N33: =MATCH(N$4,Millwall!$AP106:$BA106,0) -> 2 | O33: =MATCH(O$4,Millwall!$AP106:$BA106,0) ->  | P33: =MATCH(P$4,Millwall!$AP106:$BA106,0) ->  | Q33: =MATCH(Q$4,Millwall!$AP106:$BA106,0) ->  | R33: =MATCH(R$4,Millwall!$AP106:$BA106,0) -> 3 | S33: =MATCH(S$4,Millwall!$AP106:$BA106,0) -> 4 | T33: =MATCH(T$4,Millwall!$AP106:$BA106,0) ->  | U33: =MATCH(U$4,Millwall!$AP106:$BA106,0) ->  | V33: =MATCH(V$4,Millwall!$AP106:$BA106,0) ->  | W33: =MATCH(W$4,Millwall!$AP106:$BA106,0) -> 8 | X33: =MATCH(X$4,Millwall!$AP106:$BA106,0) -> 1 | Y33: =MATCH(Y$4,Millwall!$AP106:$BA106,0) -> 5 | Z33: =MATCH(Z$4,Millwall!$AP106:$BA106,0) -> 10 | AA33: =MATCH(AA$4,Millwall!$AP106:$BA106,0) -> 7 | AB33: =MATCH(AB$4,Millwall!$AP106:$BA106,0) ->  | AC33: =MATCH(AC$4,Millwall!$AP106:$BA106,0) ->  | AD33: =MATCH(AD$4,Millwall!$AP106:$BA106,0) ->  | AE33: =MATCH(AE$4,Millwall!$AP106:$BA106,0) ->  | AF33: =MATCH(AF$4,Millwall!$AP106:$BA106,0) ->  | AG33: =MATCH(AG$4,Millwall!$AP106:$BA106,0) ->  | AH33: =MATCH(AH$3,Millwall!$AP106:$BA106,0) ->  | AI33: =MATCH(AI$3,Millwall!$AP106:$BA106,0) ->  | AJ33: =MATCH(AJ$3,Millwall!$AP106:$BA106,0) ->  | AK33: =MATCH(AK$3,Millwall!$AP106:$BA106,0) ->  | AL33: =MATCH(AL$3,Millwall!$AP106:$BA106,0) ->  | AM33: =MATCH(AM$3,Millwall!$AP106:$BA106,0) ->  | AN33: =MATCH(AN$3,Millwall!$AP106:$BA106,0) ->  | AO33: =MATCH(AO$3,Millwall!$AP106:$BA106,0) ->  | AP33: =MATCH(AP$3,Millwall!$AP106:$BA106,0) ->  | AQ33: =MATCH(AQ$3,Millwall!$AP106:$BA106,0) ->  | AR33: =MATCH(AR$3,Millwall!$AP106:$BA106,0) ->  | AX33: =MATCH(AX$3,Millwall!$AP106:$BA106,0) ->  | AY33: =MATCH(AY$3,Millwall!$AP106:$BA106,0) ->  | AZ33: =MATCH(AZ$3,Millwall!$AP106:$BA106,0) ->  | BA33: =MATCH(BA$3,Millwall!$AP106:$BA106,0) ->  | BB33: =MATCH(BB$3,Millwall!$AP106:$BA106,0) ->  | BC33: =MATCH(BC$3,Millwall!$AP106:$BA106,0) ->  | BD33: =MATCH(BD$3,Millwall!$AP106:$BA106,0) ->  | BE33: =MATCH(BE$3,Millwall!$AP106:$BA106,0) ->  | BF33: =MATCH(BF$3,Millwall!$AP106:$BA106,0) ->  | BG33: =MATCH(BG$3,Millwall!$AP106:$BA106,0) ->  | BH33: =MATCH(BH$3,Millwall!$AP106:$BA106,0) ->  | BI33: =MATCH(BI$3,Millwall!$AP106:$BA106,0) ->  | BJ33: =MATCH(BJ$3,Millwall!$AP106:$BA106,0) ->  | BK33: =MATCH(BK$3,Millwall!$AP106:$BA106,0) ->  | BL33: =MATCH(BL$3,Millwall!$AP106:$BA106,0) ->  | BM33: =MATCH(BM$3,Millwall!$AP106:$BA106,0) ->  | BN33: =MATCH(BN$3,Millwall!$AP106:$BA106,0) ->  | BO33: =MATCH(BO$3,Millwall!$AP106:$BA106,0) ->  | BP33: =MATCH(BP$3,Millwall!$AP106:$BA106,0) ->  | BQ33: =MATCH(BQ$3,Millwall!$AP106:$BA106,0) ->  | BR33: =MATCH(BR$3,Millwall!$AP106:$BA106,0) ->  | BS33: =MATCH(BS$3,Millwall!$AP106:$BA106,0) ->  | BT33: =MATCH(BT$3,Millwall!$AP106:$BA106,0) ->  | BU33: =MATCH(BU$3,Millwall!$AP106:$BA106,0) ->  | BV33: =MATCH(BV$3,Millwall!$AP106:$BA106,0) ->  | BW33: =MATCH(BW$3,Millwall!$AP106:$BA106,0) ->  | BX33: =MATCH(BX$3,Millwall!$AP106:$BA106,0) ->  | BY33: =MATCH(BY$3,Millwall!$AP106:$BA106,0) ->  | BZ33: =MATCH(BZ$3,Millwall!$AP106:$BA106,0) ->  | CA33: =MATCH(CA$3,Millwall!$AP106:$BA106,0) ->  | CB33: =MATCH(CB$3,Millwall!$AP106:$BA106,0) ->  | CC33: =MATCH(CC$3,Millwall!$AP106:$BA106,0) ->  | CD33: =MATCH(CD$3,Millwall!$AP106:$BA106,0) ->  | CE33: =MATCH(CE$3,Millwall!$AP106:$BA106,0) ->  | CM33: =Millwall!$BO100 -> 0 | CN33: =Millwall!$BN100&" (**" -> (** | CO33: =Millwall!$BN100&"**" -> **
C34: 0 | D34: 30 | F34: =Millwall!AI107 -> 1971-03-01 | H34: =Millwall!AK107 -> Leicester | I34: =Millwall!AL107 -> (H) | J34: =Millwall!AO107 -> D 0-0 | K34: =MATCH(K$4,Millwall!$AP107:$BA107,0) -> 11 | L34: =MATCH(L$4,Millwall!$AP107:$BA107,0) -> 10 | M34: =MATCH(M$4,Millwall!$AP107:$BA107,0) -> 9 | N34: =MATCH(N$4,Millwall!$AP107:$BA107,0) -> 2 | O34: =MATCH(O$4,Millwall!$AP107:$BA107,0) ->  | P34: =MATCH(P$4,Millwall!$AP107:$BA107,0) -> 6 | Q34: =MATCH(Q$4,Millwall!$AP107:$BA107,0) ->  | R34: =MATCH(R$4,Millwall!$AP107:$BA107,0) -> 3 | S34: =MATCH(S$4,Millwall!$AP107:$BA107,0) -> 4 | T34: =MATCH(T$4,Millwall!$AP107:$BA107,0) ->  | U34: =MATCH(U$4,Millwall!$AP107:$BA107,0) ->  | V34: =MATCH(V$4,Millwall!$AP107:$BA107,0) ->  | W34: =MATCH(W$4,Millwall!$AP107:$BA107,0) -> 8 | X34: =MATCH(X$4,Millwall!$AP107:$BA107,0) -> 1 | Y34: =MATCH(Y$4,Millwall!$AP107:$BA107,0) -> 5 | Z34: =MATCH(Z$4,Millwall!$AP107:$BA107,0) ->  | AA34: =MATCH(AA$4,Millwall!$AP107:$BA107,0) -> 7 | AB34: =MATCH(AB$4,Millwall!$AP107:$BA107,0) ->  | AC34: =MATCH(AC$4,Millwall!$AP107:$BA107,0) ->  | AD34: =MATCH(AD$4,Millwall!$AP107:$BA107,0) ->  | AE34: =MATCH(AE$4,Millwall!$AP107:$BA107,0) ->  | AF34: =MATCH(AF$4,Millwall!$AP107:$BA107,0) ->  | AG34: =MATCH(AG$4,Millwall!$AP107:$BA107,0) ->  | AH34: =MATCH(AH$3,Millwall!$AP107:$BA107,0) ->  | AI34: =MATCH(AI$3,Millwall!$AP107:$BA107,0) ->  | AJ34: =MATCH(AJ$3,Millwall!$AP107:$BA107,0) ->  | AK34: =MATCH(AK$3,Millwall!$AP107:$BA107,0) ->  | AL34: =MATCH(AL$3,Millwall!$AP107:$BA107,0) ->  | AM34: =MATCH(AM$3,Millwall!$AP107:$BA107,0) ->  | AN34: =MATCH(AN$3,Millwall!$AP107:$BA107,0) ->  | AO34: =MATCH(AO$3,Millwall!$AP107:$BA107,0) ->  | AP34: =MATCH(AP$3,Millwall!$AP107:$BA107,0) ->  | AQ34: =MATCH(AQ$3,Millwall!$AP107:$BA107,0) ->  | AR34: =MATCH(AR$3,Millwall!$AP107:$BA107,0) ->  | AX34: =MATCH(AX$3,Millwall!$AP107:$BA107,0) ->  | AY34: =MATCH(AY$3,Millwall!$AP107:$BA107,0) ->  | AZ34: =MATCH(AZ$3,Millwall!$AP107:$BA107,0) ->  | BA34: =MATCH(BA$3,Millwall!$AP107:$BA107,0) ->  | BB34: =MATCH(BB$3,Millwall!$AP107:$BA107,0) ->  | BC34: =MATCH(BC$3,Millwall!$AP107:$BA107,0) ->  | BD34: =MATCH(BD$3,Millwall!$AP107:$BA107,0) ->  | BE34: =MATCH(BE$3,Millwall!$AP107:$BA107,0) ->  | BF34: =MATCH(BF$3,Millwall!$AP107:$BA107,0) ->  | BG34: =MATCH(BG$3,Millwall!$AP107:$BA107,0) ->  | BH34: =MATCH(BH$3,Millwall!$AP107:$BA107,0) ->  | BI34: =MATCH(BI$3,Millwall!$AP107:$BA107,0) ->  | BJ34: =MATCH(BJ$3,Millwall!$AP107:$BA107,0) ->  | BK34: =MATCH(BK$3,Millwall!$AP107:$BA107,0) ->  | BL34: =MATCH(BL$3,Millwall!$AP107:$BA107,0) ->  | BM34: =MATCH(BM$3,Millwall!$AP107:$BA107,0) ->  | BN34: =MATCH(BN$3,Millwall!$AP107:$BA107,0) ->  | BO34: =MATCH(BO$3,Millwall!$AP107:$BA107,0) ->  | BP34: =MATCH(BP$3,Millwall!$AP107:$BA107,0) ->  | BQ34: =MATCH(BQ$3,Millwall!$AP107:$BA107,0) ->  | BR34: =MATCH(BR$3,Millwall!$AP107:$BA107,0) ->  | BS34: =MATCH(BS$3,Millwall!$AP107:$BA107,0) ->  | BT34: =MATCH(BT$3,Millwall!$AP107:$BA107,0) ->  | BU34: =MATCH(BU$3,Millwall!$AP107:$BA107,0) ->  | BV34: =MATCH(BV$3,Millwall!$AP107:$BA107,0) ->  | BW34: =MATCH(BW$3,Millwall!$AP107:$BA107,0) ->  | BX34: =MATCH(BX$3,Millwall!$AP107:$BA107,0) ->  | BY34: =MATCH(BY$3,Millwall!$AP107:$BA107,0) ->  | BZ34: =MATCH(BZ$3,Millwall!$AP107:$BA107,0) ->  | CA34: =MATCH(CA$3,Millwall!$AP107:$BA107,0) ->  | CB34: =MATCH(CB$3,Millwall!$AP107:$BA107,0) ->  | CC34: =MATCH(CC$3,Millwall!$AP107:$BA107,0) ->  | CD34: =MATCH(CD$3,Millwall!$AP107:$BA107,0) ->  | CE34: =MATCH(CE$3,Millwall!$AP107:$BA107,0) ->  | CM34: =Millwall!$BO101 -> 0 | CN34: =Millwall!$BN101&" (**" -> (** | CO34: =Millwall!$BN101&"**" -> **
C35: 0 | D35: 31 | F35: =Millwall!AI108 -> 1971-03-06 | H35: =Millwall!AK108 -> Leyton Orient | I35: =Millwall!AL108 -> (H) | J35: =Millwall!AO108 -> L 0-1 | K35: =MATCH(K$4,Millwall!$AP108:$BA108,0) -> 11 | L35: =MATCH(L$4,Millwall!$AP108:$BA108,0) -> 10 | M35: =MATCH(M$4,Millwall!$AP108:$BA108,0) -> 9 | N35: =MATCH(N$4,Millwall!$AP108:$BA108,0) -> 2 | O35: =MATCH(O$4,Millwall!$AP108:$BA108,0) ->  | P35: =MATCH(P$4,Millwall!$AP108:$BA108,0) -> 6 | Q35: =MATCH(Q$4,Millwall!$AP108:$BA108,0) ->  | R35: =MATCH(R$4,Millwall!$AP108:$BA108,0) -> 3 | S35: =MATCH(S$4,Millwall!$AP108:$BA108,0) -> 4 | T35: =MATCH(T$4,Millwall!$AP108:$BA108,0) -> 12 | U35: =MATCH(U$4,Millwall!$AP108:$BA108,0) ->  | V35: =MATCH(V$4,Millwall!$AP108:$BA108,0) ->  | W35: =MATCH(W$4,Millwall!$AP108:$BA108,0) ->  | X35: =MATCH(X$4,Millwall!$AP108:$BA108,0) -> 1 | Y35: =MATCH(Y$4,Millwall!$AP108:$BA108,0) -> 5 | Z35: =MATCH(Z$4,Millwall!$AP108:$BA108,0) -> 8 | AA35: =MATCH(AA$4,Millwall!$AP108:$BA108,0) -> 7 | AB35: =MATCH(AB$4,Millwall!$AP108:$BA108,0) ->  | AC35: =MATCH(AC$4,Millwall!$AP108:$BA108,0) ->  | AD35: =MATCH(AD$4,Millwall!$AP108:$BA108,0) ->  | AE35: =MATCH(AE$4,Millwall!$AP108:$BA108,0) ->  | AF35: =MATCH(AF$4,Millwall!$AP108:$BA108,0) ->  | AG35: =MATCH(AG$4,Millwall!$AP108:$BA108,0) ->  | AH35: =MATCH(AH$3,Millwall!$AP108:$BA108,0) ->  | AI35: =MATCH(AI$3,Millwall!$AP108:$BA108,0) ->  | AJ35: =MATCH(AJ$3,Millwall!$AP108:$BA108,0) ->  | AK35: =MATCH(AK$3,Millwall!$AP108:$BA108,0) ->  | AL35: =MATCH(AL$3,Millwall!$AP108:$BA108,0) ->  | AM35: =MATCH(AM$3,Millwall!$AP108:$BA108,0) ->  | AN35: =MATCH(AN$3,Millwall!$AP108:$BA108,0) ->  | AO35: =MATCH(AO$3,Millwall!$AP108:$BA108,0) ->  | AP35: =MATCH(AP$3,Millwall!$AP108:$BA108,0) ->  | AQ35: =MATCH(AQ$3,Millwall!$AP108:$BA108,0) ->  | AR35: =MATCH(AR$3,Millwall!$AP108:$BA108,0) ->  | AX35: =MATCH(AX$3,Millwall!$AP108:$BA108,0) ->  | AY35: =MATCH(AY$3,Millwall!$AP108:$BA108,0) ->  | AZ35: =MATCH(AZ$3,Millwall!$AP108:$BA108,0) ->  | BA35: =MATCH(BA$3,Millwall!$AP108:$BA108,0) ->  | BB35: =MATCH(BB$3,Millwall!$AP108:$BA108,0) ->  | BC35: =MATCH(BC$3,Millwall!$AP108:$BA108,0) ->  | BD35: =MATCH(BD$3,Millwall!$AP108:$BA108,0) ->  | BE35: =MATCH(BE$3,Millwall!$AP108:$BA108,0) ->  | BF35: =MATCH(BF$3,Millwall!$AP108:$BA108,0) ->  | BG35: =MATCH(BG$3,Millwall!$AP108:$BA108,0) -> 12 | BH35: =MATCH(BH$3,Millwall!$AP108:$BA108,0) ->  | BI35: =MATCH(BI$3,Millwall!$AP108:$BA108,0) ->  | BJ35: =MATCH(BJ$3,Millwall!$AP108:$BA108,0) ->  | BK35: =MATCH(BK$3,Millwall!$AP108:$BA108,0) ->  | BL35: =MATCH(BL$3,Millwall!$AP108:$BA108,0) ->  | BM35: =MATCH(BM$3,Millwall!$AP108:$BA108,0) -> 8 | BN35: =MATCH(BN$3,Millwall!$AP108:$BA108,0) ->  | BO35: =MATCH(BO$3,Millwall!$AP108:$BA108,0) ->  | BP35: =MATCH(BP$3,Millwall!$AP108:$BA108,0) ->  | BQ35: =MATCH(BQ$3,Millwall!$AP108:$BA108,0) ->  | BR35: =MATCH(BR$3,Millwall!$AP108:$BA108,0) ->  | BS35: =MATCH(BS$3,Millwall!$AP108:$BA108,0) ->  | BT35: =MATCH(BT$3,Millwall!$AP108:$BA108,0) ->  | BU35: =MATCH(BU$3,Millwall!$AP108:$BA108,0) ->  | BV35: =MATCH(BV$3,Millwall!$AP108:$BA108,0) ->  | BW35: =MATCH(BW$3,Millwall!$AP108:$BA108,0) ->  | BX35: =MATCH(BX$3,Millwall!$AP108:$BA108,0) ->  | BY35: =MATCH(BY$3,Millwall!$AP108:$BA108,0) ->  | BZ35: =MATCH(BZ$3,Millwall!$AP108:$BA108,0) ->  | CA35: =MATCH(CA$3,Millwall!$AP108:$BA108,0) ->  | CB35: =MATCH(CB$3,Millwall!$AP108:$BA108,0) ->  | CC35: =MATCH(CC$3,Millwall!$AP108:$BA108,0) ->  | CD35: =MATCH(CD$3,Millwall!$AP108:$BA108,0) ->  | CE35: =MATCH(CE$3,Millwall!$AP108:$BA108,0) ->  | CM35: =Millwall!$BO102 -> 0 | CN35: =Millwall!$BN102&" (**" -> (** | CO35: =Millwall!$BN102&"**" -> **
C36: 0 | D36: 32 | F36: =Millwall!AI109 -> 1971-03-13 | H36: =Millwall!AK109 -> Bolton | I36: =Millwall!AL109 -> (A) | J36: =Millwall!AO109 -> D 1-1 | K36: =MATCH(K$4,Millwall!$AP109:$BA109,0) -> 11 | L36: =MATCH(L$4,Millwall!$AP109:$BA109,0) -> 8 | M36: =MATCH(M$4,Millwall!$AP109:$BA109,0) -> 9 | N36: =MATCH(N$4,Millwall!$AP109:$BA109,0) -> 2 | O36: =MATCH(O$4,Millwall!$AP109:$BA109,0) ->  | P36: =MATCH(P$4,Millwall!$AP109:$BA109,0) -> 6 | Q36: =MATCH(Q$4,Millwall!$AP109:$BA109,0) ->  | R36: =MATCH(R$4,Millwall!$AP109:$BA109,0) -> 3 | S36: =MATCH(S$4,Millwall!$AP109:$BA109,0) -> 4 | T36: =MATCH(T$4,Millwall!$AP109:$BA109,0) -> 10 | U36: =MATCH(U$4,Millwall!$AP109:$BA109,0) ->  | V36: =MATCH(V$4,Millwall!$AP109:$BA109,0) ->  | W36: =MATCH(W$4,Millwall!$AP109:$BA109,0) ->  | X36: =MATCH(X$4,Millwall!$AP109:$BA109,0) -> 1 | Y36: =MATCH(Y$4,Millwall!$AP109:$BA109,0) -> 5 | Z36: =MATCH(Z$4,Millwall!$AP109:$BA109,0) ->  | AA36: =MATCH(AA$4,Millwall!$AP109:$BA109,0) -> 7 | AB36: =MATCH(AB$4,Millwall!$AP109:$BA109,0) ->  | AC36: =MATCH(AC$4,Millwall!$AP109:$BA109,0) ->  | AD36: =MATCH(AD$4,Millwall!$AP109:$BA109,0) ->  | AE36: =MATCH(AE$4,Millwall!$AP109:$BA109,0) ->  | AF36: =MATCH(AF$4,Millwall!$AP109:$BA109,0) ->  | AG36: =MATCH(AG$4,Millwall!$AP109:$BA109,0) ->  | AH36: =MATCH(AH$3,Millwall!$AP109:$BA109,0) ->  | AI36: =MATCH(AI$3,Millwall!$AP109:$BA109,0) ->  | AJ36: =MATCH(AJ$3,Millwall!$AP109:$BA109,0) ->  | AK36: =MATCH(AK$3,Millwall!$AP109:$BA109,0) ->  | AL36: =MATCH(AL$3,Millwall!$AP109:$BA109,0) ->  | AM36: =MATCH(AM$3,Millwall!$AP109:$BA109,0) ->  | AN36: =MATCH(AN$3,Millwall!$AP109:$BA109,0) ->  | AO36: =MATCH(AO$3,Millwall!$AP109:$BA109,0) ->  | AP36: =MATCH(AP$3,Millwall!$AP109:$BA109,0) ->  | AQ36: =MATCH(AQ$3,Millwall!$AP109:$BA109,0) ->  | AR36: =MATCH(AR$3,Millwall!$AP109:$BA109,0) ->  | AX36: =MATCH(AX$3,Millwall!$AP109:$BA109,0) ->  | AY36: =MATCH(AY$3,Millwall!$AP109:$BA109,0) ->  | AZ36: =MATCH(AZ$3,Millwall!$AP109:$BA109,0) ->  | BA36: =MATCH(BA$3,Millwall!$AP109:$BA109,0) ->  | BB36: =MATCH(BB$3,Millwall!$AP109:$BA109,0) ->  | BC36: =MATCH(BC$3,Millwall!$AP109:$BA109,0) ->  | BD36: =MATCH(BD$3,Millwall!$AP109:$BA109,0) ->  | BE36: =MATCH(BE$3,Millwall!$AP109:$BA109,0) ->  | BF36: =MATCH(BF$3,Millwall!$AP109:$BA109,0) ->  | BG36: =MATCH(BG$3,Millwall!$AP109:$BA109,0) ->  | BH36: =MATCH(BH$3,Millwall!$AP109:$BA109,0) ->  | BI36: =MATCH(BI$3,Millwall!$AP109:$BA109,0) ->  | BJ36: =MATCH(BJ$3,Millwall!$AP109:$BA109,0) ->  | BK36: =MATCH(BK$3,Millwall!$AP109:$BA109,0) ->  | BL36: =MATCH(BL$3,Millwall!$AP109:$BA109,0) ->  | BM36: =MATCH(BM$3,Millwall!$AP109:$BA109,0) ->  | BN36: =MATCH(BN$3,Millwall!$AP109:$BA109,0) ->  | BO36: =MATCH(BO$3,Millwall!$AP109:$BA109,0) ->  | BP36: =MATCH(BP$3,Millwall!$AP109:$BA109,0) ->  | BQ36: =MATCH(BQ$3,Millwall!$AP109:$BA109,0) ->  | BR36: =MATCH(BR$3,Millwall!$AP109:$BA109,0) ->  | BS36: =MATCH(BS$3,Millwall!$AP109:$BA109,0) ->  | BT36: =MATCH(BT$3,Millwall!$AP109:$BA109,0) ->  | BU36: =MATCH(BU$3,Millwall!$AP109:$BA109,0) ->  | BV36: =MATCH(BV$3,Millwall!$AP109:$BA109,0) ->  | BW36: =MATCH(BW$3,Millwall!$AP109:$BA109,0) ->  | BX36: =MATCH(BX$3,Millwall!$AP109:$BA109,0) ->  | BY36: =MATCH(BY$3,Millwall!$AP109:$BA109,0) ->  | BZ36: =MATCH(BZ$3,Millwall!$AP109:$BA109,0) ->  | CA36: =MATCH(CA$3,Millwall!$AP109:$BA109,0) ->  | CB36: =MATCH(CB$3,Millwall!$AP109:$BA109,0) ->  | CC36: =MATCH(CC$3,Millwall!$AP109:$BA109,0) ->  | CD36: =MATCH(CD$3,Millwall!$AP109:$BA109,0) ->  | CE36: =MATCH(CE$3,Millwall!$AP109:$BA109,0) ->  | CM36: =Millwall!$BO103 -> 0 | CN36: =Millwall!$BN103&" (**" -> (** | CO36: =Millwall!$BN103&"**" -> **
C37: 0 | D37: 33 | F37: =Millwall!AI110 -> 1971-03-20 | H37: =Millwall!AK110 -> Sheff Wed | I37: =Millwall!AL110 -> (H) | J37: =Millwall!AO110 -> W 1-0 | K37: =MATCH(K$4,Millwall!$AP110:$BA110,0) -> 11 | L37: =MATCH(L$4,Millwall!$AP110:$BA110,0) -> 8 | M37: =MATCH(M$4,Millwall!$AP110:$BA110,0) -> 9 | N37: =MATCH(N$4,Millwall!$AP110:$BA110,0) -> 2 | O37: =MATCH(O$4,Millwall!$AP110:$BA110,0) ->  | P37: =MATCH(P$4,Millwall!$AP110:$BA110,0) -> 6 | Q37: =MATCH(Q$4,Millwall!$AP110:$BA110,0) ->  | R37: =MATCH(R$4,Millwall!$AP110:$BA110,0) -> 3 | S37: =MATCH(S$4,Millwall!$AP110:$BA110,0) -> 4 | T37: =MATCH(T$4,Millwall!$AP110:$BA110,0) -> 10 | U37: =MATCH(U$4,Millwall!$AP110:$BA110,0) ->  | V37: =MATCH(V$4,Millwall!$AP110:$BA110,0) ->  | W37: =MATCH(W$4,Millwall!$AP110:$BA110,0) ->  | X37: =MATCH(X$4,Millwall!$AP110:$BA110,0) -> 1 | Y37: =MATCH(Y$4,Millwall!$AP110:$BA110,0) -> 5 | Z37: =MATCH(Z$4,Millwall!$AP110:$BA110,0) ->  | AA37: =MATCH(AA$4,Millwall!$AP110:$BA110,0) -> 7 | AB37: =MATCH(AB$4,Millwall!$AP110:$BA110,0) ->  | AC37: =MATCH(AC$4,Millwall!$AP110:$BA110,0) ->  | AD37: =MATCH(AD$4,Millwall!$AP110:$BA110,0) ->  | AE37: =MATCH(AE$4,Millwall!$AP110:$BA110,0) ->  | AF37: =MATCH(AF$4,Millwall!$AP110:$BA110,0) ->  | AG37: =MATCH(AG$4,Millwall!$AP110:$BA110,0) ->  | AH37: =MATCH(AH$3,Millwall!$AP110:$BA110,0) ->  | AI37: =MATCH(AI$3,Millwall!$AP110:$BA110,0) ->  | AJ37: =MATCH(AJ$3,Millwall!$AP110:$BA110,0) ->  | AK37: =MATCH(AK$3,Millwall!$AP110:$BA110,0) ->  | AL37: =MATCH(AL$3,Millwall!$AP110:$BA110,0) ->  | AM37: =MATCH(AM$3,Millwall!$AP110:$BA110,0) ->  | AN37: =MATCH(AN$3,Millwall!$AP110:$BA110,0) ->  | AO37: =MATCH(AO$3,Millwall!$AP110:$BA110,0) ->  | AP37: =MATCH(AP$3,Millwall!$AP110:$BA110,0) ->  | AQ37: =MATCH(AQ$3,Millwall!$AP110:$BA110,0) ->  | AR37: =MATCH(AR$3,Millwall!$AP110:$BA110,0) ->  | AX37: =MATCH(AX$3,Millwall!$AP110:$BA110,0) ->  | AY37: =MATCH(AY$3,Millwall!$AP110:$BA110,0) ->  | AZ37: =MATCH(AZ$3,Millwall!$AP110:$BA110,0) ->  | BA37: =MATCH(BA$3,Millwall!$AP110:$BA110,0) ->  | BB37: =MATCH(BB$3,Millwall!$AP110:$BA110,0) ->  | BC37: =MATCH(BC$3,Millwall!$AP110:$BA110,0) ->  | BD37: =MATCH(BD$3,Millwall!$AP110:$BA110,0) ->  | BE37: =MATCH(BE$3,Millwall!$AP110:$BA110,0) ->  | BF37: =MATCH(BF$3,Millwall!$AP110:$BA110,0) ->  | BG37: =MATCH(BG$3,Millwall!$AP110:$BA110,0) ->  | BH37: =MATCH(BH$3,Millwall!$AP110:$BA110,0) ->  | BI37: =MATCH(BI$3,Millwall!$AP110:$BA110,0) ->  | BJ37: =MATCH(BJ$3,Millwall!$AP110:$BA110,0) ->  | BK37: =MATCH(BK$3,Millwall!$AP110:$BA110,0) ->  | BL37: =MATCH(BL$3,Millwall!$AP110:$BA110,0) ->  | BM37: =MATCH(BM$3,Millwall!$AP110:$BA110,0) ->  | BN37: =MATCH(BN$3,Millwall!$AP110:$BA110,0) ->  | BO37: =MATCH(BO$3,Millwall!$AP110:$BA110,0) ->  | BP37: =MATCH(BP$3,Millwall!$AP110:$BA110,0) ->  | BQ37: =MATCH(BQ$3,Millwall!$AP110:$BA110,0) ->  | BR37: =MATCH(BR$3,Millwall!$AP110:$BA110,0) ->  | BS37: =MATCH(BS$3,Millwall!$AP110:$BA110,0) ->  | BT37: =MATCH(BT$3,Millwall!$AP110:$BA110,0) ->  | BU37: =MATCH(BU$3,Millwall!$AP110:$BA110,0) ->  | BV37: =MATCH(BV$3,Millwall!$AP110:$BA110,0) ->  | BW37: =MATCH(BW$3,Millwall!$AP110:$BA110,0) ->  | BX37: =MATCH(BX$3,Millwall!$AP110:$BA110,0) ->  | BY37: =MATCH(BY$3,Millwall!$AP110:$BA110,0) ->  | BZ37: =MATCH(BZ$3,Millwall!$AP110:$BA110,0) ->  | CA37: =MATCH(CA$3,Millwall!$AP110:$BA110,0) ->  | CB37: =MATCH(CB$3,Millwall!$AP110:$BA110,0) ->  | CC37: =MATCH(CC$3,Millwall!$AP110:$BA110,0) ->  | CD37: =MATCH(CD$3,Millwall!$AP110:$BA110,0) ->  | CE37: =MATCH(CE$3,Millwall!$AP110:$BA110,0) ->  | CM37: =Millwall!$BO104 -> 0 | CN37: =Millwall!$BN104&" (**" -> (** | CO37: =Millwall!$BN104&"**" -> **
C38: 0 | D38: 34 | F38: =Millwall!AI111 -> 1971-03-27 | H38: =Millwall!AK111 -> Charlton | I38: =Millwall!AL111 -> (H) | J38: =Millwall!AO111 -> W 2-0 | K38: =MATCH(K$4,Millwall!$AP111:$BA111,0) -> 11 | L38: =MATCH(L$4,Millwall!$AP111:$BA111,0) -> 8 | M38: =MATCH(M$4,Millwall!$AP111:$BA111,0) -> 9 | N38: =MATCH(N$4,Millwall!$AP111:$BA111,0) -> 2 | O38: =MATCH(O$4,Millwall!$AP111:$BA111,0) ->  | P38: =MATCH(P$4,Millwall!$AP111:$BA111,0) -> 6 | Q38: =MATCH(Q$4,Millwall!$AP111:$BA111,0) ->  | R38: =MATCH(R$4,Millwall!$AP111:$BA111,0) -> 3 | S38: =MATCH(S$4,Millwall!$AP111:$BA111,0) -> 4 | T38: =MATCH(T$4,Millwall!$AP111:$BA111,0) -> 10 | U38: =MATCH(U$4,Millwall!$AP111:$BA111,0) ->  | V38: =MATCH(V$4,Millwall!$AP111:$BA111,0) ->  | W38: =MATCH(W$4,Millwall!$AP111:$BA111,0) ->  | X38: =MATCH(X$4,Millwall!$AP111:$BA111,0) -> 1 | Y38: =MATCH(Y$4,Millwall!$AP111:$BA111,0) -> 5 | Z38: =MATCH(Z$4,Millwall!$AP111:$BA111,0) ->  | AA38: =MATCH(AA$4,Millwall!$AP111:$BA111,0) -> 7 | AB38: =MATCH(AB$4,Millwall!$AP111:$BA111,0) ->  | AC38: =MATCH(AC$4,Millwall!$AP111:$BA111,0) ->  | AD38: =MATCH(AD$4,Millwall!$AP111:$BA111,0) ->  | AE38: =MATCH(AE$4,Millwall!$AP111:$BA111,0) ->  | AF38: =MATCH(AF$4,Millwall!$AP111:$BA111,0) ->  | AG38: =MATCH(AG$4,Millwall!$AP111:$BA111,0) ->  | AH38: =MATCH(AH$3,Millwall!$AP111:$BA111,0) ->  | AI38: =MATCH(AI$3,Millwall!$AP111:$BA111,0) ->  | AJ38: =MATCH(AJ$3,Millwall!$AP111:$BA111,0) ->  | AK38: =MATCH(AK$3,Millwall!$AP111:$BA111,0) ->  | AL38: =MATCH(AL$3,Millwall!$AP111:$BA111,0) ->  | AM38: =MATCH(AM$3,Millwall!$AP111:$BA111,0) ->  | AN38: =MATCH(AN$3,Millwall!$AP111:$BA111,0) ->  | AO38: =MATCH(AO$3,Millwall!$AP111:$BA111,0) ->  | AP38: =MATCH(AP$3,Millwall!$AP111:$BA111,0) ->  | AQ38: =MATCH(AQ$3,Millwall!$AP111:$BA111,0) ->  | AR38: =MATCH(AR$3,Millwall!$AP111:$BA111,0) ->  | AX38: =MATCH(AX$3,Millwall!$AP111:$BA111,0) ->  | AY38: =MATCH(AY$3,Millwall!$AP111:$BA111,0) ->  | AZ38: =MATCH(AZ$3,Millwall!$AP111:$BA111,0) ->  | BA38: =MATCH(BA$3,Millwall!$AP111:$BA111,0) ->  | BB38: =MATCH(BB$3,Millwall!$AP111:$BA111,0) ->  | BC38: =MATCH(BC$3,Millwall!$AP111:$BA111,0) ->  | BD38: =MATCH(BD$3,Millwall!$AP111:$BA111,0) ->  | BE38: =MATCH(BE$3,Millwall!$AP111:$BA111,0) ->  | BF38: =MATCH(BF$3,Millwall!$AP111:$BA111,0) ->  | BG38: =MATCH(BG$3,Millwall!$AP111:$BA111,0) ->  | BH38: =MATCH(BH$3,Millwall!$AP111:$BA111,0) ->  | BI38: =MATCH(BI$3,Millwall!$AP111:$BA111,0) ->  | BJ38: =MATCH(BJ$3,Millwall!$AP111:$BA111,0) ->  | BK38: =MATCH(BK$3,Millwall!$AP111:$BA111,0) ->  | BL38: =MATCH(BL$3,Millwall!$AP111:$BA111,0) ->  | BM38: =MATCH(BM$3,Millwall!$AP111:$BA111,0) ->  | BN38: =MATCH(BN$3,Millwall!$AP111:$BA111,0) ->  | BO38: =MATCH(BO$3,Millwall!$AP111:$BA111,0) ->  | BP38: =MATCH(BP$3,Millwall!$AP111:$BA111,0) ->  | BQ38: =MATCH(BQ$3,Millwall!$AP111:$BA111,0) ->  | BR38: =MATCH(BR$3,Millwall!$AP111:$BA111,0) ->  | BS38: =MATCH(BS$3,Millwall!$AP111:$BA111,0) ->  | BT38: =MATCH(BT$3,Millwall!$AP111:$BA111,0) ->  | BU38: =MATCH(BU$3,Millwall!$AP111:$BA111,0) ->  | BV38: =MATCH(BV$3,Millwall!$AP111:$BA111,0) ->  | BW38: =MATCH(BW$3,Millwall!$AP111:$BA111,0) ->  | BX38: =MATCH(BX$3,Millwall!$AP111:$BA111,0) ->  | BY38: =MATCH(BY$3,Millwall!$AP111:$BA111,0) ->  | BZ38: =MATCH(BZ$3,Millwall!$AP111:$BA111,0) ->  | CA38: =MATCH(CA$3,Millwall!$AP111:$BA111,0) ->  | CB38: =MATCH(CB$3,Millwall!$AP111:$BA111,0) ->  | CC38: =MATCH(CC$3,Millwall!$AP111:$BA111,0) ->  | CD38: =MATCH(CD$3,Millwall!$AP111:$BA111,0) ->  | CE38: =MATCH(CE$3,Millwall!$AP111:$BA111,0) ->  | CM38: =Millwall!$BO105 -> 0 | CN38: =Millwall!$BN105&" (**" -> (** | CO38: =Millwall!$BN105&"**" -> **
C39: 0 | D39: 35 | F39: =Millwall!AI112 -> 1971-03-30 | H39: =Millwall!AK112 -> Luton | I39: =Millwall!AL112 -> (A) | J39: =Millwall!AO112 -> D 1-1 | K39: =MATCH(K$4,Millwall!$AP112:$BA112,0) -> 11 | L39: =MATCH(L$4,Millwall!$AP112:$BA112,0) -> 8 | M39: =MATCH(M$4,Millwall!$AP112:$BA112,0) -> 9 | N39: =MATCH(N$4,Millwall!$AP112:$BA112,0) -> 2 | O39: =MATCH(O$4,Millwall!$AP112:$BA112,0) ->  | P39: =MATCH(P$4,Millwall!$AP112:$BA112,0) -> 6 | Q39: =MATCH(Q$4,Millwall!$AP112:$BA112,0) ->  | R39: =MATCH(R$4,Millwall!$AP112:$BA112,0) -> 3 | S39: =MATCH(S$4,Millwall!$AP112:$BA112,0) -> 4 | T39: =MATCH(T$4,Millwall!$AP112:$BA112,0) -> 10 | U39: =MATCH(U$4,Millwall!$AP112:$BA112,0) ->  | V39: =MATCH(V$4,Millwall!$AP112:$BA112,0) ->  | W39: =MATCH(W$4,Millwall!$AP112:$BA112,0) ->  | X39: =MATCH(X$4,Millwall!$AP112:$BA112,0) -> 1 | Y39: =MATCH(Y$4,Millwall!$AP112:$BA112,0) -> 5 | Z39: =MATCH(Z$4,Millwall!$AP112:$BA112,0) ->  | AA39: =MATCH(AA$4,Millwall!$AP112:$BA112,0) -> 7 | AB39: =MATCH(AB$4,Millwall!$AP112:$BA112,0) ->  | AC39: =MATCH(AC$4,Millwall!$AP112:$BA112,0) ->  | AD39: =MATCH(AD$4,Millwall!$AP112:$BA112,0) ->  | AE39: =MATCH(AE$4,Millwall!$AP112:$BA112,0) ->  | AF39: =MATCH(AF$4,Millwall!$AP112:$BA112,0) ->  | AG39: =MATCH(AG$4,Millwall!$AP112:$BA112,0) ->  | AH39: =MATCH(AH$3,Millwall!$AP112:$BA112,0) ->  | AI39: =MATCH(AI$3,Millwall!$AP112:$BA112,0) ->  | AJ39: =MATCH(AJ$3,Millwall!$AP112:$BA112,0) ->  | AK39: =MATCH(AK$3,Millwall!$AP112:$BA112,0) ->  | AL39: =MATCH(AL$3,Millwall!$AP112:$BA112,0) ->  | AM39: =MATCH(AM$3,Millwall!$AP112:$BA112,0) ->  | AN39: =MATCH(AN$3,Millwall!$AP112:$BA112,0) ->  | AO39: =MATCH(AO$3,Millwall!$AP112:$BA112,0) ->  | AP39: =MATCH(AP$3,Millwall!$AP112:$BA112,0) ->  | AQ39: =MATCH(AQ$3,Millwall!$AP112:$BA112,0) ->  | AR39: =MATCH(AR$3,Millwall!$AP112:$BA112,0) ->  | AX39: =MATCH(AX$3,Millwall!$AP112:$BA112,0) ->  | AY39: =MATCH(AY$3,Millwall!$AP112:$BA112,0) ->  | AZ39: =MATCH(AZ$3,Millwall!$AP112:$BA112,0) ->  | BA39: =MATCH(BA$3,Millwall!$AP112:$BA112,0) ->  | BB39: =MATCH(BB$3,Millwall!$AP112:$BA112,0) ->  | BC39: =MATCH(BC$3,Millwall!$AP112:$BA112,0) ->  | BD39: =MATCH(BD$3,Millwall!$AP112:$BA112,0) ->  | BE39: =MATCH(BE$3,Millwall!$AP112:$BA112,0) ->  | BF39: =MATCH(BF$3,Millwall!$AP112:$BA112,0) ->  | BG39: =MATCH(BG$3,Millwall!$AP112:$BA112,0) ->  | BH39: =MATCH(BH$3,Millwall!$AP112:$BA112,0) ->  | BI39: =MATCH(BI$3,Millwall!$AP112:$BA112,0) ->  | BJ39: =MATCH(BJ$3,Millwall!$AP112:$BA112,0) ->  | BK39: =MATCH(BK$3,Millwall!$AP112:$BA112,0) ->  | BL39: =MATCH(BL$3,Millwall!$AP112:$BA112,0) ->  | BM39: =MATCH(BM$3,Millwall!$AP112:$BA112,0) ->  | BN39: =MATCH(BN$3,Millwall!$AP112:$BA112,0) ->  | BO39: =MATCH(BO$3,Millwall!$AP112:$BA112,0) ->  | BP39: =MATCH(BP$3,Millwall!$AP112:$BA112,0) ->  | BQ39: =MATCH(BQ$3,Millwall!$AP112:$BA112,0) ->  | BR39: =MATCH(BR$3,Millwall!$AP112:$BA112,0) ->  | BS39: =MATCH(BS$3,Millwall!$AP112:$BA112,0) ->  | BT39: =MATCH(BT$3,Millwall!$AP112:$BA112,0) ->  | BU39: =MATCH(BU$3,Millwall!$AP112:$BA112,0) ->  | BV39: =MATCH(BV$3,Millwall!$AP112:$BA112,0) ->  | BW39: =MATCH(BW$3,Millwall!$AP112:$BA112,0) ->  | BX39: =MATCH(BX$3,Millwall!$AP112:$BA112,0) ->  | BY39: =MATCH(BY$3,Millwall!$AP112:$BA112,0) ->  | BZ39: =MATCH(BZ$3,Millwall!$AP112:$BA112,0) ->  | CA39: =MATCH(CA$3,Millwall!$AP112:$BA112,0) ->  | CB39: =MATCH(CB$3,Millwall!$AP112:$BA112,0) ->  | CC39: =MATCH(CC$3,Millwall!$AP112:$BA112,0) ->  | CD39: =MATCH(CD$3,Millwall!$AP112:$BA112,0) ->  | CE39: =MATCH(CE$3,Millwall!$AP112:$BA112,0) -> 
C40: 0 | D40: 36 | F40: =Millwall!AI113 -> 1971-04-03 | H40: =Millwall!AK113 -> Portsmouth | I40: =Millwall!AL113 -> (A) | J40: =Millwall!AO113 -> W 2-0 | K40: =MATCH(K$4,Millwall!$AP113:$BA113,0) ->  | L40: =MATCH(L$4,Millwall!$AP113:$BA113,0) -> 8 | M40: =MATCH(M$4,Millwall!$AP113:$BA113,0) -> 9 | N40: =MATCH(N$4,Millwall!$AP113:$BA113,0) -> 2 | O40: =MATCH(O$4,Millwall!$AP113:$BA113,0) ->  | P40: =MATCH(P$4,Millwall!$AP113:$BA113,0) -> 6 | Q40: =MATCH(Q$4,Millwall!$AP113:$BA113,0) -> 11 | R40: =MATCH(R$4,Millwall!$AP113:$BA113,0) -> 3 | S40: =MATCH(S$4,Millwall!$AP113:$BA113,0) -> 4 | T40: =MATCH(T$4,Millwall!$AP113:$BA113,0) -> 10 | U40: =MATCH(U$4,Millwall!$AP113:$BA113,0) ->  | V40: =MATCH(V$4,Millwall!$AP113:$BA113,0) ->  | W40: =MATCH(W$4,Millwall!$AP113:$BA113,0) ->  | X40: =MATCH(X$4,Millwall!$AP113:$BA113,0) -> 1 | Y40: =MATCH(Y$4,Millwall!$AP113:$BA113,0) -> 5 | Z40: =MATCH(Z$4,Millwall!$AP113:$BA113,0) ->  | AA40: =MATCH(AA$4,Millwall!$AP113:$BA113,0) -> 7 | AB40: =MATCH(AB$4,Millwall!$AP113:$BA113,0) ->  | AC40: =MATCH(AC$4,Millwall!$AP113:$BA113,0) ->  | AD40: =MATCH(AD$4,Millwall!$AP113:$BA113,0) ->  | AE40: =MATCH(AE$4,Millwall!$AP113:$BA113,0) ->  | AF40: =MATCH(AF$4,Millwall!$AP113:$BA113,0) ->  | AG40: =MATCH(AG$4,Millwall!$AP113:$BA113,0) ->  | AH40: =MATCH(AH$3,Millwall!$AP113:$BA113,0) ->  | AI40: =MATCH(AI$3,Millwall!$AP113:$BA113,0) ->  | AJ40: =MATCH(AJ$3,Millwall!$AP113:$BA113,0) ->  | AK40: =MATCH(AK$3,Millwall!$AP113:$BA113,0) ->  | AL40: =MATCH(AL$3,Millwall!$AP113:$BA113,0) ->  | AM40: =MATCH(AM$3,Millwall!$AP113:$BA113,0) ->  | AN40: =MATCH(AN$3,Millwall!$AP113:$BA113,0) ->  | AO40: =MATCH(AO$3,Millwall!$AP113:$BA113,0) ->  | AP40: =MATCH(AP$3,Millwall!$AP113:$BA113,0) ->  | AQ40: =MATCH(AQ$3,Millwall!$AP113:$BA113,0) ->  | AR40: =MATCH(AR$3,Millwall!$AP113:$BA113,0) ->  | AX40: =MATCH(AX$3,Millwall!$AP113:$BA113,0) ->  | AY40: =MATCH(AY$3,Millwall!$AP113:$BA113,0) ->  | AZ40: =MATCH(AZ$3,Millwall!$AP113:$BA113,0) ->  | BA40: =MATCH(BA$3,Millwall!$AP113:$BA113,0) ->  | BB40: =MATCH(BB$3,Millwall!$AP113:$BA113,0) ->  | BC40: =MATCH(BC$3,Millwall!$AP113:$BA113,0) ->  | BD40: =MATCH(BD$3,Millwall!$AP113:$BA113,0) ->  | BE40: =MATCH(BE$3,Millwall!$AP113:$BA113,0) ->  | BF40: =MATCH(BF$3,Millwall!$AP113:$BA113,0) ->  | BG40: =MATCH(BG$3,Millwall!$AP113:$BA113,0) ->  | BH40: =MATCH(BH$3,Millwall!$AP113:$BA113,0) ->  | BI40: =MATCH(BI$3,Millwall!$AP113:$BA113,0) ->  | BJ40: =MATCH(BJ$3,Millwall!$AP113:$BA113,0) ->  | BK40: =MATCH(BK$3,Millwall!$AP113:$BA113,0) ->  | BL40: =MATCH(BL$3,Millwall!$AP113:$BA113,0) ->  | BM40: =MATCH(BM$3,Millwall!$AP113:$BA113,0) ->  | BN40: =MATCH(BN$3,Millwall!$AP113:$BA113,0) ->  | BO40: =MATCH(BO$3,Millwall!$AP113:$BA113,0) ->  | BP40: =MATCH(BP$3,Millwall!$AP113:$BA113,0) ->  | BQ40: =MATCH(BQ$3,Millwall!$AP113:$BA113,0) ->  | BR40: =MATCH(BR$3,Millwall!$AP113:$BA113,0) ->  | BS40: =MATCH(BS$3,Millwall!$AP113:$BA113,0) ->  | BT40: =MATCH(BT$3,Millwall!$AP113:$BA113,0) ->  | BU40: =MATCH(BU$3,Millwall!$AP113:$BA113,0) ->  | BV40: =MATCH(BV$3,Millwall!$AP113:$BA113,0) ->  | BW40: =MATCH(BW$3,Millwall!$AP113:$BA113,0) ->  | BX40: =MATCH(BX$3,Millwall!$AP113:$BA113,0) ->  | BY40: =MATCH(BY$3,Millwall!$AP113:$BA113,0) ->  | BZ40: =MATCH(BZ$3,Millwall!$AP113:$BA113,0) ->  | CA40: =MATCH(CA$3,Millwall!$AP113:$BA113,0) ->  | CB40: =MATCH(CB$3,Millwall!$AP113:$BA113,0) ->  | CC40: =MATCH(CC$3,Millwall!$AP113:$BA113,0) ->  | CD40: =MATCH(CD$3,Millwall!$AP113:$BA113,0) ->  | CE40: =MATCH(CE$3,Millwall!$AP113:$BA113,0) -> 
C41: 0 | D41: 37 | F41: =Millwall!AI114 -> 1971-04-05 | H41: =Millwall!AK114 -> Carlisle | I41: =Millwall!AL114 -> (H) | J41: =Millwall!AO114 -> W 2-1 | K41: =MATCH(K$4,Millwall!$AP114:$BA114,0) -> 11 | L41: =MATCH(L$4,Millwall!$AP114:$BA114,0) -> 8 | M41: =MATCH(M$4,Millwall!$AP114:$BA114,0) -> 9 | N41: =MATCH(N$4,Millwall!$AP114:$BA114,0) -> 2 | O41: =MATCH(O$4,Millwall!$AP114:$BA114,0) ->  | P41: =MATCH(P$4,Millwall!$AP114:$BA114,0) -> 6 | Q41: =MATCH(Q$4,Millwall!$AP114:$BA114,0) ->  | R41: =MATCH(R$4,Millwall!$AP114:$BA114,0) -> 3 | S41: =MATCH(S$4,Millwall!$AP114:$BA114,0) -> 4 | T41: =MATCH(T$4,Millwall!$AP114:$BA114,0) -> 10 | U41: =MATCH(U$4,Millwall!$AP114:$BA114,0) ->  | V41: =MATCH(V$4,Millwall!$AP114:$BA114,0) ->  | W41: =MATCH(W$4,Millwall!$AP114:$BA114,0) ->  | X41: =MATCH(X$4,Millwall!$AP114:$BA114,0) -> 1 | Y41: =MATCH(Y$4,Millwall!$AP114:$BA114,0) -> 5 | Z41: =MATCH(Z$4,Millwall!$AP114:$BA114,0) ->  | AA41: =MATCH(AA$4,Millwall!$AP114:$BA114,0) -> 7 | AB41: =MATCH(AB$4,Millwall!$AP114:$BA114,0) ->  | AC41: =MATCH(AC$4,Millwall!$AP114:$BA114,0) ->  | AD41: =MATCH(AD$4,Millwall!$AP114:$BA114,0) ->  | AE41: =MATCH(AE$4,Millwall!$AP114:$BA114,0) ->  | AF41: =MATCH(AF$4,Millwall!$AP114:$BA114,0) ->  | AG41: =MATCH(AG$4,Millwall!$AP114:$BA114,0) ->  | AH41: =MATCH(AH$3,Millwall!$AP114:$BA114,0) ->  | AI41: =MATCH(AI$3,Millwall!$AP114:$BA114,0) ->  | AJ41: =MATCH(AJ$3,Millwall!$AP114:$BA114,0) ->  | AK41: =MATCH(AK$3,Millwall!$AP114:$BA114,0) ->  | AL41: =MATCH(AL$3,Millwall!$AP114:$BA114,0) ->  | AM41: =MATCH(AM$3,Millwall!$AP114:$BA114,0) ->  | AN41: =MATCH(AN$3,Millwall!$AP114:$BA114,0) ->  | AO41: =MATCH(AO$3,Millwall!$AP114:$BA114,0) ->  | AP41: =MATCH(AP$3,Millwall!$AP114:$BA114,0) ->  | AQ41: =MATCH(AQ$3,Millwall!$AP114:$BA114,0) ->  | AR41: =MATCH(AR$3,Millwall!$AP114:$BA114,0) ->  | AX41: =MATCH(AX$3,Millwall!$AP114:$BA114,0) ->  | AY41: =MATCH(AY$3,Millwall!$AP114:$BA114,0) ->  | AZ41: =MATCH(AZ$3,Millwall!$AP114:$BA114,0) ->  | BA41: =MATCH(BA$3,Millwall!$AP114:$BA114,0) ->  | BB41: =MATCH(BB$3,Millwall!$AP114:$BA114,0) ->  | BC41: =MATCH(BC$3,Millwall!$AP114:$BA114,0) ->  | BD41: =MATCH(BD$3,Millwall!$AP114:$BA114,0) ->  | BE41: =MATCH(BE$3,Millwall!$AP114:$BA114,0) ->  | BF41: =MATCH(BF$3,Millwall!$AP114:$BA114,0) ->  | BG41: =MATCH(BG$3,Millwall!$AP114:$BA114,0) ->  | BH41: =MATCH(BH$3,Millwall!$AP114:$BA114,0) ->  | BI41: =MATCH(BI$3,Millwall!$AP114:$BA114,0) ->  | BJ41: =MATCH(BJ$3,Millwall!$AP114:$BA114,0) ->  | BK41: =MATCH(BK$3,Millwall!$AP114:$BA114,0) ->  | BL41: =MATCH(BL$3,Millwall!$AP114:$BA114,0) ->  | BM41: =MATCH(BM$3,Millwall!$AP114:$BA114,0) ->  | BN41: =MATCH(BN$3,Millwall!$AP114:$BA114,0) ->  | BO41: =MATCH(BO$3,Millwall!$AP114:$BA114,0) ->  | BP41: =MATCH(BP$3,Millwall!$AP114:$BA114,0) ->  | BQ41: =MATCH(BQ$3,Millwall!$AP114:$BA114,0) ->  | BR41: =MATCH(BR$3,Millwall!$AP114:$BA114,0) ->  | BS41: =MATCH(BS$3,Millwall!$AP114:$BA114,0) ->  | BT41: =MATCH(BT$3,Millwall!$AP114:$BA114,0) ->  | BU41: =MATCH(BU$3,Millwall!$AP114:$BA114,0) ->  | BV41: =MATCH(BV$3,Millwall!$AP114:$BA114,0) ->  | BW41: =MATCH(BW$3,Millwall!$AP114:$BA114,0) ->  | BX41: =MATCH(BX$3,Millwall!$AP114:$BA114,0) ->  | BY41: =MATCH(BY$3,Millwall!$AP114:$BA114,0) ->  | BZ41: =MATCH(BZ$3,Millwall!$AP114:$BA114,0) ->  | CA41: =MATCH(CA$3,Millwall!$AP114:$BA114,0) ->  | CB41: =MATCH(CB$3,Millwall!$AP114:$BA114,0) ->  | CC41: =MATCH(CC$3,Millwall!$AP114:$BA114,0) ->  | CD41: =MATCH(CD$3,Millwall!$AP114:$BA114,0) ->  | CE41: =MATCH(CE$3,Millwall!$AP114:$BA114,0) -> 
C42: 0 | D42: 38 | F42: =Millwall!AI115 -> 1971-04-10 | H42: =Millwall!AK115 -> Luton | I42: =Millwall!AL115 -> (H) | J42: =Millwall!AO115 -> W 4-0 | K42: =MATCH(K$4,Millwall!$AP115:$BA115,0) -> 11 | L42: =MATCH(L$4,Millwall!$AP115:$BA115,0) -> 8 | M42: =MATCH(M$4,Millwall!$AP115:$BA115,0) -> 9 | N42: =MATCH(N$4,Millwall!$AP115:$BA115,0) -> 2 | O42: =MATCH(O$4,Millwall!$AP115:$BA115,0) ->  | P42: =MATCH(P$4,Millwall!$AP115:$BA115,0) -> 6 | Q42: =MATCH(Q$4,Millwall!$AP115:$BA115,0) ->  | R42: =MATCH(R$4,Millwall!$AP115:$BA115,0) -> 3 | S42: =MATCH(S$4,Millwall!$AP115:$BA115,0) -> 4 | T42: =MATCH(T$4,Millwall!$AP115:$BA115,0) -> 10 | U42: =MATCH(U$4,Millwall!$AP115:$BA115,0) ->  | V42: =MATCH(V$4,Millwall!$AP115:$BA115,0) ->  | W42: =MATCH(W$4,Millwall!$AP115:$BA115,0) ->  | X42: =MATCH(X$4,Millwall!$AP115:$BA115,0) -> 1 | Y42: =MATCH(Y$4,Millwall!$AP115:$BA115,0) -> 5 | Z42: =MATCH(Z$4,Millwall!$AP115:$BA115,0) ->  | AA42: =MATCH(AA$4,Millwall!$AP115:$BA115,0) -> 7 | AB42: =MATCH(AB$4,Millwall!$AP115:$BA115,0) ->  | AC42: =MATCH(AC$4,Millwall!$AP115:$BA115,0) ->  | AD42: =MATCH(AD$4,Millwall!$AP115:$BA115,0) ->  | AE42: =MATCH(AE$4,Millwall!$AP115:$BA115,0) ->  | AF42: =MATCH(AF$4,Millwall!$AP115:$BA115,0) ->  | AG42: =MATCH(AG$4,Millwall!$AP115:$BA115,0) ->  | AH42: =MATCH(AH$3,Millwall!$AP115:$BA115,0) ->  | AI42: =MATCH(AI$3,Millwall!$AP115:$BA115,0) ->  | AJ42: =MATCH(AJ$3,Millwall!$AP115:$BA115,0) ->  | AK42: =MATCH(AK$3,Millwall!$AP115:$BA115,0) ->  | AL42: =MATCH(AL$3,Millwall!$AP115:$BA115,0) ->  | AM42: =MATCH(AM$3,Millwall!$AP115:$BA115,0) ->  | AN42: =MATCH(AN$3,Millwall!$AP115:$BA115,0) ->  | AO42: =MATCH(AO$3,Millwall!$AP115:$BA115,0) ->  | AP42: =MATCH(AP$3,Millwall!$AP115:$BA115,0) ->  | AQ42: =MATCH(AQ$3,Millwall!$AP115:$BA115,0) ->  | AR42: =MATCH(AR$3,Millwall!$AP115:$BA115,0) ->  | AX42: =MATCH(AX$3,Millwall!$AP115:$BA115,0) ->  | AY42: =MATCH(AY$3,Millwall!$AP115:$BA115,0) ->  | AZ42: =MATCH(AZ$3,Millwall!$AP115:$BA115,0) ->  | BA42: =MATCH(BA$3,Millwall!$AP115:$BA115,0) ->  | BB42: =MATCH(BB$3,Millwall!$AP115:$BA115,0) ->  | BC42: =MATCH(BC$3,Millwall!$AP115:$BA115,0) ->  | BD42: =MATCH(BD$3,Millwall!$AP115:$BA115,0) ->  | BE42: =MATCH(BE$3,Millwall!$AP115:$BA115,0) ->  | BF42: =MATCH(BF$3,Millwall!$AP115:$BA115,0) ->  | BG42: =MATCH(BG$3,Millwall!$AP115:$BA115,0) ->  | BH42: =MATCH(BH$3,Millwall!$AP115:$BA115,0) ->  | BI42: =MATCH(BI$3,Millwall!$AP115:$BA115,0) ->  | BJ42: =MATCH(BJ$3,Millwall!$AP115:$BA115,0) ->  | BK42: =MATCH(BK$3,Millwall!$AP115:$BA115,0) ->  | BL42: =MATCH(BL$3,Millwall!$AP115:$BA115,0) ->  | BM42: =MATCH(BM$3,Millwall!$AP115:$BA115,0) ->  | BN42: =MATCH(BN$3,Millwall!$AP115:$BA115,0) ->  | BO42: =MATCH(BO$3,Millwall!$AP115:$BA115,0) ->  | BP42: =MATCH(BP$3,Millwall!$AP115:$BA115,0) ->  | BQ42: =MATCH(BQ$3,Millwall!$AP115:$BA115,0) ->  | BR42: =MATCH(BR$3,Millwall!$AP115:$BA115,0) ->  | BS42: =MATCH(BS$3,Millwall!$AP115:$BA115,0) ->  | BT42: =MATCH(BT$3,Millwall!$AP115:$BA115,0) ->  | BU42: =MATCH(BU$3,Millwall!$AP115:$BA115,0) ->  | BV42: =MATCH(BV$3,Millwall!$AP115:$BA115,0) ->  | BW42: =MATCH(BW$3,Millwall!$AP115:$BA115,0) ->  | BX42: =MATCH(BX$3,Millwall!$AP115:$BA115,0) ->  | BY42: =MATCH(BY$3,Millwall!$AP115:$BA115,0) ->  | BZ42: =MATCH(BZ$3,Millwall!$AP115:$BA115,0) ->  | CA42: =MATCH(CA$3,Millwall!$AP115:$BA115,0) ->  | CB42: =MATCH(CB$3,Millwall!$AP115:$BA115,0) ->  | CC42: =MATCH(CC$3,Millwall!$AP115:$BA115,0) ->  | CD42: =MATCH(CD$3,Millwall!$AP115:$BA115,0) ->  | CE42: =MATCH(CE$3,Millwall!$AP115:$BA115,0) -> 
C43: 0 | D43: 39 | F43: =Millwall!AI116 -> 1971-04-13 | H43: =Millwall!AK116 -> Sheff Utd | I43: =Millwall!AL116 -> (A) | J43: =Millwall!AO116 -> L 0-2 | K43: =MATCH(K$4,Millwall!$AP116:$BA116,0) -> 11 | L43: =MATCH(L$4,Millwall!$AP116:$BA116,0) -> 8 | M43: =MATCH(M$4,Millwall!$AP116:$BA116,0) -> 9 | N43: =MATCH(N$4,Millwall!$AP116:$BA116,0) -> 2 | O43: =MATCH(O$4,Millwall!$AP116:$BA116,0) ->  | P43: =MATCH(P$4,Millwall!$AP116:$BA116,0) -> 6 | Q43: =MATCH(Q$4,Millwall!$AP116:$BA116,0) -> 12 | R43: =MATCH(R$4,Millwall!$AP116:$BA116,0) -> 3 | S43: =MATCH(S$4,Millwall!$AP116:$BA116,0) -> 4 | T43: =MATCH(T$4,Millwall!$AP116:$BA116,0) -> 10 | U43: =MATCH(U$4,Millwall!$AP116:$BA116,0) ->  | V43: =MATCH(V$4,Millwall!$AP116:$BA116,0) ->  | W43: =MATCH(W$4,Millwall!$AP116:$BA116,0) ->  | X43: =MATCH(X$4,Millwall!$AP116:$BA116,0) -> 1 | Y43: =MATCH(Y$4,Millwall!$AP116:$BA116,0) -> 5 | Z43: =MATCH(Z$4,Millwall!$AP116:$BA116,0) ->  | AA43: =MATCH(AA$4,Millwall!$AP116:$BA116,0) -> 7 | AB43: =MATCH(AB$4,Millwall!$AP116:$BA116,0) ->  | AC43: =MATCH(AC$4,Millwall!$AP116:$BA116,0) ->  | AD43: =MATCH(AD$4,Millwall!$AP116:$BA116,0) ->  | AE43: =MATCH(AE$4,Millwall!$AP116:$BA116,0) ->  | AF43: =MATCH(AF$4,Millwall!$AP116:$BA116,0) ->  | AG43: =MATCH(AG$4,Millwall!$AP116:$BA116,0) ->  | AH43: =MATCH(AH$3,Millwall!$AP116:$BA116,0) ->  | AI43: =MATCH(AI$3,Millwall!$AP116:$BA116,0) ->  | AJ43: =MATCH(AJ$3,Millwall!$AP116:$BA116,0) ->  | AK43: =MATCH(AK$3,Millwall!$AP116:$BA116,0) ->  | AL43: =MATCH(AL$3,Millwall!$AP116:$BA116,0) ->  | AM43: =MATCH(AM$3,Millwall!$AP116:$BA116,0) ->  | AN43: =MATCH(AN$3,Millwall!$AP116:$BA116,0) ->  | AO43: =MATCH(AO$3,Millwall!$AP116:$BA116,0) ->  | AP43: =MATCH(AP$3,Millwall!$AP116:$BA116,0) ->  | AQ43: =MATCH(AQ$3,Millwall!$AP116:$BA116,0) ->  | AR43: =MATCH(AR$3,Millwall!$AP116:$BA116,0) ->  | AX43: =MATCH(AX$3,Millwall!$AP116:$BA116,0) -> 11 | AY43: =MATCH(AY$3,Millwall!$AP116:$BA116,0) ->  | AZ43: =MATCH(AZ$3,Millwall!$AP116:$BA116,0) ->  | BA43: =MATCH(BA$3,Millwall!$AP116:$BA116,0) ->  | BB43: =MATCH(BB$3,Millwall!$AP116:$BA116,0) ->  | BC43: =MATCH(BC$3,Millwall!$AP116:$BA116,0) ->  | BD43: =MATCH(BD$3,Millwall!$AP116:$BA116,0) -> 12 | BE43: =MATCH(BE$3,Millwall!$AP116:$BA116,0) ->  | BF43: =MATCH(BF$3,Millwall!$AP116:$BA116,0) ->  | BG43: =MATCH(BG$3,Millwall!$AP116:$BA116,0) ->  | BH43: =MATCH(BH$3,Millwall!$AP116:$BA116,0) ->  | BI43: =MATCH(BI$3,Millwall!$AP116:$BA116,0) ->  | BJ43: =MATCH(BJ$3,Millwall!$AP116:$BA116,0) ->  | BK43: =MATCH(BK$3,Millwall!$AP116:$BA116,0) ->  | BL43: =MATCH(BL$3,Millwall!$AP116:$BA116,0) ->  | BM43: =MATCH(BM$3,Millwall!$AP116:$BA116,0) ->  | BN43: =MATCH(BN$3,Millwall!$AP116:$BA116,0) ->  | BO43: =MATCH(BO$3,Millwall!$AP116:$BA116,0) ->  | BP43: =MATCH(BP$3,Millwall!$AP116:$BA116,0) ->  | BQ43: =MATCH(BQ$3,Millwall!$AP116:$BA116,0) ->  | BR43: =MATCH(BR$3,Millwall!$AP116:$BA116,0) ->  | BS43: =MATCH(BS$3,Millwall!$AP116:$BA116,0) ->  | BT43: =MATCH(BT$3,Millwall!$AP116:$BA116,0) ->  | BU43: =MATCH(BU$3,Millwall!$AP116:$BA116,0) ->  | BV43: =MATCH(BV$3,Millwall!$AP116:$BA116,0) ->  | BW43: =MATCH(BW$3,Millwall!$AP116:$BA116,0) ->  | BX43: =MATCH(BX$3,Millwall!$AP116:$BA116,0) ->  | BY43: =MATCH(BY$3,Millwall!$AP116:$BA116,0) ->  | BZ43: =MATCH(BZ$3,Millwall!$AP116:$BA116,0) ->  | CA43: =MATCH(CA$3,Millwall!$AP116:$BA116,0) ->  | CB43: =MATCH(CB$3,Millwall!$AP116:$BA116,0) ->  | CC43: =MATCH(CC$3,Millwall!$AP116:$BA116,0) ->  | CD43: =MATCH(CD$3,Millwall!$AP116:$BA116,0) ->  | CE43: =MATCH(CE$3,Millwall!$AP116:$BA116,0) -> 
C44: 0 | D44: 40 | F44: =Millwall!AI117 -> 1971-04-17 | H44: =Millwall!AK117 -> Blackburn | I44: =Millwall!AL117 -> (A) | J44: =Millwall!AO117 -> W 2-0 | K44: =MATCH(K$4,Millwall!$AP117:$BA117,0) -> 11 | L44: =MATCH(L$4,Millwall!$AP117:$BA117,0) -> 8 | M44: =MATCH(M$4,Millwall!$AP117:$BA117,0) -> 9 | N44: =MATCH(N$4,Millwall!$AP117:$BA117,0) -> 2 | O44: =MATCH(O$4,Millwall!$AP117:$BA117,0) ->  | P44: =MATCH(P$4,Millwall!$AP117:$BA117,0) -> 6 | Q44: =MATCH(Q$4,Millwall!$AP117:$BA117,0) ->  | R44: =MATCH(R$4,Millwall!$AP117:$BA117,0) -> 3 | S44: =MATCH(S$4,Millwall!$AP117:$BA117,0) -> 4 | T44: =MATCH(T$4,Millwall!$AP117:$BA117,0) -> 10 | U44: =MATCH(U$4,Millwall!$AP117:$BA117,0) ->  | V44: =MATCH(V$4,Millwall!$AP117:$BA117,0) ->  | W44: =MATCH(W$4,Millwall!$AP117:$BA117,0) ->  | X44: =MATCH(X$4,Millwall!$AP117:$BA117,0) -> 1 | Y44: =MATCH(Y$4,Millwall!$AP117:$BA117,0) -> 5 | Z44: =MATCH(Z$4,Millwall!$AP117:$BA117,0) ->  | AA44: =MATCH(AA$4,Millwall!$AP117:$BA117,0) -> 7 | AB44: =MATCH(AB$4,Millwall!$AP117:$BA117,0) ->  | AC44: =MATCH(AC$4,Millwall!$AP117:$BA117,0) ->  | AD44: =MATCH(AD$4,Millwall!$AP117:$BA117,0) ->  | AE44: =MATCH(AE$4,Millwall!$AP117:$BA117,0) ->  | AF44: =MATCH(AF$4,Millwall!$AP117:$BA117,0) ->  | AG44: =MATCH(AG$4,Millwall!$AP117:$BA117,0) ->  | AH44: =MATCH(AH$3,Millwall!$AP117:$BA117,0) ->  | AI44: =MATCH(AI$3,Millwall!$AP117:$BA117,0) ->  | AJ44: =MATCH(AJ$3,Millwall!$AP117:$BA117,0) ->  | AK44: =MATCH(AK$3,Millwall!$AP117:$BA117,0) ->  | AL44: =MATCH(AL$3,Millwall!$AP117:$BA117,0) ->  | AM44: =MATCH(AM$3,Millwall!$AP117:$BA117,0) ->  | AN44: =MATCH(AN$3,Millwall!$AP117:$BA117,0) ->  | AO44: =MATCH(AO$3,Millwall!$AP117:$BA117,0) ->  | AP44: =MATCH(AP$3,Millwall!$AP117:$BA117,0) ->  | AQ44: =MATCH(AQ$3,Millwall!$AP117:$BA117,0) ->  | AR44: =MATCH(AR$3,Millwall!$AP117:$BA117,0) ->  | AX44: =MATCH(AX$3,Millwall!$AP117:$BA117,0) ->  | AY44: =MATCH(AY$3,Millwall!$AP117:$BA117,0) ->  | AZ44: =MATCH(AZ$3,Millwall!$AP117:$BA117,0) ->  | BA44: =MATCH(BA$3,Millwall!$AP117:$BA117,0) ->  | BB44: =MATCH(BB$3,Millwall!$AP117:$BA117,0) ->  | BC44: =MATCH(BC$3,Millwall!$AP117:$BA117,0) ->  | BD44: =MATCH(BD$3,Millwall!$AP117:$BA117,0) ->  | BE44: =MATCH(BE$3,Millwall!$AP117:$BA117,0) ->  | BF44: =MATCH(BF$3,Millwall!$AP117:$BA117,0) ->  | BG44: =MATCH(BG$3,Millwall!$AP117:$BA117,0) ->  | BH44: =MATCH(BH$3,Millwall!$AP117:$BA117,0) ->  | BI44: =MATCH(BI$3,Millwall!$AP117:$BA117,0) ->  | BJ44: =MATCH(BJ$3,Millwall!$AP117:$BA117,0) ->  | BK44: =MATCH(BK$3,Millwall!$AP117:$BA117,0) ->  | BL44: =MATCH(BL$3,Millwall!$AP117:$BA117,0) ->  | BM44: =MATCH(BM$3,Millwall!$AP117:$BA117,0) ->  | BN44: =MATCH(BN$3,Millwall!$AP117:$BA117,0) ->  | BO44: =MATCH(BO$3,Millwall!$AP117:$BA117,0) ->  | BP44: =MATCH(BP$3,Millwall!$AP117:$BA117,0) ->  | BQ44: =MATCH(BQ$3,Millwall!$AP117:$BA117,0) ->  | BR44: =MATCH(BR$3,Millwall!$AP117:$BA117,0) ->  | BS44: =MATCH(BS$3,Millwall!$AP117:$BA117,0) ->  | BT44: =MATCH(BT$3,Millwall!$AP117:$BA117,0) ->  | BU44: =MATCH(BU$3,Millwall!$AP117:$BA117,0) ->  | BV44: =MATCH(BV$3,Millwall!$AP117:$BA117,0) ->  | BW44: =MATCH(BW$3,Millwall!$AP117:$BA117,0) ->  | BX44: =MATCH(BX$3,Millwall!$AP117:$BA117,0) ->  | BY44: =MATCH(BY$3,Millwall!$AP117:$BA117,0) ->  | BZ44: =MATCH(BZ$3,Millwall!$AP117:$BA117,0) ->  | CA44: =MATCH(CA$3,Millwall!$AP117:$BA117,0) ->  | CB44: =MATCH(CB$3,Millwall!$AP117:$BA117,0) ->  | CC44: =MATCH(CC$3,Millwall!$AP117:$BA117,0) ->  | CD44: =MATCH(CD$3,Millwall!$AP117:$BA117,0) ->  | CE44: =MATCH(CE$3,Millwall!$AP117:$BA117,0) -> 
C45: 0 | D45: 41 | F45: =Millwall!AI118 -> 1971-04-24 | H45: =Millwall!AK118 -> Hull | I45: =Millwall!AL118 -> (H) | J45: =Millwall!AO118 -> W 4-0 | K45: =MATCH(K$4,Millwall!$AP118:$BA118,0) -> 11 | L45: =MATCH(L$4,Millwall!$AP118:$BA118,0) -> 8 | M45: =MATCH(M$4,Millwall!$AP118:$BA118,0) -> 9 | N45: =MATCH(N$4,Millwall!$AP118:$BA118,0) -> 2 | O45: =MATCH(O$4,Millwall!$AP118:$BA118,0) ->  | P45: =MATCH(P$4,Millwall!$AP118:$BA118,0) -> 6 | Q45: =MATCH(Q$4,Millwall!$AP118:$BA118,0) ->  | R45: =MATCH(R$4,Millwall!$AP118:$BA118,0) -> 3 | S45: =MATCH(S$4,Millwall!$AP118:$BA118,0) -> 4 | T45: =MATCH(T$4,Millwall!$AP118:$BA118,0) -> 10 | U45: =MATCH(U$4,Millwall!$AP118:$BA118,0) ->  | V45: =MATCH(V$4,Millwall!$AP118:$BA118,0) ->  | W45: =MATCH(W$4,Millwall!$AP118:$BA118,0) ->  | X45: =MATCH(X$4,Millwall!$AP118:$BA118,0) -> 1 | Y45: =MATCH(Y$4,Millwall!$AP118:$BA118,0) -> 5 | Z45: =MATCH(Z$4,Millwall!$AP118:$BA118,0) ->  | AA45: =MATCH(AA$4,Millwall!$AP118:$BA118,0) -> 7 | AB45: =MATCH(AB$4,Millwall!$AP118:$BA118,0) ->  | AC45: =MATCH(AC$4,Millwall!$AP118:$BA118,0) ->  | AD45: =MATCH(AD$4,Millwall!$AP118:$BA118,0) ->  | AE45: =MATCH(AE$4,Millwall!$AP118:$BA118,0) ->  | AF45: =MATCH(AF$4,Millwall!$AP118:$BA118,0) ->  | AG45: =MATCH(AG$4,Millwall!$AP118:$BA118,0) ->  | AH45: =MATCH(AH$3,Millwall!$AP118:$BA118,0) ->  | AI45: =MATCH(AI$3,Millwall!$AP118:$BA118,0) ->  | AJ45: =MATCH(AJ$3,Millwall!$AP118:$BA118,0) ->  | AK45: =MATCH(AK$3,Millwall!$AP118:$BA118,0) ->  | AL45: =MATCH(AL$3,Millwall!$AP118:$BA118,0) ->  | AM45: =MATCH(AM$3,Millwall!$AP118:$BA118,0) ->  | AN45: =MATCH(AN$3,Millwall!$AP118:$BA118,0) ->  | AO45: =MATCH(AO$3,Millwall!$AP118:$BA118,0) ->  | AP45: =MATCH(AP$3,Millwall!$AP118:$BA118,0) ->  | AQ45: =MATCH(AQ$3,Millwall!$AP118:$BA118,0) ->  | AR45: =MATCH(AR$3,Millwall!$AP118:$BA118,0) ->  | AX45: =MATCH(AX$3,Millwall!$AP118:$BA118,0) ->  | AY45: =MATCH(AY$3,Millwall!$AP118:$BA118,0) ->  | AZ45: =MATCH(AZ$3,Millwall!$AP118:$BA118,0) ->  | BA45: =MATCH(BA$3,Millwall!$AP118:$BA118,0) ->  | BB45: =MATCH(BB$3,Millwall!$AP118:$BA118,0) ->  | BC45: =MATCH(BC$3,Millwall!$AP118:$BA118,0) ->  | BD45: =MATCH(BD$3,Millwall!$AP118:$BA118,0) ->  | BE45: =MATCH(BE$3,Millwall!$AP118:$BA118,0) ->  | BF45: =MATCH(BF$3,Millwall!$AP118:$BA118,0) ->  | BG45: =MATCH(BG$3,Millwall!$AP118:$BA118,0) ->  | BH45: =MATCH(BH$3,Millwall!$AP118:$BA118,0) ->  | BI45: =MATCH(BI$3,Millwall!$AP118:$BA118,0) ->  | BJ45: =MATCH(BJ$3,Millwall!$AP118:$BA118,0) ->  | BK45: =MATCH(BK$3,Millwall!$AP118:$BA118,0) ->  | BL45: =MATCH(BL$3,Millwall!$AP118:$BA118,0) ->  | BM45: =MATCH(BM$3,Millwall!$AP118:$BA118,0) ->  | BN45: =MATCH(BN$3,Millwall!$AP118:$BA118,0) ->  | BO45: =MATCH(BO$3,Millwall!$AP118:$BA118,0) ->  | BP45: =MATCH(BP$3,Millwall!$AP118:$BA118,0) ->  | BQ45: =MATCH(BQ$3,Millwall!$AP118:$BA118,0) ->  | BR45: =MATCH(BR$3,Millwall!$AP118:$BA118,0) ->  | BS45: =MATCH(BS$3,Millwall!$AP118:$BA118,0) ->  | BT45: =MATCH(BT$3,Millwall!$AP118:$BA118,0) ->  | BU45: =MATCH(BU$3,Millwall!$AP118:$BA118,0) ->  | BV45: =MATCH(BV$3,Millwall!$AP118:$BA118,0) ->  | BW45: =MATCH(BW$3,Millwall!$AP118:$BA118,0) ->  | BX45: =MATCH(BX$3,Millwall!$AP118:$BA118,0) ->  | BY45: =MATCH(BY$3,Millwall!$AP118:$BA118,0) ->  | BZ45: =MATCH(BZ$3,Millwall!$AP118:$BA118,0) ->  | CA45: =MATCH(CA$3,Millwall!$AP118:$BA118,0) ->  | CB45: =MATCH(CB$3,Millwall!$AP118:$BA118,0) ->  | CC45: =MATCH(CC$3,Millwall!$AP118:$BA118,0) ->  | CD45: =MATCH(CD$3,Millwall!$AP118:$BA118,0) ->  | CE45: =MATCH(CE$3,Millwall!$AP118:$BA118,0) -> 
C46: 0 | D46: 42 | F46: =Millwall!AI119 -> 1971-05-01 | H46: =Millwall!AK119 -> Sunderland | I46: =Millwall!AL119 -> (A) | J46: =Millwall!AO119 -> W 1-0 | K46: =MATCH(K$4,Millwall!$AP119:$BA119,0) ->  | L46: =MATCH(L$4,Millwall!$AP119:$BA119,0) -> 8 | M46: =MATCH(M$4,Millwall!$AP119:$BA119,0) -> 9 | N46: =MATCH(N$4,Millwall!$AP119:$BA119,0) -> 2 | O46: =MATCH(O$4,Millwall!$AP119:$BA119,0) ->  | P46: =MATCH(P$4,Millwall!$AP119:$BA119,0) -> 6 | Q46: =MATCH(Q$4,Millwall!$AP119:$BA119,0) -> 11 | R46: =MATCH(R$4,Millwall!$AP119:$BA119,0) -> 3 | S46: =MATCH(S$4,Millwall!$AP119:$BA119,0) -> 4 | T46: =MATCH(T$4,Millwall!$AP119:$BA119,0) -> 10 | U46: =MATCH(U$4,Millwall!$AP119:$BA119,0) ->  | V46: =MATCH(V$4,Millwall!$AP119:$BA119,0) ->  | W46: =MATCH(W$4,Millwall!$AP119:$BA119,0) ->  | X46: =MATCH(X$4,Millwall!$AP119:$BA119,0) -> 1 | Y46: =MATCH(Y$4,Millwall!$AP119:$BA119,0) -> 5 | Z46: =MATCH(Z$4,Millwall!$AP119:$BA119,0) ->  | AA46: =MATCH(AA$4,Millwall!$AP119:$BA119,0) -> 7 | AB46: =MATCH(AB$4,Millwall!$AP119:$BA119,0) ->  | AC46: =MATCH(AC$4,Millwall!$AP119:$BA119,0) ->  | AD46: =MATCH(AD$4,Millwall!$AP119:$BA119,0) ->  | AE46: =MATCH(AE$4,Millwall!$AP119:$BA119,0) ->  | AF46: =MATCH(AF$4,Millwall!$AP119:$BA119,0) ->  | AG46: =MATCH(AG$4,Millwall!$AP119:$BA119,0) ->  | AH46: =MATCH(AH$3,Millwall!$AP119:$BA119,0) ->  | AI46: =MATCH(AI$3,Millwall!$AP119:$BA119,0) ->  | AJ46: =MATCH(AJ$3,Millwall!$AP119:$BA119,0) ->  | AK46: =MATCH(AK$3,Millwall!$AP119:$BA119,0) ->  | AL46: =MATCH(AL$3,Millwall!$AP119:$BA119,0) ->  | AM46: =MATCH(AM$3,Millwall!$AP119:$BA119,0) ->  | AN46: =MATCH(AN$3,Millwall!$AP119:$BA119,0) ->  | AO46: =MATCH(AO$3,Millwall!$AP119:$BA119,0) ->  | AP46: =MATCH(AP$3,Millwall!$AP119:$BA119,0) ->  | AQ46: =MATCH(AQ$3,Millwall!$AP119:$BA119,0) ->  | AR46: =MATCH(AR$3,Millwall!$AP119:$BA119,0) ->  | AX46: =MATCH(AX$3,Millwall!$AP119:$BA119,0) ->  | AY46: =MATCH(AY$3,Millwall!$AP119:$BA119,0) ->  | AZ46: =MATCH(AZ$3,Millwall!$AP119:$BA119,0) ->  | BA46: =MATCH(BA$3,Millwall!$AP119:$BA119,0) ->  | BB46: =MATCH(BB$3,Millwall!$AP119:$BA119,0) ->  | BC46: =MATCH(BC$3,Millwall!$AP119:$BA119,0) ->  | BD46: =MATCH(BD$3,Millwall!$AP119:$BA119,0) ->  | BE46: =MATCH(BE$3,Millwall!$AP119:$BA119,0) ->  | BF46: =MATCH(BF$3,Millwall!$AP119:$BA119,0) ->  | BG46: =MATCH(BG$3,Millwall!$AP119:$BA119,0) ->  | BH46: =MATCH(BH$3,Millwall!$AP119:$BA119,0) ->  | BI46: =MATCH(BI$3,Millwall!$AP119:$BA119,0) ->  | BJ46: =MATCH(BJ$3,Millwall!$AP119:$BA119,0) ->  | BK46: =MATCH(BK$3,Millwall!$AP119:$BA119,0) ->  | BL46: =MATCH(BL$3,Millwall!$AP119:$BA119,0) ->  | BM46: =MATCH(BM$3,Millwall!$AP119:$BA119,0) ->  | BN46: =MATCH(BN$3,Millwall!$AP119:$BA119,0) ->  | BO46: =MATCH(BO$3,Millwall!$AP119:$BA119,0) ->  | BP46: =MATCH(BP$3,Millwall!$AP119:$BA119,0) ->  | BQ46: =MATCH(BQ$3,Millwall!$AP119:$BA119,0) ->  | BR46: =MATCH(BR$3,Millwall!$AP119:$BA119,0) ->  | BS46: =MATCH(BS$3,Millwall!$AP119:$BA119,0) ->  | BT46: =MATCH(BT$3,Millwall!$AP119:$BA119,0) ->  | BU46: =MATCH(BU$3,Millwall!$AP119:$BA119,0) ->  | BV46: =MATCH(BV$3,Millwall!$AP119:$BA119,0) ->  | BW46: =MATCH(BW$3,Millwall!$AP119:$BA119,0) ->  | BX46: =MATCH(BX$3,Millwall!$AP119:$BA119,0) ->  | BY46: =MATCH(BY$3,Millwall!$AP119:$BA119,0) ->  | BZ46: =MATCH(BZ$3,Millwall!$AP119:$BA119,0) ->  | CA46: =MATCH(CA$3,Millwall!$AP119:$BA119,0) ->  | CB46: =MATCH(CB$3,Millwall!$AP119:$BA119,0) ->  | CC46: =MATCH(CC$3,Millwall!$AP119:$BA119,0) ->  | CD46: =MATCH(CD$3,Millwall!$AP119:$BA119,0) ->  | CE46: =MATCH(CE$3,Millwall!$AP119:$BA119,0) -> 
C47: 1 | D47: 43 | F47: =Millwall!AI120 -> 00:00:00 | H47: =Millwall!AK120 -> 00:00:00 | I47: =Millwall!AL120 -> 00:00:00 | J47: =Millwall!AO120 -> 0 | K47: =MATCH(K$4,Millwall!$AP120:$BA120,0) ->  | L47: =MATCH(L$4,Millwall!$AP120:$BA120,0) ->  | M47: =MATCH(M$4,Millwall!$AP120:$BA120,0) ->  | N47: =MATCH(N$4,Millwall!$AP120:$BA120,0) ->  | O47: =MATCH(O$4,Millwall!$AP120:$BA120,0) ->  | P47: =MATCH(P$4,Millwall!$AP120:$BA120,0) ->  | Q47: =MATCH(Q$4,Millwall!$AP120:$BA120,0) ->  | R47: =MATCH(R$4,Millwall!$AP120:$BA120,0) ->  | S47: =MATCH(S$4,Millwall!$AP120:$BA120,0) ->  | T47: =MATCH(T$4,Millwall!$AP120:$BA120,0) ->  | U47: =MATCH(U$4,Millwall!$AP120:$BA120,0) ->  | V47: =MATCH(V$4,Millwall!$AP120:$BA120,0) ->  | W47: =MATCH(W$4,Millwall!$AP120:$BA120,0) ->  | X47: =MATCH(X$4,Millwall!$AP120:$BA120,0) ->  | Y47: =MATCH(Y$4,Millwall!$AP120:$BA120,0) ->  | Z47: =MATCH(Z$4,Millwall!$AP120:$BA120,0) ->  | AA47: =MATCH(AA$4,Millwall!$AP120:$BA120,0) ->  | AB47: =MATCH(AB$4,Millwall!$AP120:$BA120,0) ->  | AC47: =MATCH(AC$4,Millwall!$AP120:$BA120,0) ->  | AD47: =MATCH(AD$4,Millwall!$AP120:$BA120,0) ->  | AE47: =MATCH(AE$4,Millwall!$AP120:$BA120,0) ->  | AF47: =MATCH(AF$4,Millwall!$AP120:$BA120,0) ->  | AG47: =MATCH(AG$4,Millwall!$AP120:$BA120,0) ->  | AH47: =MATCH(AH$3,Millwall!$AP120:$BA120,0) ->  | AI47: =MATCH(AI$3,Millwall!$AP120:$BA120,0) ->  | AJ47: =MATCH(AJ$3,Millwall!$AP120:$BA120,0) ->  | AK47: =MATCH(AK$3,Millwall!$AP120:$BA120,0) ->  | AL47: =MATCH(AL$3,Millwall!$AP120:$BA120,0) ->  | AM47: =MATCH(AM$3,Millwall!$AP120:$BA120,0) ->  | AN47: =MATCH(AN$3,Millwall!$AP120:$BA120,0) ->  | AO47: =MATCH(AO$3,Millwall!$AP120:$BA120,0) ->  | AP47: =MATCH(AP$3,Millwall!$AP120:$BA120,0) ->  | AQ47: =MATCH(AQ$3,Millwall!$AP120:$BA120,0) ->  | AR47: =MATCH(AR$3,Millwall!$AP120:$BA120,0) ->  | AX47: =MATCH(AX$3,Millwall!$AP120:$BA120,0) ->  | AY47: =MATCH(AY$3,Millwall!$AP120:$BA120,0) ->  | AZ47: =MATCH(AZ$3,Millwall!$AP120:$BA120,0) ->  | BA47: =MATCH(BA$3,Millwall!$AP120:$BA120,0) ->  | BB47: =MATCH(BB$3,Millwall!$AP120:$BA120,0) ->  | BC47: =MATCH(BC$3,Millwall!$AP120:$BA120,0) ->  | BD47: =MATCH(BD$3,Millwall!$AP120:$BA120,0) ->  | BE47: =MATCH(BE$3,Millwall!$AP120:$BA120,0) ->  | BF47: =MATCH(BF$3,Millwall!$AP120:$BA120,0) ->  | BG47: =MATCH(BG$3,Millwall!$AP120:$BA120,0) ->  | BH47: =MATCH(BH$3,Millwall!$AP120:$BA120,0) ->  | BI47: =MATCH(BI$3,Millwall!$AP120:$BA120,0) ->  | BJ47: =MATCH(BJ$3,Millwall!$AP120:$BA120,0) ->  | BK47: =MATCH(BK$3,Millwall!$AP120:$BA120,0) ->  | BL47: =MATCH(BL$3,Millwall!$AP120:$BA120,0) ->  | BM47: =MATCH(BM$3,Millwall!$AP120:$BA120,0) ->  | BN47: =MATCH(BN$3,Millwall!$AP120:$BA120,0) ->  | BO47: =MATCH(BO$3,Millwall!$AP120:$BA120,0) ->  | BP47: =MATCH(BP$3,Millwall!$AP120:$BA120,0) ->  | BQ47: =MATCH(BQ$3,Millwall!$AP120:$BA120,0) ->  | BR47: =MATCH(BR$3,Millwall!$AP120:$BA120,0) ->  | BS47: =MATCH(BS$3,Millwall!$AP120:$BA120,0) ->  | BT47: =MATCH(BT$3,Millwall!$AP120:$BA120,0) ->  | BU47: =MATCH(BU$3,Millwall!$AP120:$BA120,0) ->  | BV47: =MATCH(BV$3,Millwall!$AP120:$BA120,0) ->  | BW47: =MATCH(BW$3,Millwall!$AP120:$BA120,0) ->  | BX47: =MATCH(BX$3,Millwall!$AP120:$BA120,0) ->  | BY47: =MATCH(BY$3,Millwall!$AP120:$BA120,0) ->  | BZ47: =MATCH(BZ$3,Millwall!$AP120:$BA120,0) ->  | CA47: =MATCH(CA$3,Millwall!$AP120:$BA120,0) ->  | CB47: =MATCH(CB$3,Millwall!$AP120:$BA120,0) ->  | CC47: =MATCH(CC$3,Millwall!$AP120:$BA120,0) ->  | CD47: =MATCH(CD$3,Millwall!$AP120:$BA120,0) ->  | CE47: =MATCH(CE$3,Millwall!$AP120:$BA120,0) -> 
C48: 1 | D48: 44 | F48: =Millwall!AI121 -> 00:00:00 | H48: =Millwall!AK121 -> 00:00:00 | I48: =Millwall!AL121 -> 00:00:00 | J48: =Millwall!AO121 -> 0 | K48: =MATCH(K$4,Millwall!$AP121:$BA121,0) ->  | L48: =MATCH(L$4,Millwall!$AP121:$BA121,0) ->  | M48: =MATCH(M$4,Millwall!$AP121:$BA121,0) ->  | N48: =MATCH(N$4,Millwall!$AP121:$BA121,0) ->  | O48: =MATCH(O$4,Millwall!$AP121:$BA121,0) ->  | P48: =MATCH(P$4,Millwall!$AP121:$BA121,0) ->  | Q48: =MATCH(Q$4,Millwall!$AP121:$BA121,0) ->  | R48: =MATCH(R$4,Millwall!$AP121:$BA121,0) ->  | S48: =MATCH(S$4,Millwall!$AP121:$BA121,0) ->  | T48: =MATCH(T$4,Millwall!$AP121:$BA121,0) ->  | U48: =MATCH(U$4,Millwall!$AP121:$BA121,0) ->  | V48: =MATCH(V$4,Millwall!$AP121:$BA121,0) ->  | W48: =MATCH(W$4,Millwall!$AP121:$BA121,0) ->  | X48: =MATCH(X$4,Millwall!$AP121:$BA121,0) ->  | Y48: =MATCH(Y$4,Millwall!$AP121:$BA121,0) ->  | Z48: =MATCH(Z$4,Millwall!$AP121:$BA121,0) ->  | AA48: =MATCH(AA$4,Millwall!$AP121:$BA121,0) ->  | AB48: =MATCH(AB$4,Millwall!$AP121:$BA121,0) ->  | AC48: =MATCH(AC$4,Millwall!$AP121:$BA121,0) ->  | AD48: =MATCH(AD$4,Millwall!$AP121:$BA121,0) ->  | AE48: =MATCH(AE$4,Millwall!$AP121:$BA121,0) ->  | AF48: =MATCH(AF$4,Millwall!$AP121:$BA121,0) ->  | AG48: =MATCH(AG$4,Millwall!$AP121:$BA121,0) ->  | AH48: =MATCH(AH$3,Millwall!$AP121:$BA121,0) ->  | AI48: =MATCH(AI$3,Millwall!$AP121:$BA121,0) ->  | AJ48: =MATCH(AJ$3,Millwall!$AP121:$BA121,0) ->  | AK48: =MATCH(AK$3,Millwall!$AP121:$BA121,0) ->  | AL48: =MATCH(AL$3,Millwall!$AP121:$BA121,0) ->  | AM48: =MATCH(AM$3,Millwall!$AP121:$BA121,0) ->  | AN48: =MATCH(AN$3,Millwall!$AP121:$BA121,0) ->  | AO48: =MATCH(AO$3,Millwall!$AP121:$BA121,0) ->  | AP48: =MATCH(AP$3,Millwall!$AP121:$BA121,0) ->  | AQ48: =MATCH(AQ$3,Millwall!$AP121:$BA121,0) ->  | AR48: =MATCH(AR$3,Millwall!$AP121:$BA121,0) ->  | AX48: =MATCH(AX$3,Millwall!$AP121:$BA121,0) ->  | AY48: =MATCH(AY$3,Millwall!$AP121:$BA121,0) ->  | AZ48: =MATCH(AZ$3,Millwall!$AP121:$BA121,0) ->  | BA48: =MATCH(BA$3,Millwall!$AP121:$BA121,0) ->  | BB48: =MATCH(BB$3,Millwall!$AP121:$BA121,0) ->  | BC48: =MATCH(BC$3,Millwall!$AP121:$BA121,0) ->  | BD48: =MATCH(BD$3,Millwall!$AP121:$BA121,0) ->  | BE48: =MATCH(BE$3,Millwall!$AP121:$BA121,0) ->  | BF48: =MATCH(BF$3,Millwall!$AP121:$BA121,0) ->  | BG48: =MATCH(BG$3,Millwall!$AP121:$BA121,0) ->  | BH48: =MATCH(BH$3,Millwall!$AP121:$BA121,0) ->  | BI48: =MATCH(BI$3,Millwall!$AP121:$BA121,0) ->  | BJ48: =MATCH(BJ$3,Millwall!$AP121:$BA121,0) ->  | BK48: =MATCH(BK$3,Millwall!$AP121:$BA121,0) ->  | BL48: =MATCH(BL$3,Millwall!$AP121:$BA121,0) ->  | BM48: =MATCH(BM$3,Millwall!$AP121:$BA121,0) ->  | BN48: =MATCH(BN$3,Millwall!$AP121:$BA121,0) ->  | BO48: =MATCH(BO$3,Millwall!$AP121:$BA121,0) ->  | BP48: =MATCH(BP$3,Millwall!$AP121:$BA121,0) ->  | BQ48: =MATCH(BQ$3,Millwall!$AP121:$BA121,0) ->  | BR48: =MATCH(BR$3,Millwall!$AP121:$BA121,0) ->  | BS48: =MATCH(BS$3,Millwall!$AP121:$BA121,0) ->  | BT48: =MATCH(BT$3,Millwall!$AP121:$BA121,0) ->  | BU48: =MATCH(BU$3,Millwall!$AP121:$BA121,0) ->  | BV48: =MATCH(BV$3,Millwall!$AP121:$BA121,0) ->  | BW48: =MATCH(BW$3,Millwall!$AP121:$BA121,0) ->  | BX48: =MATCH(BX$3,Millwall!$AP121:$BA121,0) ->  | BY48: =MATCH(BY$3,Millwall!$AP121:$BA121,0) ->  | BZ48: =MATCH(BZ$3,Millwall!$AP121:$BA121,0) ->  | CA48: =MATCH(CA$3,Millwall!$AP121:$BA121,0) ->  | CB48: =MATCH(CB$3,Millwall!$AP121:$BA121,0) ->  | CC48: =MATCH(CC$3,Millwall!$AP121:$BA121,0) ->  | CD48: =MATCH(CD$3,Millwall!$AP121:$BA121,0) ->  | CE48: =MATCH(CE$3,Millwall!$AP121:$BA121,0) -> 
C49: 1 | D49: 45 | F49: =Millwall!AI122 -> 00:00:00 | H49: =Millwall!AK122 -> 00:00:00 | I49: =Millwall!AL122 -> 00:00:00 | J49: =Millwall!AO122 -> 0 | K49: =MATCH(K$4,Millwall!$AP122:$BA122,0) ->  | L49: =MATCH(L$4,Millwall!$AP122:$BA122,0) ->  | M49: =MATCH(M$4,Millwall!$AP122:$BA122,0) ->  | N49: =MATCH(N$4,Millwall!$AP122:$BA122,0) ->  | O49: =MATCH(O$4,Millwall!$AP122:$BA122,0) ->  | P49: =MATCH(P$4,Millwall!$AP122:$BA122,0) ->  | Q49: =MATCH(Q$4,Millwall!$AP122:$BA122,0) ->  | R49: =MATCH(R$4,Millwall!$AP122:$BA122,0) ->  | S49: =MATCH(S$4,Millwall!$AP122:$BA122,0) ->  | T49: =MATCH(T$4,Millwall!$AP122:$BA122,0) ->  | U49: =MATCH(U$4,Millwall!$AP122:$BA122,0) ->  | V49: =MATCH(V$4,Millwall!$AP122:$BA122,0) ->  | W49: =MATCH(W$4,Millwall!$AP122:$BA122,0) ->  | X49: =MATCH(X$4,Millwall!$AP122:$BA122,0) ->  | Y49: =MATCH(Y$4,Millwall!$AP122:$BA122,0) ->  | Z49: =MATCH(Z$4,Millwall!$AP122:$BA122,0) ->  | AA49: =MATCH(AA$4,Millwall!$AP122:$BA122,0) ->  | AB49: =MATCH(AB$4,Millwall!$AP122:$BA122,0) ->  | AC49: =MATCH(AC$4,Millwall!$AP122:$BA122,0) ->  | AD49: =MATCH(AD$4,Millwall!$AP122:$BA122,0) ->  | AE49: =MATCH(AE$4,Millwall!$AP122:$BA122,0) ->  | AF49: =MATCH(AF$4,Millwall!$AP122:$BA122,0) ->  | AG49: =MATCH(AG$4,Millwall!$AP122:$BA122,0) ->  | AH49: =MATCH(AH$3,Millwall!$AP122:$BA122,0) ->  | AI49: =MATCH(AI$3,Millwall!$AP122:$BA122,0) ->  | AJ49: =MATCH(AJ$3,Millwall!$AP122:$BA122,0) ->  | AK49: =MATCH(AK$3,Millwall!$AP122:$BA122,0) ->  | AL49: =MATCH(AL$3,Millwall!$AP122:$BA122,0) ->  | AM49: =MATCH(AM$3,Millwall!$AP122:$BA122,0) ->  | AN49: =MATCH(AN$3,Millwall!$AP122:$BA122,0) ->  | AO49: =MATCH(AO$3,Millwall!$AP122:$BA122,0) ->  | AP49: =MATCH(AP$3,Millwall!$AP122:$BA122,0) ->  | AQ49: =MATCH(AQ$3,Millwall!$AP122:$BA122,0) ->  | AR49: =MATCH(AR$3,Millwall!$AP122:$BA122,0) ->  | AX49: =MATCH(AX$3,Millwall!$AP122:$BA122,0) ->  | AY49: =MATCH(AY$3,Millwall!$AP122:$BA122,0) ->  | AZ49: =MATCH(AZ$3,Millwall!$AP122:$BA122,0) ->  | BA49: =MATCH(BA$3,Millwall!$AP122:$BA122,0) ->  | BB49: =MATCH(BB$3,Millwall!$AP122:$BA122,0) ->  | BC49: =MATCH(BC$3,Millwall!$AP122:$BA122,0) ->  | BD49: =MATCH(BD$3,Millwall!$AP122:$BA122,0) ->  | BE49: =MATCH(BE$3,Millwall!$AP122:$BA122,0) ->  | BF49: =MATCH(BF$3,Millwall!$AP122:$BA122,0) ->  | BG49: =MATCH(BG$3,Millwall!$AP122:$BA122,0) ->  | BH49: =MATCH(BH$3,Millwall!$AP122:$BA122,0) ->  | BI49: =MATCH(BI$3,Millwall!$AP122:$BA122,0) ->  | BJ49: =MATCH(BJ$3,Millwall!$AP122:$BA122,0) ->  | BK49: =MATCH(BK$3,Millwall!$AP122:$BA122,0) ->  | BL49: =MATCH(BL$3,Millwall!$AP122:$BA122,0) ->  | BM49: =MATCH(BM$3,Millwall!$AP122:$BA122,0) ->  | BN49: =MATCH(BN$3,Millwall!$AP122:$BA122,0) ->  | BO49: =MATCH(BO$3,Millwall!$AP122:$BA122,0) ->  | BP49: =MATCH(BP$3,Millwall!$AP122:$BA122,0) ->  | BQ49: =MATCH(BQ$3,Millwall!$AP122:$BA122,0) ->  | BR49: =MATCH(BR$3,Millwall!$AP122:$BA122,0) ->  | BS49: =MATCH(BS$3,Millwall!$AP122:$BA122,0) ->  | BT49: =MATCH(BT$3,Millwall!$AP122:$BA122,0) ->  | BU49: =MATCH(BU$3,Millwall!$AP122:$BA122,0) ->  | BV49: =MATCH(BV$3,Millwall!$AP122:$BA122,0) ->  | BW49: =MATCH(BW$3,Millwall!$AP122:$BA122,0) ->  | BX49: =MATCH(BX$3,Millwall!$AP122:$BA122,0) ->  | BY49: =MATCH(BY$3,Millwall!$AP122:$BA122,0) ->  | BZ49: =MATCH(BZ$3,Millwall!$AP122:$BA122,0) ->  | CA49: =MATCH(CA$3,Millwall!$AP122:$BA122,0) ->  | CB49: =MATCH(CB$3,Millwall!$AP122:$BA122,0) ->  | CC49: =MATCH(CC$3,Millwall!$AP122:$BA122,0) ->  | CD49: =MATCH(CD$3,Millwall!$AP122:$BA122,0) ->  | CE49: =MATCH(CE$3,Millwall!$AP122:$BA122,0) -> 
C50: =IF(J50=0,1,0) -> 1 | D50: 46 | F50: =Millwall!AI123 -> 00:00:00 | H50: =Millwall!AK123 -> 00:00:00 | I50: =Millwall!AL123 -> 00:00:00 | J50: =Millwall!AO123 -> 0 | K50: =MATCH(K$4,Millwall!$AP123:$BA123,0) ->  | L50: =MATCH(L$4,Millwall!$AP123:$BA123,0) ->  | M50: =MATCH(M$4,Millwall!$AP123:$BA123,0) ->  | N50: =MATCH(N$4,Millwall!$AP123:$BA123,0) ->  | O50: =MATCH(O$4,Millwall!$AP123:$BA123,0) ->  | P50: =MATCH(P$4,Millwall!$AP123:$BA123,0) ->  | Q50: =MATCH(Q$4,Millwall!$AP123:$BA123,0) ->  | R50: =MATCH(R$4,Millwall!$AP123:$BA123,0) ->  | S50: =MATCH(S$4,Millwall!$AP123:$BA123,0) ->  | T50: =MATCH(T$4,Millwall!$AP123:$BA123,0) ->  | U50: =MATCH(U$4,Millwall!$AP123:$BA123,0) ->  | V50: =MATCH(V$4,Millwall!$AP123:$BA123,0) ->  | W50: =MATCH(W$4,Millwall!$AP123:$BA123,0) ->  | X50: =MATCH(X$4,Millwall!$AP123:$BA123,0) ->  | Y50: =MATCH(Y$4,Millwall!$AP123:$BA123,0) ->  | Z50: =MATCH(Z$4,Millwall!$AP123:$BA123,0) ->  | AA50: =MATCH(AA$4,Millwall!$AP123:$BA123,0) ->  | AB50: =MATCH(AB$4,Millwall!$AP123:$BA123,0) ->  | AC50: =MATCH(AC$4,Millwall!$AP123:$BA123,0) ->  | AD50: =MATCH(AD$4,Millwall!$AP123:$BA123,0) ->  | AE50: =MATCH(AE$4,Millwall!$AP123:$BA123,0) ->  | AF50: =MATCH(AF$4,Millwall!$AP123:$BA123,0) ->  | AG50: =MATCH(AG$4,Millwall!$AP123:$BA123,0) ->  | AH50: =MATCH(AH$3,Millwall!$AP123:$BA123,0) ->  | AI50: =MATCH(AI$3,Millwall!$AP123:$BA123,0) ->  | AJ50: =MATCH(AJ$3,Millwall!$AP123:$BA123,0) ->  | AK50: =MATCH(AK$3,Millwall!$AP123:$BA123,0) ->  | AL50: =MATCH(AL$3,Millwall!$AP123:$BA123,0) ->  | AM50: =MATCH(AM$3,Millwall!$AP123:$BA123,0) ->  | AN50: =MATCH(AN$3,Millwall!$AP123:$BA123,0) ->  | AO50: =MATCH(AO$3,Millwall!$AP123:$BA123,0) ->  | AP50: =MATCH(AP$3,Millwall!$AP123:$BA123,0) ->  | AQ50: =MATCH(AQ$3,Millwall!$AP123:$BA123,0) ->  | AR50: =MATCH(AR$3,Millwall!$AP123:$BA123,0) ->  | AX50: =MATCH(AX$3,Millwall!$AP123:$BA123,0) ->  | AY50: =MATCH(AY$3,Millwall!$AP123:$BA123,0) ->  | AZ50: =MATCH(AZ$3,Millwall!$AP123:$BA123,0) ->  | BA50: =MATCH(BA$3,Millwall!$AP123:$BA123,0) ->  | BB50: =MATCH(BB$3,Millwall!$AP123:$BA123,0) ->  | BC50: =MATCH(BC$3,Millwall!$AP123:$BA123,0) ->  | BD50: =MATCH(BD$3,Millwall!$AP123:$BA123,0) ->  | BE50: =MATCH(BE$3,Millwall!$AP123:$BA123,0) ->  | BF50: =MATCH(BF$3,Millwall!$AP123:$BA123,0) ->  | BG50: =MATCH(BG$3,Millwall!$AP123:$BA123,0) ->  | BH50: =MATCH(BH$3,Millwall!$AP123:$BA123,0) ->  | BI50: =MATCH(BI$3,Millwall!$AP123:$BA123,0) ->  | BJ50: =MATCH(BJ$3,Millwall!$AP123:$BA123,0) ->  | BK50: =MATCH(BK$3,Millwall!$AP123:$BA123,0) ->  | BL50: =MATCH(BL$3,Millwall!$AP123:$BA123,0) ->  | BM50: =MATCH(BM$3,Millwall!$AP123:$BA123,0) ->  | BN50: =MATCH(BN$3,Millwall!$AP123:$BA123,0) ->  | BO50: =MATCH(BO$3,Millwall!$AP123:$BA123,0) ->  | BP50: =MATCH(BP$3,Millwall!$AP123:$BA123,0) ->  | BQ50: =MATCH(BQ$3,Millwall!$AP123:$BA123,0) ->  | BR50: =MATCH(BR$3,Millwall!$AP123:$BA123,0) ->  | BS50: =MATCH(BS$3,Millwall!$AP123:$BA123,0) ->  | BT50: =MATCH(BT$3,Millwall!$AP123:$BA123,0) ->  | BU50: =MATCH(BU$3,Millwall!$AP123:$BA123,0) ->  | BV50: =MATCH(BV$3,Millwall!$AP123:$BA123,0) ->  | BW50: =MATCH(BW$3,Millwall!$AP123:$BA123,0) ->  | BX50: =MATCH(BX$3,Millwall!$AP123:$BA123,0) ->  | BY50: =MATCH(BY$3,Millwall!$AP123:$BA123,0) ->  | BZ50: =MATCH(BZ$3,Millwall!$AP123:$BA123,0) ->  | CA50: =MATCH(CA$3,Millwall!$AP123:$BA123,0) ->  | CB50: =MATCH(CB$3,Millwall!$AP123:$BA123,0) ->  | CC50: =MATCH(CC$3,Millwall!$AP123:$BA123,0) ->  | CD50: =MATCH(CD$3,Millwall!$AP123:$BA123,0) ->  | CE50: =MATCH(CE$3,Millwall!$AP123:$BA123,0) -> 
J52: Total League Apperances | K52: =COUNT(K5:K50)-K53 -> 38 | L52: =COUNT(L5:L50)-L53 -> 42 | M52: 35 | N52: 42 | O52: 1 | P52: 40 | Q52: 2 | R52: 42 | S52: 39 | T52: 39 | U52: 2 | V52: 0 | W52: 10 | X52: 42 | Y52: 42 | Z52: 5 | AA52: 41 | AB52: 0 | AC52: 0 | AD52: 0 | AE52: 0 | AF52: 0 | AG52: 0 | AH52: 0 | AI52: 0 | AJ52: 0 | AK52: 0 | AL52: 0 | AM52: 0 | AN52: 0 | AO52: 0 | AP52: 0 | AQ52: 0 | AR52: 0
J53: Total League Substitute Appearences | K53: =COUNTIF(K5:K50,">=12") -> 0 | L53: 0 | M53: =COUNTIF(M5:M50,">=12") -> 0 | N53: =COUNTIF(N5:N50,">=12") -> 0 | O53: 13 | P53: 0 | Q53: 1 | R53: 0 | S53: 0 | T53: 1 | U53: 0 | V53: 1 | W53: 0 | X53: 0 | Y53: 0 | Z53: 1 | AA53: 0 | AB53: 0 | AC53: 0 | AD53: 0 | AE53: 0 | AF53: 0 | AG53: 0 | AH53: 0 | AI53: 0 | AJ53: 0 | AK53: 0 | AL53: 0 | AM53: 0 | AN53: 0 | AO53: 0 | AP53: 0 | AQ53: 0 | AR53: 0
J54: Goals | K54: =Millwall!$BV$7 -> 0 | L54: =Millwall!$BV$8 -> 0 | M54: =Millwall!$BV$9 -> 0 | N54: =Millwall!$BV$10 -> 0 | O54: =Millwall!$BV$11 -> 0 | P54: =Millwall!$BV$12 -> 0 | Q54: =Millwall!$BV$13 -> 0 | R54: =Millwall!$BV$14 -> 0 | S54: =Millwall!$BV$15 -> 0 | T54: =Millwall!$BV$16 -> 0 | U54: =Millwall!$BV$17 -> 0 | V54: =Millwall!$BV$18 -> 0 | W54: =Millwall!$BV$19 -> 0 | X54: =Millwall!$BV$20 -> 0 | Y54: =Millwall!$BV$21 -> 0 | Z54: =Millwall!$BV$22 -> 0 | AA54: =Millwall!$BV$23 -> 0 | AB54: =Millwall!$BV$24 -> 0 | AC54: =Millwall!$BV$25 -> 0 | AD54: =Millwall!$BV$26 -> 0 | AE54: =Millwall!$BV$27 -> 0 | AF54: =Millwall!$BV$28 -> 0 | AG54: =Millwall!$BV$29 -> 0 | AH54: =Millwall!$BV$30 -> 0 | AI54: =Millwall!$BV$29 -> 0 | AJ54: =Millwall!$BV$33 -> 0 | AK54: =Millwall!$BV$34 -> 0 | AL54: =Millwall!$BV$35 -> 0 | AM54: =Millwall!$BV$36 -> 0 | AN54: =Millwall!$BV$37 -> 0 | AO54: =Millwall!$BV$38 -> 0 | AP54: =Millwall!$BV$39 -> 0 | AQ54: =Millwall!$BV$40 -> 0 | AR54: =Millwall!$BV$41 -> 0
C55: 1
H56: FA Cup
C57: =IF(J57=0,1,0) -> 0 | D57: 3 | F57: =Millwall!AI136 -> 1971-01-02 | H57: =Millwall!AK136 -> Stoke City | I57: =Millwall!AL136 -> (A) | J57: =Millwall!AO136 -> L 1-2 | K57: =MATCH(K$4,Millwall!$AP136:$BA136,0) -> 11 | L57: =MATCH(L$4,Millwall!$AP136:$BA136,0) -> 9 | M57: =MATCH(M$4,Millwall!$AP136:$BA136,0) -> 7 | N57: =MATCH(N$4,Millwall!$AP136:$BA136,0) -> 2 | O57: =MATCH(O$4,Millwall!$AP136:$BA136,0) ->  | P57: =MATCH(P$4,Millwall!$AP136:$BA136,0) -> 6 | Q57: =MATCH(Q$4,Millwall!$AP136:$BA136,0) ->  | R57: =MATCH(R$4,Millwall!$AP136:$BA136,0) -> 3 | S57: =MATCH(S$4,Millwall!$AP136:$BA136,0) -> 4 | T57: =MATCH(T$4,Millwall!$AP136:$BA136,0) -> 8 | U57: =MATCH(U$4,Millwall!$AP136:$BA136,0) ->  | V57: =MATCH(V$4,Millwall!$AP136:$BA136,0) ->  | W57: =MATCH(W$4,Millwall!$AP136:$BA136,0) ->  | X57: =MATCH(X$4,Millwall!$AP136:$BA136,0) -> 1 | Y57: =MATCH(Y$4,Millwall!$AP136:$BA136,0) -> 5 | Z57: =MATCH(Z$4,Millwall!$AP136:$BA136,0) ->  | AA57: =MATCH(AA$4,Millwall!$AP136:$BA136,0) -> 10 | AB57: =MATCH(AB$4,Millwall!$AP136:$BA136,0) ->  | AC57: =MATCH(AC$4,Millwall!$AP136:$BA136,0) ->  | AD57: =MATCH(AD$4,Millwall!$AP136:$BA136,0) ->  | AE57: =MATCH(AE$4,Millwall!$AP136:$BA136,0) ->  | AF57: =MATCH(AF$4,Millwall!$AP136:$BA136,0) ->  | AG57: =MATCH(AG$4,Millwall!$AP136:$BA136,0) ->  | AH57: =MATCH(AH$4,Millwall!$AP136:$BA136,0) ->  | AI57: =MATCH(AI$4,Millwall!$AP136:$BA136,0) ->  | AJ57: =MATCH(AJ$4,Millwall!$AP136:$BA136,0) ->  | AK57: =MATCH(AK$4,Millwall!$AP136:$BA136,0) ->  | AL57: =MATCH(AL$4,Millwall!$AP136:$BA136,0) ->  | AM57: =MATCH(AM$4,Millwall!$AP136:$BA136,0) ->  | AN57: =MATCH(AN$4,Millwall!$AP136:$BA136,0) ->  | AO57: =MATCH(AO$4,Millwall!$AP136:$BA136,0) ->  | AP57: =MATCH(AP$4,Millwall!$AP136:$BA136,0) ->  | AQ57: =MATCH(AQ$4,Millwall!$AP136:$BA136,0) ->  | AR57: =MATCH(AR$4,Millwall!$AP136:$BA136,0) ->  | AX57: =MATCH(AX$3,Millwall!#REF!,0) ->  | AY57: =MATCH(AY$3,Millwall!#REF!,0) ->  | AZ57: =MATCH(AZ$3,Millwall!#REF!,0) ->  | BA57: =MATCH(BA$3,Millwall!#REF!,0) ->  | BB57: =MATCH(BB$3,Millwall!#REF!,0) ->  | BC57: =MATCH(BC$3,Millwall!#REF!,0) ->  | BD57: =MATCH(BD$3,Millwall!#REF!,0) ->  | BE57: =MATCH(BE$3,Millwall!#REF!,0) ->  | BF57: =MATCH(BF$3,Millwall!#REF!,0) ->  | BG57: =MATCH(BG$3,Millwall!#REF!,0) ->  | BH57: =MATCH(BH$3,Millwall!#REF!,0) ->  | BI57: =MATCH(BI$3,Millwall!#REF!,0) ->  | BJ57: =MATCH(BJ$3,Millwall!#REF!,0) ->  | BK57: =MATCH(BK$3,Millwall!#REF!,0) ->  | BL57: =MATCH(BL$3,Millwall!#REF!,0) ->  | BM57: =MATCH(BM$3,Millwall!#REF!,0) ->  | BN57: =MATCH(BN$3,Millwall!#REF!,0) ->  | BO57: =MATCH(BO$3,Millwall!#REF!,0) ->  | BP57: =MATCH(BP$3,Millwall!#REF!,0) ->  | BQ57: =MATCH(BQ$3,Millwall!#REF!,0) ->  | BR57: =MATCH(BR$3,Millwall!#REF!,0) ->  | BS57: =MATCH(BS$3,Millwall!#REF!,0) ->  | BT57: =MATCH(BT$3,Millwall!#REF!,0) ->  | BU57: =MATCH(BU$3,Millwall!#REF!,0) ->  | BV57: =MATCH(BV$3,Millwall!#REF!,0) ->  | BW57: =MATCH(BW$3,Millwall!#REF!,0) ->  | BX57: =MATCH(BX$3,Millwall!#REF!,0) ->  | BY57: =MATCH(BY$3,Millwall!#REF!,0) ->  | BZ57: =MATCH(BZ$3,Millwall!#REF!,0) ->  | CA57: =MATCH(CA$3,Millwall!#REF!,0) ->  | CB57: =MATCH(CB$3,Millwall!#REF!,0) ->  | CC57: =MATCH(CC$3,Millwall!#REF!,0) ->  | CD57: =MATCH(CD$3,Millwall!#REF!,0) ->  | CE57: =MATCH(CE$3,Millwall!#REF!,0) -> 
C58: 1 | F58: =Millwall!AI137 -> 00:00:00 | H58: =Millwall!AK137 -> 00:00:00 | I58: =Millwall!AL137 -> 00:00:00 | J58: =Millwall!AO137 -> 0 | K58: =MATCH(K$4,Millwall!$AP137:$BA137,0) ->  | L58: =MATCH(L$4,Millwall!$AP137:$BA137,0) ->  | M58: =MATCH(M$4,Millwall!$AP137:$BA137,0) ->  | N58: =MATCH(N$4,Millwall!$AP137:$BA137,0) ->  | O58: =MATCH(O$4,Millwall!$AP137:$BA137,0) ->  | P58: =MATCH(P$4,Millwall!$AP137:$BA137,0) ->  | Q58: =MATCH(Q$4,Millwall!$AP137:$BA137,0) ->  | R58: =MATCH(R$4,Millwall!$AP137:$BA137,0) ->  | S58: =MATCH(S$4,Millwall!$AP137:$BA137,0) ->  | T58: =MATCH(T$4,Millwall!$AP137:$BA137,0) ->  | U58: =MATCH(U$4,Millwall!$AP137:$BA137,0) ->  | V58: =MATCH(V$4,Millwall!$AP137:$BA137,0) ->  | W58: =MATCH(W$4,Millwall!$AP137:$BA137,0) ->  | X58: =MATCH(X$4,Millwall!$AP137:$BA137,0) ->  | Y58: =MATCH(Y$4,Millwall!$AP137:$BA137,0) ->  | Z58: =MATCH(Z$4,Millwall!$AP137:$BA137,0) ->  | AA58: =MATCH(AA$4,Millwall!$AP137:$BA137,0) ->  | AB58: =MATCH(AB$4,Millwall!$AP137:$BA137,0) ->  | AC58: =MATCH(AC$4,Millwall!$AP137:$BA137,0) ->  | AD58: =MATCH(AD$4,Millwall!$AP137:$BA137,0) ->  | AE58: =MATCH(AE$4,Millwall!$AP137:$BA137,0) ->  | AF58: =MATCH(AF$4,Millwall!$AP137:$BA137,0) ->  | AG58: =MATCH(AG$4,Millwall!$AP137:$BA137,0) ->  | AH58: =MATCH(AH$4,Millwall!$AP137:$BA137,0) ->  | AI58: =MATCH(AI$4,Millwall!$AP137:$BA137,0) ->  | AJ58: =MATCH(AJ$4,Millwall!$AP137:$BA137,0) ->  | AK58: =MATCH(AK$4,Millwall!$AP137:$BA137,0) ->  | AL58: =MATCH(AL$4,Millwall!$AP137:$BA137,0) ->  | AM58: =MATCH(AM$4,Millwall!$AP137:$BA137,0) ->  | AN58: =MATCH(AN$4,Millwall!$AP137:$BA137,0) ->  | AO58: =MATCH(AO$4,Millwall!$AP137:$BA137,0) ->  | AP58: =MATCH(AP$4,Millwall!$AP137:$BA137,0) ->  | AQ58: =MATCH(AQ$4,Millwall!$AP137:$BA137,0) ->  | AR58: =MATCH(AR$4,Millwall!$AP137:$BA137,0) ->  | AX58: =MATCH(AX$3,Millwall!$AP137:$BA137,0) ->  | AY58: =MATCH(AY$3,Millwall!$AP137:$BA137,0) ->  | AZ58: =MATCH(AZ$3,Millwall!$AP137:$BA137,0) ->  | BA58: =MATCH(BA$3,Millwall!$AP137:$BA137,0) ->  | BB58: =MATCH(BB$3,Millwall!$AP137:$BA137,0) ->  | BC58: =MATCH(BC$3,Millwall!$AP137:$BA137,0) ->  | BD58: =MATCH(BD$3,Millwall!$AP137:$BA137,0) ->  | BE58: =MATCH(BE$3,Millwall!$AP137:$BA137,0) ->  | BF58: =MATCH(BF$3,Millwall!$AP137:$BA137,0) ->  | BG58: =MATCH(BG$3,Millwall!$AP137:$BA137,0) ->  | BH58: =MATCH(BH$3,Millwall!$AP137:$BA137,0) ->  | BI58: =MATCH(BI$3,Millwall!$AP137:$BA137,0) ->  | BJ58: =MATCH(BJ$3,Millwall!$AP137:$BA137,0) ->  | BK58: =MATCH(BK$3,Millwall!$AP137:$BA137,0) ->  | BL58: =MATCH(BL$3,Millwall!$AP137:$BA137,0) ->  | BM58: =MATCH(BM$3,Millwall!$AP137:$BA137,0) ->  | BN58: =MATCH(BN$3,Millwall!$AP137:$BA137,0) ->  | BO58: =MATCH(BO$3,Millwall!$AP137:$BA137,0) ->  | BP58: =MATCH(BP$3,Millwall!$AP137:$BA137,0) ->  | BQ58: =MATCH(BQ$3,Millwall!$AP137:$BA137,0) ->  | BR58: =MATCH(BR$3,Millwall!$AP137:$BA137,0) ->  | BS58: =MATCH(BS$3,Millwall!$AP137:$BA137,0) ->  | BT58: =MATCH(BT$3,Millwall!$AP137:$BA137,0) ->  | BU58: =MATCH(BU$3,Millwall!$AP137:$BA137,0) ->  | BV58: =MATCH(BV$3,Millwall!$AP137:$BA137,0) ->  | BW58: =MATCH(BW$3,Millwall!$AP137:$BA137,0) ->  | BX58: =MATCH(BX$3,Millwall!$AP137:$BA137,0) ->  | BY58: =MATCH(BY$3,Millwall!$AP137:$BA137,0) ->  | BZ58: =MATCH(BZ$3,Millwall!$AP137:$BA137,0) ->  | CA58: =MATCH(CA$3,Millwall!$AP137:$BA137,0) ->  | CB58: =MATCH(CB$3,Millwall!$AP137:$BA137,0) ->  | CC58: =MATCH(CC$3,Millwall!$AP137:$BA137,0) ->  | CD58: =MATCH(CD$3,Millwall!$AP137:$BA137,0) ->  | CE58: =MATCH(CE$3,Millwall!$AP137:$BA137,0) -> 
C59: 1 | F59: =Millwall!AI138 -> 00:00:00 | H59: =Millwall!AK138 -> 00:00:00 | I59: =Millwall!AL138 -> 00:00:00 | J59: =Millwall!AO138 -> 0 | K59: =MATCH(K$4,Millwall!$AP138:$BA138,0) ->  | L59: =MATCH(L$4,Millwall!$AP138:$BA138,0) ->  | M59: =MATCH(M$4,Millwall!$AP138:$BA138,0) ->  | N59: =MATCH(N$4,Millwall!$AP138:$BA138,0) ->  | O59: =MATCH(O$4,Millwall!$AP138:$BA138,0) ->  | P59: =MATCH(P$4,Millwall!$AP138:$BA138,0) ->  | Q59: =MATCH(Q$4,Millwall!$AP138:$BA138,0) ->  | R59: =MATCH(R$4,Millwall!$AP138:$BA138,0) ->  | S59: =MATCH(S$4,Millwall!$AP138:$BA138,0) ->  | T59: =MATCH(T$4,Millwall!$AP138:$BA138,0) ->  | U59: =MATCH(U$4,Millwall!$AP138:$BA138,0) ->  | V59: =MATCH(V$4,Millwall!$AP138:$BA138,0) ->  | W59: =MATCH(W$4,Millwall!$AP138:$BA138,0) ->  | X59: =MATCH(X$4,Millwall!$AP138:$BA138,0) ->  | Y59: =MATCH(Y$4,Millwall!$AP138:$BA138,0) ->  | Z59: =MATCH(Z$4,Millwall!$AP138:$BA138,0) ->  | AA59: =MATCH(AA$4,Millwall!$AP138:$BA138,0) ->  | AB59: =MATCH(AB$4,Millwall!$AP138:$BA138,0) ->  | AC59: =MATCH(AC$4,Millwall!$AP138:$BA138,0) ->  | AD59: =MATCH(AD$4,Millwall!$AP138:$BA138,0) ->  | AE59: =MATCH(AE$4,Millwall!$AP138:$BA138,0) ->  | AF59: =MATCH(AF$4,Millwall!$AP138:$BA138,0) ->  | AG59: =MATCH(AG$4,Millwall!$AP138:$BA138,0) ->  | AH59: =MATCH(AH$4,Millwall!$AP138:$BA138,0) ->  | AI59: =MATCH(AI$4,Millwall!$AP138:$BA138,0) ->  | AJ59: =MATCH(AJ$4,Millwall!$AP138:$BA138,0) ->  | AK59: =MATCH(AK$4,Millwall!$AP138:$BA138,0) ->  | AL59: =MATCH(AL$4,Millwall!$AP138:$BA138,0) ->  | AM59: =MATCH(AM$4,Millwall!$AP138:$BA138,0) ->  | AN59: =MATCH(AN$4,Millwall!$AP138:$BA138,0) ->  | AO59: =MATCH(AO$4,Millwall!$AP138:$BA138,0) ->  | AP59: =MATCH(AP$4,Millwall!$AP138:$BA138,0) ->  | AQ59: =MATCH(AQ$4,Millwall!$AP138:$BA138,0) ->  | AR59: =MATCH(AR$4,Millwall!$AP138:$BA138,0) ->  | AX59: =MATCH(AX$3,Millwall!$AP138:$BA138,0) ->  | AY59: =MATCH(AY$3,Millwall!$AP138:$BA138,0) ->  | AZ59: =MATCH(AZ$3,Millwall!$AP138:$BA138,0) ->  | BA59: =MATCH(BA$3,Millwall!$AP138:$BA138,0) ->  | BB59: =MATCH(BB$3,Millwall!$AP138:$BA138,0) ->  | BC59: =MATCH(BC$3,Millwall!$AP138:$BA138,0) ->  | BD59: =MATCH(BD$3,Millwall!$AP138:$BA138,0) ->  | BE59: =MATCH(BE$3,Millwall!$AP138:$BA138,0) ->  | BF59: =MATCH(BF$3,Millwall!$AP138:$BA138,0) ->  | BG59: =MATCH(BG$3,Millwall!$AP138:$BA138,0) ->  | BH59: =MATCH(BH$3,Millwall!$AP138:$BA138,0) ->  | BI59: =MATCH(BI$3,Millwall!$AP138:$BA138,0) ->  | BJ59: =MATCH(BJ$3,Millwall!$AP138:$BA138,0) ->  | BK59: =MATCH(BK$3,Millwall!$AP138:$BA138,0) ->  | BL59: =MATCH(BL$3,Millwall!$AP138:$BA138,0) ->  | BM59: =MATCH(BM$3,Millwall!$AP138:$BA138,0) ->  | BN59: =MATCH(BN$3,Millwall!$AP138:$BA138,0) ->  | BO59: =MATCH(BO$3,Millwall!$AP138:$BA138,0) ->  | BP59: =MATCH(BP$3,Millwall!$AP138:$BA138,0) ->  | BQ59: =MATCH(BQ$3,Millwall!$AP138:$BA138,0) ->  | BR59: =MATCH(BR$3,Millwall!$AP138:$BA138,0) ->  | BS59: =MATCH(BS$3,Millwall!$AP138:$BA138,0) ->  | BT59: =MATCH(BT$3,Millwall!$AP138:$BA138,0) ->  | BU59: =MATCH(BU$3,Millwall!$AP138:$BA138,0) ->  | BV59: =MATCH(BV$3,Millwall!$AP138:$BA138,0) ->  | BW59: =MATCH(BW$3,Millwall!$AP138:$BA138,0) ->  | BX59: =MATCH(BX$3,Millwall!$AP138:$BA138,0) ->  | BY59: =MATCH(BY$3,Millwall!$AP138:$BA138,0) ->  | BZ59: =MATCH(BZ$3,Millwall!$AP138:$BA138,0) ->  | CA59: =MATCH(CA$3,Millwall!$AP138:$BA138,0) ->  | CB59: =MATCH(CB$3,Millwall!$AP138:$BA138,0) ->  | CC59: =MATCH(CC$3,Millwall!$AP138:$BA138,0) ->  | CD59: =MATCH(CD$3,Millwall!$AP138:$BA138,0) ->  | CE59: =MATCH(CE$3,Millwall!$AP138:$BA138,0) -> 
C60: 1 | F60: =Millwall!AI139 -> 00:00:00 | H60: =Millwall!AK139 -> 00:00:00 | I60: =Millwall!AL139 -> 00:00:00 | J60: =Millwall!AO139 -> 0 | K60: =MATCH(K$4,Millwall!$AP139:$BA139,0) ->  | L60: =MATCH(L$4,Millwall!$AP139:$BA139,0) ->  | M60: =MATCH(M$4,Millwall!$AP139:$BA139,0) ->  | N60: =MATCH(N$4,Millwall!$AP139:$BA139,0) ->  | O60: =MATCH(O$4,Millwall!$AP139:$BA139,0) ->  | P60: =MATCH(P$4,Millwall!$AP139:$BA139,0) ->  | Q60: =MATCH(Q$4,Millwall!$AP139:$BA139,0) ->  | R60: =MATCH(R$4,Millwall!$AP139:$BA139,0) ->  | S60: =MATCH(S$4,Millwall!$AP139:$BA139,0) ->  | T60: =MATCH(T$4,Millwall!$AP139:$BA139,0) ->  | U60: =MATCH(U$4,Millwall!$AP139:$BA139,0) ->  | V60: =MATCH(V$4,Millwall!$AP139:$BA139,0) ->  | W60: =MATCH(W$4,Millwall!$AP139:$BA139,0) ->  | X60: =MATCH(X$4,Millwall!$AP139:$BA139,0) ->  | Y60: =MATCH(Y$4,Millwall!$AP139:$BA139,0) ->  | Z60: =MATCH(Z$4,Millwall!$AP139:$BA139,0) ->  | AA60: =MATCH(AA$4,Millwall!$AP139:$BA139,0) ->  | AB60: =MATCH(AB$4,Millwall!$AP139:$BA139,0) ->  | AC60: =MATCH(AC$4,Millwall!$AP139:$BA139,0) ->  | AD60: =MATCH(AD$4,Millwall!$AP139:$BA139,0) ->  | AE60: =MATCH(AE$4,Millwall!$AP139:$BA139,0) ->  | AF60: =MATCH(AF$4,Millwall!$AP139:$BA139,0) ->  | AG60: =MATCH(AG$4,Millwall!$AP139:$BA139,0) ->  | AH60: =MATCH(AH$4,Millwall!$AP139:$BA139,0) ->  | AI60: =MATCH(AI$4,Millwall!$AP139:$BA139,0) ->  | AJ60: =MATCH(AJ$4,Millwall!$AP139:$BA139,0) ->  | AK60: =MATCH(AK$4,Millwall!$AP139:$BA139,0) ->  | AL60: =MATCH(AL$4,Millwall!$AP139:$BA139,0) ->  | AM60: =MATCH(AM$4,Millwall!$AP139:$BA139,0) ->  | AN60: =MATCH(AN$4,Millwall!$AP139:$BA139,0) ->  | AO60: =MATCH(AO$4,Millwall!$AP139:$BA139,0) ->  | AP60: =MATCH(AP$4,Millwall!$AP139:$BA139,0) ->  | AQ60: =MATCH(AQ$4,Millwall!$AP139:$BA139,0) ->  | AR60: =MATCH(AR$4,Millwall!$AP139:$BA139,0) ->  | AX60: =MATCH(AX$3,Millwall!$AP139:$BA139,0) ->  | AY60: =MATCH(AY$3,Millwall!$AP139:$BA139,0) ->  | AZ60: =MATCH(AZ$3,Millwall!$AP139:$BA139,0) ->  | BA60: =MATCH(BA$3,Millwall!$AP139:$BA139,0) ->  | BB60: =MATCH(BB$3,Millwall!$AP139:$BA139,0) ->  | BC60: =MATCH(BC$3,Millwall!$AP139:$BA139,0) ->  | BD60: =MATCH(BD$3,Millwall!$AP139:$BA139,0) ->  | BE60: =MATCH(BE$3,Millwall!$AP139:$BA139,0) ->  | BF60: =MATCH(BF$3,Millwall!$AP139:$BA139,0) ->  | BG60: =MATCH(BG$3,Millwall!$AP139:$BA139,0) ->  | BH60: =MATCH(BH$3,Millwall!$AP139:$BA139,0) ->  | BI60: =MATCH(BI$3,Millwall!$AP139:$BA139,0) ->  | BJ60: =MATCH(BJ$3,Millwall!$AP139:$BA139,0) ->  | BK60: =MATCH(BK$3,Millwall!$AP139:$BA139,0) ->  | BL60: =MATCH(BL$3,Millwall!$AP139:$BA139,0) ->  | BM60: =MATCH(BM$3,Millwall!$AP139:$BA139,0) ->  | BN60: =MATCH(BN$3,Millwall!$AP139:$BA139,0) ->  | BO60: =MATCH(BO$3,Millwall!$AP139:$BA139,0) ->  | BP60: =MATCH(BP$3,Millwall!$AP139:$BA139,0) ->  | BQ60: =MATCH(BQ$3,Millwall!$AP139:$BA139,0) ->  | BR60: =MATCH(BR$3,Millwall!$AP139:$BA139,0) ->  | BS60: =MATCH(BS$3,Millwall!$AP139:$BA139,0) ->  | BT60: =MATCH(BT$3,Millwall!$AP139:$BA139,0) ->  | BU60: =MATCH(BU$3,Millwall!$AP139:$BA139,0) ->  | BV60: =MATCH(BV$3,Millwall!$AP139:$BA139,0) ->  | BW60: =MATCH(BW$3,Millwall!$AP139:$BA139,0) ->  | BX60: =MATCH(BX$3,Millwall!$AP139:$BA139,0) ->  | BY60: =MATCH(BY$3,Millwall!$AP139:$BA139,0) ->  | BZ60: =MATCH(BZ$3,Millwall!$AP139:$BA139,0) ->  | CA60: =MATCH(CA$3,Millwall!$AP139:$BA139,0) ->  | CB60: =MATCH(CB$3,Millwall!$AP139:$BA139,0) ->  | CC60: =MATCH(CC$3,Millwall!$AP139:$BA139,0) ->  | CD60: =MATCH(CD$3,Millwall!$AP139:$BA139,0) ->  | CE60: =MATCH(CE$3,Millwall!$AP139:$BA139,0) -> 
C61: 1 | F61: =Millwall!AI140 -> 00:00:00 | H61: =Millwall!AK140 -> 00:00:00 | I61: =Millwall!AL140 -> 00:00:00 | J61: =Millwall!AO140 -> 0 | K61: =MATCH(K$4,Millwall!$AP140:$BA140,0) ->  | L61: =MATCH(L$4,Millwall!$AP140:$BA140,0) ->  | M61: =MATCH(M$4,Millwall!$AP140:$BA140,0) ->  | N61: =MATCH(N$4,Millwall!$AP140:$BA140,0) ->  | O61: =MATCH(O$4,Millwall!$AP140:$BA140,0) ->  | P61: =MATCH(P$4,Millwall!$AP140:$BA140,0) ->  | Q61: =MATCH(Q$4,Millwall!$AP140:$BA140,0) ->  | R61: =MATCH(R$4,Millwall!$AP140:$BA140,0) ->  | S61: =MATCH(S$4,Millwall!$AP140:$BA140,0) ->  | T61: =MATCH(T$4,Millwall!$AP140:$BA140,0) ->  | U61: =MATCH(U$4,Millwall!$AP140:$BA140,0) ->  | V61: =MATCH(V$4,Millwall!$AP140:$BA140,0) ->  | W61: =MATCH(W$4,Millwall!$AP140:$BA140,0) ->  | X61: =MATCH(X$4,Millwall!$AP140:$BA140,0) ->  | Y61: =MATCH(Y$4,Millwall!$AP140:$BA140,0) ->  | Z61: =MATCH(Z$4,Millwall!$AP140:$BA140,0) ->  | AA61: =MATCH(AA$4,Millwall!$AP140:$BA140,0) ->  | AB61: =MATCH(AB$4,Millwall!$AP140:$BA140,0) ->  | AC61: =MATCH(AC$4,Millwall!$AP140:$BA140,0) ->  | AD61: =MATCH(AD$4,Millwall!$AP140:$BA140,0) ->  | AE61: =MATCH(AE$4,Millwall!$AP140:$BA140,0) ->  | AF61: =MATCH(AF$4,Millwall!$AP140:$BA140,0) ->  | AG61: =MATCH(AG$4,Millwall!$AP140:$BA140,0) ->  | AH61: =MATCH(AH$4,Millwall!$AP140:$BA140,0) ->  | AI61: =MATCH(AI$4,Millwall!$AP140:$BA140,0) ->  | AJ61: =MATCH(AJ$4,Millwall!$AP140:$BA140,0) ->  | AK61: =MATCH(AK$4,Millwall!$AP140:$BA140,0) ->  | AL61: =MATCH(AL$4,Millwall!$AP140:$BA140,0) ->  | AM61: =MATCH(AM$4,Millwall!$AP140:$BA140,0) ->  | AN61: =MATCH(AN$4,Millwall!$AP140:$BA140,0) ->  | AO61: =MATCH(AO$4,Millwall!$AP140:$BA140,0) ->  | AP61: =MATCH(AP$4,Millwall!$AP140:$BA140,0) ->  | AQ61: =MATCH(AQ$4,Millwall!$AP140:$BA140,0) ->  | AR61: =MATCH(AR$4,Millwall!$AP140:$BA140,0) ->  | AX61: =MATCH(AX$3,Millwall!$AP140:$BA140,0) ->  | AY61: =MATCH(AY$3,Millwall!$AP140:$BA140,0) ->  | AZ61: =MATCH(AZ$3,Millwall!$AP140:$BA140,0) ->  | BA61: =MATCH(BA$3,Millwall!$AP140:$BA140,0) ->  | BB61: =MATCH(BB$3,Millwall!$AP140:$BA140,0) ->  | BC61: =MATCH(BC$3,Millwall!$AP140:$BA140,0) ->  | BD61: =MATCH(BD$3,Millwall!$AP140:$BA140,0) ->  | BE61: =MATCH(BE$3,Millwall!$AP140:$BA140,0) ->  | BF61: =MATCH(BF$3,Millwall!$AP140:$BA140,0) ->  | BG61: =MATCH(BG$3,Millwall!$AP140:$BA140,0) ->  | BH61: =MATCH(BH$3,Millwall!$AP140:$BA140,0) ->  | BI61: =MATCH(BI$3,Millwall!$AP140:$BA140,0) ->  | BJ61: =MATCH(BJ$3,Millwall!$AP140:$BA140,0) ->  | BK61: =MATCH(BK$3,Millwall!$AP140:$BA140,0) ->  | BL61: =MATCH(BL$3,Millwall!$AP140:$BA140,0) ->  | BM61: =MATCH(BM$3,Millwall!$AP140:$BA140,0) ->  | BN61: =MATCH(BN$3,Millwall!$AP140:$BA140,0) ->  | BO61: =MATCH(BO$3,Millwall!$AP140:$BA140,0) ->  | BP61: =MATCH(BP$3,Millwall!$AP140:$BA140,0) ->  | BQ61: =MATCH(BQ$3,Millwall!$AP140:$BA140,0) ->  | BR61: =MATCH(BR$3,Millwall!$AP140:$BA140,0) ->  | BS61: =MATCH(BS$3,Millwall!$AP140:$BA140,0) ->  | BT61: =MATCH(BT$3,Millwall!$AP140:$BA140,0) ->  | BU61: =MATCH(BU$3,Millwall!$AP140:$BA140,0) ->  | BV61: =MATCH(BV$3,Millwall!$AP140:$BA140,0) ->  | BW61: =MATCH(BW$3,Millwall!$AP140:$BA140,0) ->  | BX61: =MATCH(BX$3,Millwall!$AP140:$BA140,0) ->  | BY61: =MATCH(BY$3,Millwall!$AP140:$BA140,0) ->  | BZ61: =MATCH(BZ$3,Millwall!$AP140:$BA140,0) ->  | CA61: =MATCH(CA$3,Millwall!$AP140:$BA140,0) ->  | CB61: =MATCH(CB$3,Millwall!$AP140:$BA140,0) ->  | CC61: =MATCH(CC$3,Millwall!$AP140:$BA140,0) ->  | CD61: =MATCH(CD$3,Millwall!$AP140:$BA140,0) ->  | CE61: =MATCH(CE$3,Millwall!$AP140:$BA140,0) -> 
C62: 1 | F62: =Millwall!AI141 -> 00:00:00 | H62: =Millwall!AK141 -> 00:00:00 | I62: =Millwall!AL141 -> 00:00:00 | J62: =Millwall!AO141 -> 0 | K62: =MATCH(K$4,Millwall!$AP141:$BA141,0) ->  | L62: =MATCH(L$4,Millwall!$AP141:$BA141,0) ->  | M62: =MATCH(M$4,Millwall!$AP141:$BA141,0) ->  | N62: =MATCH(N$4,Millwall!$AP141:$BA141,0) ->  | O62: =MATCH(O$4,Millwall!$AP141:$BA141,0) ->  | P62: =MATCH(P$4,Millwall!$AP141:$BA141,0) ->  | Q62: =MATCH(Q$4,Millwall!$AP141:$BA141,0) ->  | R62: =MATCH(R$4,Millwall!$AP141:$BA141,0) ->  | S62: =MATCH(S$4,Millwall!$AP141:$BA141,0) ->  | T62: =MATCH(T$4,Millwall!$AP141:$BA141,0) ->  | U62: =MATCH(U$4,Millwall!$AP141:$BA141,0) ->  | V62: =MATCH(V$4,Millwall!$AP141:$BA141,0) ->  | W62: =MATCH(W$4,Millwall!$AP141:$BA141,0) ->  | X62: =MATCH(X$4,Millwall!$AP141:$BA141,0) ->  | Y62: =MATCH(Y$4,Millwall!$AP141:$BA141,0) ->  | Z62: =MATCH(Z$4,Millwall!$AP141:$BA141,0) ->  | AA62: =MATCH(AA$4,Millwall!$AP141:$BA141,0) ->  | AB62: =MATCH(AB$4,Millwall!$AP141:$BA141,0) ->  | AC62: =MATCH(AC$4,Millwall!$AP141:$BA141,0) ->  | AD62: =MATCH(AD$4,Millwall!$AP141:$BA141,0) ->  | AE62: =MATCH(AE$4,Millwall!$AP141:$BA141,0) ->  | AF62: =MATCH(AF$4,Millwall!$AP141:$BA141,0) ->  | AG62: =MATCH(AG$4,Millwall!$AP141:$BA141,0) ->  | AH62: =MATCH(AH$4,Millwall!$AP141:$BA141,0) ->  | AI62: =MATCH(AI$4,Millwall!$AP141:$BA141,0) ->  | AJ62: =MATCH(AJ$4,Millwall!$AP141:$BA141,0) ->  | AK62: =MATCH(AK$4,Millwall!$AP141:$BA141,0) ->  | AL62: =MATCH(AL$4,Millwall!$AP141:$BA141,0) ->  | AM62: =MATCH(AM$4,Millwall!$AP141:$BA141,0) ->  | AN62: =MATCH(AN$4,Millwall!$AP141:$BA141,0) ->  | AO62: =MATCH(AO$4,Millwall!$AP141:$BA141,0) ->  | AP62: =MATCH(AP$4,Millwall!$AP141:$BA141,0) ->  | AQ62: =MATCH(AQ$4,Millwall!$AP141:$BA141,0) ->  | AR62: =MATCH(AR$4,Millwall!$AP141:$BA141,0) ->  | AX62: =MATCH(AX$3,Millwall!$AP141:$BA141,0) ->  | AY62: =MATCH(AY$3,Millwall!$AP141:$BA141,0) ->  | AZ62: =MATCH(AZ$3,Millwall!$AP141:$BA141,0) ->  | BA62: =MATCH(BA$3,Millwall!$AP141:$BA141,0) ->  | BB62: =MATCH(BB$3,Millwall!$AP141:$BA141,0) ->  | BC62: =MATCH(BC$3,Millwall!$AP141:$BA141,0) ->  | BD62: =MATCH(BD$3,Millwall!$AP141:$BA141,0) ->  | BE62: =MATCH(BE$3,Millwall!$AP141:$BA141,0) ->  | BF62: =MATCH(BF$3,Millwall!$AP141:$BA141,0) ->  | BG62: =MATCH(BG$3,Millwall!$AP141:$BA141,0) ->  | BH62: =MATCH(BH$3,Millwall!$AP141:$BA141,0) ->  | BI62: =MATCH(BI$3,Millwall!$AP141:$BA141,0) ->  | BJ62: =MATCH(BJ$3,Millwall!$AP141:$BA141,0) ->  | BK62: =MATCH(BK$3,Millwall!$AP141:$BA141,0) ->  | BL62: =MATCH(BL$3,Millwall!$AP141:$BA141,0) ->  | BM62: =MATCH(BM$3,Millwall!$AP141:$BA141,0) ->  | BN62: =MATCH(BN$3,Millwall!$AP141:$BA141,0) ->  | BO62: =MATCH(BO$3,Millwall!$AP141:$BA141,0) ->  | BP62: =MATCH(BP$3,Millwall!$AP141:$BA141,0) ->  | BQ62: =MATCH(BQ$3,Millwall!$AP141:$BA141,0) ->  | BR62: =MATCH(BR$3,Millwall!$AP141:$BA141,0) ->  | BS62: =MATCH(BS$3,Millwall!$AP141:$BA141,0) ->  | BT62: =MATCH(BT$3,Millwall!$AP141:$BA141,0) ->  | BU62: =MATCH(BU$3,Millwall!$AP141:$BA141,0) ->  | BV62: =MATCH(BV$3,Millwall!$AP141:$BA141,0) ->  | BW62: =MATCH(BW$3,Millwall!$AP141:$BA141,0) ->  | BX62: =MATCH(BX$3,Millwall!$AP141:$BA141,0) ->  | BY62: =MATCH(BY$3,Millwall!$AP141:$BA141,0) ->  | BZ62: =MATCH(BZ$3,Millwall!$AP141:$BA141,0) ->  | CA62: =MATCH(CA$3,Millwall!$AP141:$BA141,0) ->  | CB62: =MATCH(CB$3,Millwall!$AP141:$BA141,0) ->  | CC62: =MATCH(CC$3,Millwall!$AP141:$BA141,0) ->  | CD62: =MATCH(CD$3,Millwall!$AP141:$BA141,0) ->  | CE62: =MATCH(CE$3,Millwall!$AP141:$BA141,0) -> 
C63: =IF(J63=0,1,0) -> 1 | F63: =Millwall!AI142 -> 00:00:00 | H63: =Millwall!AK142 -> 00:00:00 | I63: =Millwall!AL142 -> 00:00:00 | J63: =Millwall!AO142 -> 0 | K63: =MATCH(K$4,Millwall!$AP142:$BA142,0) ->  | L63: =MATCH(L$4,Millwall!$AP142:$BA142,0) ->  | M63: =MATCH(M$4,Millwall!$AP142:$BA142,0) ->  | N63: =MATCH(N$4,Millwall!$AP142:$BA142,0) ->  | O63: =MATCH(O$4,Millwall!$AP142:$BA142,0) ->  | P63: =MATCH(P$4,Millwall!$AP142:$BA142,0) ->  | Q63: =MATCH(Q$4,Millwall!$AP142:$BA142,0) ->  | R63: =MATCH(R$4,Millwall!$AP142:$BA142,0) ->  | S63: =MATCH(S$4,Millwall!$AP142:$BA142,0) ->  | T63: =MATCH(T$4,Millwall!$AP142:$BA142,0) ->  | U63: =MATCH(U$4,Millwall!$AP142:$BA142,0) ->  | V63: =MATCH(V$4,Millwall!$AP142:$BA142,0) ->  | W63: =MATCH(W$4,Millwall!$AP142:$BA142,0) ->  | X63: =MATCH(X$4,Millwall!$AP142:$BA142,0) ->  | Y63: =MATCH(Y$4,Millwall!$AP142:$BA142,0) ->  | Z63: =MATCH(Z$4,Millwall!$AP142:$BA142,0) ->  | AA63: =MATCH(AA$4,Millwall!$AP142:$BA142,0) ->  | AB63: =MATCH(AB$4,Millwall!$AP142:$BA142,0) ->  | AC63: =MATCH(AC$4,Millwall!$AP142:$BA142,0) ->  | AD63: =MATCH(AD$4,Millwall!$AP142:$BA142,0) ->  | AE63: =MATCH(AE$4,Millwall!$AP142:$BA142,0) ->  | AF63: =MATCH(AF$4,Millwall!$AP142:$BA142,0) ->  | AG63: =MATCH(AG$4,Millwall!$AP142:$BA142,0) ->  | AH63: =MATCH(AH$4,Millwall!$AP142:$BA142,0) ->  | AI63: =MATCH(AI$4,Millwall!$AP142:$BA142,0) ->  | AJ63: =MATCH(AJ$4,Millwall!$AP142:$BA142,0) ->  | AK63: =MATCH(AK$4,Millwall!$AP142:$BA142,0) ->  | AL63: =MATCH(AL$4,Millwall!$AP142:$BA142,0) ->  | AM63: =MATCH(AM$4,Millwall!$AP142:$BA142,0) ->  | AN63: =MATCH(AN$4,Millwall!$AP142:$BA142,0) ->  | AO63: =MATCH(AO$4,Millwall!$AP142:$BA142,0) ->  | AP63: =MATCH(AP$4,Millwall!$AP142:$BA142,0) ->  | AQ63: =MATCH(AQ$4,Millwall!$AP142:$BA142,0) ->  | AR63: =MATCH(AR$4,Millwall!$AP142:$BA142,0) ->  | AX63: =MATCH(AX$3,Millwall!$AP142:$BA142,0) ->  | AY63: =MATCH(AY$3,Millwall!$AP142:$BA142,0) ->  | AZ63: =MATCH(AZ$3,Millwall!$AP142:$BA142,0) ->  | BA63: =MATCH(BA$3,Millwall!$AP142:$BA142,0) ->  | BB63: =MATCH(BB$3,Millwall!$AP142:$BA142,0) ->  | BC63: =MATCH(BC$3,Millwall!$AP142:$BA142,0) ->  | BD63: =MATCH(BD$3,Millwall!$AP142:$BA142,0) ->  | BE63: =MATCH(BE$3,Millwall!$AP142:$BA142,0) ->  | BF63: =MATCH(BF$3,Millwall!$AP142:$BA142,0) ->  | BG63: =MATCH(BG$3,Millwall!$AP142:$BA142,0) ->  | BH63: =MATCH(BH$3,Millwall!$AP142:$BA142,0) ->  | BI63: =MATCH(BI$3,Millwall!$AP142:$BA142,0) ->  | BJ63: =MATCH(BJ$3,Millwall!$AP142:$BA142,0) ->  | BK63: =MATCH(BK$3,Millwall!$AP142:$BA142,0) ->  | BL63: =MATCH(BL$3,Millwall!$AP142:$BA142,0) ->  | BM63: =MATCH(BM$3,Millwall!$AP142:$BA142,0) ->  | BN63: =MATCH(BN$3,Millwall!$AP142:$BA142,0) ->  | BO63: =MATCH(BO$3,Millwall!$AP142:$BA142,0) ->  | BP63: =MATCH(BP$3,Millwall!$AP142:$BA142,0) ->  | BQ63: =MATCH(BQ$3,Millwall!$AP142:$BA142,0) ->  | BR63: =MATCH(BR$3,Millwall!$AP142:$BA142,0) ->  | BS63: =MATCH(BS$3,Millwall!$AP142:$BA142,0) ->  | BT63: =MATCH(BT$3,Millwall!$AP142:$BA142,0) ->  | BU63: =MATCH(BU$3,Millwall!$AP142:$BA142,0) ->  | BV63: =MATCH(BV$3,Millwall!$AP142:$BA142,0) ->  | BW63: =MATCH(BW$3,Millwall!$AP142:$BA142,0) ->  | BX63: =MATCH(BX$3,Millwall!$AP142:$BA142,0) ->  | BY63: =MATCH(BY$3,Millwall!$AP142:$BA142,0) ->  | BZ63: =MATCH(BZ$3,Millwall!$AP142:$BA142,0) ->  | CA63: =MATCH(CA$3,Millwall!$AP142:$BA142,0) ->  | CB63: =MATCH(CB$3,Millwall!$AP142:$BA142,0) ->  | CC63: =MATCH(CC$3,Millwall!$AP142:$BA142,0) ->  | CD63: =MATCH(CD$3,Millwall!$AP142:$BA142,0) ->  | CE63: =MATCH(CE$3,Millwall!$AP142:$BA142,0) -> 
J65: Total FA Cup Apperances | K65: =COUNT(K57:K63)-K66 -> 1 | L65: =COUNT(L57:L63)-L66 -> 1 | M65: 1 | N65: 1 | O65: 0 | P65: 1 | Q65: 0 | R65: 1 | S65: 1 | T65: 1 | U65: 0 | V65: 0 | W65: 0 | X65: 1 | Y65: 1 | Z65: 0 | AA65: 1 | AB65: 0 | AC65: 0 | AD65: 0 | AE65: 0 | AF65: 0 | AG65: 0 | AH65: 0 | AI65: 0 | AJ65: 0 | AK65: 0 | AL65: 0 | AM65: 0 | AN65: 0 | AO65: 0 | AP65: 0 | AQ65: 0 | AR65: 0
J66: Total FA Cup Substitute Appearences | K66: =COUNTIF(K57:K63,">=12") -> 0 | L66: =COUNTIF(L57:L63,">=12") -> 0 | M66: 0 | N66: 0 | O66: 0 | P66: 0 | Q66: 0 | R66: 0 | S66: 0 | T66: 0 | U66: 0 | V66: 0 | W66: 0 | X66: 0 | Y66: 0 | Z66: 0 | AA66: 0 | AB66: 0 | AC66: 0 | AD66: 0 | AE66: 0 | AF66: 0 | AG66: 0 | AH66: 0 | AI66: 0 | AJ66: 0 | AK66: 0 | AL66: 0 | AM66: 0 | AN66: 0 | AO66: 0 | AP66: 0 | AQ66: 0 | AR66: 0
J67: Goals | K67: =Millwall!$BZ$7 -> 0 | L67: =Millwall!$BZ$8 -> 0 | M67: =Millwall!$BZ$9 -> 0 | N67: =Millwall!$BZ$10 -> 0 | O67: =Millwall!$BZ$11 -> 0 | P67: =Millwall!$BZ$12 -> 0 | Q67: =Millwall!$BZ$13 -> 0 | R67: =Millwall!$BZ$14 -> 0 | S67: =Millwall!$BZ$15 -> 0 | T67: =Millwall!$BZ$16 -> 0 | U67: =Millwall!$BZ$17 -> 0 | V67: =Millwall!$BZ$18 -> 0 | W67: =Millwall!$BZ$19 -> 0 | X67: =Millwall!$BZ$20 -> 0 | Y67: =Millwall!$BZ$21 -> 0 | Z67: =Millwall!$BZ$22 -> 0 | AA67: =Millwall!$BZ$23 -> 0 | AB67: =Millwall!$BZ$24 -> 0 | AC67: =Millwall!$BZ$25 -> 0 | AD67: =Millwall!$BZ$26 -> 0 | AE67: =Millwall!$BZ$27 -> 0 | AF67: =Millwall!$BZ$28 -> 0 | AG67: =Millwall!$BZ$29 -> 0 | AH67: =Millwall!$BZ$30 -> 0 | AI67: =Millwall!$BZ$29 -> 0 | AJ67: =Millwall!$BZ$33 -> 0 | AK67: =Millwall!$BZ$34 -> 0 | AL67: =Millwall!$BZ$35 -> 0 | AM67: =Millwall!$BZ$36 -> 0 | AN67: =Millwall!$BZ$37 -> 0 | AO67: =Millwall!$BZ$38 -> 0 | AP67: =Millwall!$BZ$39 -> 0 | AQ67: =Millwall!$BZ$40 -> 0 | AR67: =Millwall!$BZ$41 -> 0
C68: 1
H69: League Cup
C70: =IF(J70=0,1,0) -> 0 | D70: 2 | F70: =Millwall!AI126 -> 1970-09-09 | H70: =Millwall!AK126 -> Stoke City | I70: =Millwall!AL126 -> (A) | J70: =Millwall!AO126 -> D 0-0 | K70: =MATCH(K$4,Millwall!$AP126:$BA126,0) -> 11 | L70: =MATCH(L$4,Millwall!$AP126:$BA126,0) -> 9 | M70: =MATCH(M$4,Millwall!$AP126:$BA126,0) ->  | N70: =MATCH(N$4,Millwall!$AP126:$BA126,0) -> 2 | O70: =MATCH(O$4,Millwall!$AP126:$BA126,0) -> 7 | P70: =MATCH(P$4,Millwall!$AP126:$BA126,0) -> 6 | Q70: =MATCH(Q$4,Millwall!$AP126:$BA126,0) ->  | R70: =MATCH(R$4,Millwall!$AP126:$BA126,0) -> 3 | S70: =MATCH(S$4,Millwall!$AP126:$BA126,0) -> 4 | T70: =MATCH(T$4,Millwall!$AP126:$BA126,0) -> 10 | U70: =MATCH(U$4,Millwall!$AP126:$BA126,0) ->  | V70: =MATCH(V$4,Millwall!$AP126:$BA126,0) ->  | W70: =MATCH(W$4,Millwall!$AP126:$BA126,0) -> 8 | X70: =MATCH(X$4,Millwall!$AP126:$BA126,0) -> 1 | Y70: =MATCH(Y$4,Millwall!$AP126:$BA126,0) -> 5 | Z70: =MATCH(Z$4,Millwall!$AP126:$BA126,0) ->  | AA70: =MATCH(AA$4,Millwall!$AP126:$BA126,0) ->  | AB70: =MATCH(AB$4,Millwall!$AP126:$BA126,0) ->  | AC70: =MATCH(AC$4,Millwall!$AP126:$BA126,0) ->  | AD70: =MATCH(AD$4,Millwall!$AP126:$BA126,0) ->  | AE70: =MATCH(AE$4,Millwall!$AP126:$BA126,0) ->  | AF70: =MATCH(AF$4,Millwall!$AP126:$BA126,0) ->  | AG70: =MATCH(AG$4,Millwall!$AP126:$BA126,0) ->  | AH70: =MATCH(AH$4,Millwall!$AP126:$BA126,0) ->  | AI70: =MATCH(AI$4,Millwall!$AP126:$BA126,0) ->  | AJ70: =MATCH(AJ$4,Millwall!$AP126:$BA126,0) ->  | AK70: =MATCH(AK$4,Millwall!$AP126:$BA126,0) ->  | AL70: =MATCH(AL$4,Millwall!$AP126:$BA126,0) ->  | AM70: =MATCH(AM$4,Millwall!$AP126:$BA126,0) ->  | AN70: =MATCH(AN$4,Millwall!$AP126:$BA126,0) ->  | AO70: =MATCH(AO$4,Millwall!$AP126:$BA126,0) ->  | AP70: =MATCH(AP$4,Millwall!$AP126:$BA126,0) ->  | AQ70: =MATCH(AQ$4,Millwall!$AP126:$BA126,0) ->  | AR70: =MATCH(AR$4,Millwall!$AP126:$BA126,0) ->  | AX70: =MATCH(AX$3,Millwall!$AP126:$BA126,0) ->  | AY70: =MATCH(AY$3,Millwall!$AP126:$BA126,0) ->  | AZ70: =MATCH(AZ$3,Millwall!$AP126:$BA126,0) ->  | BA70: =MATCH(BA$3,Millwall!$AP126:$BA126,0) ->  | BB70: =MATCH(BB$3,Millwall!$AP126:$BA126,0) ->  | BC70: =MATCH(BC$3,Millwall!$AP126:$BA126,0) ->  | BD70: =MATCH(BD$3,Millwall!$AP126:$BA126,0) ->  | BE70: =MATCH(BE$3,Millwall!$AP126:$BA126,0) ->  | BF70: =MATCH(BF$3,Millwall!$AP126:$BA126,0) ->  | BG70: =MATCH(BG$3,Millwall!$AP126:$BA126,0) ->  | BH70: =MATCH(BH$3,Millwall!$AP126:$BA126,0) ->  | BI70: =MATCH(BI$3,Millwall!$AP126:$BA126,0) ->  | BJ70: =MATCH(BJ$3,Millwall!$AP126:$BA126,0) ->  | BK70: =MATCH(BK$3,Millwall!$AP126:$BA126,0) ->  | BL70: =MATCH(BL$3,Millwall!$AP126:$BA126,0) ->  | BM70: =MATCH(BM$3,Millwall!$AP126:$BA126,0) ->  | BN70: =MATCH(BN$3,Millwall!$AP126:$BA126,0) ->  | BO70: =MATCH(BO$3,Millwall!$AP126:$BA126,0) ->  | BP70: =MATCH(BP$3,Millwall!$AP126:$BA126,0) ->  | BQ70: =MATCH(BQ$3,Millwall!$AP126:$BA126,0) ->  | BR70: =MATCH(BR$3,Millwall!$AP126:$BA126,0) ->  | BS70: =MATCH(BS$3,Millwall!$AP126:$BA126,0) ->  | BT70: =MATCH(BT$3,Millwall!$AP126:$BA126,0) ->  | BU70: =MATCH(BU$3,Millwall!$AP126:$BA126,0) ->  | BV70: =MATCH(BV$3,Millwall!$AP126:$BA126,0) ->  | BW70: =MATCH(BW$3,Millwall!$AP126:$BA126,0) ->  | BX70: =MATCH(BX$3,Millwall!$AP126:$BA126,0) ->  | BY70: =MATCH(BY$3,Millwall!$AP126:$BA126,0) ->  | BZ70: =MATCH(BZ$3,Millwall!$AP126:$BA126,0) ->  | CA70: =MATCH(CA$3,Millwall!$AP126:$BA126,0) ->  | CB70: =MATCH(CB$3,Millwall!$AP126:$BA126,0) ->  | CC70: =MATCH(CC$3,Millwall!$AP126:$BA126,0) ->  | CD70: =MATCH(CD$3,Millwall!$AP126:$BA126,0) ->  | CE70: =MATCH(CE$3,Millwall!$AP126:$BA126,0) -> 
C71: =IF(J71=0,1,0) -> 0 | D71: 2R | F71: =Millwall!AI127 -> 1970-09-21 | H71: =Millwall!AK127 -> Stoke City | I71: =Millwall!AL127 -> (H) | J71: =Millwall!AO127 -> W 2-1 | K71: =MATCH(K$4,Millwall!$AP127:$BA127,0) -> 11 | L71: =MATCH(L$4,Millwall!$AP127:$BA127,0) -> 9 | M71: =MATCH(M$4,Millwall!$AP127:$BA127,0) ->  | N71: =MATCH(N$4,Millwall!$AP127:$BA127,0) -> 2 | O71: =MATCH(O$4,Millwall!$AP127:$BA127,0) -> 7 | P71: =MATCH(P$4,Millwall!$AP127:$BA127,0) -> 6 | Q71: =MATCH(Q$4,Millwall!$AP127:$BA127,0) ->  | R71: =MATCH(R$4,Millwall!$AP127:$BA127,0) -> 3 | S71: =MATCH(S$4,Millwall!$AP127:$BA127,0) -> 4 | T71: =MATCH(T$4,Millwall!$AP127:$BA127,0) -> 8 | U71: =MATCH(U$4,Millwall!$AP127:$BA127,0) ->  | V71: =MATCH(V$4,Millwall!$AP127:$BA127,0) ->  | W71: =MATCH(W$4,Millwall!$AP127:$BA127,0) ->  | X71: =MATCH(X$4,Millwall!$AP127:$BA127,0) -> 1 | Y71: =MATCH(Y$4,Millwall!$AP127:$BA127,0) -> 5 | Z71: =MATCH(Z$4,Millwall!$AP127:$BA127,0) ->  | AA71: =MATCH(AA$4,Millwall!$AP127:$BA127,0) -> 10 | AB71: =MATCH(AB$4,Millwall!$AP127:$BA127,0) ->  | AC71: =MATCH(AC$4,Millwall!$AP127:$BA127,0) ->  | AD71: =MATCH(AD$4,Millwall!$AP127:$BA127,0) ->  | AE71: =MATCH(AE$4,Millwall!$AP127:$BA127,0) ->  | AF71: =MATCH(AF$4,Millwall!$AP127:$BA127,0) ->  | AG71: =MATCH(AG$4,Millwall!$AP127:$BA127,0) ->  | AH71: =MATCH(AH$4,Millwall!$AP127:$BA127,0) ->  | AI71: =MATCH(AI$4,Millwall!$AP127:$BA127,0) ->  | AJ71: =MATCH(AJ$4,Millwall!$AP127:$BA127,0) ->  | AK71: =MATCH(AK$4,Millwall!$AP127:$BA127,0) ->  | AL71: =MATCH(AL$4,Millwall!$AP127:$BA127,0) ->  | AM71: =MATCH(AM$4,Millwall!$AP127:$BA127,0) ->  | AN71: =MATCH(AN$4,Millwall!$AP127:$BA127,0) ->  | AO71: =MATCH(AO$4,Millwall!$AP127:$BA127,0) ->  | AP71: =MATCH(AP$4,Millwall!$AP127:$BA127,0) ->  | AQ71: =MATCH(AQ$4,Millwall!$AP127:$BA127,0) ->  | AR71: =MATCH(AR$4,Millwall!$AP127:$BA127,0) ->  | AX71: =MATCH(AX$3,Millwall!$AP127:$BA127,0) ->  | AY71: =MATCH(AY$3,Millwall!$AP127:$BA127,0) ->  | AZ71: =MATCH(AZ$3,Millwall!$AP127:$BA127,0) ->  | BA71: =MATCH(BA$3,Millwall!$AP127:$BA127,0) ->  | BB71: =MATCH(BB$3,Millwall!$AP127:$BA127,0) ->  | BC71: =MATCH(BC$3,Millwall!$AP127:$BA127,0) ->  | BD71: =MATCH(BD$3,Millwall!$AP127:$BA127,0) ->  | BE71: =MATCH(BE$3,Millwall!$AP127:$BA127,0) ->  | BF71: =MATCH(BF$3,Millwall!$AP127:$BA127,0) ->  | BG71: =MATCH(BG$3,Millwall!$AP127:$BA127,0) ->  | BH71: =MATCH(BH$3,Millwall!$AP127:$BA127,0) ->  | BI71: =MATCH(BI$3,Millwall!$AP127:$BA127,0) ->  | BJ71: =MATCH(BJ$3,Millwall!$AP127:$BA127,0) ->  | BK71: =MATCH(BK$3,Millwall!$AP127:$BA127,0) ->  | BL71: =MATCH(BL$3,Millwall!$AP127:$BA127,0) ->  | BM71: =MATCH(BM$3,Millwall!$AP127:$BA127,0) ->  | BN71: =MATCH(BN$3,Millwall!$AP127:$BA127,0) ->  | BO71: =MATCH(BO$3,Millwall!$AP127:$BA127,0) ->  | BP71: =MATCH(BP$3,Millwall!$AP127:$BA127,0) ->  | BQ71: =MATCH(BQ$3,Millwall!$AP127:$BA127,0) ->  | BR71: =MATCH(BR$3,Millwall!$AP127:$BA127,0) ->  | BS71: =MATCH(BS$3,Millwall!$AP127:$BA127,0) ->  | BT71: =MATCH(BT$3,Millwall!$AP127:$BA127,0) ->  | BU71: =MATCH(BU$3,Millwall!$AP127:$BA127,0) ->  | BV71: =MATCH(BV$3,Millwall!$AP127:$BA127,0) ->  | BW71: =MATCH(BW$3,Millwall!$AP127:$BA127,0) ->  | BX71: =MATCH(BX$3,Millwall!$AP127:$BA127,0) ->  | BY71: =MATCH(BY$3,Millwall!$AP127:$BA127,0) ->  | BZ71: =MATCH(BZ$3,Millwall!$AP127:$BA127,0) ->  | CA71: =MATCH(CA$3,Millwall!$AP127:$BA127,0) ->  | CB71: =MATCH(CB$3,Millwall!$AP127:$BA127,0) ->  | CC71: =MATCH(CC$3,Millwall!$AP127:$BA127,0) ->  | CD71: =MATCH(CD$3,Millwall!$AP127:$BA127,0) ->  | CE71: =MATCH(CE$3,Millwall!$AP127:$BA127,0) -> 
C72: 0 | D72: 3 | F72: =Millwall!AI128 -> 1970-10-07 | H72: =Millwall!AK128 -> Derby Co | I72: =Millwall!AL128 -> (A) | J72: =Millwall!AO128 -> L 2-4 | K72: =MATCH(K$4,Millwall!$AP128:$BA128,0) -> 11 | L72: =MATCH(L$4,Millwall!$AP128:$BA128,0) -> 9 | M72: =MATCH(M$4,Millwall!$AP128:$BA128,0) ->  | N72: =MATCH(N$4,Millwall!$AP128:$BA128,0) -> 2 | O72: =MATCH(O$4,Millwall!$AP128:$BA128,0) -> 7 | P72: =MATCH(P$4,Millwall!$AP128:$BA128,0) -> 6 | Q72: =MATCH(Q$4,Millwall!$AP128:$BA128,0) ->  | R72: =MATCH(R$4,Millwall!$AP128:$BA128,0) -> 3 | S72: =MATCH(S$4,Millwall!$AP128:$BA128,0) -> 4 | T72: =MATCH(T$4,Millwall!$AP128:$BA128,0) -> 8 | U72: =MATCH(U$4,Millwall!$AP128:$BA128,0) ->  | V72: =MATCH(V$4,Millwall!$AP128:$BA128,0) ->  | W72: =MATCH(W$4,Millwall!$AP128:$BA128,0) ->  | X72: =MATCH(X$4,Millwall!$AP128:$BA128,0) -> 1 | Y72: =MATCH(Y$4,Millwall!$AP128:$BA128,0) -> 5 | Z72: =MATCH(Z$4,Millwall!$AP128:$BA128,0) ->  | AA72: =MATCH(AA$4,Millwall!$AP128:$BA128,0) -> 10 | AB72: =MATCH(AB$4,Millwall!$AP128:$BA128,0) ->  | AC72: =MATCH(AC$4,Millwall!$AP128:$BA128,0) ->  | AD72: =MATCH(AD$4,Millwall!$AP128:$BA128,0) ->  | AE72: =MATCH(AE$4,Millwall!$AP128:$BA128,0) ->  | AF72: =MATCH(AF$4,Millwall!$AP128:$BA128,0) ->  | AG72: =MATCH(AG$4,Millwall!$AP128:$BA128,0) ->  | AH72: =MATCH(AH$4,Millwall!$AP128:$BA128,0) ->  | AI72: =MATCH(AI$4,Millwall!$AP128:$BA128,0) ->  | AJ72: =MATCH(AJ$4,Millwall!$AP128:$BA128,0) ->  | AK72: =MATCH(AK$4,Millwall!$AP128:$BA128,0) ->  | AL72: =MATCH(AL$4,Millwall!$AP128:$BA128,0) ->  | AM72: =MATCH(AM$4,Millwall!$AP128:$BA128,0) ->  | AN72: =MATCH(AN$4,Millwall!$AP128:$BA128,0) ->  | AO72: =MATCH(AO$4,Millwall!$AP128:$BA128,0) ->  | AP72: =MATCH(AP$4,Millwall!$AP128:$BA128,0) ->  | AQ72: =MATCH(AQ$4,Millwall!$AP128:$BA128,0) ->  | AR72: =MATCH(AR$4,Millwall!$AP128:$BA128,0) ->  | AX72: =MATCH(AX$3,Millwall!$AP128:$BA128,0) ->  | AY72: =MATCH(AY$3,Millwall!$AP128:$BA128,0) ->  | AZ72: =MATCH(AZ$3,Millwall!$AP128:$BA128,0) ->  | BA72: =MATCH(BA$3,Millwall!$AP128:$BA128,0) ->  | BB72: =MATCH(BB$3,Millwall!$AP128:$BA128,0) ->  | BC72: =MATCH(BC$3,Millwall!$AP128:$BA128,0) ->  | BD72: =MATCH(BD$3,Millwall!$AP128:$BA128,0) ->  | BE72: =MATCH(BE$3,Millwall!$AP128:$BA128,0) ->  | BF72: =MATCH(BF$3,Millwall!$AP128:$BA128,0) ->  | BG72: =MATCH(BG$3,Millwall!$AP128:$BA128,0) ->  | BH72: =MATCH(BH$3,Millwall!$AP128:$BA128,0) ->  | BI72: =MATCH(BI$3,Millwall!$AP128:$BA128,0) ->  | BJ72: =MATCH(BJ$3,Millwall!$AP128:$BA128,0) ->  | BK72: =MATCH(BK$3,Millwall!$AP128:$BA128,0) ->  | BL72: =MATCH(BL$3,Millwall!$AP128:$BA128,0) ->  | BM72: =MATCH(BM$3,Millwall!$AP128:$BA128,0) ->  | BN72: =MATCH(BN$3,Millwall!$AP128:$BA128,0) ->  | BO72: =MATCH(BO$3,Millwall!$AP128:$BA128,0) ->  | BP72: =MATCH(BP$3,Millwall!$AP128:$BA128,0) ->  | BQ72: =MATCH(BQ$3,Millwall!$AP128:$BA128,0) ->  | BR72: =MATCH(BR$3,Millwall!$AP128:$BA128,0) ->  | BS72: =MATCH(BS$3,Millwall!$AP128:$BA128,0) ->  | BT72: =MATCH(BT$3,Millwall!$AP128:$BA128,0) ->  | BU72: =MATCH(BU$3,Millwall!$AP128:$BA128,0) ->  | BV72: =MATCH(BV$3,Millwall!$AP128:$BA128,0) ->  | BW72: =MATCH(BW$3,Millwall!$AP128:$BA128,0) ->  | BX72: =MATCH(BX$3,Millwall!$AP128:$BA128,0) ->  | BY72: =MATCH(BY$3,Millwall!$AP128:$BA128,0) ->  | BZ72: =MATCH(BZ$3,Millwall!$AP128:$BA128,0) ->  | CA72: =MATCH(CA$3,Millwall!$AP128:$BA128,0) ->  | CB72: =MATCH(CB$3,Millwall!$AP128:$BA128,0) ->  | CC72: =MATCH(CC$3,Millwall!$AP128:$BA128,0) ->  | CD72: =MATCH(CD$3,Millwall!$AP128:$BA128,0) ->  | CE72: =MATCH(CE$3,Millwall!$AP128:$BA128,0) -> 
C73: 1 | F73: =Millwall!AI129 -> 00:00:00 | H73: =Millwall!AK129 -> 00:00:00 | I73: =Millwall!AL129 -> 00:00:00 | J73: =Millwall!AO129 -> 0 | K73: =MATCH(K$4,Millwall!$AP129:$BA129,0) ->  | L73: =MATCH(L$4,Millwall!$AP129:$BA129,0) ->  | M73: =MATCH(M$4,Millwall!$AP129:$BA129,0) ->  | N73: =MATCH(N$4,Millwall!$AP129:$BA129,0) ->  | O73: =MATCH(O$4,Millwall!$AP129:$BA129,0) ->  | P73: =MATCH(P$4,Millwall!$AP129:$BA129,0) ->  | Q73: =MATCH(Q$4,Millwall!$AP129:$BA129,0) ->  | R73: =MATCH(R$4,Millwall!$AP129:$BA129,0) ->  | S73: =MATCH(S$4,Millwall!$AP129:$BA129,0) ->  | T73: =MATCH(T$4,Millwall!$AP129:$BA129,0) ->  | U73: =MATCH(U$4,Millwall!$AP129:$BA129,0) ->  | V73: =MATCH(V$4,Millwall!$AP129:$BA129,0) ->  | W73: =MATCH(W$4,Millwall!$AP129:$BA129,0) ->  | X73: =MATCH(X$4,Millwall!$AP129:$BA129,0) ->  | Y73: =MATCH(Y$4,Millwall!$AP129:$BA129,0) ->  | Z73: =MATCH(Z$4,Millwall!$AP129:$BA129,0) ->  | AA73: =MATCH(AA$4,Millwall!$AP129:$BA129,0) ->  | AB73: =MATCH(AB$4,Millwall!$AP129:$BA129,0) ->  | AC73: =MATCH(AC$4,Millwall!$AP129:$BA129,0) ->  | AD73: =MATCH(AD$4,Millwall!$AP129:$BA129,0) ->  | AE73: =MATCH(AE$4,Millwall!$AP129:$BA129,0) ->  | AF73: =MATCH(AF$4,Millwall!$AP129:$BA129,0) ->  | AG73: =MATCH(AG$4,Millwall!$AP129:$BA129,0) ->  | AH73: =MATCH(AH$4,Millwall!$AP129:$BA129,0) ->  | AI73: =MATCH(AI$4,Millwall!$AP129:$BA129,0) ->  | AJ73: =MATCH(AJ$4,Millwall!$AP129:$BA129,0) ->  | AK73: =MATCH(AK$4,Millwall!$AP129:$BA129,0) ->  | AL73: =MATCH(AL$4,Millwall!$AP129:$BA129,0) ->  | AM73: =MATCH(AM$4,Millwall!$AP129:$BA129,0) ->  | AN73: =MATCH(AN$4,Millwall!$AP129:$BA129,0) ->  | AO73: =MATCH(AO$4,Millwall!$AP129:$BA129,0) ->  | AP73: =MATCH(AP$4,Millwall!$AP129:$BA129,0) ->  | AQ73: =MATCH(AQ$4,Millwall!$AP129:$BA129,0) ->  | AR73: =MATCH(AR$4,Millwall!$AP129:$BA129,0) ->  | AX73: =MATCH(AX$3,Millwall!$AP129:$BA129,0) ->  | AY73: =MATCH(AY$3,Millwall!$AP129:$BA129,0) ->  | AZ73: =MATCH(AZ$3,Millwall!$AP129:$BA129,0) ->  | BA73: =MATCH(BA$3,Millwall!$AP129:$BA129,0) ->  | BB73: =MATCH(BB$3,Millwall!$AP129:$BA129,0) ->  | BC73: =MATCH(BC$3,Millwall!$AP129:$BA129,0) ->  | BD73: =MATCH(BD$3,Millwall!$AP129:$BA129,0) ->  | BE73: =MATCH(BE$3,Millwall!$AP129:$BA129,0) ->  | BF73: =MATCH(BF$3,Millwall!$AP129:$BA129,0) ->  | BG73: =MATCH(BG$3,Millwall!$AP129:$BA129,0) ->  | BH73: =MATCH(BH$3,Millwall!$AP129:$BA129,0) ->  | BI73: =MATCH(BI$3,Millwall!$AP129:$BA129,0) ->  | BJ73: =MATCH(BJ$3,Millwall!$AP129:$BA129,0) ->  | BK73: =MATCH(BK$3,Millwall!$AP129:$BA129,0) ->  | BL73: =MATCH(BL$3,Millwall!$AP129:$BA129,0) ->  | BM73: =MATCH(BM$3,Millwall!$AP129:$BA129,0) ->  | BN73: =MATCH(BN$3,Millwall!$AP129:$BA129,0) ->  | BO73: =MATCH(BO$3,Millwall!$AP129:$BA129,0) ->  | BP73: =MATCH(BP$3,Millwall!$AP129:$BA129,0) ->  | BQ73: =MATCH(BQ$3,Millwall!$AP129:$BA129,0) ->  | BR73: =MATCH(BR$3,Millwall!$AP129:$BA129,0) ->  | BS73: =MATCH(BS$3,Millwall!$AP129:$BA129,0) ->  | BT73: =MATCH(BT$3,Millwall!$AP129:$BA129,0) ->  | BU73: =MATCH(BU$3,Millwall!$AP129:$BA129,0) ->  | BV73: =MATCH(BV$3,Millwall!$AP129:$BA129,0) ->  | BW73: =MATCH(BW$3,Millwall!$AP129:$BA129,0) ->  | BX73: =MATCH(BX$3,Millwall!$AP129:$BA129,0) ->  | BY73: =MATCH(BY$3,Millwall!$AP129:$BA129,0) ->  | BZ73: =MATCH(BZ$3,Millwall!$AP129:$BA129,0) ->  | CA73: =MATCH(CA$3,Millwall!$AP129:$BA129,0) ->  | CB73: =MATCH(CB$3,Millwall!$AP129:$BA129,0) ->  | CC73: =MATCH(CC$3,Millwall!$AP129:$BA129,0) ->  | CD73: =MATCH(CD$3,Millwall!$AP129:$BA129,0) ->  | CE73: =MATCH(CE$3,Millwall!$AP129:$BA129,0) -> 
C74: 1 | F74: =Millwall!AI130 -> 00:00:00 | H74: =Millwall!AK130 -> 00:00:00 | I74: =Millwall!AL130 -> 00:00:00 | J74: =Millwall!AO130 -> 0 | K74: =MATCH(K$4,Millwall!$AP130:$BA130,0) ->  | L74: =MATCH(L$4,Millwall!$AP130:$BA130,0) ->  | M74: =MATCH(M$4,Millwall!$AP130:$BA130,0) ->  | N74: =MATCH(N$4,Millwall!$AP130:$BA130,0) ->  | O74: =MATCH(O$4,Millwall!$AP130:$BA130,0) ->  | P74: =MATCH(P$4,Millwall!$AP130:$BA130,0) ->  | Q74: =MATCH(Q$4,Millwall!$AP130:$BA130,0) ->  | R74: =MATCH(R$4,Millwall!$AP130:$BA130,0) ->  | S74: =MATCH(S$4,Millwall!$AP130:$BA130,0) ->  | T74: =MATCH(T$4,Millwall!$AP130:$BA130,0) ->  | U74: =MATCH(U$4,Millwall!$AP130:$BA130,0) ->  | V74: =MATCH(V$4,Millwall!$AP130:$BA130,0) ->  | W74: =MATCH(W$4,Millwall!$AP130:$BA130,0) ->  | X74: =MATCH(X$4,Millwall!$AP130:$BA130,0) ->  | Y74: =MATCH(Y$4,Millwall!$AP130:$BA130,0) ->  | Z74: =MATCH(Z$4,Millwall!$AP130:$BA130,0) ->  | AA74: =MATCH(AA$4,Millwall!$AP130:$BA130,0) ->  | AB74: =MATCH(AB$4,Millwall!$AP130:$BA130,0) ->  | AC74: =MATCH(AC$4,Millwall!$AP130:$BA130,0) ->  | AD74: =MATCH(AD$4,Millwall!$AP130:$BA130,0) ->  | AE74: =MATCH(AE$4,Millwall!$AP130:$BA130,0) ->  | AF74: =MATCH(AF$4,Millwall!$AP130:$BA130,0) ->  | AG74: =MATCH(AG$4,Millwall!$AP130:$BA130,0) ->  | AH74: =MATCH(AH$4,Millwall!$AP130:$BA130,0) ->  | AI74: =MATCH(AI$4,Millwall!$AP130:$BA130,0) ->  | AJ74: =MATCH(AJ$4,Millwall!$AP130:$BA130,0) ->  | AK74: =MATCH(AK$4,Millwall!$AP130:$BA130,0) ->  | AL74: =MATCH(AL$4,Millwall!$AP130:$BA130,0) ->  | AM74: =MATCH(AM$4,Millwall!$AP130:$BA130,0) ->  | AN74: =MATCH(AN$4,Millwall!$AP130:$BA130,0) ->  | AO74: =MATCH(AO$4,Millwall!$AP130:$BA130,0) ->  | AP74: =MATCH(AP$4,Millwall!$AP130:$BA130,0) ->  | AQ74: =MATCH(AQ$4,Millwall!$AP130:$BA130,0) ->  | AR74: =MATCH(AR$4,Millwall!$AP130:$BA130,0) ->  | AX74: =MATCH(AX$3,Millwall!$AP130:$BA130,0) ->  | AY74: =MATCH(AY$3,Millwall!$AP130:$BA130,0) ->  | AZ74: =MATCH(AZ$3,Millwall!$AP130:$BA130,0) ->  | BA74: =MATCH(BA$3,Millwall!$AP130:$BA130,0) ->  | BB74: =MATCH(BB$3,Millwall!$AP130:$BA130,0) ->  | BC74: =MATCH(BC$3,Millwall!$AP130:$BA130,0) ->  | BD74: =MATCH(BD$3,Millwall!$AP130:$BA130,0) ->  | BE74: =MATCH(BE$3,Millwall!$AP130:$BA130,0) ->  | BF74: =MATCH(BF$3,Millwall!$AP130:$BA130,0) ->  | BG74: =MATCH(BG$3,Millwall!$AP130:$BA130,0) ->  | BH74: =MATCH(BH$3,Millwall!$AP130:$BA130,0) ->  | BI74: =MATCH(BI$3,Millwall!$AP130:$BA130,0) ->  | BJ74: =MATCH(BJ$3,Millwall!$AP130:$BA130,0) ->  | BK74: =MATCH(BK$3,Millwall!$AP130:$BA130,0) ->  | BL74: =MATCH(BL$3,Millwall!$AP130:$BA130,0) ->  | BM74: =MATCH(BM$3,Millwall!$AP130:$BA130,0) ->  | BN74: =MATCH(BN$3,Millwall!$AP130:$BA130,0) ->  | BO74: =MATCH(BO$3,Millwall!$AP130:$BA130,0) ->  | BP74: =MATCH(BP$3,Millwall!$AP130:$BA130,0) ->  | BQ74: =MATCH(BQ$3,Millwall!$AP130:$BA130,0) ->  | BR74: =MATCH(BR$3,Millwall!$AP130:$BA130,0) ->  | BS74: =MATCH(BS$3,Millwall!$AP130:$BA130,0) ->  | BT74: =MATCH(BT$3,Millwall!$AP130:$BA130,0) ->  | BU74: =MATCH(BU$3,Millwall!$AP130:$BA130,0) ->  | BV74: =MATCH(BV$3,Millwall!$AP130:$BA130,0) ->  | BW74: =MATCH(BW$3,Millwall!$AP130:$BA130,0) ->  | BX74: =MATCH(BX$3,Millwall!$AP130:$BA130,0) ->  | BY74: =MATCH(BY$3,Millwall!$AP130:$BA130,0) ->  | BZ74: =MATCH(BZ$3,Millwall!$AP130:$BA130,0) ->  | CA74: =MATCH(CA$3,Millwall!$AP130:$BA130,0) ->  | CB74: =MATCH(CB$3,Millwall!$AP130:$BA130,0) ->  | CC74: =MATCH(CC$3,Millwall!$AP130:$BA130,0) ->  | CD74: =MATCH(CD$3,Millwall!$AP130:$BA130,0) ->  | CE74: =MATCH(CE$3,Millwall!$AP130:$BA130,0) -> 
C75: 1 | F75: =Millwall!AI131 -> 00:00:00 | H75: =Millwall!AK131 -> 00:00:00 | I75: =Millwall!AL131 -> 00:00:00 | J75: =Millwall!AO131 -> 0 | K75: =MATCH(K$4,Millwall!$AP131:$BA131,0) ->  | L75: =MATCH(L$4,Millwall!$AP131:$BA131,0) ->  | M75: =MATCH(M$4,Millwall!$AP131:$BA131,0) ->  | N75: =MATCH(N$4,Millwall!$AP131:$BA131,0) ->  | O75: =MATCH(O$4,Millwall!$AP131:$BA131,0) ->  | P75: =MATCH(P$4,Millwall!$AP131:$BA131,0) ->  | Q75: =MATCH(Q$4,Millwall!$AP131:$BA131,0) ->  | R75: =MATCH(R$4,Millwall!$AP131:$BA131,0) ->  | S75: =MATCH(S$4,Millwall!$AP131:$BA131,0) ->  | T75: =MATCH(T$4,Millwall!$AP131:$BA131,0) ->  | U75: =MATCH(U$4,Millwall!$AP131:$BA131,0) ->  | V75: =MATCH(V$4,Millwall!$AP131:$BA131,0) ->  | W75: =MATCH(W$4,Millwall!$AP131:$BA131,0) ->  | X75: =MATCH(X$4,Millwall!$AP131:$BA131,0) ->  | Y75: =MATCH(Y$4,Millwall!$AP131:$BA131,0) ->  | Z75: =MATCH(Z$4,Millwall!$AP131:$BA131,0) ->  | AA75: =MATCH(AA$4,Millwall!$AP131:$BA131,0) ->  | AB75: =MATCH(AB$4,Millwall!$AP131:$BA131,0) ->  | AC75: =MATCH(AC$4,Millwall!$AP131:$BA131,0) ->  | AD75: =MATCH(AD$4,Millwall!$AP131:$BA131,0) ->  | AE75: =MATCH(AE$4,Millwall!$AP131:$BA131,0) ->  | AF75: =MATCH(AF$4,Millwall!$AP131:$BA131,0) ->  | AG75: =MATCH(AG$4,Millwall!$AP131:$BA131,0) ->  | AH75: =MATCH(AH$4,Millwall!$AP131:$BA131,0) ->  | AI75: =MATCH(AI$4,Millwall!$AP131:$BA131,0) ->  | AJ75: =MATCH(AJ$4,Millwall!$AP131:$BA131,0) ->  | AK75: =MATCH(AK$4,Millwall!$AP131:$BA131,0) ->  | AL75: =MATCH(AL$4,Millwall!$AP131:$BA131,0) ->  | AM75: =MATCH(AM$4,Millwall!$AP131:$BA131,0) ->  | AN75: =MATCH(AN$4,Millwall!$AP131:$BA131,0) ->  | AO75: =MATCH(AO$4,Millwall!$AP131:$BA131,0) ->  | AP75: =MATCH(AP$4,Millwall!$AP131:$BA131,0) ->  | AQ75: =MATCH(AQ$4,Millwall!$AP131:$BA131,0) ->  | AR75: =MATCH(AR$4,Millwall!$AP131:$BA131,0) ->  | AX75: =MATCH(AX$3,Millwall!$AP131:$BA131,0) ->  | AY75: =MATCH(AY$3,Millwall!$AP131:$BA131,0) ->  | AZ75: =MATCH(AZ$3,Millwall!$AP131:$BA131,0) ->  | BA75: =MATCH(BA$3,Millwall!$AP131:$BA131,0) ->  | BB75: =MATCH(BB$3,Millwall!$AP131:$BA131,0) ->  | BC75: =MATCH(BC$3,Millwall!$AP131:$BA131,0) ->  | BD75: =MATCH(BD$3,Millwall!$AP131:$BA131,0) ->  | BE75: =MATCH(BE$3,Millwall!$AP131:$BA131,0) ->  | BF75: =MATCH(BF$3,Millwall!$AP131:$BA131,0) ->  | BG75: =MATCH(BG$3,Millwall!$AP131:$BA131,0) ->  | BH75: =MATCH(BH$3,Millwall!$AP131:$BA131,0) ->  | BI75: =MATCH(BI$3,Millwall!$AP131:$BA131,0) ->  | BJ75: =MATCH(BJ$3,Millwall!$AP131:$BA131,0) ->  | BK75: =MATCH(BK$3,Millwall!$AP131:$BA131,0) ->  | BL75: =MATCH(BL$3,Millwall!$AP131:$BA131,0) ->  | BM75: =MATCH(BM$3,Millwall!$AP131:$BA131,0) ->  | BN75: =MATCH(BN$3,Millwall!$AP131:$BA131,0) ->  | BO75: =MATCH(BO$3,Millwall!$AP131:$BA131,0) ->  | BP75: =MATCH(BP$3,Millwall!$AP131:$BA131,0) ->  | BQ75: =MATCH(BQ$3,Millwall!$AP131:$BA131,0) ->  | BR75: =MATCH(BR$3,Millwall!$AP131:$BA131,0) ->  | BS75: =MATCH(BS$3,Millwall!$AP131:$BA131,0) ->  | BT75: =MATCH(BT$3,Millwall!$AP131:$BA131,0) ->  | BU75: =MATCH(BU$3,Millwall!$AP131:$BA131,0) ->  | BV75: =MATCH(BV$3,Millwall!$AP131:$BA131,0) ->  | BW75: =MATCH(BW$3,Millwall!$AP131:$BA131,0) ->  | BX75: =MATCH(BX$3,Millwall!$AP131:$BA131,0) ->  | BY75: =MATCH(BY$3,Millwall!$AP131:$BA131,0) ->  | BZ75: =MATCH(BZ$3,Millwall!$AP131:$BA131,0) ->  | CA75: =MATCH(CA$3,Millwall!$AP131:$BA131,0) ->  | CB75: =MATCH(CB$3,Millwall!$AP131:$BA131,0) ->  | CC75: =MATCH(CC$3,Millwall!$AP131:$BA131,0) ->  | CD75: =MATCH(CD$3,Millwall!$AP131:$BA131,0) ->  | CE75: =MATCH(CE$3,Millwall!$AP131:$BA131,0) -> 
C76: 1 | F76: =Millwall!AI132 -> 00:00:00 | H76: =Millwall!AK132 -> 00:00:00 | I76: =Millwall!AL132 -> 00:00:00 | J76: =Millwall!AO132 -> 0 | K76: =MATCH(K$4,Millwall!$AP132:$BA132,0) ->  | L76: =MATCH(L$4,Millwall!$AP132:$BA132,0) ->  | M76: =MATCH(M$4,Millwall!$AP132:$BA132,0) ->  | N76: =MATCH(N$4,Millwall!$AP132:$BA132,0) ->  | O76: =MATCH(O$4,Millwall!$AP132:$BA132,0) ->  | P76: =MATCH(P$4,Millwall!$AP132:$BA132,0) ->  | Q76: =MATCH(Q$4,Millwall!$AP132:$BA132,0) ->  | R76: =MATCH(R$4,Millwall!$AP132:$BA132,0) ->  | S76: =MATCH(S$4,Millwall!$AP132:$BA132,0) ->  | T76: =MATCH(T$4,Millwall!$AP132:$BA132,0) ->  | U76: =MATCH(U$4,Millwall!$AP132:$BA132,0) ->  | V76: =MATCH(V$4,Millwall!$AP132:$BA132,0) ->  | W76: =MATCH(W$4,Millwall!$AP132:$BA132,0) ->  | X76: =MATCH(X$4,Millwall!$AP132:$BA132,0) ->  | Y76: =MATCH(Y$4,Millwall!$AP132:$BA132,0) ->  | Z76: =MATCH(Z$4,Millwall!$AP132:$BA132,0) ->  | AA76: =MATCH(AA$4,Millwall!$AP132:$BA132,0) ->  | AB76: =MATCH(AB$4,Millwall!$AP132:$BA132,0) ->  | AC76: =MATCH(AC$4,Millwall!$AP132:$BA132,0) ->  | AD76: =MATCH(AD$4,Millwall!$AP132:$BA132,0) ->  | AE76: =MATCH(AE$4,Millwall!$AP132:$BA132,0) ->  | AF76: =MATCH(AF$4,Millwall!$AP132:$BA132,0) ->  | AG76: =MATCH(AG$4,Millwall!$AP132:$BA132,0) ->  | AH76: =MATCH(AH$4,Millwall!$AP132:$BA132,0) ->  | AI76: =MATCH(AI$4,Millwall!$AP132:$BA132,0) ->  | AJ76: =MATCH(AJ$4,Millwall!$AP132:$BA132,0) ->  | AK76: =MATCH(AK$4,Millwall!$AP132:$BA132,0) ->  | AL76: =MATCH(AL$4,Millwall!$AP132:$BA132,0) ->  | AM76: =MATCH(AM$4,Millwall!$AP132:$BA132,0) ->  | AN76: =MATCH(AN$4,Millwall!$AP132:$BA132,0) ->  | AO76: =MATCH(AO$4,Millwall!$AP132:$BA132,0) ->  | AP76: =MATCH(AP$4,Millwall!$AP132:$BA132,0) ->  | AQ76: =MATCH(AQ$4,Millwall!$AP132:$BA132,0) ->  | AR76: =MATCH(AR$4,Millwall!$AP132:$BA132,0) ->  | AX76: =MATCH(AX$3,Millwall!$AP132:$BA132,0) ->  | AY76: =MATCH(AY$3,Millwall!$AP132:$BA132,0) ->  | AZ76: =MATCH(AZ$3,Millwall!$AP132:$BA132,0) ->  | BA76: =MATCH(BA$3,Millwall!$AP132:$BA132,0) ->  | BB76: =MATCH(BB$3,Millwall!$AP132:$BA132,0) ->  | BC76: =MATCH(BC$3,Millwall!$AP132:$BA132,0) ->  | BD76: =MATCH(BD$3,Millwall!$AP132:$BA132,0) ->  | BE76: =MATCH(BE$3,Millwall!$AP132:$BA132,0) ->  | BF76: =MATCH(BF$3,Millwall!$AP132:$BA132,0) ->  | BG76: =MATCH(BG$3,Millwall!$AP132:$BA132,0) ->  | BH76: =MATCH(BH$3,Millwall!$AP132:$BA132,0) ->  | BI76: =MATCH(BI$3,Millwall!$AP132:$BA132,0) ->  | BJ76: =MATCH(BJ$3,Millwall!$AP132:$BA132,0) ->  | BK76: =MATCH(BK$3,Millwall!$AP132:$BA132,0) ->  | BL76: =MATCH(BL$3,Millwall!$AP132:$BA132,0) ->  | BM76: =MATCH(BM$3,Millwall!$AP132:$BA132,0) ->  | BN76: =MATCH(BN$3,Millwall!$AP132:$BA132,0) ->  | BO76: =MATCH(BO$3,Millwall!$AP132:$BA132,0) ->  | BP76: =MATCH(BP$3,Millwall!$AP132:$BA132,0) ->  | BQ76: =MATCH(BQ$3,Millwall!$AP132:$BA132,0) ->  | BR76: =MATCH(BR$3,Millwall!$AP132:$BA132,0) ->  | BS76: =MATCH(BS$3,Millwall!$AP132:$BA132,0) ->  | BT76: =MATCH(BT$3,Millwall!$AP132:$BA132,0) ->  | BU76: =MATCH(BU$3,Millwall!$AP132:$BA132,0) ->  | BV76: =MATCH(BV$3,Millwall!$AP132:$BA132,0) ->  | BW76: =MATCH(BW$3,Millwall!$AP132:$BA132,0) ->  | BX76: =MATCH(BX$3,Millwall!$AP132:$BA132,0) ->  | BY76: =MATCH(BY$3,Millwall!$AP132:$BA132,0) ->  | BZ76: =MATCH(BZ$3,Millwall!$AP132:$BA132,0) ->  | CA76: =MATCH(CA$3,Millwall!$AP132:$BA132,0) ->  | CB76: =MATCH(CB$3,Millwall!$AP132:$BA132,0) ->  | CC76: =MATCH(CC$3,Millwall!$AP132:$BA132,0) ->  | CD76: =MATCH(CD$3,Millwall!$AP132:$BA132,0) ->  | CE76: =MATCH(CE$3,Millwall!$AP132:$BA132,0) -> 
J78: Total League Cup Apperances | K78: =COUNT(K70:K76) -> 3 | L78: 3 | M78: 0 | N78: 3 | O78: 3 | P78: 3 | Q78: 0 | R78: 3 | S78: 3 | T78: 3 | U78: 0 | V78: 0 | W78: 1 | X78: 3 | Y78: 3 | Z78: 0 | AA78: 2 | AB78: 0 | AC78: 0 | AD78: 0 | AE78: 0 | AF78: 0 | AG78: 0 | AH78: 0 | AI78: 0 | AJ78: 0 | AK78: 0 | AL78: 0 | AM78: 0 | AN78: 0 | AO78: 0 | AP78: 0 | AQ78: 0 | AR78: 0
J79: Total League Cup Substitute Appearences | K79: =COUNTIF(K70:K76,">=12") -> 0 | L79: =COUNTIF(L70:L76,">=12") -> 0 | M79: 0 | N79: 0 | O79: 0 | P79: 0 | Q79: 0 | R79: 0 | S79: 0 | T79: 0 | U79: 0 | V79: 0 | W79: 0 | X79: 0 | Y79: 0 | Z79: 0 | AA79: 0 | AB79: 0 | AC79: 0 | AD79: 0 | AE79: 0 | AF79: 0 | AG79: 0 | AH79: 0 | AI79: 0 | AJ79: 0 | AK79: 0 | AL79: 0 | AM79: 0 | AN79: 0 | AO79: 0 | AP79: 0 | AQ79: 0 | AR79: 0
J80: Goals | K80: =Millwall!$CD$7 -> 0 | L80: =Millwall!$CD$8 -> 0 | M80: =Millwall!$CD$9 -> 0 | N80: =Millwall!$CD$10 -> 0 | O80: =Millwall!$CD$11 -> 0 | P80: =Millwall!$CD$12 -> 0 | Q80: =Millwall!$CD$13 -> 0 | R80: =Millwall!$CD$14 -> 0 | S80: =Millwall!$CD$15 -> 0 | T80: =Millwall!$CD$16 -> 0 | U80: =Millwall!$CD$17 -> 0 | V80: =Millwall!$CD$18 -> 0 | W80: =Millwall!$CD$19 -> 0 | X80: =Millwall!$CD$20 -> 0 | Y80: =Millwall!$CD$21 -> 0 | Z80: =Millwall!$CD$22 -> 0 | AA80: =Millwall!$CD$23 -> 0 | AB80: =Millwall!$CD$24 -> 0 | AC80: =Millwall!$CD$25 -> 0 | AD80: =Millwall!$CD$26 -> 0 | AE80: =Millwall!$CD$27 -> 0 | AF80: =Millwall!$CD$28 -> 0 | AG80: =Millwall!$CD$29 -> 0 | AH80: =Millwall!$CD$30 -> 0 | AI80: =Millwall!$CD$29 -> 0 | AJ80: =Millwall!$CD$33 -> 0 | AK80: =Millwall!$CD$34 -> 0 | AL80: =Millwall!$CD$35 -> 0 | AM80: =Millwall!$CD$36 -> 0 | AN80: =Millwall!$CD$37 -> 0 | AO80: =Millwall!$CD$38 -> 0 | AP80: =Millwall!$CD$39 -> 0 | AQ80: =Millwall!$CD$40 -> 0 | AR80: =Millwall!$CD$41 -> 0
C82: 1
C83: 1
C84: 1
C85: 1
C86: 1
C87: 1
C88: 1
C89: 1
H92: Checks | S92: 1
A94: Manual Input | H94: Opponents | I94: Venue/Result | K94: =K3 -> Allder | L94: Bolland | M94: Bridges | N94: B Brown | O94: S Brown | P94: Burnett | Q94: Coxhill | R94: Cripps | S94: Dorney | T94: Dunphy | U94: Garner | V94: Holmes | W94: Jacks | X94: King | Y94: Kitchener | Z94: Neil | AA94: Possee | AB94: 0 | AC94: 0 | AD94: 0 | AE94: Own Goal | AF94: 0 | AG94: 0 | AH94: 0 | AI94: 0 | AJ94: 0 | AK94: 0 | AL94: 0 | AM94: 0 | AN94: 0 | AO94: 0 | AP94: 0 | AQ94: 0 | AR94: 0
C95: =IF(J95=0,1,0) -> 0 | D95: 1 | F95: =F5 -> 1970-08-15 | H95: =H5 -> Oxford | I95: (H) | J95: L 1-2 | K95: 11 | L95: 9 | N95: 2 | P95: 6 | R95: 3 | S95: 4 | T95: 10 | W95: 8 | X95: 1 | Y95: 5 | AA95: 7
C96: 0 | D96: 2 | F96: 1970-08-22 | H96: Cardiff | I96: (A) | J96: D 2-2 | K96: 11 | L96: 9 | N96: 2 | O96: 12 | P96: 6 | R96: 3 | S96: 4 | T96: 10 | W96: 8 | X96: 1 | Y96: 5 | AA96: 7
C97: 0 | D97: 3 | F97: 1970-08-29 | H97: Portsmouth | I97: (H) | J97: D 0-0 | K97: 11 | L97: 9 | N97: 2 | O97: 12 | P97: 6 | R97: 3 | S97: 4 | T97: 10 | W97: 8 | X97: 1 | Y97: 5 | AA97: 7
C98: 0 | D98: 4 | F98: 1970-09-02 | H98: Norwich | I98: (A) | J98: L 0-1 | K98: 11 | L98: 9 | N98: 2 | O98: 12 | P98: 6 | R98: 3 | S98: 4 | T98: 10 | W98: 8 | X98: 1 | Y98: 5 | AA98: 7
C99: 0 | D99: 5 | F99: 1970-09-05 | H99: Charlton | I99: (A) | J99: W 3-1 | K99: 11 | L99: 9 | N99: 2 | P99: 6 | R99: 3 | T99: 10 | W99: 4 | X99: 1 | Y99: 5 | Z99: 8 | AA99: 7
C100: 0 | D100: 6 | F100: 1970-09-14 | H100: Sheff Utd | I100: (H) | J100: L 1-2 | K100: 11 | L100: 9 | N100: 2 | O100: 12 | P100: 6 | R100: 3 | S100: 4 | T100: 10 | W100: 8 | X100: 1 | Y100: 5 | AA100: 7
C101: 0 | D101: 7 | F101: 1970-09-19 | H101: Hull | I101: (A) | J101: L 0-2 | K101: 11 | L101: 9 | N101: 2 | O101: 12 | P101: 6 | R101: 3 | S101: 4 | T101: 10 | W101: 8 | X101: 1 | Y101: 5 | AA101: 7
C102: 0 | D102: 8 | F102: 1970-09-26 | H102: Sunderland | I102: (H) | J102: D 0-0 | K102: 11 | L102: 9 | M102: 7 | N102: 2 | P102: 6 | R102: 3 | S102: 4 | T102: 8 | X102: 1 | Y102: 5 | AA102: 10
C103: 0 | D103: 9 | F103: 1970-09-29 | H103: Swindon | I103: (A) | J103: L 0-3 | K103: 11 | L103: 9 | M103: 7 | N103: 2 | O103: 12 | P103: 6 | R103: 3 | S103: 4 | T103: 8 | X103: 1 | Y103: 5 | AA103: 10
C104: 0 | D104: 10 | F104: 1970-10-02 | H104: Carlisle | I104: (A) | J104: L 0-3 | K104: 11 | L104: 9 | M104: 7 | N104: 2 | O104: 12 | P104: 6 | R104: 3 | S104: 4 | T104: 8 | X104: 1 | Y104: 5 | AA104: 10
C105: 0 | D105: 11 | F105: 1970-10-10 | H105: Blackburn | I105: (H) | J105: W 2-0 | K105: 11 | L105: 9 | M105: 7 | N105: 2 | P105: 6 | R105: 3 | T105: 8 | U105: 4 | X105: 1 | Y105: 5 | AA105: 10
C106: 0 | D106: 12 | F106: 1970-10-17 | H106: Oxford | I106: (A) | J106: W 3-2 | K106: 11 | L106: 9 | M106: 7 | N106: 2 | P106: 6 | R106: 3 | S106: 4 | T106: 8 | X106: 1 | Y106: 5 | AA106: 10
C107: 0 | D107: 13 | F107: 1970-10-19 | H107: Watford | I107: (H) | J107: W 3-0 | K107: 11 | L107: 9 | M107: 7 | N107: 2 | P107: 6 | R107: 3 | S107: 4 | T107: 8 | X107: 1 | Y107: 5 | AA107: 10
C108: 0 | D108: 14 | F108: 1970-10-24 | H108: Leyton Orient | I108: (A) | J108: D 0-0 | K108: 11 | L108: 9 | M108: 7 | N108: 2 | P108: 6 | R108: 3 | S108: 4 | T108: 8 | X108: 1 | Y108: 5 | AA108: 10
C109: 0 | D109: 15 | F109: 1970-10-31 | H109: QPR | I109: (H) | J109: W 3-0 | K109: 11 | L109: 9 | M109: 7 | N109: 2 | O109: 12 | P109: 6 | R109: 3 | S109: 4 | T109: 8 | X109: 1 | Y109: 5 | AA109: 10
C110: 0 | D110: 16 | F110: 1970-11-07 | H110: Sheff Wed | I110: (A) | J110: L 0-1 | K110: 11 | L110: 9 | M110: 7 | N110: 2 | O110: 12 | P110: 6 | R110: 3 | S110: 4 | T110: 8 | X110: 1 | Y110: 5 | AA110: 10
C111: 0 | D111: 17 | F111: 1970-11-14 | H111: =H21 -> Bolton | I111: (H) | J111: W 2-0 | K111: 11 | L111: 9 | M111: 7 | N111: 2 | P111: 6 | R111: 3 | S111: 4 | T111: 8 | X111: 1 | Y111: 5 | AA111: 10
C112: 0 | D112: 18 | F112: 1970-11-21 | H112: Bristol C | I112: (H) | J112: W 2-0 | K112: 11 | L112: 9 | M112: 7 | N112: 2 | P112: 6 | R112: 3 | S112: 4 | T112: 8 | X112: 1 | Y112: 5 | AA112: 10
C113: 0 | D113: 19 | F113: 1970-11-28 | H113: Middlesbro | I113: (A) | J113: L 0-1 | K113: 11 | L113: 9 | M113: 7 | N113: 2 | P113: 6 | R113: 3 | S113: 4 | T113: 8 | X113: 1 | Y113: 5 | AA113: 10
C114: 0 | D114: 20 | F114: 1970-12-05 | H114: Birmingham | I114: (H) | J114: W 2-1 | K114: 11 | L114: 9 | M114: 7 | N114: 2 | P114: 6 | R114: 3 | T114: 8 | W114: 4 | X114: 1 | Y114: 5 | AA114: 10
C115: 0 | D115: 21 | F115: 1970-12-12 | H115: Leicester | I115: (A) | J115: L 1-2 | K115: 11 | L115: 8 | M115: 9 | N115: 2 | O115: 12 | P115: 6 | R115: 3 | S115: 4 | T115: 10 | X115: 1 | Y115: 5 | AA115: 7
C116: 0 | D116: 22 | F116: 1970-12-19 | H116: Cardiff | I116: (H) | J116: W 2-1 | K116: 11 | L116: 8 | M116: 9 | N116: 2 | O116: 12 | P116: 6 | R116: 3 | S116: 4 | T116: 10 | X116: 1 | Y116: 5 | AA116: 7
C117: 0 | D117: 23 | F117: 1971-01-09 | H117: Swindon | I117: (H) | J117: D 2-2 | K117: 11 | L117: 8 | M117: 9 | N117: 2 | O117: 12 | P117: 6 | R117: 3 | S117: 4 | T117: 10 | X117: 1 | Y117: 5 | AA117: 7
C118: 0 | D118: 24 | F118: 1971-01-16 | H118: Watford | I118: (A) | J118: W 4-0 | K118: 11 | L118: 8 | M118: 9 | N118: 2 | P118: 6 | R118: 3 | S118: 4 | T118: 10 | X118: 1 | Y118: 5 | AA118: 7
C119: 0 | D119: 25 | F119: 1971-01-23 | H119: Norwich | I119: (H) | J119: D 2-2 | K119: 11 | L119: 10 | M119: 9 | N119: 2 | P119: 6 | R119: 3 | S119: 4 | T119: 8 | X119: 1 | Y119: 5 | AA119: 7
C120: 0 | D120: 26 | F120: 1971-01-30 | H120: Middlesbro | I120: (H) | J120: W 1-0 | L120: 8 | M120: 9 | N120: 2 | O120: 12 | P120: 6 | R120: 3 | S120: 4 | T120: 10 | X120: 1 | Y120: 5 | Z120: 11 | AA120: 7
C121: 0 | D121: 27 | F121: 1971-02-06 | H121: Birmingham | I121: (A) | J121: L 1-3 | L121: 8 | M121: 9 | N121: 2 | P121: 6 | R121: 3 | S121: 4 | T121: 10 | V121: 12 | X121: 1 | Y121: 5 | Z121: 11 | AA121: 7
C122: 0 | D122: 28 | F122: 1971-02-20 | H122: Bristol C | I122: (A) | J122: L 2-3 | K122: 11 | L122: 8 | M122: 9 | N122: 2 | O122: 7 | R122: 3 | S122: 4 | T122: 10 | U122: 6 | X122: 1 | Y122: 5 | Z122: 12
C123: 0 | D123: 29 | F123: 1971-02-27 | H123: QPR | I123: (A) | J123: L 0-2 | K123: 11 | L123: 6 | M123: 9 | N123: 2 | R123: 3 | S123: 4 | W123: 8 | X123: 1 | Y123: 5 | Z123: 10 | AA123: 7
C124: 0 | D124: 30 | F124: 1971-03-01 | H124: Leicester | I124: (H) | J124: D 0-0 | K124: 11 | L124: 10 | M124: 9 | N124: 2 | P124: 6 | R124: 3 | S124: 4 | W124: 8 | X124: 1 | Y124: 5 | AA124: 7
C125: 0 | D125: 31 | F125: 1971-03-06 | H125: Leyton Orient | I125: (H) | J125: L 0-1 | K125: 11 | L125: 10 | M125: 9 | N125: 2 | P125: 6 | R125: 3 | S125: 4 | T125: 12 | X125: 1 | Y125: 5 | Z125: 8 | AA125: 7
C126: 0 | D126: 32 | F126: 1971-03-13 | H126: Bolton | I126: (A) | J126: D 1-1 | K126: 11 | L126: 8 | M126: 9 | N126: 2 | P126: 6 | R126: 3 | S126: 4 | T126: 10 | X126: 1 | Y126: 5 | AA126: 7
C127: 0 | D127: 33 | F127: 1971-03-20 | H127: =H37 -> Sheff Wed | I127: (H) | J127: W 1-0 | K127: 11 | L127: 8 | M127: 9 | N127: 2 | P127: 6 | R127: 3 | S127: 4 | T127: 10 | X127: 1 | Y127: 5 | AA127: 7
C128: 0 | D128: 34 | F128: 1971-03-27 | H128: Charlton | I128: (H) | J128: W 2-0 | K128: 11 | L128: 8 | M128: 9 | N128: 2 | P128: 6 | R128: 3 | S128: 4 | T128: 10 | X128: 1 | Y128: 5 | AA128: 7
C129: 0 | D129: 35 | F129: 1971-03-30 | H129: Luton | I129: (A) | J129: D 1-1 | K129: 11 | L129: 8 | M129: 9 | N129: 2 | P129: 6 | R129: 3 | S129: 4 | T129: 10 | X129: 1 | Y129: 5 | AA129: 7
C130: 0 | D130: 36 | F130: 1971-04-03 | H130: Portsmouth | I130: (A) | J130: W 2-0 | L130: 8 | M130: 9 | N130: 2 | P130: 6 | Q130: 11 | R130: 3 | S130: 4 | T130: 10 | X130: 1 | Y130: 5 | AA130: 7
C131: 0 | D131: 37 | F131: 1971-04-05 | H131: Carlisle | I131: (H) | J131: W 2-1 | K131: 11 | L131: 8 | M131: 9 | N131: 2 | P131: 6 | R131: 3 | S131: 4 | T131: 10 | X131: 1 | Y131: 5 | AA131: 7
C132: 0 | D132: 38 | F132: 1971-04-10 | H132: Luton | I132: (H) | J132: W 4-0 | K132: 11 | L132: 8 | M132: 9 | N132: 2 | P132: 6 | R132: 3 | S132: 4 | T132: 10 | X132: 1 | Y132: 5 | AA132: 7
C133: 0 | D133: 39 | F133: 1971-04-13 | H133: Sheff Utd | I133: (A) | J133: L 0-2 | K133: 11 | L133: 8 | M133: 9 | N133: 2 | P133: 6 | Q133: 12 | R133: 3 | S133: 4 | T133: 10 | X133: 1 | Y133: 5 | AA133: 7
C134: 0 | D134: 40 | F134: 1971-04-17 | H134: Blackburn | I134: (A) | J134: W 2-0 | K134: 11 | L134: 8 | M134: 9 | N134: 2 | P134: 6 | R134: 3 | S134: 4 | T134: 10 | X134: 1 | Y134: 5 | AA134: 7
C135: 0 | D135: 41 | F135: 1971-04-24 | H135: Hull | I135: (H) | J135: W 4-0 | K135: 11 | L135: 8 | M135: 9 | N135: 2 | P135: 6 | R135: 3 | S135: 4 | T135: 10 | X135: 1 | Y135: 5 | AA135: 7
C136: 0 | D136: 42 | F136: 1971-05-01 | H136: Sunderland | I136: (A) | J136: W 1-0 | L136: 8 | M136: 9 | N136: 2 | P136: 6 | Q136: 11 | R136: 3 | S136: 4 | T136: 10 | X136: 1 | Y136: 5 | AA136: 7
C137: 1 | D137: 43 | F137: 00:00:00 | H137: 00:00:00 | I137: 00:00:00 | J137: 0
C138: 1 | D138: 44 | F138: 00:00:00 | H138: 00:00:00 | I138: 00:00:00 | J138: 0
C139: =IF(J139=0,1,0) -> 1 | D139: 45 | F139: 00:00:00 | H139: 00:00:00 | I139: 00:00:00 | J139: 0
C140: =IF(J140=0,1,0) -> 1 | D140: 46 | F140: 00:00:00 | H140: 00:00:00 | I140: 00:00:00 | J140: 0
J142: Total League Apperances | K142: =COUNT(K95:K140)-K143 -> 38 | L142: =COUNT(L95:L140)-L143 -> 42 | M142: 35 | N142: 42 | O142: 1 | P142: 40 | Q142: 2 | R142: 42 | S142: 39 | T142: 39 | U142: 2 | V142: 0 | W142: 10 | X142: 42 | Y142: 42 | Z142: 5 | AA142: 41 | AB142: 0 | AC142: 0 | AD142: 0 | AE142: 0 | AF142: 0 | AG142: 0 | AH142: 0 | AI142: 0 | AJ142: 0 | AK142: 0 | AL142: 0 | AM142: 0 | AN142: 0 | AO142: 0 | AP142: 0 | AQ142: 0 | AR142: 0
J143: Total League Substitute Appearences | K143: =COUNTIF(K95:K140,">=12") -> 0 | L143: 0 | M143: =COUNTIF(M95:M140,">=12") -> 0 | N143: =COUNTIF(N95:N140,">=12") -> 0 | O143: 13 | P143: 0 | Q143: 1 | R143: 0 | S143: 0 | T143: 1 | U143: 0 | V143: 1 | W143: 0 | X143: 0 | Y143: 0 | Z143: 1 | AA143: 0 | AB143: 0 | AC143: 0 | AD143: 0 | AE143: 0 | AF143: 0 | AG143: 0 | AH143: 0 | AI143: 0 | AJ143: 0 | AK143: 0 | AL143: 0 | AM143: 0 | AN143: 0 | AO143: 0 | AP143: 0 | AQ143: 0 | AR143: 0
J144: Goals | K144: 0 | L144: 0 | M144: 0 | N144: 0 | O144: 0 | P144: 0 | Q144: 0 | R144: 0 | S144: 0 | T144: 0 | U144: 0 | V144: 0 | W144: 0 | X144: 0 | Y144: 0 | Z144: 0 | AA144: 0 | AB144: 0 | AC144: 0 | AD144: 0 | AE144: 0 | AF144: 0 | AG144: 0 | AH144: 0 | AI144: 0 | AJ144: 0 | AK144: 0 | AL144: 0 | AM144: 0 | AN144: 0 | AO144: 0 | AP144: 0 | AQ144: 0 | AR144: 0
H145: FA Cup
C146: =IF(J146=0,1,0) -> 0 | D146: =D57 -> 3 | F146: =F57 -> 1971-01-02 | H146: =H57 -> Stoke City | I146: (A) | J146: L 1-2 | K146: 11 | L146: 9 | M146: 7 | N146: 2 | P146: 6 | R146: 3 | S146: 4 | T146: 8 | X146: 1 | Y146: 5 | AA146: 10
C147: 1 | D147: =D58 -> 0 | F147: 00:00:00 | H147: 00:00:00 | I147: 00:00:00 | J147: 0
C148: 1 | D148: 0 | F148: 00:00:00 | H148: 00:00:00 | I148: 00:00:00 | J148: 0
C149: 1 | D149: 0 | F149: 00:00:00 | H149: 00:00:00 | I149: 00:00:00 | J149: 0
C150: 1 | D150: 0 | F150: 00:00:00 | H150: 00:00:00 | I150: 00:00:00 | J150: 0
C151: 1 | D151: 0 | F151: 00:00:00 | H151: 00:00:00 | I151: 00:00:00 | J151: 0
C152: 1 | D152: 0 | F152: 00:00:00 | H152: 00:00:00 | I152: 00:00:00 | J152: 0
J154: Total FA Cup Apperances | K154: =COUNT(K146:K152)-K155 -> 1 | L154: =COUNT(L146:L152)-L155 -> 1 | M154: 1 | N154: 1 | O154: 0 | P154: 1 | Q154: 0 | R154: 1 | S154: 1 | T154: 1 | U154: 0 | V154: 0 | W154: 0 | X154: 1 | Y154: 1 | Z154: 0 | AA154: 1 | AB154: 0 | AC154: 0 | AD154: 0 | AE154: 0 | AF154: 0 | AG154: 0 | AH154: 0 | AI154: 0 | AJ154: 0 | AK154: 0 | AL154: 0 | AM154: 0 | AN154: 0 | AO154: 0 | AP154: 0 | AQ154: 0 | AR154: 0
J155: Total FA Cup Substitute Appearences | K155: =COUNTIF(K146:K152,">=12") -> 0 | L155: =COUNTIF(L146:L152,">=12") -> 0 | M155: 0 | N155: 0 | O155: 0 | P155: 0 | Q155: 0 | R155: 0 | S155: 0 | T155: 0 | U155: 0 | V155: 0 | W155: 0 | X155: 0 | Y155: 0 | Z155: 0 | AA155: 0 | AB155: 0 | AC155: 0 | AD155: 0 | AE155: 0 | AF155: 0 | AG155: 0
J156: Goals | K156: 0 | L156: 0 | M156: 0 | N156: 0 | O156: 0 | P156: 0 | Q156: 0 | R156: 0 | S156: 0 | T156: 0 | U156: 0 | V156: 0 | W156: 0 | X156: 0 | Y156: 0 | Z156: 0 | AA156: 0 | AB156: 0 | AC156: 0 | AD156: 0 | AE156: 0 | AF156: 0 | AG156: 0 | AH156: 0 | AI156: 0 | AJ156: 0 | AK156: 0 | AL156: 0 | AM156: 0 | AN156: 0 | AO156: 0 | AP156: 0 | AQ156: 0 | AR156: 0
H158: League Cup
C159: =IF(J159=0,1,0) -> 0 | D159: =D70 -> 2 | F159: =F70 -> 1970-09-09 | H159: =H70 -> Stoke City | I159: (A) | J159: D 0-0 | K159: 11 | L159: 9 | N159: 2 | O159: 7 | P159: 6 | R159: 3 | S159: 4 | T159: 10 | W159: 8 | X159: 1 | Y159: 5
C160: 0 | D160: =D71 -> 2R | F160: 1970-09-21 | H160: Stoke City | I160: (H) | J160: W 2-1 | K160: 11 | L160: 9 | N160: 2 | O160: 7 | P160: 6 | R160: 3 | S160: 4 | T160: 8 | X160: 1 | Y160: 5 | AA160: 10
C161: 0 | D161: 3 | F161: 1970-10-07 | H161: Derby Co | I161: (A) | J161: L 2-4 | K161: 11 | L161: 9 | N161: 2 | O161: 7 | P161: 6 | R161: 3 | S161: 4 | T161: 8 | X161: 1 | Y161: 5 | AA161: 10
C162: 1 | D162: 0 | F162: 00:00:00 | H162: 00:00:00 | I162: 00:00:00 | J162: 0
C163: 1 | D163: 0 | F163: 00:00:00 | H163: 00:00:00 | I163: 00:00:00 | J163: 0
C164: 1 | D164: 0 | F164: 00:00:00 | H164: 00:00:00 | I164: 00:00:00 | J164: 0
C165: 1 | D165: 0 | F165: 00:00:00 | H165: 00:00:00 | I165: 00:00:00 | J165: 0
J167: Total League Cup Apperances | K167: =COUNT(K159:K165)-K168 -> 3 | L167: =COUNT(L159:L165)-L168 -> 3 | M167: 0 | N167: 3 | O167: 3 | P167: 3 | Q167: 0 | R167: 3 | S167: 3 | T167: 3 | U167: 0 | V167: 0 | W167: 1 | X167: 3 | Y167: 3 | Z167: 0 | AA167: 2 | AB167: 0 | AC167: 0 | AD167: 0 | AE167: 0 | AF167: 0 | AG167: 0 | AH167: 0 | AI167: 0 | AJ167: 0 | AK167: 0 | AL167: 0 | AM167: 0 | AN167: 0 | AO167: 0 | AP167: 0 | AQ167: 0 | AR167: 0
J168: Total League Cup Substitute Appearences | K168: =COUNTIF(K159:K165,">=12") -> 0 | L168: =COUNTIF(L159:L165,">=12") -> 0 | M168: 0 | N168: 0 | O168: 0 | P168: 0 | Q168: 0 | R168: 0 | S168: 0 | T168: 0 | U168: 0 | V168: 0 | W168: 0 | X168: 0 | Y168: 0 | Z168: 0 | AA168: 0 | AB168: 0 | AC168: 0 | AD168: 0 | AE168: 0 | AF168: 0 | AG168: 0 | AH168: 0 | AI168: 0 | AJ168: 0 | AK168: 0 | AL168: 0 | AM168: 0 | AN168: 0 | AO168: 0 | AP168: 0 | AQ168: 0 | AR168: 0
J169: Goals | K169: 0 | L169: 0 | M169: 0 | N169: 0 | O169: 0 | P169: 0 | Q169: 0 | R169: 0 | S169: 0 | T169: 0 | U169: 0 | V169: 0 | W169: 0 | X169: 0 | Y169: 0 | Z169: 0 | AA169: 0 | AB169: 0 | AC169: 0 | AD169: 0 | AE169: 0 | AF169: 0 | AG169: 0 | AH169: 0 | AI169: 0 | AJ169: 0 | AK169: 0 | AL169: 0 | AM169: 0 | AN169: 0 | AO169: 0 | AP169: 0 | AQ169: 0 | AR169: 0
C170: 1
C171: 1
C172: 1
C173: 1
C174: 1
C175: 1
C176: 1
C177: 1
A182: Manual Input | H182: Opponents | I182: Venue/Result | K182: =K3 -> Allder | L182: =L3 -> Bolland | M182: =M3 -> Bridges | N182: B Brown | O182: S Brown | P182: Burnett | Q182: Coxhill | R182: Cripps | S182: Dorney | T182: Dunphy | U182: Garner | V182: Holmes | W182: Jacks | X182: King | Y182: Kitchener | Z182: Neil | AA182: Possee | AB182: 0 | AC182: 0 | AD182: 0 | AE182: Own Goal | AF182: 0 | AG182: 0 | AH182: 0 | AI182: 0 | AJ182: 0 | AK182: 0 | AL182: 0 | AM182: 0 | AN182: 0 | AO182: 0 | AP182: 0 | AQ182: 0 | AR182: 0
C183: =IF(J183=0,1,0) -> 0 | D183: 1 | F183: =F5 -> 1970-08-15 | H183: =H5 -> Oxford | I183: (H) | J183: L 1-2 | K183: 11 | L183: 9 | N183: 2 | P183: 6 | R183: 3 | S183: 4 | T183: 10 | W183: 8 | X183: 1 | Y183: 5 | AA183: 7
C184: 0 | D184: 2 | F184: 1970-08-22 | H184: Cardiff | I184: (A) | J184: D 2-2 | K184: 11 | L184: 9 | N184: 2 | O184: 12 | P184: 6 | R184: 3 | S184: 4 | T184: 10 | W184: 8 | X184: 1 | Y184: 5 | AA184: 7
C185: 0 | D185: 3 | F185: 1970-08-29 | H185: Portsmouth | I185: (H) | J185: D 0-0 | K185: 11 | L185: 9 | N185: 2 | O185: 12 | P185: 6 | R185: 3 | S185: 4 | T185: 10 | W185: 8 | X185: 1 | Y185: 5 | AA185: 7
C186: 0 | D186: 4 | F186: 1970-09-02 | H186: Norwich | I186: (A) | J186: L 0-1 | K186: 11 | L186: 9 | N186: 2 | O186: 12 | P186: 6 | R186: 3 | S186: 4 | T186: 10 | W186: 8 | X186: 1 | Y186: 5 | AA186: 7
C187: 0 | D187: 5 | F187: 1970-09-05 | H187: Charlton | I187: (A) | J187: W 3-1 | K187: 11 | L187: 9 | N187: 2 | P187: 6 | R187: 3 | T187: 10 | W187: 4 | X187: 1 | Y187: 5 | Z187: 8 | AA187: 7
C188: 0 | D188: 6 | F188: 1970-09-14 | H188: Sheff Utd | I188: (H) | J188: L 1-2 | K188: 11 | L188: 9 | N188: 2 | O188: 12 | P188: 6 | R188: 3 | S188: 4 | T188: 10 | W188: 8 | X188: 1 | Y188: 5 | AA188: 7
C189: 0 | D189: 7 | F189: 1970-09-19 | H189: Hull | I189: (A) | J189: L 0-2 | K189: 11 | L189: 9 | N189: 2 | O189: 12 | P189: 6 | R189: 3 | S189: 4 | T189: 10 | W189: 8 | X189: 1 | Y189: 5 | AA189: 7
C190: 0 | D190: 8 | F190: 1970-09-26 | H190: Sunderland | I190: (H) | J190: D 0-0 | K190: 11 | L190: 9 | M190: 7 | N190: 2 | P190: 6 | R190: 3 | S190: 4 | T190: 8 | X190: 1 | Y190: 5 | AA190: 10
C191: 0 | D191: 9 | F191: 1970-09-29 | H191: Swindon | I191: (A) | J191: L 0-3 | K191: 11 | L191: 9 | M191: 7 | N191: 2 | O191: 12 | P191: 6 | R191: 3 | S191: 4 | T191: 8 | X191: 1 | Y191: 5 | AA191: 10
C192: 0 | D192: 10 | F192: 1970-10-02 | H192: Carlisle | I192: (A) | J192: L 0-3 | K192: 11 | L192: 9 | M192: 7 | N192: 2 | O192: 12 | P192: 6 | R192: 3 | S192: 4 | T192: 8 | X192: 1 | Y192: 5 | AA192: 10
C193: 0 | D193: 11 | F193: 1970-10-10 | H193: Blackburn | I193: (H) | J193: W 2-0 | K193: 11 | L193: 9 | M193: 7 | N193: 2 | P193: 6 | R193: 3 | T193: 8 | U193: 4 | X193: 1 | Y193: 5 | AA193: 10
C194: 0 | D194: 12 | F194: 1970-10-17 | H194: Oxford | I194: (A) | J194: W 3-2 | K194: 11 | L194: 9 | M194: 7 | N194: 2 | P194: 6 | R194: 3 | S194: 4 | T194: 8 | X194: 1 | Y194: 5 | AA194: 10
C195: 0 | D195: 13 | F195: 1970-10-19 | H195: Watford | I195: (H) | J195: W 3-0 | K195: 11 | L195: 9 | M195: 7 | N195: 2 | P195: 6 | R195: 3 | S195: 4 | T195: 8 | X195: 1 | Y195: 5 | AA195: 10
C196: 0 | D196: 14 | F196: 1970-10-24 | H196: Leyton Orient | I196: (A) | J196: D 0-0 | K196: 11 | L196: 9 | M196: 7 | N196: 2 | P196: 6 | R196: 3 | S196: 4 | T196: 8 | X196: 1 | Y196: 5 | AA196: 10
C197: 0 | D197: 15 | F197: 1970-10-31 | H197: QPR | I197: (H) | J197: W 3-0 | K197: 11 | L197: 9 | M197: 7 | N197: 2 | O197: 12 | P197: 6 | R197: 3 | S197: 4 | T197: 8 | X197: 1 | Y197: 5 | AA197: 10
C198: 0 | D198: 16 | F198: 1970-11-07 | H198: Sheff Wed | I198: (A) | J198: L 0-1 | K198: 11 | L198: 9 | M198: 7 | N198: 2 | O198: 12 | P198: 6 | R198: 3 | S198: 4 | T198: 8 | X198: 1 | Y198: 5 | AA198: 10
C199: 0 | D199: 17 | F199: 1970-11-14 | H199: =H21 -> Bolton | I199: (H) | J199: W 2-0 | K199: 11 | L199: 9 | M199: 7 | N199: 2 | P199: 6 | R199: 3 | S199: 4 | T199: 8 | X199: 1 | Y199: 5 | AA199: 10
C200: 0 | D200: 18 | F200: 1970-11-21 | H200: Bristol C | I200: (H) | J200: W 2-0 | K200: 11 | L200: 9 | M200: 7 | N200: 2 | P200: 6 | R200: 3 | S200: 4 | T200: 8 | X200: 1 | Y200: 5 | AA200: 10
C201: 0 | D201: 19 | F201: 1970-11-28 | H201: Middlesbro | I201: (A) | J201: L 0-1 | K201: 11 | L201: 9 | M201: 7 | N201: 2 | P201: 6 | R201: 3 | S201: 4 | T201: 8 | X201: 1 | Y201: 5 | AA201: 10
C202: 0 | D202: 20 | F202: 1970-12-05 | H202: Birmingham | I202: (H) | J202: W 2-1 | K202: 11 | L202: 9 | M202: 7 | N202: 2 | P202: 6 | R202: 3 | T202: 8 | W202: 4 | X202: 1 | Y202: 5 | AA202: 10
C203: 0 | D203: 21 | F203: 1970-12-12 | H203: Leicester | I203: (A) | J203: L 1-2 | K203: 11 | L203: 8 | M203: 9 | N203: 2 | O203: 12 | P203: 6 | R203: 3 | S203: 4 | T203: 10 | X203: 1 | Y203: 5 | AA203: 7
C204: 0 | D204: 22 | F204: 1970-12-19 | H204: Cardiff | I204: (H) | J204: W 2-1 | K204: 11 | L204: 8 | M204: 9 | N204: 2 | O204: 12 | P204: 6 | R204: 3 | S204: 4 | T204: 10 | X204: 1 | Y204: 5 | AA204: 7
C205: 0 | D205: 23 | F205: 1971-01-09 | H205: Swindon | I205: (H) | J205: D 2-2 | K205: 11 | L205: 8 | M205: 9 | N205: 2 | O205: 12 | P205: 6 | R205: 3 | S205: 4 | T205: 10 | X205: 1 | Y205: 5 | AA205: 7
C206: 0 | D206: 24 | F206: 1971-01-16 | H206: Watford | I206: (A) | J206: W 4-0 | K206: 11 | L206: 8 | M206: 9 | N206: 2 | P206: 6 | R206: 3 | S206: 4 | T206: 10 | X206: 1 | Y206: 5 | AA206: 7
C207: 0 | D207: 25 | F207: 1971-01-23 | H207: Norwich | I207: (H) | J207: D 2-2 | K207: 11 | L207: 10 | M207: 9 | N207: 2 | P207: 6 | R207: 3 | S207: 4 | T207: 8 | X207: 1 | Y207: 5 | AA207: 7
C208: 0 | D208: 26 | F208: 1971-01-30 | H208: Middlesbro | I208: (H) | J208: W 1-0 | L208: 8 | M208: 9 | N208: 2 | O208: 12 | P208: 6 | R208: 3 | S208: 4 | T208: 10 | X208: 1 | Y208: 5 | Z208: 11 | AA208: 7
C209: 0 | D209: 27 | F209: 1971-02-06 | H209: Birmingham | I209: (A) | J209: L 1-3 | L209: 8 | M209: 9 | N209: 2 | P209: 6 | R209: 3 | S209: 4 | T209: 10 | V209: 12 | X209: 1 | Y209: 5 | Z209: 11 | AA209: 7
C210: 0 | D210: 28 | F210: 1971-02-20 | H210: Bristol C | I210: (A) | J210: L 2-3 | K210: 11 | L210: 8 | M210: 9 | N210: 2 | O210: 7 | R210: 3 | S210: 4 | T210: 10 | U210: 6 | X210: 1 | Y210: 5 | Z210: 12
C211: 0 | D211: 29 | F211: 1971-02-27 | H211: QPR | I211: (A) | J211: L 0-2 | K211: 11 | L211: 6 | M211: 9 | N211: 2 | R211: 3 | S211: 4 | W211: 8 | X211: 1 | Y211: 5 | Z211: 10 | AA211: 7
